Workbook

Sheet ANALYSIS DATABASE (hidden)
B3: Property Information
B4: Current Analysis Input: | C4: Rehab Analyzer
B6: Project Name | C6: =Project_Name -> 0
B7: Property Type: | C7: =SETUP!AM10 -> 0
B8: Street Address: | C8: =SETUP!AM11 -> 1234 Main St
B9: City/State/Zip Code: | C9: =SETUP!AM12 -> Kansas City, MO 64116
B10: Concatenated Address | C10: =CONCATENATE(Street_Address," ",City_State_Zip) -> 1234 Main St Kansas City, MO 64116
B11: Neighborhood | C11: =SETUP!AM13 -> The Coves
B12: School District: | C12: =School_District -> Park Hill School District
B13: # of Beds | C13: =SETUP!AM15 -> 3
B14: # of Baths | C14: =SETUP!BI15 -> 2
B15: Property Size | C15: =Square_Feet -> 1500
B16: Original Square Feet | C16: =SETUP!AM16 -> 1500
B17: New Square Feet | C17: =SETUP!BI16 -> 0
B18: Square Feet | C18: =C16+C17 -> 1500
B19: Concatnated Property Size | C19: =CONCATENATE(Beds," beds, ",Baths," baths, ",Square_Feet," sf") -> 3 beds, 2 baths, 1500 sf
B21: Company Information:
B22: Company Name: | C22: =T(Company_Name) -> Dave Inc
B23: Street Address | C23: =T(Company_Street_Address) -> P.O. Box 12345
B24: City/State/Zip | C24: =T(Company_City_State_Zip) -> 
B25: Email | C25: =T(Company_Email) -> dave@venturesheets.com
B26: Phone | C26: =Company_Phone -> 8161234567
B27: Website | C27: =T(Company_Website) -> www.venturesheets.com
B29: Project Information
B30: After Repair Value Result | C30: =AFTER_REPAIR_VALUE_CELL -> 165000
B31: Purchase Price: | C31: =Known_Purchase_Price_Cell -> 0
B34: Rehab Analyzer
B35: Rehab Analyzer Calculation Method | C35: Calculated Purchase Price
B36: Analyzer Setting Description | C36: =IF(C35="Calculated Purchase Price","Change Settings to Analyze Profitability by Known Purchase Price","Change Settings to Calculate Maximum Purchase Price") -> Change Settings to Analyze Profitability by Known Purchase Price
B38: Buying Costs
B39: =T('1 REHAB ANALYZER'!C21:Z22) -> BROKERAGE FEE ($300 Avg.) | C39: ='1 REHAB ANALYZER'!AA21 -> 1000
B40: =T('1 REHAB ANALYZER'!C23:Z24) -> INSPECTION COSTS ($400 Avg.) | C40: ='1 REHAB ANALYZER'!AA23 -> 0
B41: =T('1 REHAB ANALYZER'!C25:Z26) -> APPRAISAL FEE ($500 Avg.) | C41: ='1 REHAB ANALYZER'!AA25 -> 0
B42: =T('1 REHAB ANALYZER'!C27:Z28) -> TITLE SEARCH ($300 Avg.) | C42: ='1 REHAB ANALYZER'!AA27 -> 0
B43: =T('1 REHAB ANALYZER'!C29:Z30) -> TITLE INSURANCE ($150 Avg.) | C43: ='1 REHAB ANALYZER'!AA29 -> 0
B44: =T('1 REHAB ANALYZER'!C75:P76) -> CLOSING COSTS & POINTS | C44: ='1 REHAB ANALYZER'!AA75 -> 0
B45: =T('1 REHAB ANALYZER'!C31:Z32) -> OTHER | C45: ='1 REHAB ANALYZER'!AA31 -> 0
B46: TOTALS | C46: =SUM(C39:C45) -> 1000
B47: Buying Costs %: | C47: =IFERROR(C46/AFTER_REPAIR_VALUE_ESTIMATED,0) -> 0.6%
B49: Holding Costs
B50: =T('1 REHAB ANALYZER'!C77:K78) -> LOAN PAYMENT | C50: ='1 REHAB ANALYZER'!AA77 -> 0
B51: =T('1 REHAB ANALYZER'!C39:K40) -> PROPERTY TAXES | C51: ='1 REHAB ANALYZER'!AA39 -> 1000
B52: =T('1 REHAB ANALYZER'!C41:K42) -> UTILITIES | C52: ='1 REHAB ANALYZER'!AA41 -> 1500
B53: =T('1 REHAB ANALYZER'!C43:K44) -> INSURANCE | C53: ='1 REHAB ANALYZER'!AA43 -> 500
B54: =T('1 REHAB ANALYZER'!C45:J46) -> HOA DUES | C54: ='1 REHAB ANALYZER'!AA45 -> 0
B55: =T('1 REHAB ANALYZER'!C47:J48) -> MAINTENANCE | C55: ='1 REHAB ANALYZER'!AA47 -> 0
B56: =T('1 REHAB ANALYZER'!C49:L50) -> OTHER | C56: ='1 REHAB ANALYZER'!AA49 -> 0
B57: TOTALS | C57: =SUM(C50:C56) -> 3000
B58: Buying Costs %: | C58: =IFERROR(C57/AFTER_REPAIR_VALUE_ESTIMATED,0) -> 1.8%
B60: Selling Costs
B61: =T('1 REHAB ANALYZER'!C57:P58) -> COMMISSIONS | C61: ='1 REHAB ANALYZER'!AA57 -> 9900
B62: =T('1 REHAB ANALYZER'!C59:P60) -> SELLER ASSISTED CLOSING COSTS | C62: ='1 REHAB ANALYZER'!AA59 -> 0
B63: =T('1 REHAB ANALYZER'!C61:P62) -> BROKERAGE FEE ($300 Avg.) | C63: ='1 REHAB ANALYZER'!AA61 -> 0
B64: =T('1 REHAB ANALYZER'!C63:P64) -> HOME WARRANTY ($450 Avg.) | C64: ='1 REHAB ANALYZER'!AA63 -> 450
B65: =T('1 REHAB ANALYZER'!C65:P66) -> TITLE INSURANCE ($150 Avg.) | C65: ='1 REHAB ANALYZER'!AA65 -> 500
B66: =T('1 REHAB ANALYZER'!C67:Z68) -> 2ND APPRAISAL ($500 Avg.) | C66: ='1 REHAB ANALYZER'!AA67 -> 0
B67: =T('1 REHAB ANALYZER'!C69:Z70) -> OTHER | C67: ='1 REHAB ANALYZER'!AA69 -> 0
B68: TOTALS | C68: =SUM(C61:C67) -> 10850
B69: Selling Costs %: | C69: =IFERROR(C68/AFTER_REPAIR_VALUE_ESTIMATED,0) -> 6.6%
B71: Total Fixed Costs | C71: =C46 -> 1000
B72: Fixed Costs Percentage | C72: =IFERROR(C71/AFTER_REPAIR_VALUE_ESTIMATED,0) -> 0.6%
B74: Raw Repair Estimate Costs (DIYED) | D74: % of Total | E74: Adder Amount | F74: Totals
B75: =T(Category1) -> GENERAL CONDITIONS | C75: =GC_ESTIMATE -> 750 | D75: =IFERROR(C75/SUBTOTAL_ESTIMATE,0) -> 1.5% | E75: =D75*TOTAL_ADDERS -> $0 | F75: =C75+E75 -> $750
B76: =T(Category2) -> DEMOLITION | C76: =DEMOLITION_ESTIMATE -> 1000 | D76: 2.0% | E76: $0 | F76: =C76+E76 -> $1,000
B77: =T(Category3) -> STRUCTURAL CONCRETE | C77: =STRUCTURAL_ESTIMATE -> 0 | D77: 0.0% | E77: $0 | F77: $0
B78: =T(Category4) -> CONCRETE & FLATWORK | C78: =CONCRETE_ESTIMATE -> 0 | D78: 0.0% | E78: $0 | F78: $0
B79: =T(Category5) -> MASONRY | C79: =MASONRY_ESTIMATE -> 0 | D79: 0.0% | E79: $0 | F79: $0
B80: =T(Category6) -> SIDING | C80: =SIDING_ESTIMATE -> 0 | D80: 0.0% | E80: $0 | F80: $0
B81: =T(Category7) -> DECKING AND PATIOS | C81: =DECKING_ESTIMATE -> 5000 | D81: 10.1% | E81: $0 | F81: $5,000
B82: =T(Category8) -> ROOFING | C82: =ROOFING_ESTIMATE -> 5500 | D82: 11.1% | E82: $0 | F82: $5,500
B83: =T(Category9) -> EXTERIOR DOORS & WINDOWS | C83: =DOORS_WINDOWS_ESTIMATE -> 2000 | D83: 4.0% | E83: $0 | F83: $2,000
B84: =T(Category10) -> GARAGE DOORS | C84: =GARAGE_DOORS_ESTIMATE -> 1250 | D84: 2.5% | E84: $0 | F84: $1,250
B85: =T(Category11) -> LANDSCAPING | C85: =LANDSCAPING_ESTIMATE -> 500 | D85: 1.0% | E85: $0 | F85: $500
B86: =T(Category12) -> MISC. EXTERIOR ITEMS | C86: =MISC_EXT_IMPROV_ESTIMATE -> 0 | D86: 0.0% | E86: $0 | F86: $0
B87: =T(Category13) -> FRAMING & DRYWALL | C87: =FRAMING_DRYWALL_ESTIMATE -> 500 | D87: 1.0% | E87: $0 | F87: $500
B88: =T(Category14) -> CABINETS & COUNTERTOPS | C88: =CABINETS_COUNTERS_ESTIMATE -> 7500 | D88: 15.1% | E88: $0 | F88: $7,500
B89: =T(Category15) -> DOORS & TRIM | C89: =DOORS_TRIM_ESTIMATE -> 3000 | D89: 6.0% | E89: $0 | F89: $3,000
B90: =T(Category16) -> CARPET & RESILIENT | C90: =CARPET_ESTIMATE -> 3000 | D90: 6.0% | E90: $0 | F90: $3,000
B91: =T(Category17) -> HARDWOOD FLOORING | C91: =HARDWOOD_ESTIMATE -> 2500 | D91: 5.0% | E91: $0 | F91: $2,500
B92: =T(Category18) -> TILING | C92: =TILING_ESTIMATE -> 3000 | D92: 6.0% | E92: $0 | F92: $3,000
B93: =T(Category19) -> PAINTING | C93: =PAINTING_ESTIMATE -> 5000 | D93: 10.1% | E93: $0 | F93: $5,000
B94: =T(Category20) -> APPLIANCES | C94: =APPLIANCES_ESTIMATE -> 2500 | D94: 5.0% | E94: $0 | F94: $2,500
B95: =T(Category21) -> PLUMBING | C95: =PLUMBING_ESTIMATE -> 3000 | D95: 6.0% | E95: $0 | F95: $3,000
B96: =T(Category22) -> HVAC | C96: =HVAC_ESTIMATE -> 250 | D96: 0.5% | E96: $0 | F96: $250
B97: =T(Category23) -> ELECTRICAL | C97: =ELECTRICAL_ESTIMATE -> 3500 | D97: 7.0% | E97: $0 | F97: $3,500
B98: =T(Category24) -> MISCELLANEOUS | C98: =MISCELLANEOUS_ESTIMATE -> 0 | D98: 0.0% | E98: $0 | F98: $0
B99: TOTAL RAW ESTIMATE | C99: =SUM(C75:C98) -> 49750 | D99: 100% | E99: =SUM(E75:E98) -> $0 | F99: =SUM(F75:F98) -> $49,750
B100: Repair Costs w/ Adders (DIYED)
B101: =CONCATENATE(B75," w ADDERS") -> GENERAL CONDITIONS w ADDERS | C101: =F75 -> $750
B102: =CONCATENATE(B76," w ADDERS") -> DEMOLITION w ADDERS | C102: =F76 -> $1,000
B103: STRUCTURAL CONCRETE w ADDERS | C103: $0
B104: CONCRETE & FLATWORK w ADDERS | C104: $0
B105: MASONRY w ADDERS | C105: $0
B106: SIDING w ADDERS | C106: $0
B107: DECKING AND PATIOS w ADDERS | C107: $5,000
B108: ROOFING w ADDERS | C108: $5,500
B109: EXTERIOR DOORS & WINDOWS w ADDERS | C109: $2,000
B110: GARAGE DOORS w ADDERS | C110: $1,250
B111: LANDSCAPING w ADDERS | C111: $500
B112: MISC. EXTERIOR ITEMS w ADDERS | C112: $0
B113: FRAMING & DRYWALL w ADDERS | C113: $500
B114: CABINETS & COUNTERTOPS w ADDERS | C114: $7,500
B115: DOORS & TRIM w ADDERS | C115: $3,000
B116: CARPET & RESILIENT w ADDERS | C116: $3,000
B117: HARDWOOD FLOORING w ADDERS | C117: $2,500
B118: TILING w ADDERS | C118: $3,000
B119: PAINTING w ADDERS | C119: $5,000
B120: APPLIANCES w ADDERS | C120: $2,500
B121: PLUMBING w ADDERS | C121: $3,000
B122: HVAC w ADDERS | C122: $250
B123: ELECTRICAL w ADDERS | C123: $3,500
B124: MISCELLANEOUS w ADDERS | C124: $0
B125: TOTAL RAW ESTIMATE | C125: =SUM(C101:C124) -> 49750
B126: ADDERS
B127: Location Multiplier Adjustment - Repair Estimator | C127: =Estimator_Location_Multiplier_Cell -> 0
B128: Permit Cost % - Repair Estimator | C128: =Estimator_Building_Permit_Cell -> 0%
B129: Contractors Overhead and Profit % - Repair Estimator | C129: =Estimator_Contractor_Overhead_Cell -> 0%
B130: Contingency % - Repair Estimator | C130: =Estimator_Contingency_Cell -> 0%
B131: TOTAL ADDER % | C131: ='2 REPAIR ESTIMATOR'!H80 -> 0%
B132: Location Multiplier Adjustment - Repair Estimator | C132: =Estimator_Location_Multiplier_Amount -> 0
B133: Permit Cost Adder - Repair Estimator | C133: =Estimator_Permit_Cost_Amount -> 0
B134: Contractors Overhead and Profit - Repair Estimator | C134: =Estimator_Contractor_Overhead_Amount -> 0
B135: Contingency - Repair Estimator | C135: =Estimator_Contingency_Amount -> 0
B136: TOTAL ADDER AMOUNT | C136: =Estimator_Total_Adder_Amount -> 0
B137: TOTAL ESTIMATE | C137: =SUBTOTAL_ESTIMATE+TOTAL_ADDERS -> 49750
B138: Results Based upon Maximum Purchase Price Calculation
B139: After Repair Value | C139: =AFTER_REPAIR_VALUE_CELL -> 165000
B140: Maximum Purchase Price | C140: =Maximum_Purchase_Price -> 61837
B141: Buying Costs | C141: =IF(Fixed_Cost_Calculation_Method="% OF ARV",TOTAL_FIXED_COSTS_ESTIMATED/4,TOTAL_BUYING_COSTS_ESTIMATED) -> 1000
B142: Holding Costs | C142: =IF(Fixed_Cost_Calculation_Method="% OF ARV",TOTAL_FIXED_COSTS_ESTIMATED/4,TOTAL_HOLDING_COSTS_ESTIMATED) -> 3000
B143: Selling Costs | C143: =IF(Fixed_Cost_Calculation_Method="% OF ARV",TOTAL_FIXED_COSTS_ESTIMATED/4,TOTAL_SELLING_COSTS_ESTIMATED) -> 10850
B144: Financing Costs | C144: =IF(Fixed_Cost_Calculation_Method="% OF ARV",TOTAL_FIXED_COSTS_ESTIMATED/4,TOTAL_FINANCING_COSTS) -> 0
B145: Total Fixed Costs | C145: =TOTAL_FIXED_COSTS_ESTIMATED -> 14850
B146: Raw Repair Costs | C146: =ESTIMATE_SUBTOTAL -> 49750
B147: Adders | C147: ='1 REHAB ANALYZER'!BG76 -> 13813
B148: Total Repair Costs | C148: =TOTAL_REMODEL_ESTIMATE -> 63563
B149: Total Upfront Costs (excludes selling costs) | C149: =C140+C141+C142+C148+C144 -> 129400
B150: Total Project Costs | C150: =C140+C145+C148 -> 140250
B151: Profit | C151: =C139-C150 -> 24750
B152: Results Based upon Known Purchase Price
B153: After Repair Value | C153: =AFTER_REPAIR_VALUE_CELL -> 165000
B154: Known Purchase Price | C154: =Known_Purchase_Price_Cell -> 0
B155: Buying Costs | C155: =IF(Fixed_Cost_Calculation_Method="% OF ARV",TOTAL_FIXED_COSTS_ESTIMATED/4,TOTAL_BUYING_COSTS_ESTIMATED) -> 1000
B156: Holding Costs | C156: =IF(Fixed_Cost_Calculation_Method="% OF ARV",TOTAL_FIXED_COSTS_ESTIMATED/4,TOTAL_HOLDING_COSTS_ESTIMATED) -> 3000
B157: Selling Costs | C157: =IF(Fixed_Cost_Calculation_Method="% OF ARV",TOTAL_FIXED_COSTS_ESTIMATED/4,TOTAL_SELLING_COSTS_ESTIMATED) -> 10850
B158: Financing Costs | C158: =IF(Fixed_Cost_Calculation_Method="% OF ARV",TOTAL_FIXED_COSTS_ESTIMATED/4,TOTAL_FINANCING_COSTS) -> 0
B159: Total Fixed Costs | C159: =TOTAL_FIXED_COSTS_ESTIMATED -> 14850
B160: Raw Repair Costs | C160: =ESTIMATE_SUBTOTAL -> 49750
B161: Adders | C161: ='1 REHAB ANALYZER'!BG76 -> 13813
B162: Total Repair Costs | C162: =TOTAL_REMODEL_ESTIMATE -> 63563
B163: Total Upfront Costs (excludes selling costs) | C163: =C154+C155+C156+C162+C158 -> 67563
B164: Total Project Costs | C164: =C154+C159+C162 -> 78413
B165: Profit | C165: =C153-C164 -> 86587
B166: Deal Results Based Upon Analysis Selection
B167: After Repair Value | C167: =IF(Rehab_Analyzer_Calculation_Method="Known Purchase Price",C153,C139) -> 165000
B168: Purchase price | C168: =IF(Rehab_Analyzer_Calculation_Method="Known Purchase Price",C154,C140) -> 61837
B169: Buying Costs | C169: =IF(Rehab_Analyzer_Calculation_Method="Known Purchase Price",C155,C141) -> 1000
B170: Holding Costs | C170: =IF(Rehab_Analyzer_Calculation_Method="Known Purchase Price",C156,C142) -> 3000
B171: Selling Costs | C171: =IF(Rehab_Analyzer_Calculation_Method="Known Purchase Price",C157,C143) -> 10850
B172: Total Fixed Costs | C172: =IF(Rehab_Analyzer_Calculation_Method="Known Purchase Price",C159,C145) -> 14850
B173: Raw Repair Costs | C173: 49750
B174: Adders | C174: 13813 | D174: =IFERROR(Adders_Result/Raw_Repair_Costs_Result,0) -> 28%
B175: Total Repair Costs | C175: 63563
B176: Total Upfront Costs (excludes selling costs) | C176: =IF(Rehab_Analyzer_Calculation_Method="Known Purchase Price",C163,C149) -> 129400
B177: Total Project Costs | C177: 140250
B178: Profit | C178: 24750
B179: ROI | C179: =IF(Total_Cash_Needed<0,"Infinite ROI",Total_Profit_Result/Total_Cash_Needed) -> 19%
B180: Annualized ROI | C180: =IF(Total_Cash_Needed<0,"Infinite ROI",(Total_Profit_Result/Total_Cash_Needed/(Total_Schedule_Cell/12))) -> 46%
B181: Profit | C181: =IF(Rehab_Analyzer_Calculation_Method="Known Purchase Price",C167,C153) -> 165000
B182: Financing Results
B183: Funding Strategy | C183: All Cash
B184: Number of Loans | C184: 0
B185: Second Loan (Yes = 1, No = 0) | C185: =IF(Number_of_Loans=2,1,0) -> 0
B186: Loan 1 Results
B187: Loan 1 Basis | C187: Purchase Price Only
B188: Loan Type | C188: ='REHAB FINANCING SETUP'!BD18 -> Interest Only
B189: Loan Term | C189: ='REHAB FINANCING SETUP'!BU18 -> 15
B190: Loan 1 Amount | C190: =IF(Funding_Strategy="All Cash",0,IF(Loan1_Selection="Purchase Price Only",Purchase_Price_Result,IF(Loan1_Selection="Repair Costs Only",Total_Repair_Costs_Result,IF(Loan1_Selection="Purchase And Repairs",Purchase_Price_Result+Total_Repair_Costs_Result,IF(Loan1_Selection="All Project Costs",Total_Upfront_Costs_Result,IF(Loan1_Selection="ARV",After_Repair_Value_Result,IF(Loan1_Selection="Specific Loan Amount",'REHAB FINANCING SETUP'!BP22,0))))))) -> 0
B191: Down Payment or LTV | C191: =IF('REHAB FINANCING SETUP'!AC26="LTV","LTV","Down Payment") -> Down Payment
B192: =IF(C191="Down Payment","Down Payment %","LTV Reduction %") -> Down Payment % | C192: =IF(AND(C191="LTV",'REHAB FINANCING SETUP'!AS26=0),1,'REHAB FINANCING SETUP'!AS26) -> 0%
B193: =IF(C191="Down Payment","Down Payment Amount","LTV Reduction Amount") -> Down Payment Amount | C193: =IF(C191="Down Payment",C192*Loan_Amount,(1-C192)*Loan_Amount) -> 0
B194: =IF(C191="Down Payment","Loan Balance After Down Payment","Loan Balance After LTV Reduction") -> Loan Balance After Down Payment | C194: =Loan_Amount-Down_Payment -> 0
B195: Interest Rate | C195: =Interest_Rate -> 12%
B196: Interest Only Payment Amount | C196: =IFERROR(((Loan_Balance_After_DP_Loan1)*C195)/12,0) -> 0
B197: Amortized (Interest Only Portion) | C197: =IFERROR(-CUMIPMT(C195/12,C189*12,Loan_Balance_After_DP_Loan1,1,Length_of_Loan_Payments_Loan1,0)/Length_of_Loan_Payments_Loan1,0) -> 0
B198: Monthly Payment Amount | C198: =IF(C188="Amortized",C197,C196) -> 0
B199: Total Loan Payments | C199: =Length_of_Loan_Payments_Loan1*C198 -> 0
B200: Interest Payments Paid Monthly/Rolled | C200: =IF('REHAB FINANCING SETUP'!AS28="Rolled","Rolled","Monthly") -> Monthly
B201: Interest Payments Rolled | C201: =IF(C200="Rolled",C199,0) -> 0
B202: Lender Points % | C202: =Lender_Points_Loan1 -> 0
B203: Lender Points Amount | C203: =C202*Loan_Balance_After_DP_Loan1 -> 0
B204: Points Paid Upfront/Rolled | C204: =IF('REHAB FINANCING SETUP'!AS30="Rolled","Rolled","Upfront") -> Upfront
B205: Points Rolled | C205: =IF(C204="Rolled",C203,0) -> 0
B206: Other Financing Costs | C206: ='REHAB FINANCING SETUP'!BM33 -> 0
B207: Total Financing Costs | C207: =C199+C203+C206 -> 0
B208: Final Loan Amount (w/ interest/points rolled) | C208: =Loan_Balance_After_DP_Loan1+C201+C205 -> 0
B209: Loan 1 Cash Calculations
B210: Down Payment | C210: =IF(C191="Down Payment",Down_Payment,0) -> 0
B211: Points Paid Upfront | C211: =IF(C204="Rolled",0,C203) -> 0
B212: Total Cash at Closing | C212: =C210+C211 -> 0
... 47 more rows

Sheet BUDGET DATABASE (hidden)
B3: Offers
B4: Accepted Offer | C4: Baseline
B5: Accepted Offer Amount | C5: =Purchase_Price_Result -> 61836.9125
B6: Purchase Price Result | C6: =Purchase_Price_Result -> 61836.9125
B7: Purchase Price - Project Budgeter | C7: =PURCHASE_PRICE_BUDGET -> 
B8: Purchase Price Result | C8: =IF(C6<>C7,C7,C6) -> 
B9: Actual Purchase Price Result | C9: =IF(Accepted_Offer_Amount=0,C8,Accepted_Offer_Amount) -> 61836.9125
B11: Buying Costs
B12: =T(#REF!) ->  | C12: =#REF! -> 
B13: =T(#REF!) ->  | C13: =#REF! -> 
B14: =T(#REF!) ->  | C14: =#REF! -> 
B15: =T(#REF!) ->  | C15: =#REF! -> 
B16: =T(#REF!) ->  | C16: =#REF! -> 
B17: =T(#REF!) ->  | C17: =#REF! -> 
B18: =T(#REF!) ->  | C18: =#REF! -> 
B19: TOTAL BUYING COSTS | C19: =SUM(C12:C18) -> 
B21: Holding Costs
B22: =T(#REF!) ->  | C22: =#REF! ->  | D22: =#REF! -> 
B23: =T(#REF!) ->  | C23: =#REF! ->  | D23: =#REF! -> 
B24: =T(#REF!) ->  | C24: =#REF! ->  | D24: =#REF! -> 
B25: =T(#REF!) ->  | C25: =#REF! ->  | D25: =#REF! -> 
B26: =T(#REF!) ->  | C26: =#REF! ->  | D26: =#REF! -> 
B27: =T(#REF!) ->  | C27: =#REF! ->  | D27: =#REF! -> 
B28: =T(#REF!) ->  | C28: =#REF! ->  | D28: =#REF! -> 
B29: TOTAL BUYING COSTS | C29: =SUM(C22:C28) ->  | D29: =SUM(D22:D28) -> 
B31: Selling Costs
B32: =T(#REF!) ->  | C32: =#REF! -> 
B33: =T(#REF!) ->  | C33: =#REF! -> 
B34: =T(#REF!) ->  | C34: =#REF! -> 
B35: =T(#REF!) ->  | C35: =#REF! -> 
B36: =T(#REF!) ->  | C36: =#REF! -> 
B37: =T(#REF!) ->  | C37: =#REF! -> 
B38: =T(#REF!) ->  | C38: =#REF! -> 
B39: TOTAL BUYING COSTS | C39: =SUM(C32:C38) -> 
B41: =T(#REF!) ->  | C41: =GCs_Budget -> 
B42: =T(#REF!) ->  | C42: =DEMOLITION_BUDGET -> 
B43: =T(#REF!) ->  | C43: =STRUCTURAL_BUDGET -> 
B44: =T(#REF!) ->  | C44: =CONCRETE_BUDGET -> 
B45: =T(#REF!) ->  | C45: =MASONRY_BUDGET -> 
B46: =T(#REF!) ->  | C46: =SIDING_BUDGET -> 
B47: =T(#REF!) ->  | C47: =DECKING_BUDGET -> 
B48: =T(#REF!) ->  | C48: =ROOFING_BUDGET -> 
B49: =T(#REF!) ->  | C49: =DOORS_WINDOWS_BUDGET -> 
B50: =T(#REF!) ->  | C50: =GARAGE_DOORS_BUDGET -> 
B51: =T(#REF!) ->  | C51: =LANDSCAPING_BUDGET -> 
B52: =T(#REF!) ->  | C52: =MISC_EXT_IMPROV_BUDGET -> 
B53: =T(#REF!) ->  | C53: =FRAMING_DRYWALL_BUDGET -> 
B54: =T(#REF!) ->  | C54: =CABINETS_COUNTERS_BUDGET -> 
B55: =T(#REF!) ->  | C55: =DOORS_TRIM_BUDGET -> 
B56: =T(#REF!) ->  | C56: =CARPET_BUDGET -> 
B57: =T(#REF!) ->  | C57: =HARDWOOD_FLOORING_BUDGET -> 
B58: =T(#REF!) ->  | C58: =TILING_BUDGET -> 
B59: =T(#REF!) ->  | C59: =PAINTING_BUDGET -> 
B60: =T(#REF!) ->  | C60: =APPLIANCES_BUDGET -> 
B61: =T(#REF!) ->  | C61: =PLUMBING_BUDGET -> 
B62: =T(#REF!) ->  | C62: =HVAC_BUDGET -> 
B63: =T(#REF!) ->  | C63: =ELECTRICAL_BUDGET -> 
B64: =T(#REF!) ->  | C64: =MISCELLANEOUS_BUDGET -> 
B65: TOTAL RAW BUDGET | C65: =SUM(C41:C64) -> 
B66: BUDGET CONTINGENCY | C66: =REPAIR_CONTINGENCY_BUDGET ->  | D66: =IFERROR(C66/C65,0) -> 0
B67: TOTAL RAW BUDGET | C67: =C65+C66 -> 
B69: TOTAL RAW BUDGET | C69: =SUM(C45:C68) -> 

Sheet EXPENSE DATABASE (hidden)
B3: Expense Tracking
B5: Scopes of Work | E5: Expense by Scopes | F5: LABOR | G5: MAT'L | H5: SUB | I5: OTHER | J5: Total | L5: # | M5: Month | N5: $ /Month | O5: Trans / Month | P5: REPAIRS | Q5: FIXED
B6: ='ACCOUNTING SETUP'!AQ22 -> PURCHASE PRICE | C6: 1 | E6: =T('EXPENSE DATABASE'!B6) -> PURCHASE PRICE | I6: =IF(J6<>SUM(F6:H6),J6,0) -> $52,000.00 | J6: =(SUMIF('3 INCOME & EXPENSE'!$K$14:$K$763,T(E6),'3 INCOME & EXPENSE'!$O$14:$O$763)) -> $52,000.00 | L6: 1 | M6: Jan | N6: =(SUMIF('3 INCOME & EXPENSE'!$AH$14:$AH$763,L6,'3 INCOME & EXPENSE'!$O14:$O$763)) -> 0 | O6: =(SUMIF('3 INCOME & EXPENSE'!$AH$14:$AH$763,L6,'3 INCOME & EXPENSE'!$R$14:$R$763)) -> 0 | P6: =(SUMIF('3 INCOME & EXPENSE'!$AH$14:$AH$763,L6,'3 INCOME & EXPENSE'!$S$14:$S$763)) -> 0 | Q6: =(SUMIF('3 INCOME & EXPENSE'!$AH$14:$AH$763,L6,'3 INCOME & EXPENSE'!$T$14:$T$764)) -> 0
B7: ='ACCOUNTING SETUP'!AQ23 -> BUYING COSTS | C7: 2 | E7: =T('EXPENSE DATABASE'!B7) -> BUYING COSTS | I7: =IF(J7<>SUM(F7:H7),J7,0) -> $1,060.00 | J7: =(SUMIF('3 INCOME & EXPENSE'!$K$14:$K$763,T(E7),'3 INCOME & EXPENSE'!$O$14:$O$763)) -> $1,060.00 | L7: 2 | M7: Feb | N7: =(SUMIF('3 INCOME & EXPENSE'!$AH$14:$AH$763,L7,'3 INCOME & EXPENSE'!$O15:$O$512)) -> 0 | O7: =(SUMIF('3 INCOME & EXPENSE'!$AH$14:$AH$763,L7,'3 INCOME & EXPENSE'!$R$14:$R$763)) -> 0 | P7: =(SUMIF('3 INCOME & EXPENSE'!$AH$14:$AH$763,L7,'3 INCOME & EXPENSE'!$S$14:$S$763)) -> 0 | Q7: =(SUMIF('3 INCOME & EXPENSE'!$AH$14:$AH$763,L7,'3 INCOME & EXPENSE'!$T$14:$T$764)) -> 0
B8: ='ACCOUNTING SETUP'!AQ24 -> HOLDING COSTS | C8: 3 | E8: =T('EXPENSE DATABASE'!B8) -> HOLDING COSTS | I8: =IF(J8<>SUM(F8:H8),J8,0) -> $0.00 | J8: =(SUMIF('3 INCOME & EXPENSE'!$K$14:$K$763,T(E8),'3 INCOME & EXPENSE'!$O$14:$O$763)) -> $0.00 | L8: 3 | M8: Mar | N8: =(SUMIF('3 INCOME & EXPENSE'!$AH$14:$AH$763,L8,'3 INCOME & EXPENSE'!$O16:$O$512)) -> 0 | O8: =(SUMIF('3 INCOME & EXPENSE'!$AH$14:$AH$763,L8,'3 INCOME & EXPENSE'!$R$14:$R$763)) -> 0 | P8: =(SUMIF('3 INCOME & EXPENSE'!$AH$14:$AH$763,L8,'3 INCOME & EXPENSE'!$S$14:$S$763)) -> 0 | Q8: =(SUMIF('3 INCOME & EXPENSE'!$AH$14:$AH$763,L8,'3 INCOME & EXPENSE'!$T$14:$T$764)) -> 0
B9: ='ACCOUNTING SETUP'!AQ25 -> SELLING COSTS | C9: 4 | E9: =T('EXPENSE DATABASE'!B9) -> SELLING COSTS | I9: =IF(J9<>SUM(F9:H9),J9,0) -> $0.00 | J9: =(SUMIF('3 INCOME & EXPENSE'!$K$14:$K$763,T(E9),'3 INCOME & EXPENSE'!$O$14:$O$763)) -> $0.00 | L9: 4 | M9: Apr | N9: =(SUMIF('3 INCOME & EXPENSE'!$AH$14:$AH$763,L9,'3 INCOME & EXPENSE'!$O17:$O$512)) -> 0 | O9: =(SUMIF('3 INCOME & EXPENSE'!$AH$14:$AH$763,L9,'3 INCOME & EXPENSE'!$R$14:$R$763)) -> 0 | P9: =(SUMIF('3 INCOME & EXPENSE'!$AH$14:$AH$763,L9,'3 INCOME & EXPENSE'!$S$14:$S$763)) -> 0 | Q9: =(SUMIF('3 INCOME & EXPENSE'!$AH$14:$AH$763,L9,'3 INCOME & EXPENSE'!$T$14:$T$764)) -> 0
B10: ='ACCOUNTING SETUP'!AQ26 -> FINANCING COSTS | C10: 5 | E10: =T('EXPENSE DATABASE'!B10) -> FINANCING COSTS | I10: =IF(J10<>SUM(F10:H10),J10,0) -> $0.00 | J10: =(SUMIF('3 INCOME & EXPENSE'!$K$14:$K$763,T(E10),'3 INCOME & EXPENSE'!$O$14:$O$763)) -> $0.00 | L10: 5 | M10: May | N10: =(SUMIF('3 INCOME & EXPENSE'!$AH$14:$AH$763,L10,'3 INCOME & EXPENSE'!$O18:$O$512)) -> 0 | O10: =(SUMIF('3 INCOME & EXPENSE'!$AH$14:$AH$763,L10,'3 INCOME & EXPENSE'!$R$14:$R$763)) -> 0 | P10: =(SUMIF('3 INCOME & EXPENSE'!$AH$14:$AH$763,L10,'3 INCOME & EXPENSE'!$S$14:$S$763)) -> 0 | Q10: =(SUMIF('3 INCOME & EXPENSE'!$AH$14:$AH$763,L10,'3 INCOME & EXPENSE'!$T$14:$T$764)) -> 0
B11: ='ACCOUNTING SETUP'!AQ27 -> GENERAL CONDITIONS | C11: 6 | E11: =T('EXPENSE DATABASE'!B11) -> GENERAL CONDITIONS | F11: =SUMIF('3 INCOME & EXPENSE'!$K$14:$K$763,T(E11),'3 INCOME & EXPENSE'!$AE$14:$AE$763) -> $0.00 | G11: =SUMIF('3 INCOME & EXPENSE'!$K$14:$K$763,T(E11),'3 INCOME & EXPENSE'!$AF$14:$AF$763) -> $0.00 | H11: =SUMIF('3 INCOME & EXPENSE'!$K$14:$K$763,T(E11),'3 INCOME & EXPENSE'!$AG$14:$AG$763) -> $0.00 | I11: =IF(J11<>SUM(F11:H11),J11,0) -> $0.00 | J11: =(SUMIF('3 INCOME & EXPENSE'!$K$14:$K$763,T(E11),'3 INCOME & EXPENSE'!$O$14:$O$763)) -> $0.00 | L11: 6 | M11: Jun | N11: =(SUMIF('3 INCOME & EXPENSE'!$AH$14:$AH$763,L11,'3 INCOME & EXPENSE'!$O19:$O$512)) -> 0 | O11: =(SUMIF('3 INCOME & EXPENSE'!$AH$14:$AH$763,L11,'3 INCOME & EXPENSE'!$R$14:$R$763)) -> 0 | P11: =(SUMIF('3 INCOME & EXPENSE'!$AH$14:$AH$763,L11,'3 INCOME & EXPENSE'!$S$14:$S$763)) -> 0 | Q11: =(SUMIF('3 INCOME & EXPENSE'!$AH$14:$AH$763,L11,'3 INCOME & EXPENSE'!$T$14:$T$764)) -> 0
B12: ='ACCOUNTING SETUP'!AQ28 -> DEMOLITION | C12: 7 | E12: =T('EXPENSE DATABASE'!B12) -> DEMOLITION | F12: =SUMIF('3 INCOME & EXPENSE'!$K$14:$K$763,T(E12),'3 INCOME & EXPENSE'!$AE$14:$AE$763) -> $0.00 | G12: =SUMIF('3 INCOME & EXPENSE'!$K$14:$K$763,T(E12),'3 INCOME & EXPENSE'!$AF$14:$AF$763) -> $740.00 | H12: =SUMIF('3 INCOME & EXPENSE'!$K$14:$K$763,T(E12),'3 INCOME & EXPENSE'!$AG$14:$AG$763) -> $1,000.00 | I12: $0.00 | J12: =(SUMIF('3 INCOME & EXPENSE'!$K$14:$K$763,T(E12),'3 INCOME & EXPENSE'!$O$14:$O$763)) -> $1,740.00 | L12: 7 | M12: Jul | N12: =(SUMIF('3 INCOME & EXPENSE'!$AH$14:$AH$763,L12,'3 INCOME & EXPENSE'!$O20:$O$512)) -> 8074.92 | O12: =(SUMIF('3 INCOME & EXPENSE'!$AH$14:$AH$763,L12,'3 INCOME & EXPENSE'!$R$14:$R$763)) -> 6 | P12: =(SUMIF('3 INCOME & EXPENSE'!$AH$14:$AH$763,L12,'3 INCOME & EXPENSE'!$S$14:$S$763)) -> 870 | Q12: =(SUMIF('3 INCOME & EXPENSE'!$AH$14:$AH$763,L12,'3 INCOME & EXPENSE'!$T$14:$T$764)) -> 1060
B13: ='ACCOUNTING SETUP'!AQ29 -> STRUCTURAL CONCRETE | C13: 8 | E13: =T('EXPENSE DATABASE'!B13) -> STRUCTURAL CONCRETE | F13: =SUMIF('3 INCOME & EXPENSE'!$K$14:$K$763,T(E13),'3 INCOME & EXPENSE'!$AE$14:$AE$763) -> $0.00 | G13: =SUMIF('3 INCOME & EXPENSE'!$K$14:$K$763,T(E13),'3 INCOME & EXPENSE'!$AF$14:$AF$763) -> $0.00 | H13: =SUMIF('3 INCOME & EXPENSE'!$K$14:$K$763,T(E13),'3 INCOME & EXPENSE'!$AG$14:$AG$763) -> $0.00 | I13: $0.00 | J13: =(SUMIF('3 INCOME & EXPENSE'!$K$14:$K$763,T(E13),'3 INCOME & EXPENSE'!$O$14:$O$763)) -> $0.00 | L13: 8 | M13: Aug | N13: =(SUMIF('3 INCOME & EXPENSE'!$AH$14:$AH$763,L13,'3 INCOME & EXPENSE'!$O21:$O$512)) -> 14762.28 | O13: =(SUMIF('3 INCOME & EXPENSE'!$AH$14:$AH$763,L13,'3 INCOME & EXPENSE'!$R$14:$R$763)) -> 19 | P13: =(SUMIF('3 INCOME & EXPENSE'!$AH$14:$AH$763,L13,'3 INCOME & EXPENSE'!$S$14:$S$763)) -> 18587.28 | Q13: =(SUMIF('3 INCOME & EXPENSE'!$AH$14:$AH$763,L13,'3 INCOME & EXPENSE'!$T$14:$T$764)) -> 0
B14: ='ACCOUNTING SETUP'!AQ30 -> CONCRETE & FLATWORK | C14: 9 | E14: =T('EXPENSE DATABASE'!B14) -> CONCRETE & FLATWORK | F14: =SUMIF('3 INCOME & EXPENSE'!$K$14:$K$763,T(E14),'3 INCOME & EXPENSE'!$AE$14:$AE$763) -> $0.00 | G14: =SUMIF('3 INCOME & EXPENSE'!$K$14:$K$763,T(E14),'3 INCOME & EXPENSE'!$AF$14:$AF$763) -> $0.00 | H14: =SUMIF('3 INCOME & EXPENSE'!$K$14:$K$763,T(E14),'3 INCOME & EXPENSE'!$AG$14:$AG$763) -> $0.00 | I14: $0.00 | J14: =(SUMIF('3 INCOME & EXPENSE'!$K$14:$K$763,T(E14),'3 INCOME & EXPENSE'!$O$14:$O$763)) -> $0.00 | L14: 9 | M14: Sep | N14: =(SUMIF('3 INCOME & EXPENSE'!$AH$14:$AH$763,L14,'3 INCOME & EXPENSE'!$O22:$O$512)) -> 0 | O14: =(SUMIF('3 INCOME & EXPENSE'!$AH$14:$AH$763,L14,'3 INCOME & EXPENSE'!$R$14:$R$763)) -> 0 | P14: =(SUMIF('3 INCOME & EXPENSE'!$AH$14:$AH$763,L14,'3 INCOME & EXPENSE'!$S$14:$S$763)) -> 0 | Q14: =(SUMIF('3 INCOME & EXPENSE'!$AH$14:$AH$763,L14,'3 INCOME & EXPENSE'!$T$14:$T$764)) -> 0
B15: ='ACCOUNTING SETUP'!AQ31 -> MASONRY | C15: 10 | E15: =T('EXPENSE DATABASE'!B15) -> MASONRY | F15: =SUMIF('3 INCOME & EXPENSE'!$K$14:$K$763,T(E15),'3 INCOME & EXPENSE'!$AE$14:$AE$763) -> $0.00 | G15: =SUMIF('3 INCOME & EXPENSE'!$K$14:$K$763,T(E15),'3 INCOME & EXPENSE'!$AF$14:$AF$763) -> $0.00 | H15: =SUMIF('3 INCOME & EXPENSE'!$K$14:$K$763,T(E15),'3 INCOME & EXPENSE'!$AG$14:$AG$763) -> $0.00 | I15: $0.00 | J15: =(SUMIF('3 INCOME & EXPENSE'!$K$14:$K$763,T(E15),'3 INCOME & EXPENSE'!$O$14:$O$763)) -> $0.00 | L15: 10 | M15: Oct | N15: =(SUMIF('3 INCOME & EXPENSE'!$AH$14:$AH$763,L15,'3 INCOME & EXPENSE'!$O23:$O$512)) -> 0 | O15: =(SUMIF('3 INCOME & EXPENSE'!$AH$14:$AH$763,L15,'3 INCOME & EXPENSE'!$R$14:$R$763)) -> 0 | P15: =(SUMIF('3 INCOME & EXPENSE'!$AH$14:$AH$763,L15,'3 INCOME & EXPENSE'!$S$14:$S$763)) -> 0 | Q15: =(SUMIF('3 INCOME & EXPENSE'!$AH$14:$AH$763,L15,'3 INCOME & EXPENSE'!$T$14:$T$764)) -> 0
B16: ='ACCOUNTING SETUP'!AQ32 -> SIDING | C16: 11 | E16: =T('EXPENSE DATABASE'!B16) -> SIDING | F16: =SUMIF('3 INCOME & EXPENSE'!$K$14:$K$763,T(E16),'3 INCOME & EXPENSE'!$AE$14:$AE$763) -> $0.00 | G16: =SUMIF('3 INCOME & EXPENSE'!$K$14:$K$763,T(E16),'3 INCOME & EXPENSE'!$AF$14:$AF$763) -> $0.00 | H16: =SUMIF('3 INCOME & EXPENSE'!$K$14:$K$763,T(E16),'3 INCOME & EXPENSE'!$AG$14:$AG$763) -> $0.00 | I16: $0.00 | J16: =(SUMIF('3 INCOME & EXPENSE'!$K$14:$K$763,T(E16),'3 INCOME & EXPENSE'!$O$14:$O$763)) -> $0.00 | L16: 11 | M16: Nov | N16: =(SUMIF('3 INCOME & EXPENSE'!$AH$14:$AH$763,L16,'3 INCOME & EXPENSE'!$O24:$O$512)) -> 0 | O16: =(SUMIF('3 INCOME & EXPENSE'!$AH$14:$AH$763,L16,'3 INCOME & EXPENSE'!$R$14:$R$763)) -> 0 | P16: =(SUMIF('3 INCOME & EXPENSE'!$AH$14:$AH$763,L16,'3 INCOME & EXPENSE'!$S$14:$S$763)) -> 0 | Q16: =(SUMIF('3 INCOME & EXPENSE'!$AH$14:$AH$763,L16,'3 INCOME & EXPENSE'!$T$14:$T$764)) -> 0
B17: ='ACCOUNTING SETUP'!AQ33 -> DECKING AND PATIOS | C17: 12 | E17: =T('EXPENSE DATABASE'!B17) -> DECKING AND PATIOS | F17: =SUMIF('3 INCOME & EXPENSE'!$K$14:$K$763,T(E17),'3 INCOME & EXPENSE'!$AE$14:$AE$763) -> $0.00 | G17: =SUMIF('3 INCOME & EXPENSE'!$K$14:$K$763,T(E17),'3 INCOME & EXPENSE'!$AF$14:$AF$763) -> $0.00 | H17: =SUMIF('3 INCOME & EXPENSE'!$K$14:$K$763,T(E17),'3 INCOME & EXPENSE'!$AG$14:$AG$763) -> $0.00 | I17: $0.00 | J17: =(SUMIF('3 INCOME & EXPENSE'!$K$14:$K$763,T(E17),'3 INCOME & EXPENSE'!$O$14:$O$763)) -> $0.00 | L17: 12 | M17: Dec | N17: =(SUMIF('3 INCOME & EXPENSE'!$AH$14:$AH$763,L17,'3 INCOME & EXPENSE'!$O25:$O$512)) -> 0 | O17: =(SUMIF('3 INCOME & EXPENSE'!$AH$14:$AH$763,L17,'3 INCOME & EXPENSE'!$R$14:$R$763)) -> 0 | P17: =(SUMIF('3 INCOME & EXPENSE'!$AH$14:$AH$763,L17,'3 INCOME & EXPENSE'!$S$14:$S$763)) -> 0 | Q17: =(SUMIF('3 INCOME & EXPENSE'!$AH$14:$AH$763,L17,'3 INCOME & EXPENSE'!$T$14:$T$764)) -> 0
B18: ='ACCOUNTING SETUP'!AQ34 -> ROOFING | C18: 13 | E18: =T('EXPENSE DATABASE'!B18) -> ROOFING | F18: =SUMIF('3 INCOME & EXPENSE'!$K$14:$K$763,T(E18),'3 INCOME & EXPENSE'!$AE$14:$AE$763) -> $0.00 | G18: =SUMIF('3 INCOME & EXPENSE'!$K$14:$K$763,T(E18),'3 INCOME & EXPENSE'!$AF$14:$AF$763) -> $0.00 | H18: =SUMIF('3 INCOME & EXPENSE'!$K$14:$K$763,T(E18),'3 INCOME & EXPENSE'!$AG$14:$AG$763) -> $0.00 | I18: $0.00 | J18: =(SUMIF('3 INCOME & EXPENSE'!$K$14:$K$763,T(E18),'3 INCOME & EXPENSE'!$O$14:$O$763)) -> $0.00
B19: ='ACCOUNTING SETUP'!AQ35 -> EXTERIOR DOORS & WINDOWS | C19: 14 | E19: =T('EXPENSE DATABASE'!B19) -> EXTERIOR DOORS & WINDOWS | F19: =SUMIF('3 INCOME & EXPENSE'!$K$14:$K$763,T(E19),'3 INCOME & EXPENSE'!$AE$14:$AE$763) -> $0.00 | G19: =SUMIF('3 INCOME & EXPENSE'!$K$14:$K$763,T(E19),'3 INCOME & EXPENSE'!$AF$14:$AF$763) -> $0.00 | H19: =SUMIF('3 INCOME & EXPENSE'!$K$14:$K$763,T(E19),'3 INCOME & EXPENSE'!$AG$14:$AG$763) -> $0.00 | I19: $0.00 | J19: =(SUMIF('3 INCOME & EXPENSE'!$K$14:$K$763,T(E19),'3 INCOME & EXPENSE'!$O$14:$O$763)) -> $0.00
B20: ='ACCOUNTING SETUP'!AQ36 -> GARAGE DOORS | C20: 15 | E20: =T('EXPENSE DATABASE'!B20) -> GARAGE DOORS | F20: =SUMIF('3 INCOME & EXPENSE'!$K$14:$K$763,T(E20),'3 INCOME & EXPENSE'!$AE$14:$AE$763) -> $0.00 | G20: =SUMIF('3 INCOME & EXPENSE'!$K$14:$K$763,T(E20),'3 INCOME & EXPENSE'!$AF$14:$AF$763) -> $0.00 | H20: =SUMIF('3 INCOME & EXPENSE'!$K$14:$K$763,T(E20),'3 INCOME & EXPENSE'!$AG$14:$AG$763) -> $0.00 | I20: $0.00 | J20: =(SUMIF('3 INCOME & EXPENSE'!$K$14:$K$763,T(E20),'3 INCOME & EXPENSE'!$O$14:$O$763)) -> $0.00 | L20: Expense by Type | M20: Total
B21: ='ACCOUNTING SETUP'!AQ37 -> LANDSCAPING | C21: 16 | E21: =T('EXPENSE DATABASE'!B21) -> LANDSCAPING | F21: =SUMIF('3 INCOME & EXPENSE'!$K$14:$K$763,T(E21),'3 INCOME & EXPENSE'!$AE$14:$AE$763) -> $0.00 | G21: =SUMIF('3 INCOME & EXPENSE'!$K$14:$K$763,T(E21),'3 INCOME & EXPENSE'!$AF$14:$AF$763) -> $0.00 | H21: =SUMIF('3 INCOME & EXPENSE'!$K$14:$K$763,T(E21),'3 INCOME & EXPENSE'!$AG$14:$AG$763) -> $0.00 | I21: $0.00 | J21: =(SUMIF('3 INCOME & EXPENSE'!$K$14:$K$763,T(E21),'3 INCOME & EXPENSE'!$O$14:$O$763)) -> $0.00 | L21: PROPERTY PURCHASE | M21: =J6 -> $52,000.00
B22: ='ACCOUNTING SETUP'!AQ38 -> MISC. EXTERIOR ITEMS | C22: 17 | E22: =T('EXPENSE DATABASE'!B22) -> MISC. EXTERIOR ITEMS | F22: =SUMIF('3 INCOME & EXPENSE'!$K$14:$K$763,T(E22),'3 INCOME & EXPENSE'!$AE$14:$AE$763) -> $0.00 | G22: =SUMIF('3 INCOME & EXPENSE'!$K$14:$K$763,T(E22),'3 INCOME & EXPENSE'!$AF$14:$AF$763) -> $0.00 | H22: =SUMIF('3 INCOME & EXPENSE'!$K$14:$K$763,T(E22),'3 INCOME & EXPENSE'!$AG$14:$AG$763) -> $0.00 | I22: $0.00 | J22: =(SUMIF('3 INCOME & EXPENSE'!$K$14:$K$763,T(E22),'3 INCOME & EXPENSE'!$O$14:$O$763)) -> $0.00 | L22: FIXED EXPENSES | M22: =SUM('EXPENSE DATABASE'!J7:J10) -> $1,060.00
B23: ='ACCOUNTING SETUP'!AQ39 -> FRAMING & DRYWALL | C23: 18 | E23: =T('EXPENSE DATABASE'!B23) -> FRAMING & DRYWALL | F23: =SUMIF('3 INCOME & EXPENSE'!$K$14:$K$763,T(E23),'3 INCOME & EXPENSE'!$AE$14:$AE$763) -> $500.00 | G23: =SUMIF('3 INCOME & EXPENSE'!$K$14:$K$763,T(E23),'3 INCOME & EXPENSE'!$AF$14:$AF$763) -> $0.00 | H23: =SUMIF('3 INCOME & EXPENSE'!$K$14:$K$763,T(E23),'3 INCOME & EXPENSE'!$AG$14:$AG$763) -> $0.00 | I23: $0.00 | J23: =(SUMIF('3 INCOME & EXPENSE'!$K$14:$K$763,T(E23),'3 INCOME & EXPENSE'!$O$14:$O$763)) -> $500.00 | L23: REPAIR EXPENSES | M23: =SUM('EXPENSE DATABASE'!J11:J34) -> $19,457.28
B24: ='ACCOUNTING SETUP'!AQ40 -> CABINETS & COUNTERTOPS | C24: 19 | E24: =T('EXPENSE DATABASE'!B24) -> CABINETS & COUNTERTOPS | F24: =SUMIF('3 INCOME & EXPENSE'!$K$14:$K$763,T(E24),'3 INCOME & EXPENSE'!$AE$14:$AE$763) -> $0.00 | G24: =SUMIF('3 INCOME & EXPENSE'!$K$14:$K$763,T(E24),'3 INCOME & EXPENSE'!$AF$14:$AF$763) -> $0.00 | H24: =SUMIF('3 INCOME & EXPENSE'!$K$14:$K$763,T(E24),'3 INCOME & EXPENSE'!$AG$14:$AG$763) -> $0.00 | I24: $0.00 | J24: =(SUMIF('3 INCOME & EXPENSE'!$K$14:$K$763,T(E24),'3 INCOME & EXPENSE'!$O$14:$O$763)) -> $0.00 | L24: CHANGE ORDERS | M24: =Total_Change_Order_Expenses -> $0.00
B25: ='ACCOUNTING SETUP'!AQ41 -> DOORS & TRIM | C25: 20 | E25: =T('EXPENSE DATABASE'!B25) -> DOORS & TRIM | F25: =SUMIF('3 INCOME & EXPENSE'!$K$14:$K$763,T(E25),'3 INCOME & EXPENSE'!$AE$14:$AE$763) -> $1,650.00 | G25: =SUMIF('3 INCOME & EXPENSE'!$K$14:$K$763,T(E25),'3 INCOME & EXPENSE'!$AF$14:$AF$763) -> $1,689.32 | H25: =SUMIF('3 INCOME & EXPENSE'!$K$14:$K$763,T(E25),'3 INCOME & EXPENSE'!$AG$14:$AG$763) -> $0.00 | I25: $0.00 | J25: =(SUMIF('3 INCOME & EXPENSE'!$K$14:$K$763,T(E25),'3 INCOME & EXPENSE'!$O$14:$O$763)) -> $3,339.32 | L25: TOTAL EXPENSES | M25: =SUM(M21:M24) -> $72,517.28
B26: ='ACCOUNTING SETUP'!AQ42 -> CARPET & RESILIENT | C26: 21 | E26: =T('EXPENSE DATABASE'!B26) -> CARPET & RESILIENT | F26: =SUMIF('3 INCOME & EXPENSE'!$K$14:$K$763,T(E26),'3 INCOME & EXPENSE'!$AE$14:$AE$763) -> $0.00 | G26: =SUMIF('3 INCOME & EXPENSE'!$K$14:$K$763,T(E26),'3 INCOME & EXPENSE'!$AF$14:$AF$763) -> $0.00 | H26: =SUMIF('3 INCOME & EXPENSE'!$K$14:$K$763,T(E26),'3 INCOME & EXPENSE'!$AG$14:$AG$763) -> $0.00 | I26: $0.00 | J26: =(SUMIF('3 INCOME & EXPENSE'!$K$14:$K$763,T(E26),'3 INCOME & EXPENSE'!$O$14:$O$763)) -> $0.00
B27: ='ACCOUNTING SETUP'!AQ43 -> HARDWOOD FLOORING | C27: 22 | E27: =T('EXPENSE DATABASE'!B27) -> HARDWOOD FLOORING | F27: =SUMIF('3 INCOME & EXPENSE'!$K$14:$K$763,T(E27),'3 INCOME & EXPENSE'!$AE$14:$AE$763) -> $0.00 | G27: =SUMIF('3 INCOME & EXPENSE'!$K$14:$K$763,T(E27),'3 INCOME & EXPENSE'!$AF$14:$AF$763) -> $567.20 | H27: =SUMIF('3 INCOME & EXPENSE'!$K$14:$K$763,T(E27),'3 INCOME & EXPENSE'!$AG$14:$AG$763) -> $0.00 | I27: $0.00 | J27: =(SUMIF('3 INCOME & EXPENSE'!$K$14:$K$763,T(E27),'3 INCOME & EXPENSE'!$O$14:$O$763)) -> $567.20
B28: ='ACCOUNTING SETUP'!AQ44 -> TILING | C28: 23 | E28: =T('EXPENSE DATABASE'!B28) -> TILING | F28: =SUMIF('3 INCOME & EXPENSE'!$K$14:$K$763,T(E28),'3 INCOME & EXPENSE'!$AE$14:$AE$763) -> $650.00 | G28: =SUMIF('3 INCOME & EXPENSE'!$K$14:$K$763,T(E28),'3 INCOME & EXPENSE'!$AF$14:$AF$763) -> $1,675.23 | H28: =SUMIF('3 INCOME & EXPENSE'!$K$14:$K$763,T(E28),'3 INCOME & EXPENSE'!$AG$14:$AG$763) -> $0.00 | I28: $0.00 | J28: =(SUMIF('3 INCOME & EXPENSE'!$K$14:$K$763,T(E28),'3 INCOME & EXPENSE'!$O$14:$O$763)) -> $2,325.23
B29: ='ACCOUNTING SETUP'!AQ45 -> PAINTING | C29: 24 | E29: =T('EXPENSE DATABASE'!B29) -> PAINTING | F29: =SUMIF('3 INCOME & EXPENSE'!$K$14:$K$763,T(E29),'3 INCOME & EXPENSE'!$AE$14:$AE$763) -> $2,250.00 | G29: =SUMIF('3 INCOME & EXPENSE'!$K$14:$K$763,T(E29),'3 INCOME & EXPENSE'!$AF$14:$AF$763) -> $2,652.45 | H29: =SUMIF('3 INCOME & EXPENSE'!$K$14:$K$763,T(E29),'3 INCOME & EXPENSE'!$AG$14:$AG$763) -> $0.00 | I29: $0.00 | J29: =(SUMIF('3 INCOME & EXPENSE'!$K$14:$K$763,T(E29),'3 INCOME & EXPENSE'!$O$14:$O$763)) -> $4,902.45
B30: ='ACCOUNTING SETUP'!AQ46 -> APPLIANCES | C30: 25 | E30: =T('EXPENSE DATABASE'!B30) -> APPLIANCES | F30: =SUMIF('3 INCOME & EXPENSE'!$K$14:$K$763,T(E30),'3 INCOME & EXPENSE'!$AE$14:$AE$763) -> $0.00 | G30: =SUMIF('3 INCOME & EXPENSE'!$K$14:$K$763,T(E30),'3 INCOME & EXPENSE'!$AF$14:$AF$763) -> $0.00 | H30: =SUMIF('3 INCOME & EXPENSE'!$K$14:$K$763,T(E30),'3 INCOME & EXPENSE'!$AG$14:$AG$763) -> $0.00 | I30: $0.00 | J30: =(SUMIF('3 INCOME & EXPENSE'!$K$14:$K$763,T(E30),'3 INCOME & EXPENSE'!$O$14:$O$763)) -> $0.00
B31: ='ACCOUNTING SETUP'!AQ47 -> PLUMBING | C31: 26 | E31: =T('EXPENSE DATABASE'!B31) -> PLUMBING | F31: =SUMIF('3 INCOME & EXPENSE'!$K$14:$K$763,T(E31),'3 INCOME & EXPENSE'!$AE$14:$AE$763) -> $1,250.00 | G31: =SUMIF('3 INCOME & EXPENSE'!$K$14:$K$763,T(E31),'3 INCOME & EXPENSE'!$AF$14:$AF$763) -> $2,223.08 | H31: =SUMIF('3 INCOME & EXPENSE'!$K$14:$K$763,T(E31),'3 INCOME & EXPENSE'!$AG$14:$AG$763) -> $0.00 | I31: $0.00 | J31: =(SUMIF('3 INCOME & EXPENSE'!$K$14:$K$763,T(E31),'3 INCOME & EXPENSE'!$O$14:$O$763)) -> $3,473.08
B32: ='ACCOUNTING SETUP'!AQ48 -> HVAC | C32: 27 | E32: =T('EXPENSE DATABASE'!B32) -> HVAC | F32: =SUMIF('3 INCOME & EXPENSE'!$K$14:$K$763,T(E32),'3 INCOME & EXPENSE'!$AE$14:$AE$763) -> $0.00 | G32: =SUMIF('3 INCOME & EXPENSE'!$K$14:$K$763,T(E32),'3 INCOME & EXPENSE'!$AF$14:$AF$763) -> $0.00 | H32: =SUMIF('3 INCOME & EXPENSE'!$K$14:$K$763,T(E32),'3 INCOME & EXPENSE'!$AG$14:$AG$763) -> $0.00 | I32: $0.00 | J32: =(SUMIF('3 INCOME & EXPENSE'!$K$14:$K$763,T(E32),'3 INCOME & EXPENSE'!$O$14:$O$763)) -> $0.00
B33: ='ACCOUNTING SETUP'!AQ49 -> ELECTRICAL | C33: 28 | E33: =T('EXPENSE DATABASE'!B33) -> ELECTRICAL | F33: =SUMIF('3 INCOME & EXPENSE'!$K$14:$K$763,T(E33),'3 INCOME & EXPENSE'!$AE$14:$AE$763) -> $0.00 | G33: =SUMIF('3 INCOME & EXPENSE'!$K$14:$K$763,T(E33),'3 INCOME & EXPENSE'!$AF$14:$AF$763) -> $1,360.00 | H33: =SUMIF('3 INCOME & EXPENSE'!$K$14:$K$763,T(E33),'3 INCOME & EXPENSE'!$AG$14:$AG$763) -> $1,250.00 | I33: $0.00 | J33: =(SUMIF('3 INCOME & EXPENSE'!$K$14:$K$763,T(E33),'3 INCOME & EXPENSE'!$O$14:$O$763)) -> $2,610.00
B34: ='ACCOUNTING SETUP'!AQ50 -> MISCELLANEOUS | C34: 29 | E34: =T('EXPENSE DATABASE'!B34) -> MISCELLANEOUS | F34: =SUMIF('3 INCOME & EXPENSE'!$K$14:$K$763,T(E34),'3 INCOME & EXPENSE'!$AE$14:$AE$763) -> $0.00 | G34: =SUMIF('3 INCOME & EXPENSE'!$K$14:$K$763,T(E34),'3 INCOME & EXPENSE'!$AF$14:$AF$763) -> $0.00 | H34: =SUMIF('3 INCOME & EXPENSE'!$K$14:$K$763,T(E34),'3 INCOME & EXPENSE'!$AG$14:$AG$763) -> $0.00 | I34: $0.00 | J34: =(SUMIF('3 INCOME & EXPENSE'!$K$14:$K$763,T(E34),'3 INCOME & EXPENSE'!$O$14:$O$763)) -> $0.00
B35: ='ACCOUNTING SETUP'!AQ51 -> CHANGE ORDER | C35: 30 | E35: =T('EXPENSE DATABASE'!B35) -> CHANGE ORDER | F35: =SUMIF('3 INCOME & EXPENSE'!$K$14:$K$763,T(E35),'3 INCOME & EXPENSE'!$AE$14:$AE$763) -> $0.00 | G35: =SUMIF('3 INCOME & EXPENSE'!$K$14:$K$763,T(E35),'3 INCOME & EXPENSE'!$AF$14:$AF$763) -> $0.00 | H35: =SUMIF('3 INCOME & EXPENSE'!$K$14:$K$763,T(E35),'3 INCOME & EXPENSE'!$AG$14:$AG$763) -> $0.00 | I35: =IF(J35<>SUM(F35:H35),J35,0) -> $0.00 | J35: =(SUMIF('3 INCOME & EXPENSE'!$K$14:$K$763,T(E35),'3 INCOME & EXPENSE'!$O$14:$O$763)) -> $0.00
B36: Unassigned | C36: 31 | E36: Unassigned | I36: $4,385.60 | J36: =TOTAL_EXPENSES-SUM(J6:J35) -> $4,385.60
E37: Totals | F37: =SUM(F11:F36) -> $6,300 | G37: =SUM(G11:G36) -> $10,907 | H37: =SUM(H11:H36) -> $2,250 | I37: =SUM('EXPENSE DATABASE'!I6:I36) -> $57,446 | J37: =SUM('EXPENSE DATABASE'!J6:J36) -> $76,903
B40: Accounts | E40: Expense Breakdown by Account
B41: =T('ACCOUNTING SETUP'!L9) -> HFS REI Checking Account | C41: 1 | E41: =T(B41) -> HFS REI Checking Account | F41: =(SUMIF('3 INCOME & EXPENSE'!$I$14:$I$763,T(E41),'3 INCOME & EXPENSE'!$O$14:$O$763)) -> $62,865.00
B42: =T('ACCOUNTING SETUP'!L10) -> Chase SW Credit Card | C42: 2 | E42: =T(B42) -> Chase SW Credit Card | F42: =(SUMIF('3 INCOME & EXPENSE'!$I$14:$I$763,T(E42),'3 INCOME & EXPENSE'!$O$14:$O$763)) -> $5,247.45
B43: =T('ACCOUNTING SETUP'!L11) -> Home Depot Credit Card | C43: 3 | E43: Home Depot Credit Card | F43: =(SUMIF('3 INCOME & EXPENSE'!$I$14:$I$763,T(E43),'3 INCOME & EXPENSE'!$O$14:$O$763)) -> $4,324.92
B44: =T('ACCOUNTING SETUP'!L12) -> Lowes Credit Card | C44: 4 | E44: Lowes Credit Card | F44: =(SUMIF('3 INCOME & EXPENSE'!$I$14:$I$763,T(E44),'3 INCOME & EXPENSE'!$O$14:$O$763)) -> $4,465.51
B45: =T('ACCOUNTING SETUP'!L13) -> Account 5 | C45: 5 | E45: Account 5 | F45: =(SUMIF('3 INCOME & EXPENSE'!$I$14:$I$763,T(E45),'3 INCOME & EXPENSE'!$O$14:$O$763)) -> $0.00
B46: =T('ACCOUNTING SETUP'!L14) -> Account 6 | C46: 6 | E46: Account 6 | F46: =(SUMIF('3 INCOME & EXPENSE'!$I$14:$I$763,T(E46),'3 INCOME & EXPENSE'!$O$14:$O$763)) -> $0.00
B47: =T('ACCOUNTING SETUP'!L15) -> Account 7 | C47: 7 | E47: Account 7 | F47: =(SUMIF('3 INCOME & EXPENSE'!$I$14:$I$763,T(E47),'3 INCOME & EXPENSE'!$O$14:$O$763)) -> $0.00
B48: =T('ACCOUNTING SETUP'!L16) -> Account 8 | C48: 8 | E48: Account 8 | F48: =(SUMIF('3 INCOME & EXPENSE'!$I$14:$I$763,T(E48),'3 INCOME & EXPENSE'!$O$14:$O$763)) -> $0.00
B49: =T('ACCOUNTING SETUP'!L17) -> Account 9 | C49: 9 | E49: Account 9 | F49: =(SUMIF('3 INCOME & EXPENSE'!$I$14:$I$763,T(E49),'3 INCOME & EXPENSE'!$O$14:$O$763)) -> $0.00
B50: =T('ACCOUNTING SETUP'!L18) -> Account 10 | C50: 10 | E50: Account 10 | F50: =(SUMIF('3 INCOME & EXPENSE'!$I$14:$I$763,T(E50),'3 INCOME & EXPENSE'!$O$14:$O$763)) -> $0.00
B51: =T('ACCOUNTING SETUP'!L19) -> Account 11 | C51: 11 | E51: Account 11 | F51: =(SUMIF('3 INCOME & EXPENSE'!$I$14:$I$763,T(E51),'3 INCOME & EXPENSE'!$O$14:$O$763)) -> $0.00
B52: =T('ACCOUNTING SETUP'!L20) -> Account 12 | C52: 12 | E52: Account 12 | F52: =(SUMIF('3 INCOME & EXPENSE'!$I$14:$I$763,T(E52),'3 INCOME & EXPENSE'!$O$14:$O$763)) -> $0.00
B53: =T('ACCOUNTING SETUP'!L21) -> Account 13 | C53: 13 | E53: Account 13 | F53: =(SUMIF('3 INCOME & EXPENSE'!$I$14:$I$763,T(E53),'3 INCOME & EXPENSE'!$O$14:$O$763)) -> $0.00
B54: =T('ACCOUNTING SETUP'!L22) -> Account 14 | C54: 14 | E54: Account 14 | F54: =(SUMIF('3 INCOME & EXPENSE'!$I$14:$I$763,T(E54),'3 INCOME & EXPENSE'!$O$14:$O$763)) -> $0.00
B55: =T('ACCOUNTING SETUP'!L23) -> Account 15 | C55: 15 | E55: Account 15 | F55: =(SUMIF('3 INCOME & EXPENSE'!$I$14:$I$763,T(E55),'3 INCOME & EXPENSE'!$O$14:$O$763)) -> $0.00
B56: =T('ACCOUNTING SETUP'!L24) -> Account 16 | C56: 16 | E56: Account 16 | F56: =(SUMIF('3 INCOME & EXPENSE'!$I$14:$I$763,T(E56),'3 INCOME & EXPENSE'!$O$14:$O$763)) -> $0.00
B57: =T('ACCOUNTING SETUP'!L25) -> Account 17 | C57: 17 | E57: Account 17 | F57: =(SUMIF('3 INCOME & EXPENSE'!$I$14:$I$763,T(E57),'3 INCOME & EXPENSE'!$O$14:$O$763)) -> $0.00
B58: =T('ACCOUNTING SETUP'!L26) -> Account 18 | C58: 18 | E58: Account 18 | F58: =(SUMIF('3 INCOME & EXPENSE'!$I$14:$I$763,T(E58),'3 INCOME & EXPENSE'!$O$14:$O$763)) -> $0.00
B59: =T('ACCOUNTING SETUP'!L27) -> Account 19 | C59: 19 | E59: Account 19 | F59: =(SUMIF('3 INCOME & EXPENSE'!$I$14:$I$763,T(E59),'3 INCOME & EXPENSE'!$O$14:$O$763)) -> $0.00
B60: =T('ACCOUNTING SETUP'!L28) -> Account 20 | C60: 20 | E60: Account 20 | F60: =(SUMIF('3 INCOME & EXPENSE'!$I$14:$I$763,T(E60),'3 INCOME & EXPENSE'!$O$14:$O$763)) -> $0.00
B61: =T('ACCOUNTING SETUP'!L29) -> Account 21 | C61: 21 | E61: Account 21 | F61: =(SUMIF('3 INCOME & EXPENSE'!$I$14:$I$763,T(E61),'3 INCOME & EXPENSE'!$O$14:$O$763)) -> $0.00
B62: =T('ACCOUNTING SETUP'!L30) -> Account 22 | C62: 22 | E62: Account 22 | F62: =(SUMIF('3 INCOME & EXPENSE'!$I$14:$I$763,T(E62),'3 INCOME & EXPENSE'!$O$14:$O$763)) -> $0.00
B63: =T('ACCOUNTING SETUP'!L31) -> Account 23 | C63: 23 | E63: Account 23 | F63: =(SUMIF('3 INCOME & EXPENSE'!$I$14:$I$763,T(E63),'3 INCOME & EXPENSE'!$O$14:$O$763)) -> $0.00
B64: =T('ACCOUNTING SETUP'!L32) -> Account 24 | C64: 24 | E64: Account 24 | F64: =(SUMIF('3 INCOME & EXPENSE'!$I$14:$I$763,T(E64),'3 INCOME & EXPENSE'!$O$14:$O$763)) -> $0.00
B65: =T('ACCOUNTING SETUP'!L33) -> Account 25 | C65: 25 | E65: Account 25 | F65: =(SUMIF('3 INCOME & EXPENSE'!$I$14:$I$763,T(E65),'3 INCOME & EXPENSE'!$O$14:$O$763)) -> $0.00
E66: UNASSIGNED | F66: =TOTAL_EXPENSES-SUM(F41:F65) -> $0.00
B68: Vendors | E68: Expense by Vendor | F68: Total | G68: Unpaid | H68: Paid
B69: =T('ACCOUNTING SETUP'!AI9) -> First 1 Bank | C69: 1 | E69: =T('EXPENSE DATABASE'!B69) -> First 1 Bank | F69: =(SUMIF('3 INCOME & EXPENSE'!$J$14:$J$763,T(E69),'3 INCOME & EXPENSE'!$O$14:$O$763)) -> $52,565.00 | G69: =(SUMIF('3 INCOME & EXPENSE'!$J$14:$J$763,T('EXPENSE DATABASE'!E69),'3 INCOME & EXPENSE'!$P$14:$P$763)) -> $52,565.00 | H69: =(SUMIF('3 INCOME & EXPENSE'!$J$14:$J$763,T('EXPENSE DATABASE'!E69),'3 INCOME & EXPENSE'!$Q$14:$Q$763)) -> $0.00
B70: =T('ACCOUNTING SETUP'!AI10) -> Defenbaugh Industries | C70: 2 | E70: =T('EXPENSE DATABASE'!B70) -> Defenbaugh Industries | F70: =(SUMIF('3 INCOME & EXPENSE'!$J$14:$J$763,T(E70),'3 INCOME & EXPENSE'!$O$14:$O$763)) -> $740.00 | G70: =(SUMIF('3 INCOME & EXPENSE'!$J$14:$J$763,T('EXPENSE DATABASE'!E70),'3 INCOME & EXPENSE'!$P$14:$P$763)) -> $740.00 | H70: =(SUMIF('3 INCOME & EXPENSE'!$J$14:$J$763,T('EXPENSE DATABASE'!E70),'3 INCOME & EXPENSE'!$Q$14:$Q$763)) -> $0.00
B71: =T('ACCOUNTING SETUP'!AI11) -> Demolition Services Inc. | C71: 3 | E71: =T('EXPENSE DATABASE'!B71) -> Demolition Services Inc. | F71: =(SUMIF('3 INCOME & EXPENSE'!$J$14:$J$763,T(E71),'3 INCOME & EXPENSE'!$O$14:$O$763)) -> $1,000.00 | G71: =(SUMIF('3 INCOME & EXPENSE'!$J$14:$J$763,T('EXPENSE DATABASE'!E71),'3 INCOME & EXPENSE'!$P$14:$P$763)) -> $1,000.00 | H71: =(SUMIF('3 INCOME & EXPENSE'!$J$14:$J$763,T('EXPENSE DATABASE'!E71),'3 INCOME & EXPENSE'!$Q$14:$Q$763)) -> $0.00
B72: =T('ACCOUNTING SETUP'!AI12) -> Affordable Rehab & Remodeling | C72: 4 | E72: =T('EXPENSE DATABASE'!B72) -> Affordable Rehab & Remodeling | F72: =(SUMIF('3 INCOME & EXPENSE'!$J$14:$J$763,T(E72),'3 INCOME & EXPENSE'!$O$14:$O$763)) -> $6,900.00 | G72: =(SUMIF('3 INCOME & EXPENSE'!$J$14:$J$763,T('EXPENSE DATABASE'!E72),'3 INCOME & EXPENSE'!$P$14:$P$763)) -> $6,900.00 | H72: =(SUMIF('3 INCOME & EXPENSE'!$J$14:$J$763,T('EXPENSE DATABASE'!E72),'3 INCOME & EXPENSE'!$Q$14:$Q$763)) -> $0.00
B73: =T('ACCOUNTING SETUP'!AI13) -> Lowes | C73: 5 | E73: =T('EXPENSE DATABASE'!B73) -> Lowes | F73: =(SUMIF('3 INCOME & EXPENSE'!$J$14:$J$763,T(E73),'3 INCOME & EXPENSE'!$O$14:$O$763)) -> $8,543.91 | G73: =(SUMIF('3 INCOME & EXPENSE'!$J$14:$J$763,T('EXPENSE DATABASE'!E73),'3 INCOME & EXPENSE'!$P$14:$P$763)) -> $8,543.91 | H73: =(SUMIF('3 INCOME & EXPENSE'!$J$14:$J$763,T('EXPENSE DATABASE'!E73),'3 INCOME & EXPENSE'!$Q$14:$Q$763)) -> $0.00
B74: =T('ACCOUNTING SETUP'!AI14) -> Home Depot | C74: 6 | E74: =T('EXPENSE DATABASE'!B74) -> Home Depot | F74: =(SUMIF('3 INCOME & EXPENSE'!$J$14:$J$763,T(E74),'3 INCOME & EXPENSE'!$O$14:$O$763)) -> $2,256.52 | G74: =(SUMIF('3 INCOME & EXPENSE'!$J$14:$J$763,T('EXPENSE DATABASE'!E74),'3 INCOME & EXPENSE'!$P$14:$P$763)) -> $2,256.52 | H74: =(SUMIF('3 INCOME & EXPENSE'!$J$14:$J$763,T('EXPENSE DATABASE'!E74),'3 INCOME & EXPENSE'!$Q$14:$Q$763)) -> $0.00
B75: =T('ACCOUNTING SETUP'!AI15) -> Ace Electric | C75: 7 | E75: =T('EXPENSE DATABASE'!B75) -> Ace Electric | F75: =(SUMIF('3 INCOME & EXPENSE'!$J$14:$J$763,T(E75),'3 INCOME & EXPENSE'!$O$14:$O$763)) -> $1,750.00 | G75: =(SUMIF('3 INCOME & EXPENSE'!$J$14:$J$763,T('EXPENSE DATABASE'!E75),'3 INCOME & EXPENSE'!$P$14:$P$763)) -> $1,750.00 | H75: =(SUMIF('3 INCOME & EXPENSE'!$J$14:$J$763,T('EXPENSE DATABASE'!E75),'3 INCOME & EXPENSE'!$Q$14:$Q$763)) -> $0.00
B76: =T('ACCOUNTING SETUP'!AI16) -> Sherwin Williams | C76: 8 | E76: =T('EXPENSE DATABASE'!B76) -> Sherwin Williams | F76: =(SUMIF('3 INCOME & EXPENSE'!$J$14:$J$763,T(E76),'3 INCOME & EXPENSE'!$O$14:$O$763)) -> $2,652.45 | G76: =(SUMIF('3 INCOME & EXPENSE'!$J$14:$J$763,T('EXPENSE DATABASE'!E76),'3 INCOME & EXPENSE'!$P$14:$P$763)) -> $2,652.45 | H76: =(SUMIF('3 INCOME & EXPENSE'!$J$14:$J$763,T('EXPENSE DATABASE'!E76),'3 INCOME & EXPENSE'!$Q$14:$Q$763)) -> $0.00
B77: =T('ACCOUNTING SETUP'!AI17) -> Vendor 9 | C77: 9 | E77: =T('EXPENSE DATABASE'!B77) -> Vendor 9 | F77: =(SUMIF('3 INCOME & EXPENSE'!$J$14:$J$763,T(E77),'3 INCOME & EXPENSE'!$O$14:$O$763)) -> $0.00 | G77: =(SUMIF('3 INCOME & EXPENSE'!$J$14:$J$763,T('EXPENSE DATABASE'!E77),'3 INCOME & EXPENSE'!$P$14:$P$763)) -> $0.00 | H77: =(SUMIF('3 INCOME & EXPENSE'!$J$14:$J$763,T('EXPENSE DATABASE'!E77),'3 INCOME & EXPENSE'!$Q$14:$Q$763)) -> $0.00
B78: =T('ACCOUNTING SETUP'!AI18) -> Vendor 10 | C78: 10 | E78: =T('EXPENSE DATABASE'!B78) -> Vendor 10 | F78: =(SUMIF('3 INCOME & EXPENSE'!$J$14:$J$763,T(E78),'3 INCOME & EXPENSE'!$O$14:$O$763)) -> $0.00 | G78: =(SUMIF('3 INCOME & EXPENSE'!$J$14:$J$763,T('EXPENSE DATABASE'!E78),'3 INCOME & EXPENSE'!$P$14:$P$763)) -> $0.00 | H78: =(SUMIF('3 INCOME & EXPENSE'!$J$14:$J$763,T('EXPENSE DATABASE'!E78),'3 INCOME & EXPENSE'!$Q$14:$Q$763)) -> $0.00
B79: =T('ACCOUNTING SETUP'!AI19) -> Vendor 11 | C79: 11 | E79: =T('EXPENSE DATABASE'!B79) -> Vendor 11 | F79: =(SUMIF('3 INCOME & EXPENSE'!$J$14:$J$763,T(E79),'3 INCOME & EXPENSE'!$O$14:$O$763)) -> $0.00 | G79: =(SUMIF('3 INCOME & EXPENSE'!$J$14:$J$763,T('EXPENSE DATABASE'!E79),'3 INCOME & EXPENSE'!$P$14:$P$763)) -> $0.00 | H79: =(SUMIF('3 INCOME & EXPENSE'!$J$14:$J$763,T('EXPENSE DATABASE'!E79),'3 INCOME & EXPENSE'!$Q$14:$Q$763)) -> $0.00
B80: =T('ACCOUNTING SETUP'!AI20) -> Vendor 12 | C80: 12 | E80: =T('EXPENSE DATABASE'!B80) -> Vendor 12 | F80: =(SUMIF('3 INCOME & EXPENSE'!$J$14:$J$763,T(E80),'3 INCOME & EXPENSE'!$O$14:$O$763)) -> $0.00 | G80: =(SUMIF('3 INCOME & EXPENSE'!$J$14:$J$763,T('EXPENSE DATABASE'!E80),'3 INCOME & EXPENSE'!$P$14:$P$763)) -> $0.00 | H80: =(SUMIF('3 INCOME & EXPENSE'!$J$14:$J$763,T('EXPENSE DATABASE'!E80),'3 INCOME & EXPENSE'!$Q$14:$Q$763)) -> $0.00
B81: =T('ACCOUNTING SETUP'!AI21) -> Vendor 13 | C81: 13 | E81: =T('EXPENSE DATABASE'!B81) -> Vendor 13 | F81: =(SUMIF('3 INCOME & EXPENSE'!$J$14:$J$763,T(E81),'3 INCOME & EXPENSE'!$O$14:$O$763)) -> $0.00 | G81: =(SUMIF('3 INCOME & EXPENSE'!$J$14:$J$763,T('EXPENSE DATABASE'!E81),'3 INCOME & EXPENSE'!$P$14:$P$763)) -> $0.00 | H81: =(SUMIF('3 INCOME & EXPENSE'!$J$14:$J$763,T('EXPENSE DATABASE'!E81),'3 INCOME & EXPENSE'!$Q$14:$Q$763)) -> $0.00
B82: =T('ACCOUNTING SETUP'!AI22) -> Vendor 14 | C82: 14 | E82: =T('EXPENSE DATABASE'!B82) -> Vendor 14 | F82: =(SUMIF('3 INCOME & EXPENSE'!$J$14:$J$763,T(E82),'3 INCOME & EXPENSE'!$O$14:$O$763)) -> $0.00 | G82: =(SUMIF('3 INCOME & EXPENSE'!$J$14:$J$763,T('EXPENSE DATABASE'!E82),'3 INCOME & EXPENSE'!$P$14:$P$763)) -> $0.00 | H82: =(SUMIF('3 INCOME & EXPENSE'!$J$14:$J$763,T('EXPENSE DATABASE'!E82),'3 INCOME & EXPENSE'!$Q$14:$Q$763)) -> $0.00
B83: =T('ACCOUNTING SETUP'!AI23) -> Vendor 15 | C83: 15 | E83: =T('EXPENSE DATABASE'!B83) -> Vendor 15 | F83: =(SUMIF('3 INCOME & EXPENSE'!$J$14:$J$763,T(E83),'3 INCOME & EXPENSE'!$O$14:$O$763)) -> $0.00 | G83: =(SUMIF('3 INCOME & EXPENSE'!$J$14:$J$763,T('EXPENSE DATABASE'!E83),'3 INCOME & EXPENSE'!$P$14:$P$763)) -> $0.00 | H83: =(SUMIF('3 INCOME & EXPENSE'!$J$14:$J$763,T('EXPENSE DATABASE'!E83),'3 INCOME & EXPENSE'!$Q$14:$Q$763)) -> $0.00
B84: =T('ACCOUNTING SETUP'!AI24) -> Vendor 16 | C84: 16 | E84: =T('EXPENSE DATABASE'!B84) -> Vendor 16 | F84: =(SUMIF('3 INCOME & EXPENSE'!$J$14:$J$763,T(E84),'3 INCOME & EXPENSE'!$O$14:$O$763)) -> $0.00 | G84: =(SUMIF('3 INCOME & EXPENSE'!$J$14:$J$763,T('EXPENSE DATABASE'!E84),'3 INCOME & EXPENSE'!$P$14:$P$763)) -> $0.00 | H84: =(SUMIF('3 INCOME & EXPENSE'!$J$14:$J$763,T('EXPENSE DATABASE'!E84),'3 INCOME & EXPENSE'!$Q$14:$Q$763)) -> $0.00
B85: =T('ACCOUNTING SETUP'!AI25) -> Vendor 17 | C85: 17 | E85: =T('EXPENSE DATABASE'!B85) -> Vendor 17 | F85: =(SUMIF('3 INCOME & EXPENSE'!$J$14:$J$763,T(E85),'3 INCOME & EXPENSE'!$O$14:$O$763)) -> $0.00 | G85: =(SUMIF('3 INCOME & EXPENSE'!$J$14:$J$763,T('EXPENSE DATABASE'!E85),'3 INCOME & EXPENSE'!$P$14:$P$763)) -> $0.00 | H85: =(SUMIF('3 INCOME & EXPENSE'!$J$14:$J$763,T('EXPENSE DATABASE'!E85),'3 INCOME & EXPENSE'!$Q$14:$Q$763)) -> $0.00
B86: =T('ACCOUNTING SETUP'!AI26) -> Vendor 18 | C86: 18 | E86: =T('EXPENSE DATABASE'!B86) -> Vendor 18 | F86: =(SUMIF('3 INCOME & EXPENSE'!$J$14:$J$763,T(E86),'3 INCOME & EXPENSE'!$O$14:$O$763)) -> $0.00 | G86: =(SUMIF('3 INCOME & EXPENSE'!$J$14:$J$763,T('EXPENSE DATABASE'!E86),'3 INCOME & EXPENSE'!$P$14:$P$763)) -> $0.00 | H86: =(SUMIF('3 INCOME & EXPENSE'!$J$14:$J$763,T('EXPENSE DATABASE'!E86),'3 INCOME & EXPENSE'!$Q$14:$Q$763)) -> $0.00
B87: =T('ACCOUNTING SETUP'!AI27) -> Vendor 19 | C87: 19 | E87: =T('EXPENSE DATABASE'!B87) -> Vendor 19 | F87: =(SUMIF('3 INCOME & EXPENSE'!$J$14:$J$763,T(E87),'3 INCOME & EXPENSE'!$O$14:$O$763)) -> $0.00 | G87: =(SUMIF('3 INCOME & EXPENSE'!$J$14:$J$763,T('EXPENSE DATABASE'!E87),'3 INCOME & EXPENSE'!$P$14:$P$763)) -> $0.00 | H87: =(SUMIF('3 INCOME & EXPENSE'!$J$14:$J$763,T('EXPENSE DATABASE'!E87),'3 INCOME & EXPENSE'!$Q$14:$Q$763)) -> $0.00
B88: =T('ACCOUNTING SETUP'!AI28) -> Vendor 20 | C88: 20 | E88: =T('EXPENSE DATABASE'!B88) -> Vendor 20 | F88: =(SUMIF('3 INCOME & EXPENSE'!$J$14:$J$763,T(E88),'3 INCOME & EXPENSE'!$O$14:$O$763)) -> $0.00 | G88: =(SUMIF('3 INCOME & EXPENSE'!$J$14:$J$763,T('EXPENSE DATABASE'!E88),'3 INCOME & EXPENSE'!$P$14:$P$763)) -> $0.00 | H88: =(SUMIF('3 INCOME & EXPENSE'!$J$14:$J$763,T('EXPENSE DATABASE'!E88),'3 INCOME & EXPENSE'!$Q$14:$Q$763)) -> $0.00
B89: =T('ACCOUNTING SETUP'!AI29) -> Vendor 21 | C89: 21 | E89: =T('EXPENSE DATABASE'!B89) -> Vendor 21 | F89: =(SUMIF('3 INCOME & EXPENSE'!$J$14:$J$763,T(E89),'3 INCOME & EXPENSE'!$O$14:$O$763)) -> $0.00 | G89: =(SUMIF('3 INCOME & EXPENSE'!$J$14:$J$763,T('EXPENSE DATABASE'!E89),'3 INCOME & EXPENSE'!$P$14:$P$763)) -> $0.00 | H89: =(SUMIF('3 INCOME & EXPENSE'!$J$14:$J$763,T('EXPENSE DATABASE'!E89),'3 INCOME & EXPENSE'!$Q$14:$Q$763)) -> $0.00
B90: =T('ACCOUNTING SETUP'!AI30) -> Vendor 22 | C90: 22 | E90: =T('EXPENSE DATABASE'!B90) -> Vendor 22 | F90: =(SUMIF('3 INCOME & EXPENSE'!$J$14:$J$763,T(E90),'3 INCOME & EXPENSE'!$O$14:$O$763)) -> $0.00 | G90: =(SUMIF('3 INCOME & EXPENSE'!$J$14:$J$763,T('EXPENSE DATABASE'!E90),'3 INCOME & EXPENSE'!$P$14:$P$763)) -> $0.00 | H90: =(SUMIF('3 INCOME & EXPENSE'!$J$14:$J$763,T('EXPENSE DATABASE'!E90),'3 INCOME & EXPENSE'!$Q$14:$Q$763)) -> $0.00
B91: =T('ACCOUNTING SETUP'!AI31) -> Vendor 23 | C91: 23 | E91: =T('EXPENSE DATABASE'!B91) -> Vendor 23 | F91: =(SUMIF('3 INCOME & EXPENSE'!$J$14:$J$763,T(E91),'3 INCOME & EXPENSE'!$O$14:$O$763)) -> $0.00 | G91: =(SUMIF('3 INCOME & EXPENSE'!$J$14:$J$763,T('EXPENSE DATABASE'!E91),'3 INCOME & EXPENSE'!$P$14:$P$763)) -> $0.00 | H91: =(SUMIF('3 INCOME & EXPENSE'!$J$14:$J$763,T('EXPENSE DATABASE'!E91),'3 INCOME & EXPENSE'!$Q$14:$Q$763)) -> $0.00
B92: =T('ACCOUNTING SETUP'!AI32) -> Vendor 24 | C92: 24 | E92: =T('EXPENSE DATABASE'!B92) -> Vendor 24 | F92: =(SUMIF('3 INCOME & EXPENSE'!$J$14:$J$763,T(E92),'3 INCOME & EXPENSE'!$O$14:$O$763)) -> $0.00 | G92: =(SUMIF('3 INCOME & EXPENSE'!$J$14:$J$763,T('EXPENSE DATABASE'!E92),'3 INCOME & EXPENSE'!$P$14:$P$763)) -> $0.00 | H92: =(SUMIF('3 INCOME & EXPENSE'!$J$14:$J$763,T('EXPENSE DATABASE'!E92),'3 INCOME & EXPENSE'!$Q$14:$Q$763)) -> $0.00
B93: =T('ACCOUNTING SETUP'!AI33) -> Vendor 25 | C93: 25 | E93: =T('EXPENSE DATABASE'!B93) -> Vendor 25 | F93: =(SUMIF('3 INCOME & EXPENSE'!$J$14:$J$763,T(E93),'3 INCOME & EXPENSE'!$O$14:$O$763)) -> $0.00 | G93: =(SUMIF('3 INCOME & EXPENSE'!$J$14:$J$763,T('EXPENSE DATABASE'!E93),'3 INCOME & EXPENSE'!$P$14:$P$763)) -> $0.00 | H93: =(SUMIF('3 INCOME & EXPENSE'!$J$14:$J$763,T('EXPENSE DATABASE'!E93),'3 INCOME & EXPENSE'!$Q$14:$Q$763)) -> $0.00
B94: =T('ACCOUNTING SETUP'!AI34) -> Vendor 26 | C94: 26 | E94: =T('EXPENSE DATABASE'!B94) -> Vendor 26 | F94: =(SUMIF('3 INCOME & EXPENSE'!$J$14:$J$763,T(E94),'3 INCOME & EXPENSE'!$O$14:$O$763)) -> $0.00 | G94: =(SUMIF('3 INCOME & EXPENSE'!$J$14:$J$763,T('EXPENSE DATABASE'!E94),'3 INCOME & EXPENSE'!$P$14:$P$763)) -> $0.00 | H94: =(SUMIF('3 INCOME & EXPENSE'!$J$14:$J$763,T('EXPENSE DATABASE'!E94),'3 INCOME & EXPENSE'!$Q$14:$Q$763)) -> $0.00
B95: =T('ACCOUNTING SETUP'!AI35) -> Vendor 27 | C95: 27 | E95: =T('EXPENSE DATABASE'!B95) -> Vendor 27 | F95: =(SUMIF('3 INCOME & EXPENSE'!$J$14:$J$763,T(E95),'3 INCOME & EXPENSE'!$O$14:$O$763)) -> $0.00 | G95: =(SUMIF('3 INCOME & EXPENSE'!$J$14:$J$763,T('EXPENSE DATABASE'!E95),'3 INCOME & EXPENSE'!$P$14:$P$763)) -> $0.00 | H95: =(SUMIF('3 INCOME & EXPENSE'!$J$14:$J$763,T('EXPENSE DATABASE'!E95),'3 INCOME & EXPENSE'!$Q$14:$Q$763)) -> $0.00
B96: =T('ACCOUNTING SETUP'!AI36) -> Vendor 28 | C96: 28 | E96: =T('EXPENSE DATABASE'!B96) -> Vendor 28 | F96: =(SUMIF('3 INCOME & EXPENSE'!$J$14:$J$763,T(E96),'3 INCOME & EXPENSE'!$O$14:$O$763)) -> $0.00 | G96: =(SUMIF('3 INCOME & EXPENSE'!$J$14:$J$763,T('EXPENSE DATABASE'!E96),'3 INCOME & EXPENSE'!$P$14:$P$763)) -> $0.00 | H96: =(SUMIF('3 INCOME & EXPENSE'!$J$14:$J$763,T('EXPENSE DATABASE'!E96),'3 INCOME & EXPENSE'!$Q$14:$Q$763)) -> $0.00
B97: =T('ACCOUNTING SETUP'!AI37) -> Vendor 29 | C97: 29 | E97: =T('EXPENSE DATABASE'!B97) -> Vendor 29 | F97: =(SUMIF('3 INCOME & EXPENSE'!$J$14:$J$763,T(E97),'3 INCOME & EXPENSE'!$O$14:$O$763)) -> $0.00 | G97: =(SUMIF('3 INCOME & EXPENSE'!$J$14:$J$763,T('EXPENSE DATABASE'!E97),'3 INCOME & EXPENSE'!$P$14:$P$763)) -> $0.00 | H97: =(SUMIF('3 INCOME & EXPENSE'!$J$14:$J$763,T('EXPENSE DATABASE'!E97),'3 INCOME & EXPENSE'!$Q$14:$Q$763)) -> $0.00
B98: =T('ACCOUNTING SETUP'!AI38) -> Vendor 30 | C98: 30 | E98: =T('EXPENSE DATABASE'!B98) -> Vendor 30 | F98: =(SUMIF('3 INCOME & EXPENSE'!$J$14:$J$763,T(E98),'3 INCOME & EXPENSE'!$O$14:$O$763)) -> $0.00 | G98: =(SUMIF('3 INCOME & EXPENSE'!$J$14:$J$763,T('EXPENSE DATABASE'!E98),'3 INCOME & EXPENSE'!$P$14:$P$763)) -> $0.00 | H98: =(SUMIF('3 INCOME & EXPENSE'!$J$14:$J$763,T('EXPENSE DATABASE'!E98),'3 INCOME & EXPENSE'!$Q$14:$Q$763)) -> $0.00
B99: =T('ACCOUNTING SETUP'!AI39) -> Vendor 31 | C99: 31 | E99: =T('EXPENSE DATABASE'!B99) -> Vendor 31 | F99: =(SUMIF('3 INCOME & EXPENSE'!$J$14:$J$763,T(E99),'3 INCOME & EXPENSE'!$O$14:$O$763)) -> $0.00 | G99: =(SUMIF('3 INCOME & EXPENSE'!$J$14:$J$763,T('EXPENSE DATABASE'!E99),'3 INCOME & EXPENSE'!$P$14:$P$763)) -> $0.00 | H99: =(SUMIF('3 INCOME & EXPENSE'!$J$14:$J$763,T('EXPENSE DATABASE'!E99),'3 INCOME & EXPENSE'!$Q$14:$Q$763)) -> $0.00
B100: =T('ACCOUNTING SETUP'!AI40) -> Vendor 32 | C100: 32 | E100: =T('EXPENSE DATABASE'!B100) -> Vendor 32 | F100: =(SUMIF('3 INCOME & EXPENSE'!$J$14:$J$763,T(E100),'3 INCOME & EXPENSE'!$O$14:$O$763)) -> $0.00 | G100: =(SUMIF('3 INCOME & EXPENSE'!$J$14:$J$763,T('EXPENSE DATABASE'!E100),'3 INCOME & EXPENSE'!$P$14:$P$763)) -> $0.00 | H100: =(SUMIF('3 INCOME & EXPENSE'!$J$14:$J$763,T('EXPENSE DATABASE'!E100),'3 INCOME & EXPENSE'!$Q$14:$Q$763)) -> $0.00
B101: =T('ACCOUNTING SETUP'!AI41) -> Vendor 33 | C101: 33 | E101: =T('EXPENSE DATABASE'!B101) -> Vendor 33 | F101: =(SUMIF('3 INCOME & EXPENSE'!$J$14:$J$763,T(E101),'3 INCOME & EXPENSE'!$O$14:$O$763)) -> $0.00 | G101: =(SUMIF('3 INCOME & EXPENSE'!$J$14:$J$763,T('EXPENSE DATABASE'!E101),'3 INCOME & EXPENSE'!$P$14:$P$763)) -> $0.00 | H101: =(SUMIF('3 INCOME & EXPENSE'!$J$14:$J$763,T('EXPENSE DATABASE'!E101),'3 INCOME & EXPENSE'!$Q$14:$Q$763)) -> $0.00
B102: =T('ACCOUNTING SETUP'!AI42) -> Vendor 34 | C102: 34 | E102: =T('EXPENSE DATABASE'!B102) -> Vendor 34 | F102: =(SUMIF('3 INCOME & EXPENSE'!$J$14:$J$763,T(E102),'3 INCOME & EXPENSE'!$O$14:$O$763)) -> $0.00 | G102: =(SUMIF('3 INCOME & EXPENSE'!$J$14:$J$763,T('EXPENSE DATABASE'!E102),'3 INCOME & EXPENSE'!$P$14:$P$763)) -> $0.00 | H102: =(SUMIF('3 INCOME & EXPENSE'!$J$14:$J$763,T('EXPENSE DATABASE'!E102),'3 INCOME & EXPENSE'!$Q$14:$Q$763)) -> $0.00
B103: =T('ACCOUNTING SETUP'!AI43) -> Vendor 35 | C103: 35 | E103: =T('EXPENSE DATABASE'!B103) -> Vendor 35 | F103: =(SUMIF('3 INCOME & EXPENSE'!$J$14:$J$763,T(E103),'3 INCOME & EXPENSE'!$O$14:$O$763)) -> $0.00 | G103: =(SUMIF('3 INCOME & EXPENSE'!$J$14:$J$763,T('EXPENSE DATABASE'!E103),'3 INCOME & EXPENSE'!$P$14:$P$763)) -> $0.00 | H103: =(SUMIF('3 INCOME & EXPENSE'!$J$14:$J$763,T('EXPENSE DATABASE'!E103),'3 INCOME & EXPENSE'!$Q$14:$Q$763)) -> $0.00
B104: =T('ACCOUNTING SETUP'!AI44) -> Vendor 36 | C104: 36 | E104: =T('EXPENSE DATABASE'!B104) -> Vendor 36 | F104: =(SUMIF('3 INCOME & EXPENSE'!$J$14:$J$763,T(E104),'3 INCOME & EXPENSE'!$O$14:$O$763)) -> $0.00 | G104: =(SUMIF('3 INCOME & EXPENSE'!$J$14:$J$763,T('EXPENSE DATABASE'!E104),'3 INCOME & EXPENSE'!$P$14:$P$763)) -> $0.00 | H104: =(SUMIF('3 INCOME & EXPENSE'!$J$14:$J$763,T('EXPENSE DATABASE'!E104),'3 INCOME & EXPENSE'!$Q$14:$Q$763)) -> $0.00
B105: =T('ACCOUNTING SETUP'!AI45) -> Vendor 37 | C105: 37 | E105: =T('EXPENSE DATABASE'!B105) -> Vendor 37 | F105: =(SUMIF('3 INCOME & EXPENSE'!$J$14:$J$763,T(E105),'3 INCOME & EXPENSE'!$O$14:$O$763)) -> $0.00 | G105: =(SUMIF('3 INCOME & EXPENSE'!$J$14:$J$763,T('EXPENSE DATABASE'!E105),'3 INCOME & EXPENSE'!$P$14:$P$763)) -> $0.00 | H105: =(SUMIF('3 INCOME & EXPENSE'!$J$14:$J$763,T('EXPENSE DATABASE'!E105),'3 INCOME & EXPENSE'!$Q$14:$Q$763)) -> $0.00
B106: =T('ACCOUNTING SETUP'!AI46) -> Vendor 38 | C106: 38 | E106: =T('EXPENSE DATABASE'!B106) -> Vendor 38 | F106: =(SUMIF('3 INCOME & EXPENSE'!$J$14:$J$763,T(E106),'3 INCOME & EXPENSE'!$O$14:$O$763)) -> $0.00 | G106: =(SUMIF('3 INCOME & EXPENSE'!$J$14:$J$763,T('EXPENSE DATABASE'!E106),'3 INCOME & EXPENSE'!$P$14:$P$763)) -> $0.00 | H106: =(SUMIF('3 INCOME & EXPENSE'!$J$14:$J$763,T('EXPENSE DATABASE'!E106),'3 INCOME & EXPENSE'!$Q$14:$Q$763)) -> $0.00
B107: =T('ACCOUNTING SETUP'!AI47) -> Vendor 39 | C107: 39 | E107: =T('EXPENSE DATABASE'!B107) -> Vendor 39 | F107: =(SUMIF('3 INCOME & EXPENSE'!$J$14:$J$763,T(E107),'3 INCOME & EXPENSE'!$O$14:$O$763)) -> $0.00 | G107: =(SUMIF('3 INCOME & EXPENSE'!$J$14:$J$763,T('EXPENSE DATABASE'!E107),'3 INCOME & EXPENSE'!$P$14:$P$763)) -> $0.00 | H107: =(SUMIF('3 INCOME & EXPENSE'!$J$14:$J$763,T('EXPENSE DATABASE'!E107),'3 INCOME & EXPENSE'!$Q$14:$Q$763)) -> $0.00
B108: =T('ACCOUNTING SETUP'!AI48) -> Vendor 40 | C108: 40 | E108: =T('EXPENSE DATABASE'!B108) -> Vendor 40 | F108: =(SUMIF('3 INCOME & EXPENSE'!$J$14:$J$763,T(E108),'3 INCOME & EXPENSE'!$O$14:$O$763)) -> $0.00 | G108: =(SUMIF('3 INCOME & EXPENSE'!$J$14:$J$763,T('EXPENSE DATABASE'!E108),'3 INCOME & EXPENSE'!$P$14:$P$763)) -> $0.00 | H108: =(SUMIF('3 INCOME & EXPENSE'!$J$14:$J$763,T('EXPENSE DATABASE'!E108),'3 INCOME & EXPENSE'!$Q$14:$Q$763)) -> $0.00
B109: =T('ACCOUNTING SETUP'!AI49) -> Vendor 41 | C109: 41 | E109: =T('EXPENSE DATABASE'!B109) -> Vendor 41 | F109: =(SUMIF('3 INCOME & EXPENSE'!$J$14:$J$763,T(E109),'3 INCOME & EXPENSE'!$O$14:$O$763)) -> $0.00 | G109: =(SUMIF('3 INCOME & EXPENSE'!$J$14:$J$763,T('EXPENSE DATABASE'!E109),'3 INCOME & EXPENSE'!$P$14:$P$763)) -> $0.00 | H109: =(SUMIF('3 INCOME & EXPENSE'!$J$14:$J$763,T('EXPENSE DATABASE'!E109),'3 INCOME & EXPENSE'!$Q$14:$Q$763)) -> $0.00
B110: =T('ACCOUNTING SETUP'!AI50) -> Vendor 42 | C110: 42 | E110: =T('EXPENSE DATABASE'!B110) -> Vendor 42 | F110: =(SUMIF('3 INCOME & EXPENSE'!$J$14:$J$763,T(E110),'3 INCOME & EXPENSE'!$O$14:$O$763)) -> $0.00 | G110: =(SUMIF('3 INCOME & EXPENSE'!$J$14:$J$763,T('EXPENSE DATABASE'!E110),'3 INCOME & EXPENSE'!$P$14:$P$763)) -> $0.00 | H110: =(SUMIF('3 INCOME & EXPENSE'!$J$14:$J$763,T('EXPENSE DATABASE'!E110),'3 INCOME & EXPENSE'!$Q$14:$Q$763)) -> $0.00
B111: =T('ACCOUNTING SETUP'!#REF!) ->  | C111: 43 | E111: =T('EXPENSE DATABASE'!B111) ->  | F111: =(SUMIF('3 INCOME & EXPENSE'!$J$14:$J$763,T(E111),'3 INCOME & EXPENSE'!$O$14:$O$763)) -> $0.00 | G111: =(SUMIF('3 INCOME & EXPENSE'!$J$14:$J$763,T('EXPENSE DATABASE'!E111),'3 INCOME & EXPENSE'!$P$14:$P$763)) -> $0.00 | H111: =(SUMIF('3 INCOME & EXPENSE'!$J$14:$J$763,T('EXPENSE DATABASE'!E111),'3 INCOME & EXPENSE'!$Q$14:$Q$763)) -> $0.00
B112: =T('ACCOUNTING SETUP'!#REF!) ->  | C112: 44 | E112: =T('EXPENSE DATABASE'!B112) ->  | F112: =(SUMIF('3 INCOME & EXPENSE'!$J$14:$J$763,T(E112),'3 INCOME & EXPENSE'!$O$14:$O$763)) -> $0.00 | G112: =(SUMIF('3 INCOME & EXPENSE'!$J$14:$J$763,T('EXPENSE DATABASE'!E112),'3 INCOME & EXPENSE'!$P$14:$P$763)) -> $0.00 | H112: =(SUMIF('3 INCOME & EXPENSE'!$J$14:$J$763,T('EXPENSE DATABASE'!E112),'3 INCOME & EXPENSE'!$Q$14:$Q$763)) -> $0.00
B113: =T('ACCOUNTING SETUP'!#REF!) ->  | C113: 45 | E113: =T('EXPENSE DATABASE'!B113) ->  | F113: =(SUMIF('3 INCOME & EXPENSE'!$J$14:$J$763,T(E113),'3 INCOME & EXPENSE'!$O$14:$O$763)) -> $0.00 | G113: =(SUMIF('3 INCOME & EXPENSE'!$J$14:$J$763,T('EXPENSE DATABASE'!E113),'3 INCOME & EXPENSE'!$P$14:$P$763)) -> $0.00 | H113: =(SUMIF('3 INCOME & EXPENSE'!$J$14:$J$763,T('EXPENSE DATABASE'!E113),'3 INCOME & EXPENSE'!$Q$14:$Q$763)) -> $0.00
B114: =T('ACCOUNTING SETUP'!#REF!) ->  | C114: 46 | E114: =T('EXPENSE DATABASE'!B114) ->  | F114: =(SUMIF('3 INCOME & EXPENSE'!$J$14:$J$763,T(E114),'3 INCOME & EXPENSE'!$O$14:$O$763)) -> $0.00 | G114: =(SUMIF('3 INCOME & EXPENSE'!$J$14:$J$763,T('EXPENSE DATABASE'!E114),'3 INCOME & EXPENSE'!$P$14:$P$763)) -> $0.00 | H114: =(SUMIF('3 INCOME & EXPENSE'!$J$14:$J$763,T('EXPENSE DATABASE'!E114),'3 INCOME & EXPENSE'!$Q$14:$Q$763)) -> $0.00
B115: =T('ACCOUNTING SETUP'!#REF!) ->  | C115: 47 | E115: =T('EXPENSE DATABASE'!B115) ->  | F115: =(SUMIF('3 INCOME & EXPENSE'!$J$14:$J$763,T(E115),'3 INCOME & EXPENSE'!$O$14:$O$763)) -> $0.00 | G115: =(SUMIF('3 INCOME & EXPENSE'!$J$14:$J$763,T('EXPENSE DATABASE'!E115),'3 INCOME & EXPENSE'!$P$14:$P$763)) -> $0.00 | H115: =(SUMIF('3 INCOME & EXPENSE'!$J$14:$J$763,T('EXPENSE DATABASE'!E115),'3 INCOME & EXPENSE'!$Q$14:$Q$763)) -> $0.00
B116: =T('ACCOUNTING SETUP'!#REF!) ->  | C116: 48 | E116: =T('EXPENSE DATABASE'!B116) ->  | F116: =(SUMIF('3 INCOME & EXPENSE'!$J$14:$J$763,T(E116),'3 INCOME & EXPENSE'!$O$14:$O$763)) -> $0.00 | G116: =(SUMIF('3 INCOME & EXPENSE'!$J$14:$J$763,T('EXPENSE DATABASE'!E116),'3 INCOME & EXPENSE'!$P$14:$P$763)) -> $0.00 | H116: =(SUMIF('3 INCOME & EXPENSE'!$J$14:$J$763,T('EXPENSE DATABASE'!E116),'3 INCOME & EXPENSE'!$Q$14:$Q$763)) -> $0.00
B117: =T('ACCOUNTING SETUP'!#REF!) ->  | C117: 49 | E117: =T('EXPENSE DATABASE'!B117) ->  | F117: =(SUMIF('3 INCOME & EXPENSE'!$J$14:$J$763,T(E117),'3 INCOME & EXPENSE'!$O$14:$O$763)) -> $0.00 | G117: =(SUMIF('3 INCOME & EXPENSE'!$J$14:$J$763,T('EXPENSE DATABASE'!E117),'3 INCOME & EXPENSE'!$P$14:$P$763)) -> $0.00 | H117: =(SUMIF('3 INCOME & EXPENSE'!$J$14:$J$763,T('EXPENSE DATABASE'!E117),'3 INCOME & EXPENSE'!$Q$14:$Q$763)) -> $0.00
B118: =T('ACCOUNTING SETUP'!#REF!) ->  | C118: 50 | E118: =T('EXPENSE DATABASE'!B118) ->  | F118: =(SUMIF('3 INCOME & EXPENSE'!$J$14:$J$763,T(E118),'3 INCOME & EXPENSE'!$O$14:$O$763)) -> $0.00 | G118: =(SUMIF('3 INCOME & EXPENSE'!$J$14:$J$763,T('EXPENSE DATABASE'!E118),'3 INCOME & EXPENSE'!$P$14:$P$763)) -> $0.00 | H118: =(SUMIF('3 INCOME & EXPENSE'!$J$14:$J$763,T('EXPENSE DATABASE'!E118),'3 INCOME & EXPENSE'!$Q$14:$Q$763)) -> $0.00
B119: =T('ACCOUNTING SETUP'!#REF!) ->  | C119: 51 | E119: =T('EXPENSE DATABASE'!B119) ->  | F119: =(SUMIF('3 INCOME & EXPENSE'!$J$14:$J$763,T(E119),'3 INCOME & EXPENSE'!$O$14:$O$763)) -> $0.00 | G119: =(SUMIF('3 INCOME & EXPENSE'!$J$14:$J$763,T('EXPENSE DATABASE'!E119),'3 INCOME & EXPENSE'!$P$14:$P$763)) -> $0.00 | H119: =(SUMIF('3 INCOME & EXPENSE'!$J$14:$J$763,T('EXPENSE DATABASE'!E119),'3 INCOME & EXPENSE'!$Q$14:$Q$763)) -> $0.00
B120: =T('ACCOUNTING SETUP'!#REF!) ->  | C120: 52 | E120: =T('EXPENSE DATABASE'!B120) ->  | F120: =(SUMIF('3 INCOME & EXPENSE'!$J$14:$J$763,T(E120),'3 INCOME & EXPENSE'!$O$14:$O$763)) -> $0.00 | G120: =(SUMIF('3 INCOME & EXPENSE'!$J$14:$J$763,T('EXPENSE DATABASE'!E120),'3 INCOME & EXPENSE'!$P$14:$P$763)) -> $0.00 | H120: =(SUMIF('3 INCOME & EXPENSE'!$J$14:$J$763,T('EXPENSE DATABASE'!E120),'3 INCOME & EXPENSE'!$Q$14:$Q$763)) -> $0.00
B121: =T('ACCOUNTING SETUP'!#REF!) ->  | C121: 53 | E121: =T('EXPENSE DATABASE'!B121) ->  | F121: =(SUMIF('3 INCOME & EXPENSE'!$J$14:$J$763,T(E121),'3 INCOME & EXPENSE'!$O$14:$O$763)) -> $0.00 | G121: =(SUMIF('3 INCOME & EXPENSE'!$J$14:$J$763,T('EXPENSE DATABASE'!E121),'3 INCOME & EXPENSE'!$P$14:$P$763)) -> $0.00 | H121: =(SUMIF('3 INCOME & EXPENSE'!$J$14:$J$763,T('EXPENSE DATABASE'!E121),'3 INCOME & EXPENSE'!$Q$14:$Q$763)) -> $0.00
B122: =T('ACCOUNTING SETUP'!#REF!) ->  | C122: 54 | E122: =T('EXPENSE DATABASE'!B122) ->  | F122: =(SUMIF('3 INCOME & EXPENSE'!$J$14:$J$763,T(E122),'3 INCOME & EXPENSE'!$O$14:$O$763)) -> $0.00 | G122: =(SUMIF('3 INCOME & EXPENSE'!$J$14:$J$763,T('EXPENSE DATABASE'!E122),'3 INCOME & EXPENSE'!$P$14:$P$763)) -> $0.00 | H122: =(SUMIF('3 INCOME & EXPENSE'!$J$14:$J$763,T('EXPENSE DATABASE'!E122),'3 INCOME & EXPENSE'!$Q$14:$Q$763)) -> $0.00
B123: =T('ACCOUNTING SETUP'!AI51) -> Vendor 55 | C123: 55 | E123: =T('EXPENSE DATABASE'!B123) -> Vendor 55 | F123: =(SUMIF('3 INCOME & EXPENSE'!$J$14:$J$763,T(E123),'3 INCOME & EXPENSE'!$O$14:$O$763)) -> $0.00 | G123: =(SUMIF('3 INCOME & EXPENSE'!$J$14:$J$763,T('EXPENSE DATABASE'!E123),'3 INCOME & EXPENSE'!$P$14:$P$763)) -> $0.00 | H123: =(SUMIF('3 INCOME & EXPENSE'!$J$14:$J$763,T('EXPENSE DATABASE'!E123),'3 INCOME & EXPENSE'!$Q$14:$Q$763)) -> $0.00
B124: =T('ACCOUNTING SETUP'!AI52) -> Vendor 56 | C124: 56 | E124: =T('EXPENSE DATABASE'!B124) -> Vendor 56 | F124: =(SUMIF('3 INCOME & EXPENSE'!$J$14:$J$763,T(E124),'3 INCOME & EXPENSE'!$O$14:$O$763)) -> $0.00 | G124: =(SUMIF('3 INCOME & EXPENSE'!$J$14:$J$763,T('EXPENSE DATABASE'!E124),'3 INCOME & EXPENSE'!$P$14:$P$763)) -> $0.00 | H124: =(SUMIF('3 INCOME & EXPENSE'!$J$14:$J$763,T('EXPENSE DATABASE'!E124),'3 INCOME & EXPENSE'!$Q$14:$Q$763)) -> $0.00
B125: =T('ACCOUNTING SETUP'!AI53) -> Vendor 57 | C125: 57 | E125: =T('EXPENSE DATABASE'!B125) -> Vendor 57 | F125: =(SUMIF('3 INCOME & EXPENSE'!$J$14:$J$763,T(E125),'3 INCOME & EXPENSE'!$O$14:$O$763)) -> $0.00 | G125: =(SUMIF('3 INCOME & EXPENSE'!$J$14:$J$763,T('EXPENSE DATABASE'!E125),'3 INCOME & EXPENSE'!$P$14:$P$763)) -> $0.00 | H125: =(SUMIF('3 INCOME & EXPENSE'!$J$14:$J$763,T('EXPENSE DATABASE'!E125),'3 INCOME & EXPENSE'!$Q$14:$Q$763)) -> $0.00
B126: =T('ACCOUNTING SETUP'!AI54) -> Vendor 58 | C126: 58 | E126: =T('EXPENSE DATABASE'!B126) -> Vendor 58 | F126: =(SUMIF('3 INCOME & EXPENSE'!$J$14:$J$763,T(E126),'3 INCOME & EXPENSE'!$O$14:$O$763)) -> $0.00 | G126: =(SUMIF('3 INCOME & EXPENSE'!$J$14:$J$763,T('EXPENSE DATABASE'!E126),'3 INCOME & EXPENSE'!$P$14:$P$763)) -> $0.00 | H126: =(SUMIF('3 INCOME & EXPENSE'!$J$14:$J$763,T('EXPENSE DATABASE'!E126),'3 INCOME & EXPENSE'!$Q$14:$Q$763)) -> $0.00
B127: =T('ACCOUNTING SETUP'!AI55) -> Vendor 59 | C127: 59 | E127: =T('EXPENSE DATABASE'!B127) -> Vendor 59 | F127: =(SUMIF('3 INCOME & EXPENSE'!$J$14:$J$763,T(E127),'3 INCOME & EXPENSE'!$O$14:$O$763)) -> $0.00 | G127: =(SUMIF('3 INCOME & EXPENSE'!$J$14:$J$763,T('EXPENSE DATABASE'!E127),'3 INCOME & EXPENSE'!$P$14:$P$763)) -> $0.00 | H127: =(SUMIF('3 INCOME & EXPENSE'!$J$14:$J$763,T('EXPENSE DATABASE'!E127),'3 INCOME & EXPENSE'!$Q$14:$Q$763)) -> $0.00
B128: =T('ACCOUNTING SETUP'!AI56) -> Vendor 60 | C128: 60 | E128: =T('EXPENSE DATABASE'!B128) -> Vendor 60 | F128: =(SUMIF('3 INCOME & EXPENSE'!$J$14:$J$763,T(E128),'3 INCOME & EXPENSE'!$O$14:$O$763)) -> $0.00 | G128: =(SUMIF('3 INCOME & EXPENSE'!$J$14:$J$763,T('EXPENSE DATABASE'!E128),'3 INCOME & EXPENSE'!$P$14:$P$763)) -> $0.00 | H128: =(SUMIF('3 INCOME & EXPENSE'!$J$14:$J$763,T('EXPENSE DATABASE'!E128),'3 INCOME & EXPENSE'!$Q$14:$Q$763)) -> $0.00
B129: =T('ACCOUNTING SETUP'!AI57) -> Vendor 61 | C129: 61 | E129: =T('EXPENSE DATABASE'!B129) -> Vendor 61 | F129: =(SUMIF('3 INCOME & EXPENSE'!$J$14:$J$763,T(E129),'3 INCOME & EXPENSE'!$O$14:$O$763)) -> $0.00 | G129: =(SUMIF('3 INCOME & EXPENSE'!$J$14:$J$763,T('EXPENSE DATABASE'!E129),'3 INCOME & EXPENSE'!$P$14:$P$763)) -> $0.00 | H129: =(SUMIF('3 INCOME & EXPENSE'!$J$14:$J$763,T('EXPENSE DATABASE'!E129),'3 INCOME & EXPENSE'!$Q$14:$Q$763)) -> $0.00
B130: =T('ACCOUNTING SETUP'!AI58) -> Vendor 62 | C130: 62 | E130: =T('EXPENSE DATABASE'!B130) -> Vendor 62 | F130: =(SUMIF('3 INCOME & EXPENSE'!$J$14:$J$763,T(E130),'3 INCOME & EXPENSE'!$O$14:$O$763)) -> $0.00 | G130: =(SUMIF('3 INCOME & EXPENSE'!$J$14:$J$763,T('EXPENSE DATABASE'!E130),'3 INCOME & EXPENSE'!$P$14:$P$763)) -> $0.00 | H130: =(SUMIF('3 INCOME & EXPENSE'!$J$14:$J$763,T('EXPENSE DATABASE'!E130),'3 INCOME & EXPENSE'!$Q$14:$Q$763)) -> $0.00
B131: =T('ACCOUNTING SETUP'!AI59) -> Vendor 63 | C131: 63 | E131: =T('EXPENSE DATABASE'!B131) -> Vendor 63 | F131: =(SUMIF('3 INCOME & EXPENSE'!$J$14:$J$763,T(E131),'3 INCOME & EXPENSE'!$O$14:$O$763)) -> $0.00 | G131: =(SUMIF('3 INCOME & EXPENSE'!$J$14:$J$763,T('EXPENSE DATABASE'!E131),'3 INCOME & EXPENSE'!$P$14:$P$763)) -> $0.00 | H131: =(SUMIF('3 INCOME & EXPENSE'!$J$14:$J$763,T('EXPENSE DATABASE'!E131),'3 INCOME & EXPENSE'!$Q$14:$Q$763)) -> $0.00
B132: =T('ACCOUNTING SETUP'!AI60) -> Vendor 64 | C132: 64 | E132: =T('EXPENSE DATABASE'!B132) -> Vendor 64 | F132: =(SUMIF('3 INCOME & EXPENSE'!$J$14:$J$763,T(E132),'3 INCOME & EXPENSE'!$O$14:$O$763)) -> $0.00 | G132: =(SUMIF('3 INCOME & EXPENSE'!$J$14:$J$763,T('EXPENSE DATABASE'!E132),'3 INCOME & EXPENSE'!$P$14:$P$763)) -> $0.00 | H132: =(SUMIF('3 INCOME & EXPENSE'!$J$14:$J$763,T('EXPENSE DATABASE'!E132),'3 INCOME & EXPENSE'!$Q$14:$Q$763)) -> $0.00
B133: =T('ACCOUNTING SETUP'!AI61) -> Vendor 65 | C133: 65 | E133: =T('EXPENSE DATABASE'!B133) -> Vendor 65 | F133: =(SUMIF('3 INCOME & EXPENSE'!$J$14:$J$763,T(E133),'3 INCOME & EXPENSE'!$O$14:$O$763)) -> $0.00 | G133: =(SUMIF('3 INCOME & EXPENSE'!$J$14:$J$763,T('EXPENSE DATABASE'!E133),'3 INCOME & EXPENSE'!$P$14:$P$763)) -> $0.00 | H133: =(SUMIF('3 INCOME & EXPENSE'!$J$14:$J$763,T('EXPENSE DATABASE'!E133),'3 INCOME & EXPENSE'!$Q$14:$Q$763)) -> $0.00
B134: =T('ACCOUNTING SETUP'!AI62) -> Vendor 66 | C134: 66 | E134: =T('EXPENSE DATABASE'!B134) -> Vendor 66 | F134: =(SUMIF('3 INCOME & EXPENSE'!$J$14:$J$763,T(E134),'3 INCOME & EXPENSE'!$O$14:$O$763)) -> $0.00 | G134: =(SUMIF('3 INCOME & EXPENSE'!$J$14:$J$763,T('EXPENSE DATABASE'!E134),'3 INCOME & EXPENSE'!$P$14:$P$763)) -> $0.00 | H134: =(SUMIF('3 INCOME & EXPENSE'!$J$14:$J$763,T('EXPENSE DATABASE'!E134),'3 INCOME & EXPENSE'!$Q$14:$Q$763)) -> $0.00
B135: =T('ACCOUNTING SETUP'!AI63) -> Vendor 67 | C135: 67 | E135: =T('EXPENSE DATABASE'!B135) -> Vendor 67 | F135: =(SUMIF('3 INCOME & EXPENSE'!$J$14:$J$763,T(E135),'3 INCOME & EXPENSE'!$O$14:$O$763)) -> $0.00 | G135: =(SUMIF('3 INCOME & EXPENSE'!$J$14:$J$763,T('EXPENSE DATABASE'!E135),'3 INCOME & EXPENSE'!$P$14:$P$763)) -> $0.00 | H135: =(SUMIF('3 INCOME & EXPENSE'!$J$14:$J$763,T('EXPENSE DATABASE'!E135),'3 INCOME & EXPENSE'!$Q$14:$Q$763)) -> $0.00
B136: =T('ACCOUNTING SETUP'!AI64) -> Vendor 68 | C136: 68 | E136: =T('EXPENSE DATABASE'!B136) -> Vendor 68 | F136: =(SUMIF('3 INCOME & EXPENSE'!$J$14:$J$763,T(E136),'3 INCOME & EXPENSE'!$O$14:$O$763)) -> $0.00 | G136: =(SUMIF('3 INCOME & EXPENSE'!$J$14:$J$763,T('EXPENSE DATABASE'!E136),'3 INCOME & EXPENSE'!$P$14:$P$763)) -> $0.00 | H136: =(SUMIF('3 INCOME & EXPENSE'!$J$14:$J$763,T('EXPENSE DATABASE'!E136),'3 INCOME & EXPENSE'!$Q$14:$Q$763)) -> $0.00
B137: =T('ACCOUNTING SETUP'!AI65) -> Vendor 69 | C137: 69 | E137: =T('EXPENSE DATABASE'!B137) -> Vendor 69 | F137: =(SUMIF('3 INCOME & EXPENSE'!$J$14:$J$763,T(E137),'3 INCOME & EXPENSE'!$O$14:$O$763)) -> $0.00 | G137: =(SUMIF('3 INCOME & EXPENSE'!$J$14:$J$763,T('EXPENSE DATABASE'!E137),'3 INCOME & EXPENSE'!$P$14:$P$763)) -> $0.00 | H137: =(SUMIF('3 INCOME & EXPENSE'!$J$14:$J$763,T('EXPENSE DATABASE'!E137),'3 INCOME & EXPENSE'!$Q$14:$Q$763)) -> $0.00
B138: =T('ACCOUNTING SETUP'!AI66) -> Vendor 70 | C138: 70 | E138: =T('EXPENSE DATABASE'!B138) -> Vendor 70 | F138: =(SUMIF('3 INCOME & EXPENSE'!$J$14:$J$763,T(E138),'3 INCOME & EXPENSE'!$O$14:$O$763)) -> $0.00 | G138: =(SUMIF('3 INCOME & EXPENSE'!$J$14:$J$763,T('EXPENSE DATABASE'!E138),'3 INCOME & EXPENSE'!$P$14:$P$763)) -> $0.00 | H138: =(SUMIF('3 INCOME & EXPENSE'!$J$14:$J$763,T('EXPENSE DATABASE'!E138),'3 INCOME & EXPENSE'!$Q$14:$Q$763)) -> $0.00
B139: =T('ACCOUNTING SETUP'!AI67) -> Vendor 71 | C139: 71 | E139: =T('EXPENSE DATABASE'!B139) -> Vendor 71 | F139: =(SUMIF('3 INCOME & EXPENSE'!$J$14:$J$763,T(E139),'3 INCOME & EXPENSE'!$O$14:$O$763)) -> $0.00 | G139: =(SUMIF('3 INCOME & EXPENSE'!$J$14:$J$763,T('EXPENSE DATABASE'!E139),'3 INCOME & EXPENSE'!$P$14:$P$763)) -> $0.00 | H139: =(SUMIF('3 INCOME & EXPENSE'!$J$14:$J$763,T('EXPENSE DATABASE'!E139),'3 INCOME & EXPENSE'!$Q$14:$Q$763)) -> $0.00
B140: =T('ACCOUNTING SETUP'!AI68) -> Vendor 72 | C140: 72 | E140: =T('EXPENSE DATABASE'!B140) -> Vendor 72 | F140: =(SUMIF('3 INCOME & EXPENSE'!$J$14:$J$763,T(E140),'3 INCOME & EXPENSE'!$O$14:$O$763)) -> $0.00 | G140: =(SUMIF('3 INCOME & EXPENSE'!$J$14:$J$763,T('EXPENSE DATABASE'!E140),'3 INCOME & EXPENSE'!$P$14:$P$763)) -> $0.00 | H140: =(SUMIF('3 INCOME & EXPENSE'!$J$14:$J$763,T('EXPENSE DATABASE'!E140),'3 INCOME & EXPENSE'!$Q$14:$Q$763)) -> $0.00
B141: =T('ACCOUNTING SETUP'!AI69) -> Vendor 73 | C141: 73 | E141: =T('EXPENSE DATABASE'!B141) -> Vendor 73 | F141: =(SUMIF('3 INCOME & EXPENSE'!$J$14:$J$763,T(E141),'3 INCOME & EXPENSE'!$O$14:$O$763)) -> $0.00 | G141: =(SUMIF('3 INCOME & EXPENSE'!$J$14:$J$763,T('EXPENSE DATABASE'!E141),'3 INCOME & EXPENSE'!$P$14:$P$763)) -> $0.00 | H141: =(SUMIF('3 INCOME & EXPENSE'!$J$14:$J$763,T('EXPENSE DATABASE'!E141),'3 INCOME & EXPENSE'!$Q$14:$Q$763)) -> $0.00
B142: =T('ACCOUNTING SETUP'!AI70) -> Vendor 74 | C142: 74 | E142: =T('EXPENSE DATABASE'!B142) -> Vendor 74 | F142: =(SUMIF('3 INCOME & EXPENSE'!$J$14:$J$763,T(E142),'3 INCOME & EXPENSE'!$O$14:$O$763)) -> $0.00 | G142: =(SUMIF('3 INCOME & EXPENSE'!$J$14:$J$763,T('EXPENSE DATABASE'!E142),'3 INCOME & EXPENSE'!$P$14:$P$763)) -> $0.00 | H142: =(SUMIF('3 INCOME & EXPENSE'!$J$14:$J$763,T('EXPENSE DATABASE'!E142),'3 INCOME & EXPENSE'!$Q$14:$Q$763)) -> $0.00
B143: =T('ACCOUNTING SETUP'!AI71) -> Vendor 75 | C143: 75 | E143: =T('EXPENSE DATABASE'!B143) -> Vendor 75 | F143: =(SUMIF('3 INCOME & EXPENSE'!$J$14:$J$763,T(E143),'3 INCOME & EXPENSE'!$O$14:$O$763)) -> $0.00 | G143: =(SUMIF('3 INCOME & EXPENSE'!$J$14:$J$763,T('EXPENSE DATABASE'!E143),'3 INCOME & EXPENSE'!$P$14:$P$763)) -> $0.00 | H143: =(SUMIF('3 INCOME & EXPENSE'!$J$14:$J$763,T('EXPENSE DATABASE'!E143),'3 INCOME & EXPENSE'!$Q$14:$Q$763)) -> $0.00
B144: =T('ACCOUNTING SETUP'!AI72) -> Vendor 76 | C144: 76 | E144: =T('EXPENSE DATABASE'!B144) -> Vendor 76 | F144: =(SUMIF('3 INCOME & EXPENSE'!$J$14:$J$763,T(E144),'3 INCOME & EXPENSE'!$O$14:$O$763)) -> $0.00 | G144: =(SUMIF('3 INCOME & EXPENSE'!$J$14:$J$763,T('EXPENSE DATABASE'!E144),'3 INCOME & EXPENSE'!$P$14:$P$763)) -> $0.00 | H144: =(SUMIF('3 INCOME & EXPENSE'!$J$14:$J$763,T('EXPENSE DATABASE'!E144),'3 INCOME & EXPENSE'!$Q$14:$Q$763)) -> $0.00
B145: =T('ACCOUNTING SETUP'!AI73) -> Vendor 77 | C145: 77 | E145: =T('EXPENSE DATABASE'!B145) -> Vendor 77 | F145: =(SUMIF('3 INCOME & EXPENSE'!$J$14:$J$763,T(E145),'3 INCOME & EXPENSE'!$O$14:$O$763)) -> $0.00 | G145: =(SUMIF('3 INCOME & EXPENSE'!$J$14:$J$763,T('EXPENSE DATABASE'!E145),'3 INCOME & EXPENSE'!$P$14:$P$763)) -> $0.00 | H145: =(SUMIF('3 INCOME & EXPENSE'!$J$14:$J$763,T('EXPENSE DATABASE'!E145),'3 INCOME & EXPENSE'!$Q$14:$Q$763)) -> $0.00
B146: =T('ACCOUNTING SETUP'!AI74) -> Vendor 78 | C146: 78 | E146: =T('EXPENSE DATABASE'!B146) -> Vendor 78 | F146: =(SUMIF('3 INCOME & EXPENSE'!$J$14:$J$763,T(E146),'3 INCOME & EXPENSE'!$O$14:$O$763)) -> $0.00 | G146: =(SUMIF('3 INCOME & EXPENSE'!$J$14:$J$763,T('EXPENSE DATABASE'!E146),'3 INCOME & EXPENSE'!$P$14:$P$763)) -> $0.00 | H146: =(SUMIF('3 INCOME & EXPENSE'!$J$14:$J$763,T('EXPENSE DATABASE'!E146),'3 INCOME & EXPENSE'!$Q$14:$Q$763)) -> $0.00
B147: =T('ACCOUNTING SETUP'!AI75) -> Vendor 79 | C147: 79 | E147: =T('EXPENSE DATABASE'!B147) -> Vendor 79 | F147: =(SUMIF('3 INCOME & EXPENSE'!$J$14:$J$763,T(E147),'3 INCOME & EXPENSE'!$O$14:$O$763)) -> $0.00 | G147: =(SUMIF('3 INCOME & EXPENSE'!$J$14:$J$763,T('EXPENSE DATABASE'!E147),'3 INCOME & EXPENSE'!$P$14:$P$763)) -> $0.00 | H147: =(SUMIF('3 INCOME & EXPENSE'!$J$14:$J$763,T('EXPENSE DATABASE'!E147),'3 INCOME & EXPENSE'!$Q$14:$Q$763)) -> $0.00
B148: =T('ACCOUNTING SETUP'!AI76) -> Vendor 80 | C148: 80 | E148: =T('EXPENSE DATABASE'!B148) -> Vendor 80 | F148: =(SUMIF('3 INCOME & EXPENSE'!$J$14:$J$763,T(E148),'3 INCOME & EXPENSE'!$O$14:$O$763)) -> $0.00 | G148: =(SUMIF('3 INCOME & EXPENSE'!$J$14:$J$763,T('EXPENSE DATABASE'!E148),'3 INCOME & EXPENSE'!$P$14:$P$763)) -> $0.00 | H148: =(SUMIF('3 INCOME & EXPENSE'!$J$14:$J$763,T('EXPENSE DATABASE'!E148),'3 INCOME & EXPENSE'!$Q$14:$Q$763)) -> $0.00
B149: =T('ACCOUNTING SETUP'!AI77) -> Vendor 81 | C149: 81 | E149: =T('EXPENSE DATABASE'!B149) -> Vendor 81 | F149: =(SUMIF('3 INCOME & EXPENSE'!$J$14:$J$763,T(E149),'3 INCOME & EXPENSE'!$O$14:$O$763)) -> $0.00 | G149: =(SUMIF('3 INCOME & EXPENSE'!$J$14:$J$763,T('EXPENSE DATABASE'!E149),'3 INCOME & EXPENSE'!$P$14:$P$763)) -> $0.00 | H149: =(SUMIF('3 INCOME & EXPENSE'!$J$14:$J$763,T('EXPENSE DATABASE'!E149),'3 INCOME & EXPENSE'!$Q$14:$Q$763)) -> $0.00
B150: =T('ACCOUNTING SETUP'!AI78) -> Vendor 82 | C150: 82 | E150: =T('EXPENSE DATABASE'!B150) -> Vendor 82 | F150: =(SUMIF('3 INCOME & EXPENSE'!$J$14:$J$763,T(E150),'3 INCOME & EXPENSE'!$O$14:$O$763)) -> $0.00 | G150: =(SUMIF('3 INCOME & EXPENSE'!$J$14:$J$763,T('EXPENSE DATABASE'!E150),'3 INCOME & EXPENSE'!$P$14:$P$763)) -> $0.00 | H150: =(SUMIF('3 INCOME & EXPENSE'!$J$14:$J$763,T('EXPENSE DATABASE'!E150),'3 INCOME & EXPENSE'!$Q$14:$Q$763)) -> $0.00
B151: =T('ACCOUNTING SETUP'!AI79) -> Vendor 83 | C151: 83 | E151: =T('EXPENSE DATABASE'!B151) -> Vendor 83 | F151: =(SUMIF('3 INCOME & EXPENSE'!$J$14:$J$763,T(E151),'3 INCOME & EXPENSE'!$O$14:$O$763)) -> $0.00 | G151: =(SUMIF('3 INCOME & EXPENSE'!$J$14:$J$763,T('EXPENSE DATABASE'!E151),'3 INCOME & EXPENSE'!$P$14:$P$763)) -> $0.00 | H151: =(SUMIF('3 INCOME & EXPENSE'!$J$14:$J$763,T('EXPENSE DATABASE'!E151),'3 INCOME & EXPENSE'!$Q$14:$Q$763)) -> $0.00
B152: =T('ACCOUNTING SETUP'!AI80) -> Vendor 84 | C152: 84 | E152: =T('EXPENSE DATABASE'!B152) -> Vendor 84 | F152: =(SUMIF('3 INCOME & EXPENSE'!$J$14:$J$763,T(E152),'3 INCOME & EXPENSE'!$O$14:$O$763)) -> $0.00 | G152: =(SUMIF('3 INCOME & EXPENSE'!$J$14:$J$763,T('EXPENSE DATABASE'!E152),'3 INCOME & EXPENSE'!$P$14:$P$763)) -> $0.00 | H152: =(SUMIF('3 INCOME & EXPENSE'!$J$14:$J$763,T('EXPENSE DATABASE'!E152),'3 INCOME & EXPENSE'!$Q$14:$Q$763)) -> $0.00
B153: =T('ACCOUNTING SETUP'!AI81) -> Vendor 85 | C153: 85 | E153: =T('EXPENSE DATABASE'!B153) -> Vendor 85 | F153: =(SUMIF('3 INCOME & EXPENSE'!$J$14:$J$763,T(E153),'3 INCOME & EXPENSE'!$O$14:$O$763)) -> $0.00 | G153: =(SUMIF('3 INCOME & EXPENSE'!$J$14:$J$763,T('EXPENSE DATABASE'!E153),'3 INCOME & EXPENSE'!$P$14:$P$763)) -> $0.00 | H153: =(SUMIF('3 INCOME & EXPENSE'!$J$14:$J$763,T('EXPENSE DATABASE'!E153),'3 INCOME & EXPENSE'!$Q$14:$Q$763)) -> $0.00
B154: =T('ACCOUNTING SETUP'!AI82) -> Vendor 86 | C154: 86 | E154: =T('EXPENSE DATABASE'!B154) -> Vendor 86 | F154: =(SUMIF('3 INCOME & EXPENSE'!$J$14:$J$763,T(E154),'3 INCOME & EXPENSE'!$O$14:$O$763)) -> $0.00 | G154: =(SUMIF('3 INCOME & EXPENSE'!$J$14:$J$763,T('EXPENSE DATABASE'!E154),'3 INCOME & EXPENSE'!$P$14:$P$763)) -> $0.00 | H154: =(SUMIF('3 INCOME & EXPENSE'!$J$14:$J$763,T('EXPENSE DATABASE'!E154),'3 INCOME & EXPENSE'!$Q$14:$Q$763)) -> $0.00
B155: =T('ACCOUNTING SETUP'!AI83) -> Vendor 87 | C155: 87 | E155: =T('EXPENSE DATABASE'!B155) -> Vendor 87 | F155: =(SUMIF('3 INCOME & EXPENSE'!$J$14:$J$763,T(E155),'3 INCOME & EXPENSE'!$O$14:$O$763)) -> $0.00 | G155: =(SUMIF('3 INCOME & EXPENSE'!$J$14:$J$763,T('EXPENSE DATABASE'!E155),'3 INCOME & EXPENSE'!$P$14:$P$763)) -> $0.00 | H155: =(SUMIF('3 INCOME & EXPENSE'!$J$14:$J$763,T('EXPENSE DATABASE'!E155),'3 INCOME & EXPENSE'!$Q$14:$Q$763)) -> $0.00
B156: =T('ACCOUNTING SETUP'!AI84) -> Vendor 88 | C156: 88 | E156: =T('EXPENSE DATABASE'!B156) -> Vendor 88 | F156: =(SUMIF('3 INCOME & EXPENSE'!$J$14:$J$763,T(E156),'3 INCOME & EXPENSE'!$O$14:$O$763)) -> $0.00 | G156: =(SUMIF('3 INCOME & EXPENSE'!$J$14:$J$763,T('EXPENSE DATABASE'!E156),'3 INCOME & EXPENSE'!$P$14:$P$763)) -> $0.00 | H156: =(SUMIF('3 INCOME & EXPENSE'!$J$14:$J$763,T('EXPENSE DATABASE'!E156),'3 INCOME & EXPENSE'!$Q$14:$Q$763)) -> $0.00
B157: =T('ACCOUNTING SETUP'!AI85) -> Vendor 89 | C157: 89 | E157: =T('EXPENSE DATABASE'!B157) -> Vendor 89 | F157: =(SUMIF('3 INCOME & EXPENSE'!$J$14:$J$763,T(E157),'3 INCOME & EXPENSE'!$O$14:$O$763)) -> $0.00 | G157: =(SUMIF('3 INCOME & EXPENSE'!$J$14:$J$763,T('EXPENSE DATABASE'!E157),'3 INCOME & EXPENSE'!$P$14:$P$763)) -> $0.00 | H157: =(SUMIF('3 INCOME & EXPENSE'!$J$14:$J$763,T('EXPENSE DATABASE'!E157),'3 INCOME & EXPENSE'!$Q$14:$Q$763)) -> $0.00
B158: =T('ACCOUNTING SETUP'!AI86) -> Vendor 90 | C158: 90 | E158: =T('EXPENSE DATABASE'!B158) -> Vendor 90 | F158: =(SUMIF('3 INCOME & EXPENSE'!$J$14:$J$763,T(E158),'3 INCOME & EXPENSE'!$O$14:$O$763)) -> $0.00 | G158: =(SUMIF('3 INCOME & EXPENSE'!$J$14:$J$763,T('EXPENSE DATABASE'!E158),'3 INCOME & EXPENSE'!$P$14:$P$763)) -> $0.00 | H158: =(SUMIF('3 INCOME & EXPENSE'!$J$14:$J$763,T('EXPENSE DATABASE'!E158),'3 INCOME & EXPENSE'!$Q$14:$Q$763)) -> $0.00
B159: =T('ACCOUNTING SETUP'!AI87) -> Vendor 91 | C159: 91 | E159: =T('EXPENSE DATABASE'!B159) -> Vendor 91 | F159: =(SUMIF('3 INCOME & EXPENSE'!$J$14:$J$763,T(E159),'3 INCOME & EXPENSE'!$O$14:$O$763)) -> $0.00 | G159: =(SUMIF('3 INCOME & EXPENSE'!$J$14:$J$763,T('EXPENSE DATABASE'!E159),'3 INCOME & EXPENSE'!$P$14:$P$763)) -> $0.00 | H159: =(SUMIF('3 INCOME & EXPENSE'!$J$14:$J$763,T('EXPENSE DATABASE'!E159),'3 INCOME & EXPENSE'!$Q$14:$Q$763)) -> $0.00
B160: =T('ACCOUNTING SETUP'!AI88) -> Vendor 92 | C160: 92 | E160: =T('EXPENSE DATABASE'!B160) -> Vendor 92 | F160: =(SUMIF('3 INCOME & EXPENSE'!$J$14:$J$763,T(E160),'3 INCOME & EXPENSE'!$O$14:$O$763)) -> $0.00 | G160: =(SUMIF('3 INCOME & EXPENSE'!$J$14:$J$763,T('EXPENSE DATABASE'!E160),'3 INCOME & EXPENSE'!$P$14:$P$763)) -> $0.00 | H160: =(SUMIF('3 INCOME & EXPENSE'!$J$14:$J$763,T('EXPENSE DATABASE'!E160),'3 INCOME & EXPENSE'!$Q$14:$Q$763)) -> $0.00
B161: =T('ACCOUNTING SETUP'!AI89) -> Vendor 93 | C161: 93 | E161: =T('EXPENSE DATABASE'!B161) -> Vendor 93 | F161: =(SUMIF('3 INCOME & EXPENSE'!$J$14:$J$763,T(E161),'3 INCOME & EXPENSE'!$O$14:$O$763)) -> $0.00 | G161: =(SUMIF('3 INCOME & EXPENSE'!$J$14:$J$763,T('EXPENSE DATABASE'!E161),'3 INCOME & EXPENSE'!$P$14:$P$763)) -> $0.00 | H161: =(SUMIF('3 INCOME & EXPENSE'!$J$14:$J$763,T('EXPENSE DATABASE'!E161),'3 INCOME & EXPENSE'!$Q$14:$Q$763)) -> $0.00
B162: =T('ACCOUNTING SETUP'!AI90) -> Vendor 94 | C162: 94 | E162: =T('EXPENSE DATABASE'!B162) -> Vendor 94 | F162: =(SUMIF('3 INCOME & EXPENSE'!$J$14:$J$763,T(E162),'3 INCOME & EXPENSE'!$O$14:$O$763)) -> $0.00 | G162: =(SUMIF('3 INCOME & EXPENSE'!$J$14:$J$763,T('EXPENSE DATABASE'!E162),'3 INCOME & EXPENSE'!$P$14:$P$763)) -> $0.00 | H162: =(SUMIF('3 INCOME & EXPENSE'!$J$14:$J$763,T('EXPENSE DATABASE'!E162),'3 INCOME & EXPENSE'!$Q$14:$Q$763)) -> $0.00
B163: =T('ACCOUNTING SETUP'!AI91) -> Vendor 95 | C163: 95 | E163: =T('EXPENSE DATABASE'!B163) -> Vendor 95 | F163: =(SUMIF('3 INCOME & EXPENSE'!$J$14:$J$763,T(E163),'3 INCOME & EXPENSE'!$O$14:$O$763)) -> $0.00 | G163: =(SUMIF('3 INCOME & EXPENSE'!$J$14:$J$763,T('EXPENSE DATABASE'!E163),'3 INCOME & EXPENSE'!$P$14:$P$763)) -> $0.00 | H163: =(SUMIF('3 INCOME & EXPENSE'!$J$14:$J$763,T('EXPENSE DATABASE'!E163),'3 INCOME & EXPENSE'!$Q$14:$Q$763)) -> $0.00
B164: =T('ACCOUNTING SETUP'!AI92) -> Vendor 96 | C164: 96 | E164: =T('EXPENSE DATABASE'!B164) -> Vendor 96 | F164: =(SUMIF('3 INCOME & EXPENSE'!$J$14:$J$763,T(E164),'3 INCOME & EXPENSE'!$O$14:$O$763)) -> $0.00 | G164: =(SUMIF('3 INCOME & EXPENSE'!$J$14:$J$763,T('EXPENSE DATABASE'!E164),'3 INCOME & EXPENSE'!$P$14:$P$763)) -> $0.00 | H164: =(SUMIF('3 INCOME & EXPENSE'!$J$14:$J$763,T('EXPENSE DATABASE'!E164),'3 INCOME & EXPENSE'!$Q$14:$Q$763)) -> $0.00
B165: =T('ACCOUNTING SETUP'!AI93) -> Vendor 97 | C165: 97 | E165: =T('EXPENSE DATABASE'!B165) -> Vendor 97 | F165: =(SUMIF('3 INCOME & EXPENSE'!$J$14:$J$763,T(E165),'3 INCOME & EXPENSE'!$O$14:$O$763)) -> $0.00 | G165: =(SUMIF('3 INCOME & EXPENSE'!$J$14:$J$763,T('EXPENSE DATABASE'!E165),'3 INCOME & EXPENSE'!$P$14:$P$763)) -> $0.00 | H165: =(SUMIF('3 INCOME & EXPENSE'!$J$14:$J$763,T('EXPENSE DATABASE'!E165),'3 INCOME & EXPENSE'!$Q$14:$Q$763)) -> $0.00
B166: =T('ACCOUNTING SETUP'!AI94) -> Vendor 98 | C166: 98 | E166: =T('EXPENSE DATABASE'!B166) -> Vendor 98 | F166: =(SUMIF('3 INCOME & EXPENSE'!$J$14:$J$763,T(E166),'3 INCOME & EXPENSE'!$O$14:$O$763)) -> $0.00 | G166: =(SUMIF('3 INCOME & EXPENSE'!$J$14:$J$763,T('EXPENSE DATABASE'!E166),'3 INCOME & EXPENSE'!$P$14:$P$763)) -> $0.00 | H166: =(SUMIF('3 INCOME & EXPENSE'!$J$14:$J$763,T('EXPENSE DATABASE'!E166),'3 INCOME & EXPENSE'!$Q$14:$Q$763)) -> $0.00
B167: =T('ACCOUNTING SETUP'!AI95) -> Vendor 99 | C167: 99 | E167: =T('EXPENSE DATABASE'!B167) -> Vendor 99 | F167: =(SUMIF('3 INCOME & EXPENSE'!$J$14:$J$763,T(E167),'3 INCOME & EXPENSE'!$O$14:$O$763)) -> $0.00 | G167: =(SUMIF('3 INCOME & EXPENSE'!$J$14:$J$763,T('EXPENSE DATABASE'!E167),'3 INCOME & EXPENSE'!$P$14:$P$763)) -> $0.00 | H167: =(SUMIF('3 INCOME & EXPENSE'!$J$14:$J$763,T('EXPENSE DATABASE'!E167),'3 INCOME & EXPENSE'!$Q$14:$Q$763)) -> $0.00
B168: =T('ACCOUNTING SETUP'!AI96) -> Vendor 100 | C168: 100 | E168: =T('EXPENSE DATABASE'!B168) -> Vendor 100 | F168: =(SUMIF('3 INCOME & EXPENSE'!$J$14:$J$763,T(E168),'3 INCOME & EXPENSE'!$O$14:$O$763)) -> $0.00 | G168: =(SUMIF('3 INCOME & EXPENSE'!$J$14:$J$763,T('EXPENSE DATABASE'!E168),'3 INCOME & EXPENSE'!$P$14:$P$763)) -> $0.00 | H168: =(SUMIF('3 INCOME & EXPENSE'!$J$14:$J$763,T('EXPENSE DATABASE'!E168),'3 INCOME & EXPENSE'!$Q$14:$Q$763)) -> $0.00
E169: Unassigned | F169: =(SUMIF('3 INCOME & EXPENSE'!$AD$14:$AD$763,0,'3 INCOME & EXPENSE'!O14:O763)) -> $495.00 | G169: =(SUMIF('3 INCOME & EXPENSE'!$AD$14:$AD$763,0,'3 INCOME & EXPENSE'!P14:P763)) -> $495.00 | H169: =(SUMIF('3 INCOME & EXPENSE'!$AD$14:$AD$763,0,'3 INCOME & EXPENSE'!Q14:Q763)) -> $0.00
E170: Totals | F170: =SUM(F69:F169) -> $76,902.88 | G170: =SUM(G69:G169) -> $76,902.88 | H170: =SUM(H69:H169) -> $0.00
B172: Classes | E172: Expenses by Class | F172: Total
B173: =T('EXPENSE DATABASE'!AB188) -> LABOR/EQUIP | C173: 1 | E173: =T('EXPENSE DATABASE'!B173) -> LABOR/EQUIP | F173: =(SUMIF('3 INCOME & EXPENSE'!$L$14:$L$763,T(E173),'3 INCOME & EXPENSE'!$O$14:O$763)) -> $7,550.00
B174: =T('EXPENSE DATABASE'!AB189) -> MATERIAL | C174: 2 | E174: =T('EXPENSE DATABASE'!B174) -> MATERIAL | F174: =(SUMIF('3 INCOME & EXPENSE'!$L$14:$L$763,T(E174),'3 INCOME & EXPENSE'!$O$14:O$763)) -> $13,542.88
B175: =T('EXPENSE DATABASE'!AB190) -> SUBCONTRACTOR | C175: 3 | E175: =T('EXPENSE DATABASE'!B175) -> SUBCONTRACTOR | F175: =(SUMIF('3 INCOME & EXPENSE'!$L$14:$L$763,T(E175),'3 INCOME & EXPENSE'!$O$14:O$763)) -> $2,750.00
B176: OTHER | C176: 4 | E176: =T('EXPENSE DATABASE'!B176) -> OTHER | F176: =(SUMIF('3 INCOME & EXPENSE'!$L$14:$L$763,T(E176),'3 INCOME & EXPENSE'!$O$14:O$763)) -> $0.00
E177: Totals | F177: =SUM(F173:F176) -> $23,842.88
E180: Expenses by Paid/Unpaid | F180: Total
E181: Paid | F181: =(SUMIF('3 INCOME & EXPENSE'!$D$14:$D$763,"yes",'3 INCOME & EXPENSE'!$O$14:$O$763)) -> $0.00
E182: Unpaid | F182: =(SUMIF('3 INCOME & EXPENSE'!$D$14:$D$763,"no",'3 INCOME & EXPENSE'!$O$14:$O$763)+(SUMIF('3 INCOME & EXPENSE'!$D$14:$D$763,"",'3 INCOME & EXPENSE'!$O$14:$O$763))) -> $76,902.88
E183: Totals | F183: =SUM(F181:F182) -> $76,902.88
B185: Income Accounts | E185: Income Accounts | T185: PURCHASE PRICE | V185: REPAIR EXPENSES | AD185: TOTAL OTHER EXPENSES
B186: =T('ACCOUNTING SETUP'!AQ9) -> RESALE INCOME | C186: 1 | E186: =T(B186) -> RESALE INCOME | F186: =(SUMIF('3 INCOME & EXPENSE'!$AS$14:$AS$113,C186,'3 INCOME & EXPENSE'!$AP$14:$AP$113)) -> $0.00 | T186: ='EXPENSE DATABASE'!J6 -> $52,000 | V186: BREAKDOWN BY SCOPE | AD186: =M28 -> $0
B187: =T('ACCOUNTING SETUP'!AQ10) -> RENTAL INCOME | C187: 2 | E187: =T(B187) -> RENTAL INCOME | F187: =(SUMIF('3 INCOME & EXPENSE'!$AS$14:$AS$113,C187,'3 INCOME & EXPENSE'!$AP$14:$AP$113)) -> $0.00 | V187: =T(E11) -> GENERAL CONDITIONS | W187: ='EXPENSE DATABASE'!J11 -> $0 | X187: =T(B19) -> EXTERIOR DOORS & WINDOWS | Y187: ='EXPENSE DATABASE'!J19 -> $0 | Z187: =T(B27) -> HARDWOOD FLOORING | AA187: ='EXPENSE DATABASE'!J27 -> $567 | AB187: BREAKDOWN BY LMS
B188: =T('ACCOUNTING SETUP'!AQ11) -> INTEREST INCOME | C188: 3 | E188: INTEREST INCOME | F188: =(SUMIF('3 INCOME & EXPENSE'!$AS$14:$AS$113,C188,'3 INCOME & EXPENSE'!$AP$14:$AP$113)) -> $0.00 | T188: FIXED EXPENSES | V188: =T(E12) -> DEMOLITION | W188: ='EXPENSE DATABASE'!J12 -> $1,740 | X188: =T(B20) -> GARAGE DOORS | Y188: ='EXPENSE DATABASE'!J20 -> $0 | Z188: =T(B28) -> TILING | AA188: ='EXPENSE DATABASE'!J28 -> $2,325 | AB188: LABOR/EQUIP | AC188: ='EXPENSE DATABASE'!F173 -> $7,550 | AD188: TOTAL INVESTMENT TO DATE
B189: =T('ACCOUNTING SETUP'!AQ12) -> MISCELLANEOUS INCOME | C189: 4 | E189: MISCELLANEOUS INCOME | F189: =(SUMIF('3 INCOME & EXPENSE'!$AS$14:$AS$113,C189,'3 INCOME & EXPENSE'!$AP$14:$AP$113)) -> $0.00 | T189: =T('EXPENSE DATABASE'!E7) -> BUYING COSTS | U189: ='EXPENSE DATABASE'!J7 -> $1,060 | V189: STRUCTURAL CONCRETE | W189: ='EXPENSE DATABASE'!J13 -> $0 | X189: LANDSCAPING | Y189: ='EXPENSE DATABASE'!J21 -> $0 | Z189: PAINTING | AA189: ='EXPENSE DATABASE'!J29 -> $4,902 | AB189: MATERIAL | AC189: ='EXPENSE DATABASE'!F174 -> $13,543 | AD189: =Purchase_Expense+Total_Fixed_Expenses+Total_Repair_Expenses+Total_Other_Expenses+AE194 -> $76,903
B190: =T('ACCOUNTING SETUP'!AQ13) -> INCOME CATEGORY 5 | C190: 5 | E190: INCOME CATEGORY 5 | F190: =(SUMIF('3 INCOME & EXPENSE'!$AS$14:$AS$113,C190,'3 INCOME & EXPENSE'!$AP$14:$AP$113)) -> $0.00 | T190: =T('EXPENSE DATABASE'!E8) -> HOLDING COSTS | U190: ='EXPENSE DATABASE'!J8 -> $0 | V190: CONCRETE & FLATWORK | W190: ='EXPENSE DATABASE'!J14 -> $0 | X190: MISC. EXTERIOR ITEMS | Y190: ='EXPENSE DATABASE'!J22 -> $0 | Z190: APPLIANCES | AA190: ='EXPENSE DATABASE'!J30 -> $0 | AB190: SUBCONTRACTOR | AC190: ='EXPENSE DATABASE'!F175 -> $2,750
B191: =T('ACCOUNTING SETUP'!AQ14) -> INCOME CATEGORY 6 | C191: 6 | E191: INCOME CATEGORY 6 | F191: =(SUMIF('3 INCOME & EXPENSE'!$AS$14:$AS$113,C191,'3 INCOME & EXPENSE'!$AP$14:$AP$113)) -> $0.00 | T191: =T('EXPENSE DATABASE'!E9) -> SELLING COSTS | U191: ='EXPENSE DATABASE'!J9 -> $0 | V191: MASONRY | W191: ='EXPENSE DATABASE'!J15 -> $0 | X191: FRAMING & DRYWALL | Y191: ='EXPENSE DATABASE'!J23 -> $500 | Z191: PLUMBING | AA191: ='EXPENSE DATABASE'!J31 -> $3,473 | AB191: OTHER | AC191: ='EXPENSE DATABASE'!F176 -> $0
B192: =T('ACCOUNTING SETUP'!AQ15) -> INCOME CATEGORY 7 | C192: 7 | E192: INCOME CATEGORY 7 | F192: =(SUMIF('3 INCOME & EXPENSE'!$AS$14:$AS$113,C192,'3 INCOME & EXPENSE'!$AP$14:$AP$113)) -> $0.00 | T192: =T('EXPENSE DATABASE'!E10) -> FINANCING COSTS | U192: ='EXPENSE DATABASE'!J10 -> $0 | V192: SIDING | W192: ='EXPENSE DATABASE'!J16 -> $0 | X192: CABINETS & COUNTERTOPS | Y192: ='EXPENSE DATABASE'!J24 -> $0 | Z192: HVAC | AA192: ='EXPENSE DATABASE'!J32 -> $0 | AB192: TOTAL REPAIR EXPENSES | AD192: PAID | AE192: UNPAID
B193: =T('ACCOUNTING SETUP'!AQ16) -> INCOME CATEGORY 8 | C193: 8 | E193: INCOME CATEGORY 8 | F193: =(SUMIF('3 INCOME & EXPENSE'!$AS$14:$AS$113,C193,'3 INCOME & EXPENSE'!$AP$14:$AP$113)) -> $0.00 | T193: TOTAL FIXED EXPENSES | V193: DECKING AND PATIOS | W193: ='EXPENSE DATABASE'!J17 -> $0 | X193: DOORS & TRIM | Y193: ='EXPENSE DATABASE'!J25 -> $3,339 | Z193: ELECTRICAL | AA193: ='EXPENSE DATABASE'!J33 -> $2,610 | AB193: =Total_Repair_Expenses -> $19,457 | AD193: ='3 INCOME & EXPENSE'!Q765 -> $0 | AE193: ='3 INCOME & EXPENSE'!P765 -> $76,903
B194: =T('ACCOUNTING SETUP'!AQ17) -> INCOME CATEGORY 9 | C194: 9 | E194: INCOME CATEGORY 9 | F194: =(SUMIF('3 INCOME & EXPENSE'!$AS$14:$AS$113,C194,'3 INCOME & EXPENSE'!$AP$14:$AP$113)) -> $0.00 | T194: =Total_Fixed_Expenses -> $1,060 | V194: ROOFING | W194: ='EXPENSE DATABASE'!J18 -> $0 | X194: CARPET & RESILIENT | Y194: ='EXPENSE DATABASE'!J26 -> $0 | Z194: MISCELLANEOUS | AA194: ='EXPENSE DATABASE'!J34 -> $0 | AD194: UNASSIGNED: | AE194: ='EXPENSE DATABASE'!J36 -> $4,386
B195: =T('ACCOUNTING SETUP'!AQ18) -> INCOME CATEGORY 10 | C195: 10 | E195: INCOME CATEGORY 10 | F195: =(SUMIF('3 INCOME & EXPENSE'!$AS$14:$AS$113,C195,'3 INCOME & EXPENSE'!$AP$14:$AP$113)) -> $0.00
B196: Unassigned | C196: 11 | E196: Unassigned | F196: =(SUMIF('3 INCOME & EXPENSE'!$AS$14:$AS$113,C196,'3 INCOME & EXPENSE'!$AP$14:$AP$113)) -> $175,000.00
E197: TOTAL INCOME | F197: =SUM(F186:F196) -> $175,000.00

Sheet LISTS (hidden)
C1: Lists
D4: Yes/No
D5: Yes | F5: per month | M5: Lists:
D6: No | F6: per year
M7: Property Type:
D8: States | M8: Single Family Home
D9: Alabama | F9: 115% | H9: Check | J9: Chart of Accounts | M9: Duplex
D10: Alaska | F10: 114% | H10: Credit Card | J10: Bank Account | M10: Condo
D11: Arizona | F11: 113% | H11: Debit Card | J11: Credit Card | M11: Apartment
D12: Arkansas | F12: 112% | H12: Cash | J12: Loan
D13: California | F13: 111% | H13: Bank Transfer | J13: Petty Cash | M13: Status:
D14: Colorado | F14: 110% | H14: Paypal | J14: Expense Reimbursement | M14: REO
D15: Connecticut | F15: 109% | H15: Other | J15: Other | M15: HUD
D16: Delaware | F16: 108% | M16: Homepath
D17: Florida | F17: 107% | H17: Labor/Equipment | J17: Down Payment | M17: FSBO
D18: Georgia | F18: 106% | H18: Material | J18: LTV | M18: Short Sale
D19: Hawaii | F19: 105% | H19: Subcontractor
D20: Idaho | F20: 104% | M20: Offer Type:
D21: Illinois | F21: 103% | H21: 01 | J21: DETAILED | M21: All Cash
D22: Indiana | F22: 102% | H22: 02 | J22: % OF ARV | M22: Financed
D23: Iowa | F23: 101% | H23: 03
D24: Kansas | F24: 100% | H24: 04 | J24: Data View | M24: Loan Required:
D25: Kentucky | F25: 99% | H25: 05 | J25: Print View | M25: Purchase Price Only
D26: Louisiana | F26: 98% | H26: 06 | M26: Repair Cost Only
D27: Maine | F27: 97% | H27: 07 | M27: All Costs
D28: Maryland | F28: 96% | H28: 08 | M28: ARV
D29: Massachusetts | F29: 95% | H29: 09 | M29: Specific Loan Amount
D30: Michigan | F30: 94% | H30: 10
D31: Minnesota | F31: 93% | H31: 11
D32: Mississippi | F32: 92% | H32: 12 | M32: Down payment Yes or Nos?
D33: Missouri | F33: 91% | H33: 13 | M33: Yes
D34: Montana | F34: 90% | H34: 14 | M34: No
D35: Nebraska | F35: 89% | H35: 15
D36: Nevada | F36: 88% | H36: 16 | M36: Rolled
D37: New Hampshire | F37: 87% | H37: 17 | M37: Upfront
D38: New Jersey | F38: 86% | H38: 18
D39: New Mexico | F39: 85% | H39: 19 | M39: Monthly
D40: New York | F40: 84% | H40: 20 | M40: Rolled
D41: North Carolina | F41: 83% | H41: 21
D42: North Dakota | F42: 82% | H42: 22
D43: Ohio | F43: 81% | H43: 23 | M43: 1
D44: Oklahoma | F44: 80% | H44: 24
D45: Oregon | F45: 79% | H45: 25 | M45: Interest Only
D46: Pennsylvania | F46: 78% | M46: Amortized
D47: Rhode Island | F47: 77%
D48: South Carolina | F48: 76%
D49: South Dakota | F49: 75%
D50: Tennessee | F50: 74%
D51: Texas | F51: 73%
D52: Utah | F52: 72%
D53: Vermont | F53: 71%
D54: Virginia | F54: 70%
D55: Washington
D56: West Virginia
D57: Wisconsin
D58: Wyoming

Sheet EULA
F4: Product Information:
F5: Product Name: | Y5: END-USER LICENSE AGREEMENT
F6: Pro
F8: Release #:
F9: 6.2 | Y9: IMPORTANT—READ CAREFULLY: This End-User License Agreement (“EULA”) is a legal agreement between you and houseflippingspreadsheet.com that covers all products made by houseflippingspreadsheet.com. By downloading, accessing or otherwise using any spreadsheets you agree to be bound by the terms of this EULA.
F12: Licensing Information:
F13: Licensed To: | Y13: Spreadsheet License
F14: costp | Y14: Each spreadsheet is protected by copyright laws and international copyright treaties, as well as other intellectual property laws and treaties.
F16: # of Licenses:
F17: 1 | Y17: 1. GRANT OF LICENSE. This EULA grants you the right to use this spreadsheet for personal or business use only and it may not be distributed outside of your organization. You may not sell, resell, license, rent, lease, lend, or otherwise transfer for value. You may not remove or alter any logo, trademark, copyright, hyperlinks, disclaimers, terms of use, or other proprietary notices within the spreadsheet.
F20: Copyright Information:
F21: Company: | Y21: 2. TERMINATION. Without prejudice to any other rights, houseflippingspreadsheet.com may terminate this EULA if you fail to comply with the terms and conditions of this EULA. In such event, you must destroy all copies of any spreadsheet.
F22: Costpoint Solutions, LLC DBA
F23: Houseflippingspreadsheet.com
F24: Company Address:
F25: P.O. Box 165324 | Y25: 3. DISCLAIMER. Real property businesses and earnings derived therefrom, have unknown risks involved, and are not suitable for everyone. Making decisions based on any information presented in our products or on our website, should be done only with the knowledge that you could experience significant losses, or make no money at all. Only risk capital should be used.
F26: North Kansas City, MO 64116
F27: Company Phone:
F28: 816.388.0197
Y30: All products and services of our company are for educational and informational purposes only and are provided "As-Is" without warranty of any kind. Houseflippingspreadsheet.com hereby disclaim all warranties and conditions with regard to the products, including all implied warranties and conditions of merchantability, fitness for a particular purpose, title and non-infringement. In no event shall houseflippingspreadsheet.com be liable for any special, indirect or consequential damages or any damages whatsoever resulting from loss of use, data or profits, whether in action of the contract, negligence or other tortious action, arising out of or in connection with the products. Use caution and seek the advice of qualified professionals. Check with your accountant, lawyer or professional advisor, before acting on this or any information.
Y39: Users of our products, services and website are advised to do their own due diligence when it comes to making business decisions and all information, programs, products and services that have been provided should be independently verified by your own qualified professionals. Our information, products and services should be carefully considered and evaluated before reaching a business decision, or whether to rely on them.
Y45: You agree that our company is not responsible for the success or failure of your business decisions relating to any information presented by our company, or our company products and/or services.
Y48: 4. MISCELLANEOUS. Some states do not allow the limitation or exclusion of liability for incidental or consequential damages, so the above limitation may not apply to you.
X52: © 2018 by Houseflippingspreadsheet.com. All rights reserved

Sheet ADMIN (hidden)
W3: TOOL OR REPORT | AT3: PASSWORD PROTECTED? | BA3: PASSWORD
E4: Click to Unlock Workbook | W4: INFO SHEET
W5: FINANCING SHEET
W6: DEAL ANALYSIS TOOLS
E7: This Sheet's Password | W7: REPAIR ESTIMATOR
W8: REHAB ANALYZER
W9: OFFER TRACKER
W10: COMPARABLE SALES
W11: ALTERNATIVE EXIT STRATEGIES
W12: WHOLESALE CALCULATOR
W13: RENTAL CALCULATOR
W14: DEAL ANALYSIS REPORTS
W15: INSPECTION CHECKLIST
W16: REPAIR COST ESTIMATE REPORT
E17: Note: To Unlock the spreadsheet at anytime, you can press Cntrl + Shift + Z | W17: INVESTMENT REPORT
W18: ALL PROJECT COSTS REPORT
W19: LENDER FUNDING REPORT
W20: HOMEOWNER OFFFER REPORT
W21: COMPARABLE SALES REPORT
W22: ALTERNATIVE STRATEGY REPORTS
W23: WHOLESALE REPORT
W24: RENTAL REPORT
W25: PROJECT MANAGEMENT TOOLS
W26: PROJECT SCHEDULER
W27: TASK MANAGER
W28: CONTACT MANAGER
W29: BID TRACKER
W30: PROJECT MANAGEMENT REPORTS
W31: CONTRACTOR PREQUALIFICATION FORM
W32: BID FORM
W33: REHAB CHECKLIST
W34: SCOPE OF WORK REPORT
W35: CONTRACT AGREEMENT
W36: PROJECT TASK LIST
W37: SHOPPING LIST REPORT
W38: PUNCH LIST REPORT
W39: LIEN WAIVER REPORT
W40: FOR SALE FLYER
W41: VENDOR CONTACT LIST
W42: VENDOR TAX & INSURANCE
W43: ACCOUNTING
W44: ACCOUNTING SETUP
W45: PROJECT BUDGETER
W46: INCOME & EXPENSE TRACKER
W47: OTHER
W48: LOAN TRACKER
W49: LOAN TRACKER
W50: EXPENSE IMPORTING/EXPORTING
W51: BUDGET REPORTS
W52: PROJECT BUDGET REPORT
W53: PROJECT BUDGET VS ESTIMATE
W54: EXPENSE REPORTS
W55: EXPENSE REPORT SUMMARY
W56: EXPENSE REPORT BY CATEGORY
W57: EXPENSE REPORT BY VENDOR
W58: EXPENSE REPORT BY ACCOUNT
W59: FORECASTING / FINAL PROFIT REPORTS
W60: PROJECTIONS REPORT
W61: FINAL PROFIT REPORT
W62: PROJECT PORTFOLIO REPORT
W63: VENDOR REPORTS
W64: VENDOR 1099 REPORT
W65: © 2018 by Houseflippingspreadsheet.com. All rights reserved

Sheet INDEX
O2: INDEX
S5: Deal Analysis Tools | AM5: Management Tools | BG5: Accounting Tools
S7: Repair Estimator | AM7: Project Scheduler | BG7: Accounting Setup
S8: Rehab Analyzer | AM8: Task Manager | BG8: Project Budgeter
S9: Offer Tracker | AM9: Bid Tracker | BG9: Expense Tracker
S10: Comparable Sales | AM10: Scope of Work Builder
S11: Rental Calculator | AM11: Material Manager
S12: Wholesale Calculator
S15: Deal Analysis Reports | AM15: Project Management Reports | BG15: Accounting Reports
S17: Inspection Checklist | AM17: Contractor Prequalification | BG17: Project Budget Report
S18: Repair Estimate Report | AM18: Scope of Work | BG18: Project Forecast Report
S19: Investment Report | AM19: Contract Agreement | BG19: Final Profit Report
S20: All Project Costs Report | AM20: Bid Form | BG20: Project Portfolio Report
S21: Funding Report | AM21: Rehab Checklist | BG21: Expense Summary Report
S22: Home Owner Offer Report | AM22: Project Task List | BG22: Expense by Category Report
S23: Comparable Sales Report | AM23: Shopping List Report | BG23: Expense by Vendor Report
AM24: Punchlist Report | BG24: Expense by Account Report
S25: Alternative Exit Strategies | AM25: Lien Waiver Report
S26: Rental Report | AM26: For Sale Flyer
S27: Wholesale Report | AM27: Vendor Contact List
AM28: Vendor Tax & Insurance Report

Sheet SETUP (hidden)
M3: SETUP
Y6: Setup Basic Property Information & Company Information which will be displayed on all reports.
Y8: Property Information:
Y9: =IF(AM9>0,1,0) -> 0 | AA9: Project Name:
Y10: 0 | AA10: Property Type:
Y11: 1 | AA11: Street Address: | AM11: 1234 Main St
Y12: 1 | AA12: City/State/Zip Code: | AM12: Kansas City, MO 64116
Y13: 1 | AA13: Neighborhood: | AM13: The Coves
Y14: 1 | AA14: School District: | AM14: Park Hill School District
Y15: 1 | AA15: # of Beds: | AM15: 3 | AZ15: # of Baths: | BI15: 2
AA16: Square Feet: | AM16: 1,500 sf | AZ16: New SF:
Y18: Company Information:
Y19: =IF(AM19>0,1,0) -> 1 | AA19: Investor Name: | AM19: Dave
Y20: 1 | AA20: Company Name: | AM20: Dave Inc
Y21: 1 | AA21: Street Address: | AM21: P.O. Box 12345
Y22: 0 | AA22: City/State/Zip:
Y23: 1 | AA23: Email: | AM23: dave@venturesheets.com
Y24: 1 | AA24: Phone: | AM24: 8161234567
Y25: 1 | AA25: Website: | AM25: www.venturesheets.com
Y26: 0 | AA26: Income Tax Rate: | BX26: Start Analyzing the Deal

Sheet CATEGORY SETUP (hidden)
M3: CATEGORY SETUP
Y6: Setup your Project Categories which will be used to Estimate Repairs and Track Project Costs.
Y8: Categories
AA9: # | AD9: Category Name | BA9: Notes
Y10: =IF(AD10>0,1,0) -> 1 | AA10: 1 | AD10: GENERAL CONDITIONS
Y11: =IF(AD11>0,1,0) -> 1 | AA11: 2 | AD11: DEMOLITION
Y12: 1 | AA12: 3 | AD12: STRUCTURAL CONCRETE
Y13: 1 | AA13: 4 | AD13: CONCRETE & FLATWORK
Y14: 1 | AA14: 5 | AD14: MASONRY
Y15: 1 | AA15: 6 | AD15: SIDING
Y16: 1 | AA16: 7 | AD16: DECKING AND PATIOS
Y17: 1 | AA17: 8 | AD17: ROOFING
Y18: 1 | AA18: 9 | AD18: EXTERIOR DOORS & WINDOWS
Y19: 1 | AA19: 10 | AD19: GARAGE DOORS
Y20: 1 | AA20: 11 | AD20: LANDSCAPING
Y21: 1 | AA21: 12 | AD21: MISC. EXTERIOR ITEMS
Y22: 1 | AA22: 13 | AD22: FRAMING & DRYWALL
Y23: 1 | AA23: 14 | AD23: CABINETS & COUNTERTOPS
Y24: 1 | AA24: 15 | AD24: DOORS & TRIM
Y25: 1 | AA25: 16 | AD25: CARPET & RESILIENT
Y26: 1 | AA26: 17 | AD26: HARDWOOD FLOORING
Y27: 1 | AA27: 18 | AD27: TILING
Y28: =IF(AD28>0,1,0) -> 1 | AA28: 19 | AD28: PAINTING
Y29: 1 | AA29: 20 | AD29: APPLIANCES
Y30: 1 | AA30: 21 | AD30: PLUMBING
Y31: 1 | AA31: 22 | AD31: HVAC
Y32: 1 | AA32: 23 | AD32: ELECTRICAL
Y33: 1 | AA33: 24 | AD33: MISCELLANEOUS
CB36: Back to Repair Estimator

Sheet REHAB FINANCING SETUP (hidden)
M3: SETUP
AE6: =IF(1>0,1,0) -> 1 | AH6: Required Field | AP6: =IF(1>0,1,0) -> 1 | AR6: Suggested, but Not Required | BD6: =IF(1>0,1,0) -> 1 | BF6: Field Completed
T8: Funding Strategy:
T9: How do you want to fund your Rehab Project?
X11: All Cash | AK11: Debt (Loan) | AY11: Equity (Profit Share) | BM11: Combo
T13: How many loans will be required to finance the project?
AJ15: One | BB15: Two
AO18: 1st Loan: | BD18: Interest Only | BU18: 15
T19: Select your Loan Amount Below:
B21: Note: Loan Amounts are Pending & will change based upon your remaining entries & calculations… | U21: Purchase Price Only | AD21: Repair Costs Only | AM21: Purchase + Repairs | AV21: All Project Costs | BE21: ARV | BN21: Input Specific Amount
V22: ='ANALYSIS DATABASE'!C168 -> $61,837 | AE22: =TOTAL_REPAIRS_ESTIMATE -> $63,563 | AN22: =V22+AE22 -> $125,400 | AW22: ='ANALYSIS DATABASE'!C176 -> $129,400 | BF22: =AFTER_REPAIR_VALUE_ESTIMATED -> $165,000 | BP22: $100,000
AB24: Length of Loan Payments (months) | AR24: 6 months | BB24: input # (ex. 6)
T26: =IF(AC26>0,1,0) -> 0 | V26: Down Payment or LTV?: | AJ26: =IF(OR(AC26="NO",AC26>0),1,0) -> 0 | AL26: =IF(AC26="LTV","LTV Ratio","Down Payment %") -> Down Payment % | AZ26: =IF(AC26="Down Payment","Down Payment Amount","LTV Reduction") -> LTV Reduction | BM26: Loan Balance
AZ27: =IF(AND(AC26="LTV",AS26=0),0,'ANALYSIS DATABASE'!C193) -> $0 | BM27: =Loan_Balance_After_DP_Loan1 -> $0
T28: =IF(AC28>0,1,0) -> 1 | V28: Interest Rate %: | AC28: 12.00% | AJ28: =IF(AS28>0,1,0) -> 0 | AL28: Payments Made Monthly or Rolled?: | AZ28: Monthly Interest | BF28: Total Interest | BM28: Interest Added to Loan Balance
AZ29: ='ANALYSIS DATABASE'!C198 -> $0 | BF29: ='ANALYSIS DATABASE'!C199 -> $0 | BM29: ='ANALYSIS DATABASE'!C201 -> $0
T30: =IF(AC30>0,1,0) -> 1 | V30: Lender Points %: | AC30: 2.00% | AJ30: =IF(AS30>0,1,0) -> 0 | AL30: Points Paid Upfront or Rolled?: | AZ30: Points Amount | BM30: Points Added to Loan Balance
AZ31: ='ANALYSIS DATABASE'!C203 -> $0 | BM31: ='ANALYSIS DATABASE'!C205 -> $0
T32: =IF(AC32>0,1,0) -> 0 | V32: Other Costs: | AJ32: =IF(AS32>0,1,0) -> 0 | AL32: =IF(AC32="% of Loan","% of Loan","Amount") -> Amount | BM32: Other Loan Costs
BM33: =IF(AC32="% of Loan",AS32*AG41,AS32) -> $0
T34: Loan 1 Results:
V36: Total Interest | AG36: Total Points | AR36: Other Loan Costs | BC36: Total Financing Costs | BN36: % of Loan
V37: ='ANALYSIS DATABASE'!C199 -> $0 | AG37: ='ANALYSIS DATABASE'!C203 -> $0 | AR37: =BM33 -> $0 | BC37: =V37+AG37+AR37 -> $0 | BN37: =IFERROR(BC37/AG41,0) -> 0.0%
V40: Total Capital | AG40: Funding | AR40: Cash Upfront | BC40: Cash During Flip | BN40: Total Cash
V41: ='1 REHAB ANALYZER'!CW74 -> $129,400 | AG41: ='ANALYSIS DATABASE'!C214 -> $0 | AR41: ='ANALYSIS DATABASE'!C212 -> $0 | BC41: ='ANALYSIS DATABASE'!C215 -> $129,400 | BN41: =AR41+BC41 -> $129,400
AO45: 2nd Loan: | BD45: Interest Only | BU45: 30
T46: Select your Loan Amount Below:
B48: Note: Loan Amounts are Pending & will change based upon your remaining entries & calculations… | U48: Purchase Price Only | AD48: Repair Costs Only | AM48: Purchase + Repairs | AV48: All Project Costs | BE48: ARV | BN48: Input Specific Amount
V49: ='ANALYSIS DATABASE'!C168 -> $61,837 | AE49: =TOTAL_REPAIRS_ESTIMATE -> $63,563 | AN49: =V49+AE49 -> $125,400 | AW49: ='ANALYSIS DATABASE'!C176 -> $129,400 | BF49: =AFTER_REPAIR_VALUE_ESTIMATED -> $165,000 | BP49: $50,000
AB51: Length of Loan Payments (months) | BB51: input # (ex. 6)
T53: =IF(AC53>0,1,0) -> 0 | V53: Down Payment or LTV?: | AJ53: =IF(AS53>0,1,0) -> 0 | AL53: =IF(AC53="LTV","LTV Ratio","Down Payment %") -> Down Payment % | AZ53: Down Payment Amount | BM53: Loan Balance
AZ54: ='ANALYSIS DATABASE'!C223 -> $0 | BM54: ='ANALYSIS DATABASE'!C224 -> $0
T55: =IF(AC55>0,1,0) -> 0 | V55: Interest Rate %: | AJ55: =IF(AS55>0,1,0) -> 0 | AL55: Payments Made Monthly or Rolled?: | AZ55: Monthly Interest | BF55: Total Interest | BM55: Interest Added to Loan Balance
AZ56: ='ANALYSIS DATABASE'!C228 -> $0 | BF56: ='ANALYSIS DATABASE'!C229 -> $0 | BM56: ='ANALYSIS DATABASE'!C231 -> $0
T57: =IF(AC57>0,1,0) -> 0 | V57: Lender Points %: | AJ57: =IF(AS57>0,1,0) -> 0 | AL57: Points Paid Upfront or Rolled?: | AZ57: Points Amount | BM57: Points Added to Loan Balance
AZ58: ='ANALYSIS DATABASE'!C233 -> $0 | BM58: ='ANALYSIS DATABASE'!C235 -> $0
T59: =IF(AC59>0,1,0) -> 0 | V59: Other Costs: | AJ59: =IF(AS59>0,1,0) -> 0 | AL59: =IF(AC59="% of Loan","% of Loan","Amount") -> Amount | BM59: Other Loan Costs
BM60: =IF(AC59="% of Loan",AS59*AG68,AS59) -> $0
T61: Loan 2 Results:
V63: Total Interest | AG63: Total Points | AR63: Other Loan Costs | BC63: Total Financing Costs | BN63: Financing %
V64: ='ANALYSIS DATABASE'!C229 -> $0 | AG64: ='ANALYSIS DATABASE'!C233 -> $0 | AR64: =BM60 -> $0 | BC64: =V64+AG64+AR64 -> $0 | BN64: =IFERROR(BC64/AG68,0) -> 0.0%
V67: Total Capital | AG67: Funding | AR67: Cash Upfront | BC67: Cash During Flip | BN67: Total Cash
V68: =IF(AG68=0,0,V41) -> $0 | AG68: ='ANALYSIS DATABASE'!C243 -> $0 | AR68: ='ANALYSIS DATABASE'!C241 -> $0 | BC68: =IF(AG68=0,0,'ANALYSIS DATABASE'!C244) -> $0 | BN68: =AR68+BC68 -> $0
T72: Equity
U74: The Equity Option is used if you are partnering and sharing the Project Profit with Other Investors.
AI76: Current Project Profit Amount: | BJ76: =Total_Profit_Result -> $24,750.00
U78: # | X78: Investor Name | AP78: Amount Invested | AZ78: Profit Share % | BJ78: Profit Amount | BT78: COCR
U79: 1 | X79: Larry the Investor | AP79: $100,000 | AZ79: 25.00% | BJ79: =$BJ$76*AZ79 -> $6,187.50 | BT79: =IFERROR(BJ79/AP79,0) -> 6%
U80: 2 | X80: Investor 2 | BJ80: $0.00 | BT80: =IFERROR(BJ80/AP80,0) -> 0%
U81: 3 | X81: Investor 3 | BJ81: $0.00 | BT81: 0%
U82: 4 | X82: Investor 4 | BJ82: $0.00 | BT82: 0%
U83: 5 | X83: Investor 5 | BJ83: $0.00 | BT83: 0%
U84: 6 | X84: Investor 6 | BJ84: $0.00 | BT84: 0%
U85: 7 | X85: Investor 7 | BJ85: $0.00 | BT85: 0%
U86: 8 | X86: Investor 8 | BJ86: $0.00 | BT86: 0%
U87: 9 | X87: Investor 9 | BJ87: $0.00 | BT87: 0%
U88: 10 | X88: Investor 10 | BJ88: $0.00 | BT88: =IFERROR(BJ88/AP88,0) -> 0%
U89: Totals | AP89: =IF(OR(Funding_Strategy="Equity",Funding_Strategy="Combo"),SUM(AP79:AY88),0) -> $0.00 | AZ89: =SUM(AZ79:BI88) -> 25.00% | BJ89: =SUM(BJ79:BS88) -> $6,187.50 | BT89: =IFERROR(BJ89/AP89,0) -> 0%
AI91: Your Profit: | BJ91: =BJ76-BJ89 -> $18,562.50
T94: Project Capital Results:
X96: Capital Item | BL96: Capital Amount
X97: Capital Needed (All Project Costs excluding Selling Costs) | BL97: ='1 REHAB ANALYZER'!BO74 -> $129,400 | BZ97: =CONCATENATE("You will need ",TEXT(BL97,"$#,###")," in Capital to fund the purchase, repairs, buying, holding & financing costs.") -> You will need $129,400 in Capital to fund the purchase, repairs, buying, holding & financing costs.
X99: Debt Financing
X100: Loan 1 Amount | BL100: =IF(OR(Funding_Strategy="Financed",Funding_Strategy="Combo"),AG41,0) -> $0 | BZ100: =CONCATENATE("You are receiving ",TEXT(BL102,"$#,###")," in Debt Financing (Loans)") -> You are receiving $ in Debt Financing (Loans)
X101: Loan 2 Amount | BL101: =IF(OR(Funding_Strategy="Financed",Funding_Strategy="Combo"),AG68,0) -> $0
X102: Total Debt Financing | BL102: =SUM(BL100:BU101) -> $0
X103: Equity Financing
X104: Outside Equity Investment Amount | BL104: =IF(OR(Funding_Strategy="Equity",Funding_Strategy="Combo"),AP89,0) -> $0 | BZ104: =CONCATENATE("You are receiving ",TEXT(BL104,"$#,###")," in Equity Financing") -> You are receiving $ in Equity Financing
X106: Cash Investment
X107: Capital Needed (All Project Costs excluding Selling Costs) | BL107: =BL97 -> $129,400
X108: - Less Total Debt Financing | BL108: =-BL102 -> $0
X109: - Less Equity Financing | BL109: =-BL104 -> $0
X110: Rehabber's Cash Outlay | BL110: =SUM(BL107:BU109) -> $129,400 | BZ110: =IF(BL110<0,CONCATENATE("Your project is overcapitalized by ",TEXT(-BL110,"$#,###")),CONCATENATE("You will need ",TEXT(BL110,"$#,###")," of your Own Cash to fund this project")) -> You will need $129,400 of your Own Cash to fund this project
T112: Total Financing Costs:
X114: Debt Financing Costs
X115: Loan 1
X116: Loan 1 Interest | BL116: =IF(OR(Funding_Strategy="Financed",Funding_Strategy="Combo"),V37,0) -> $0
X117: Loan 1 Points | BL117: =IF(OR(Funding_Strategy="Financed",Funding_Strategy="Combo"),AG37,0) -> $0
X118: Loan 1 Other Costs | BL118: =IF(OR(Funding_Strategy="Financed",Funding_Strategy="Combo"),AR37,0) -> $0
X119: Total Loan 1 Financing Costs | BL119: =SUM(BL116:BU118) -> $0
X120: Loan 2
X121: Loan 2 Interest | BL121: =IF(OR(Funding_Strategy="Financed",Funding_Strategy="Combo"),V64,0) -> $0
X122: Loan 2 Points | BL122: =IF(OR(Funding_Strategy="Financed",Funding_Strategy="Combo"),AG64,0) -> $0
X123: Loan 2 Other Costs | BL123: =IF(OR(Funding_Strategy="Financed",Funding_Strategy="Combo"),AR64,0) -> $0
X124: Total Loan 2 Financing Costs | BL124: =SUM(BL121:BU123) -> $0
X126: Equity Financing Costs
X127: Equity Investor Profit Split | BL127: =IF(OR(Funding_Strategy="Equity",Funding_Strategy="Combo"),BJ89,0) -> $0
X129: Total Financing Costs
X130: Loan 1 Financing Costs | BL130: =BL119 -> $0
X131: Loan 2 Financing Costs | BL131: =BL124 -> $0
X132: Equity Financing Costs (Profit Share) | BL132: =BL127 -> $0
X133: Total Financing Costs | BL133: =SUM(BL130:BU132) -> $0
T135: © 2018 by Houseflippingspreadsheet.com. All rights reserved
CG136: Back to Rehab Analyzer
W144: Total Interest | AH144: Total Points | AS144: Other Loan Costs | BD144: Total Financing Costs | BO144: Financing %
W145: =V37+V64 -> $0 | AH145: =AG37+AG64 -> $0 | AS145: =AR37+AR64 -> $0 | BD145: =BC37+BC64 -> $0 | BO145: =IFERROR(BD145/AH149,0) -> 0.0%
W148: Total Capital | AH148: Total Debt | AS148: Total Equity | BD148: Total Debt & Equity | BO148: Total Cash
W149: ='1 REHAB ANALYZER'!CW74 -> $129,400 | AH149: ='ANALYSIS DATABASE'!C250 -> $0 | AS149: =AP89 -> $0 | BD149: =AH149+AS149 -> $0 | BO149: ='ANALYSIS DATABASE'!C253 -> $129,400

Sheet HOME
CS1: Shown
P4: =IF(Investor_Name="","Welcome",CONCATENATE("Welcome Back, ",Investor_Name,"!")) -> Welcome Back, Dave!
C5: Sheet Settings
BJ7: Quick Links
D8: zoom setting
D9: 100% | BJ9: Rehab Analyzer
C11: Admin Settings | BJ11: Repair Estimator
Q12: Start Analyzing your Rehab Deal… | AO12: Video Tutorials…
BJ13: Project Budgeter
N16: WARNING | X16: Macros may be disabled. To test if macros are enabled, click any of the buttons on the Dashboard… | BJ16: Enabling Macros Tutorial
P19: Rehab Workflow
T30: Project Setup | AF30: Deal Analysis Tools | AP30: Project Management Tools | BE30: Accounting Tools | BO30: Reporting
N34: © 2018 by HouseFlippingSpreadsheet.com. All rights reserved

Sheet ANALYZE
CS1: Shown
P4: Analyze Workflow | AE4: Analyze Your Rehab Deal
Y15: Property Setup | AR15: Rehab Analyzer | BJ15: Repair Estimator
P20: Other Tools | AL20: Deal Analysis Reports…
P22: Rehab Tools | AM22: Rehab Reports
P24: - Offer Tracker | AM24: - Inspection Checklist | BI24: - Lender Funding Report
P26: - Comparables Tool | AM26: - Estimate Reports | BI26: - Homeowner Offer Report
AM28: - Investment Reports | BI28: - Comparables Report
P30: Alternative Exit Strategies | AM30: - All Project Costs Report
P32: - Rental Calculator | AM32: Alternative Exit Strategy Reports
P34: - Wholesale Calculator | AM34: - Wholesale Reports | BI34: - Rental Cash Flow Report
P39: Submitting an Offer Checklist
Q42: Due Diligence & Analysis
T44: Contact Agent and Contractor to Walkthrough and Inspect Property
T46: Walkthrough/Inspect property & create Detailed Scope of Work using the Inspection Checklist
T48: Create Pre-liminary Repair Cost Estimate using the Repair Cost Estimator
T50: Calculate the Maximum Purchase Price to Offer for the Property using the Rehab Analyzer
T52: Distribute Financial Analysis (Investment Reports) to Partners (if applicable)
T54: Make 'Go' or 'No-Go' Decision o Make an Offer
T56: Track your Offers and Counter Offer using the Offer Tracker
Q58: Upon Offer Acceptance
T60: Send Signed Offer/Purchase Agreement to Seller
T62: Send Copy of Earnest Money Deposit/Certified Check (if required)
T64: Send Proof of Funds Letter (if required)
N67: © 2018 by HouseFlippingSpreadsheet.com. All rights reserved

Sheet 1 REHAB ANALYZER (hidden)
H3: REHAB ANALYZER
C6: STEP 1: AFTER REPAIR VALUE | AO6: STEP 3: REPAIR COSTS | BG6: QUICK BID | BO6: STEP 4: REHAB PROFIT | CW6: PURCHASE PRICE
C9: $165,000 | AJ9: =T('2 REPAIR ESTIMATOR'!N75:T75) -> GENERAL CONDITIONS | BG9: $750 | CK9: 5% | CM9: 15% | CW9: Input your Purchase Price below:
AJ11: =T('2 REPAIR ESTIMATOR'!N76:T76) -> DEMOLITION | BG11: $1,000
BO12: =AFTER_REPAIR_VALUE_ESTIMATED*Profit_Percentage_Cell -> $24,750 | CW12: $0
AJ13: =T('2 REPAIR ESTIMATOR'!N77:T77) -> STRUCTURAL CONCRETE
AJ15: =T('2 REPAIR ESTIMATOR'!N78:T78) -> CONCRETE & FLATWORK
C16: STEP 2: FIXED COSTS | X16: DETAILED | AE16: 15%
AJ17: =T('2 REPAIR ESTIMATOR'!N79:T79) -> MASONRY
C19: BUYING COSTS | AJ19: =T('2 REPAIR ESTIMATOR'!N80:T80) -> SIDING | BO19: PROFIT PER MONTH | BZ19: CASH ROI | CK19: ANNUALIZED ROI | DM19: 70% RULE
C21: BROKERAGE FEE ($300 Avg.) | AA21: $1,000 | AJ21: =T('2 REPAIR ESTIMATOR'!N81:T81) -> DECKING AND PATIOS | BG21: $5,000
BO22: =IF(Total_Schedule_Cell=0,"",BO12/Total_Schedule_Cell) -> $4,950 | BZ22: =IFERROR(IF(Total_Cash_Needed<0,"Infinite ROI",REHAB_PROFIT_ESTIMATED/Total_Cash_Needed),0) -> 19.1% | CK22: =IFERROR(IF(Total_Cash_Needed<0,"Infinite ROI",((REHAB_PROFIT_ESTIMATED/Total_Cash_Needed)/(Total_Schedule_Cell/12))),0) -> 45.9% | DM22: Purchase Price % OF ARV
C23: INSPECTION COSTS ($400 Avg.) | AJ23: =T('2 REPAIR ESTIMATOR'!N82:T82) -> ROOFING | BG23: $5,500
C25: APPRAISAL FEE ($500 Avg.) | AJ25: =T('2 REPAIR ESTIMATOR'!Y75:AE75) -> EXTERIOR DOORS & WINDOWS | BG25: $2,000 | DM25: =IF(AFTER_REPAIR_VALUE_CELL=0,"",((Known_Purchase_Price_Cell+TOTAL_REPAIRS_ESTIMATE)/AFTER_REPAIR_VALUE_CELL)) -> 39%
C27: TITLE SEARCH ($300 Avg.) | AJ27: =T('2 REPAIR ESTIMATOR'!Y76:AE76) -> GARAGE DOORS | BG27: $1,250
C29: TITLE INSURANCE ($150 Avg.) | AJ29: =T('2 REPAIR ESTIMATOR'!Y77:AE77) -> LANDSCAPING | BG29: $500 | BO29: MAXIMUM PURCHASE PRICE
C31: OTHER | AJ31: =T('2 REPAIR ESTIMATOR'!Y78:AE78) -> MISC. EXTERIOR ITEMS
BO32: =AFTER_REPAIR_VALUE_CELL-TOTAL_FIXED_COSTS_ESTIMATED-TOTAL_REMODEL_ESTIMATE-REHAB_PROFIT_ESTIMATED -> $61,837 | EK32: =IF(AY57="DIYED","DIY SAVINGS","") -> 
C33: TOTAL BUYING COSTS | AA33: =IF(Fixed_Cost_Calculation_Method="% OF ARV",0,SUM(AA21:AH32)) -> $1,000 | AJ33: =T('2 REPAIR ESTIMATOR'!Y79:AE79) -> FRAMING & DRYWALL | BG33: $500
C35: HOLDING COSTS | L35: # OF MONTHS | R35: Per Month | AJ35: =T('2 REPAIR ESTIMATOR'!Y80:AE80) -> CABINETS & COUNTERTOPS | BG35: $7,500 | EK35: =IF(AY57="DIYED",DIY_Savings,"") -> 
AJ37: =T('2 REPAIR ESTIMATOR'!Y81:AE81) -> DOORS & TRIM | BG37: $3,000
C39: PROPERTY TAXES | M39: 3.0 | R39: $200 | AA39: =R39*$M$49 -> $1,000 | AJ39: =T('2 REPAIR ESTIMATOR'!Y82:AE82) -> CARPET & RESILIENT | BG39: $3,000 | CE39: 70% RULE
C41: UTILITIES | R41: $300 | AA41: =R41*$M$49 -> $1,500 | AJ41: =T('2 REPAIR ESTIMATOR'!AJ75:AP75) -> HARDWOOD FLOORING | BG41: $2,500 | CE41: Purchase Price % OF ARV
L42: LISTING PERIOD
C43: INSURANCE | R43: $100 | AA43: =R43*$M$49 -> $500 | AJ43: =T('2 REPAIR ESTIMATOR'!AJ76:AP76) -> TILING | BG43: $3,000
M44: 2.0
C45: HOA DUES | AA45: =R45*$M$49 -> $0 | AJ45: =T('2 REPAIR ESTIMATOR'!AJ77:AP77) -> PAINTING | BG45: $5,000 | CE45: =IF(AFTER_REPAIR_VALUE_CELL=0,"",((Maximum_Purchase_Price+TOTAL_REPAIRS_ESTIMATE)/AFTER_REPAIR_VALUE_CELL)) -> 76%
C47: MAINTENANCE | L47: TOTAL HOLDING | AA47: =R47*$M$49 -> $0 | AJ47: =T('2 REPAIR ESTIMATOR'!AJ78:AP78) -> APPLIANCES | BG47: $2,500
CW48: CALCULATED REHAB PROFIT
C49: OTHER | M49: =M39+M44 -> 5.0 | AA49: =R49*$M$49 -> $0 | AJ49: =T('2 REPAIR ESTIMATOR'!AJ79:AP79) -> PLUMBING | BG49: $3,000
R51: =SUM(R39:V50) -> $600 | W51: TOTALS | AA51: =IF(Fixed_Cost_Calculation_Method="% OF ARV",0,SUM(AA39:AH50)) -> $3,000 | AJ51: =T('2 REPAIR ESTIMATOR'!AJ80:AP80) -> HVAC | BG51: $250 | CW51: =IF(CW53="","","% of ARV") -> % of ARV | DC51: =AFTER_REPAIR_VALUE_ESTIMATED-TOTAL_FIXED_COSTS_ESTIMATED-TOTAL_REPAIRS_ESTIMATE-Known_Purchase_Price_Cell -> $86,587 | DX51: =IF(DX53="","","$/ SF") -> $/ SF
AJ53: =T('2 REPAIR ESTIMATOR'!AJ81:AP81) -> ELECTRICAL | BG53: $3,500 | CW53: =IFERROR(DC51/AFTER_REPAIR_VALUE_CELL,"") -> 52.5% | DX53: =IFERROR(DC51/Square_Feet,"") -> $57.72
C55: SELLING COSTS | AJ55: =T('2 REPAIR ESTIMATOR'!AJ82:AP82) -> MISCELLANEOUS
C57: COMMISSIONS | R57: 6.0% | W57: of sale price | AA57: =R57*C9 -> $9,900 | AJ57: SUBTOTAL ESTIMATE | AY57: SUBBED | BG57: =SUM(REPAIRS_FIRST_COLUMN) -> $49,750
CW58: PROFIT PER MONTH | DH58: CASH ROI | DS58: ANNUALIZED ROI
C59: SELLER ASSISTED CLOSING COSTS | W59: of sale price | AA59: =R59*C9 -> $0
C61: BROKERAGE FEE ($300 Avg.) | AJ61: ADDERS | CW61: =IF(Total_Schedule_Cell=0,"",DC51/Total_Schedule_Cell) -> $17,317 | DH61: =IFERROR(IF(Total_Cash_Needed<0,"Infinite ROI",DC51/Total_Cash_Needed),0) -> 66.9% | DS61: =IFERROR(IF(Total_Cash_Needed<0,"Infinite ROI",((DC51/Total_Cash_Needed)/(Total_Schedule_Cell/12))),0) -> 160.6%
C63: HOME WARRANTY ($450 Avg.) | AA63: 450
AJ64: Location Multiplier: | AY64: 1.00 | BG64: =IF(Rehab_Analyzer_Location_Mutiplier=0,0,(AY64-1)*ESTIMATE_SUBTOTAL) -> $0
C65: TITLE INSURANCE ($150 Avg.) | AA65: 500
C67: 2ND APPRAISAL ($500 Avg.) | AJ67: Permit Cost: (1 to 2%): | AY67: 1.0% | BG67: =(ESTIMATE_SUBTOTAL+BG64)*AY67 -> $498
BO68: INVESTMENT BREAKDOWN | CW68: INVESTMENT BREAKDOWN
C69: OTHER
AJ70: Contractors OH & P: (10%+) | AY70: 10.0% | BG70: =(ESTIMATE_SUBTOTAL+BG64+BG67)*AY70 -> $5,025
C71: TOTAL SELLING COSTS | AA71: =SUM(AA57:AH70) -> $10,850 | BO71: CAPITAL NEEDED | BW71: DEBT | CE71: EQUITY | CM71: CASH | CW71: CAPITAL NEEDED | DE71: DEBT | DM71: EQUITY | DU71: CASH
B72: Setup
C73: FINANCING COSTS | AJ73: Contingency (5 to 15%): | AY73: 15.0% | BG73: =(ESTIMATE_SUBTOTAL+BG64+BG67+BG70)*Repair_Contingency_Percentage_Cell -> $8,291
BO74: ='ANALYSIS DATABASE'!C249 -> $129,400 | BW74: ='ANALYSIS DATABASE'!C250 -> $0 | CE74: ='REHAB FINANCING SETUP'!AP89 -> $0 | CM74: ='ANALYSIS DATABASE'!C252 -> $129,400 | CW74: ='ANALYSIS DATABASE'!C249 -> $129,400 | DE74: ='REHAB FINANCING SETUP'!AH149 -> $0 | DM74: ='REHAB FINANCING SETUP'!AS149 -> $0 | DU74: =CW74-DE74-DM74 -> $129,400
C75: CLOSING COSTS & POINTS | AA75: ='REHAB FINANCING SETUP'!AZ31+'REHAB FINANCING SETUP'!AZ58+'REHAB FINANCING SETUP'!AR37+'REHAB FINANCING SETUP'!AR64 -> $0
AJ76: TOTAL ADDERS | BG76: =SUM(BG64:BK75) -> $13,813
C77: LOAN PAYMENT | AA77: ='REHAB FINANCING SETUP'!BF29+'REHAB FINANCING SETUP'!BF56 -> $0
C79: TOTAL FINANCING COSTS | AA79: =SUM(AA75:AH78) -> $0
C81: TOTAL FIXED COSTS | AJ81: TOTAL REPAIR ESTIMATE | BO81: TOTAL PROJECT COSTS | CW81: TOTAL PROJECT COSTS
C84: =IF(C86="","","% of ARV") -> % of ARV | H84: =IF(Fixed_Cost_Calculation_Method="% OF ARV",AE16*AFTER_REPAIR_VALUE_CELL,TOTAL_BUYING_COSTS_ESTIMATED+TOTAL_HOLDING_COSTS_ESTIMATED+TOTAL_SELLING_COSTS_ESTIMATED+TOTAL_FINANCING_COSTS) -> $14,850 | AD84: =IF(AD86="","","$ /SF") -> $ /SF | AJ84: =IF(AJ86="","","% of ARV") -> % of ARV | AO84: =BE127 -> $63,563 | BI84: =IF(BI86="","","$/ SF") -> $/ SF | BO84: =TOTAL_FIXED_COSTS_ESTIMATED+TOTAL_REPAIRS_ESTIMATE+Maximum_Purchase_Price -> $140,250 | CW84: =TOTAL_FIXED_COSTS_ESTIMATED+TOTAL_REPAIRS_ESTIMATE+Known_Purchase_Price_Cell -> $78,413
C86: =IFERROR(TOTAL_FIXED_COSTS_ESTIMATED/AFTER_REPAIR_VALUE_CELL,"") -> 9.0% | AD86: =IFERROR(TOTAL_FIXED_COSTS_ESTIMATED/Square_Feet,"") -> $9.90 | AJ86: =IFERROR(TOTAL_REMODEL_ESTIMATE/AFTER_REPAIR_VALUE_CELL,"") -> 38.5% | BI86: =IFERROR(TOTAL_REMODEL_ESTIMATE/Square_Feet,"") -> $42.38
C93: © 2018 by Houseflippingspreadsheet.com. All rights reserved
K97: Scopes of Work DIY vs Subbed Sorter | R97: LABOR | W97: MATERIAL | AB97: SUB | AG97: SUM | AL97: Quick | AQ97: TOTAL
K98: =T('2 REPAIR ESTIMATOR'!N75:T75) -> GENERAL CONDITIONS | R98: =IF($AY$57="SUBBED",'2 REPAIR ESTIMATOR'!BN1198,'2 REPAIR ESTIMATOR'!BM1198) -> $80.00 | W98: ='2 REPAIR ESTIMATOR'!BB129 -> $454.75 | AB98: ='2 REPAIR ESTIMATOR'!BC129 -> $0.00 | AG98: =SUM(R98:AF98) -> $534.75 | AL98: =BG9 -> $750.00 | AQ98: =IF(Repair_Cost_Calculation_Method="Quick Bid",AL98,AG98) -> $750.00
K99: =T('2 REPAIR ESTIMATOR'!N76:T76) -> DEMOLITION | R99: =IF($AY$57="SUBBED",'2 REPAIR ESTIMATOR'!BN1199,'2 REPAIR ESTIMATOR'!BM1199) -> $1,600.00 | W99: ='2 REPAIR ESTIMATOR'!BB174 -> $0.00 | AB99: ='2 REPAIR ESTIMATOR'!BC174 -> $0.00 | AG99: =SUM(R99:AF99) -> $1,600.00 | AL99: =BG11 -> $1,000.00 | AQ99: $1,000.00 | AX99: DETAILED
K100: =T('2 REPAIR ESTIMATOR'!N77:T77) -> STRUCTURAL CONCRETE | R100: =IF($AY$57="SUBBED",'2 REPAIR ESTIMATOR'!BN1200,'2 REPAIR ESTIMATOR'!BM1200) -> $0.00 | W100: ='2 REPAIR ESTIMATOR'!BB219 -> $0.00 | AB100: ='2 REPAIR ESTIMATOR'!BC219 -> $0.00 | AG100: $0.00 | AL100: =BG13 -> $0.00 | AQ100: $0.00 | AX100: % OF ARV
K101: =T('2 REPAIR ESTIMATOR'!N78:T78) -> CONCRETE & FLATWORK | R101: =IF($AY$57="SUBBED",'2 REPAIR ESTIMATOR'!BN1201,'2 REPAIR ESTIMATOR'!BM1201) -> $0.00 | W101: ='2 REPAIR ESTIMATOR'!BB264 -> $0.00 | AB101: ='2 REPAIR ESTIMATOR'!BC264 -> $0.00 | AG101: $0.00 | AL101: =BG15 -> $0.00 | AQ101: $0.00
K102: =T('2 REPAIR ESTIMATOR'!N79:T79) -> MASONRY | R102: =IF($AY$57="SUBBED",'2 REPAIR ESTIMATOR'!BN1202,'2 REPAIR ESTIMATOR'!BM1202) -> $0.00 | W102: ='2 REPAIR ESTIMATOR'!BB309 -> $0.00 | AB102: ='2 REPAIR ESTIMATOR'!BC309 -> $0.00 | AG102: $0.00 | AL102: =BG17 -> $0.00 | AQ102: $0.00 | AX102: DETAILED
K103: =T('2 REPAIR ESTIMATOR'!N80:T80) -> SIDING | R103: =IF($AY$57="SUBBED",'2 REPAIR ESTIMATOR'!BN1203,'2 REPAIR ESTIMATOR'!BM1203) -> $0.00 | W103: ='2 REPAIR ESTIMATOR'!BB354 -> $0.00 | AB103: ='2 REPAIR ESTIMATOR'!BC354 -> $0.00 | AG103: $0.00 | AL103: =BG19 -> $0.00 | AQ103: $0.00 | AX103: QUICK BID
K104: =T('2 REPAIR ESTIMATOR'!N81:T81) -> DECKING AND PATIOS | R104: =IF($AY$57="SUBBED",'2 REPAIR ESTIMATOR'!BN1204,'2 REPAIR ESTIMATOR'!BM1204) -> $750.00 | W104: ='2 REPAIR ESTIMATOR'!BB399 -> $321.00 | AB104: ='2 REPAIR ESTIMATOR'!BC399 -> $0.00 | AG104: $1,071.00 | AL104: =BG21 -> $5,000.00 | AQ104: $5,000.00 | AX104: LUMP SUM
K105: =T('2 REPAIR ESTIMATOR'!N82:T82) -> ROOFING | R105: =IF($AY$57="SUBBED",'2 REPAIR ESTIMATOR'!BN1205,'2 REPAIR ESTIMATOR'!BM1205) -> $3,000.00 | W105: ='2 REPAIR ESTIMATOR'!BB444 -> $2,461.00 | AB105: ='2 REPAIR ESTIMATOR'!BC444 -> $0.00 | AG105: $5,461.00 | AL105: =BG23 -> $5,500.00 | AQ105: $5,500.00
K106: =T('2 REPAIR ESTIMATOR'!Y75:AE75) -> EXTERIOR DOORS & WINDOWS | R106: =IF($AY$57="subbed",'2 REPAIR ESTIMATOR'!BN1206,'2 REPAIR ESTIMATOR'!BM1206) -> $1,625.00 | W106: ='2 REPAIR ESTIMATOR'!BB489 -> $3,210.00 | AB106: ='2 REPAIR ESTIMATOR'!BC489 -> $0.00 | AG106: $4,835.00 | AL106: =BG25 -> $2,000.00 | AQ106: $2,000.00 | AX106: DIYED
K107: =T('2 REPAIR ESTIMATOR'!Y76:AE76) -> GARAGE DOORS | R107: =IF($AY$57="subbed",'2 REPAIR ESTIMATOR'!BN1207,'2 REPAIR ESTIMATOR'!BM1207) -> $400.00 | W107: ='2 REPAIR ESTIMATOR'!BB534 -> $963.00 | AB107: ='2 REPAIR ESTIMATOR'!BC534 -> $0.00 | AG107: $1,363.00 | AL107: =BG27 -> $1,250.00 | AQ107: $1,250.00 | AX107: SUBBED
K108: =T('2 REPAIR ESTIMATOR'!Y77:AE77) -> LANDSCAPING | R108: =IF($AY$57="subbed",'2 REPAIR ESTIMATOR'!BN1208,'2 REPAIR ESTIMATOR'!BM1208) -> $250.00 | W108: ='2 REPAIR ESTIMATOR'!BB579 -> $321.00 | AB108: ='2 REPAIR ESTIMATOR'!BC579 -> $0.00 | AG108: $571.00 | AL108: =BG29 -> $500.00 | AQ108: $500.00
K109: =T('2 REPAIR ESTIMATOR'!Y78:AE78) -> MISC. EXTERIOR ITEMS | R109: =IF($AY$57="subbed",'2 REPAIR ESTIMATOR'!BN1209,'2 REPAIR ESTIMATOR'!BM1209) -> $225.00 | W109: ='2 REPAIR ESTIMATOR'!BB624 -> $406.60 | AB109: ='2 REPAIR ESTIMATOR'!BC624 -> $0.00 | AG109: $631.60 | AL109: =BG31 -> $0.00 | AQ109: $0.00 | AX109: Total Cost Graph -MPP
K110: =T('2 REPAIR ESTIMATOR'!Y79:AE79) -> FRAMING & DRYWALL | R110: =IF($AY$57="subbed",'2 REPAIR ESTIMATOR'!BN1210,'2 REPAIR ESTIMATOR'!BM1210) -> $750.00 | W110: ='2 REPAIR ESTIMATOR'!BB669 -> $0.00 | AB110: ='2 REPAIR ESTIMATOR'!BC669 -> $0.00 | AG110: $750.00 | AL110: =BG33 -> $500.00 | AQ110: $500.00 | AX110: =C81 -> TOTAL FIXED COSTS | BG110: =Total_Fixed_Costs_Result -> $14,850
K111: =T('2 REPAIR ESTIMATOR'!Y80:AE80) -> CABINETS & COUNTERTOPS | R111: =IF($AY$57="subbed",'2 REPAIR ESTIMATOR'!BN1211,'2 REPAIR ESTIMATOR'!BM1211) -> $1,950.00 | W111: ='2 REPAIR ESTIMATOR'!BB714 -> $9,496.25 | AB111: ='2 REPAIR ESTIMATOR'!BC714 -> $0.00 | AG111: $11,446.25 | AL111: =BG35 -> $7,500.00 | AQ111: $7,500.00 | AX111: =BO6 -> STEP 4: REHAB PROFIT | BG111: =Total_Profit_Result -> $24,750
K112: =T('2 REPAIR ESTIMATOR'!Y81:AE81) -> DOORS & TRIM | R112: =IF($AY$57="subbed",'2 REPAIR ESTIMATOR'!BN1212,'2 REPAIR ESTIMATOR'!BM1212) -> $1,125.00 | W112: ='2 REPAIR ESTIMATOR'!BB759 -> $1,284.00 | AB112: ='2 REPAIR ESTIMATOR'!BC759 -> $0.00 | AG112: $2,409.00 | AL112: =BG37 -> $3,000.00 | AQ112: $3,000.00 | AX112: REPAIR ESTIMATE | BG112: =TOTAL_REPAIRS_ESTIMATE -> $63,563
K113: =T('2 REPAIR ESTIMATOR'!Y82:AE82) -> CARPET & RESILIENT | R113: =IF($AY$57="subbed",'2 REPAIR ESTIMATOR'!BN1213,'2 REPAIR ESTIMATOR'!BM1213) -> $900.00 | W113: ='2 REPAIR ESTIMATOR'!BB804 -> $1,605.00 | AB113: ='2 REPAIR ESTIMATOR'!BC804 -> $0.00 | AG113: $2,505.00 | AL113: =BG39 -> $3,000.00 | AQ113: $3,000.00 | AX113: =BO29 -> MAXIMUM PURCHASE PRICE | BG113: =Purchase_Price_Result -> $61,837
K114: =T('2 REPAIR ESTIMATOR'!AJ75:AP75) -> HARDWOOD FLOORING | R114: =IF($AY$57="subbed",'2 REPAIR ESTIMATOR'!BN1214,'2 REPAIR ESTIMATOR'!BM1214) -> $1,425.00 | W114: ='2 REPAIR ESTIMATOR'!BB849 -> $2,033.00 | AB114: ='2 REPAIR ESTIMATOR'!BC849 -> $0.00 | AG114: $3,458.00 | AL114: =BG41 -> $2,500.00 | AQ114: $2,500.00 | AX114: Total Cost Graph - KNOWN
K115: =T('2 REPAIR ESTIMATOR'!AJ76:AP76) -> TILING | R115: =IF($AY$57="subbed",'2 REPAIR ESTIMATOR'!BN1215,'2 REPAIR ESTIMATOR'!BM1215) -> $1,625.00 | W115: ='2 REPAIR ESTIMATOR'!BB894 -> $2,279.10 | AB115: ='2 REPAIR ESTIMATOR'!BC894 -> $0.00 | AG115: $3,904.10 | AL115: =BG43 -> $3,000.00 | AQ115: $3,000.00 | AX115: =C81 -> TOTAL FIXED COSTS | BG115: =Total_Fixed_Costs_Result -> $14,850
K116: =T('2 REPAIR ESTIMATOR'!AJ77:AP77) -> PAINTING | R116: =IF($AY$57="subbed",'2 REPAIR ESTIMATOR'!BN1216,'2 REPAIR ESTIMATOR'!BM1216) -> $4,000.00 | W116: ='2 REPAIR ESTIMATOR'!BB939 -> $0.00 | AB116: ='2 REPAIR ESTIMATOR'!BC939 -> $0.00 | AG116: $4,000.00 | AL116: =BG45 -> $5,000.00 | AQ116: $5,000.00 | AX116: =BO6 -> STEP 4: REHAB PROFIT | BG116: =DC51 -> $86,587
K117: =T('2 REPAIR ESTIMATOR'!AJ78:AP78) -> APPLIANCES | R117: =IF($AY$57="subbed",'2 REPAIR ESTIMATOR'!BN1217,'2 REPAIR ESTIMATOR'!BM1217) -> $0.00 | W117: ='2 REPAIR ESTIMATOR'!BB984 -> $3,210.00 | AB117: ='2 REPAIR ESTIMATOR'!BC984 -> $0.00 | AG117: $3,210.00 | AL117: =BG47 -> $2,500.00 | AQ117: $2,500.00 | AX117: REPAIR ESTIMATE | BG117: =TOTAL_REPAIRS_ESTIMATE -> $63,563
K118: =T('2 REPAIR ESTIMATOR'!AJ79:AP79) -> PLUMBING | R118: =IF($AY$57="subbed",'2 REPAIR ESTIMATOR'!BN1218,'2 REPAIR ESTIMATOR'!BM1218) -> $1,105.00 | W118: ='2 REPAIR ESTIMATOR'!BB1029 -> $1,819.00 | AB118: ='2 REPAIR ESTIMATOR'!BC1029 -> $0.00 | AG118: $2,924.00 | AL118: =BG49 -> $3,000.00 | AQ118: $3,000.00 | AX118: =BO29 -> MAXIMUM PURCHASE PRICE | BG118: =Known_Purchase_Price_Cell -> $0
K119: =T('2 REPAIR ESTIMATOR'!AJ80:AP80) -> HVAC | R119: =IF($AY$57="subbed",'2 REPAIR ESTIMATOR'!BN1219,'2 REPAIR ESTIMATOR'!BM1219) -> $162.50 | W119: ='2 REPAIR ESTIMATOR'!BB1074 -> $321.00 | AB119: ='2 REPAIR ESTIMATOR'!BC1074 -> $0.00 | AG119: $483.50 | AL119: =BG51 -> $250.00 | AQ119: $250.00
K120: =T('2 REPAIR ESTIMATOR'!AJ81:AP81) -> ELECTRICAL | R120: =IF($AY$57="subbed",'2 REPAIR ESTIMATOR'!BN1220,'2 REPAIR ESTIMATOR'!BM1220) -> $0.00 | W120: ='2 REPAIR ESTIMATOR'!BB1119 -> $1,396.35 | AB120: ='2 REPAIR ESTIMATOR'!BC1119 -> $900.00 | AG120: $2,296.35 | AL120: =BG53 -> $3,500.00 | AQ120: $3,500.00 | AX120: Fixed Cost Graph
K121: =T('2 REPAIR ESTIMATOR'!AJ82:AP82) -> MISCELLANEOUS | R121: =IF($AY$57="subbed",'2 REPAIR ESTIMATOR'!BN1221,'2 REPAIR ESTIMATOR'!BM1221) -> $0.00 | W121: ='2 REPAIR ESTIMATOR'!BB1164 -> $0.00 | AB121: ='2 REPAIR ESTIMATOR'!BC1164 -> $0.00 | AG121: $0.00 | AL121: =BG55 -> $0.00 | AQ121: $0.00 | AX121: AFTER REPAIR VALUE | BG121: =1-BG122 -> 91%
K122: TOTALS | R122: =SUM(R98:V121) -> $20,972.50 | W122: =SUM(W98:AA121) -> $31,581.05 | AB122: =SUM(AB98:AF121) -> $900.00 | AG122: =SUM(AG98:AK121) -> $53,453.55 | AL122: =SUM(AL98:AP121) -> $49,750.00 | AQ122: =SUM(AQ98:AU121) -> $49,750.00 | AX122: FIXED COSTS | BG122: =TOTAL_FIXED_COSTS_ESTIMATED/AFTER_REPAIR_VALUE_CELL -> 9%
N124: =IF(Fixed_Cost_Calculation_Method="% of ARV",CONCATENATE("Fixed Costs are being Calculated at ",TEXT(AE16,"0%")," of the ARV"),"") ->  | AS124: Raw Repair Estimate: | BE124: =ESTIMATE_SUBTOTAL -> $49,750
AT127: Total Estimate: | BE127: =BG76+BE124 -> $63,563
BE130: =IFERROR(BG76/ESTIMATE_SUBTOTAL,0) -> 27.8%

Sheet 2 REPAIR ESTIMATOR (hidden)
A3: LOCKED | B3: REPAIR ESTIMATOR
D7: Repair Estimator Help
D8: Welcome to the Repair Cost Estimator. The Repair Cost Estimator is pre-built with 24 Scopes of Work, and over 400 common work items and unit prices that you would typically see on a rehab project. The cost database and information is based upon on National Averages. However, these unit prices are just starting points, as there are many factors that can influence the unit pricing. The most accurate way of estimating costs is to consult with local construction professionals in your area.
D12: Estimator Operation
D14: Step 1: | AG14: Video Quick Links
D15: Inspect the property and create a detailed Scope of Work with quantities of repairs
AH16: Repair Estimator - The Basics
D17: Step 2: | AH17: Changing Scopes of Work
D18: Input the quantities into the Quantity (Qty) column for the items that need repaired, replaced or installed. | AH18: Changing Unit Prices
AH19: Estimate Report
D20: Step 3:
D21: Change the unit prices as necessary to meet your specific project needs & location.
D23: Factors that Affect Costs
D24: Quality | K24: Size of Project | R24: Location | Y24: Project Characteristics | AF24: Season of Year | AM24: Other Factors
D25: The quality of materials, and quality of contractor craftsmanship can influence costs. The prices included assume hired licensed contractors to install according to builder-grade building standards. | K25: The size, scope of work and type of construction will have a significant impact on cost. 'Economies of scale' can reduce costs for large projects. Unit prices can often run higher for smaller projects. Prices are based upon a ~ 1,500sf to 2,000 sf rehab project. | R25: Construction costs can vary significantly by region and localized areas. Adjust your project costs by your local modifier as necessary. Also consider, in dense urban areas, traffic & site storage may increase costs. In rural areas, lower wage rates may be in effect. | Y25: The types of properties and property characteristics can influence costs. A 10 -year cookie cutter property will likely be cheaper to renovate than a 100 year-old historic home, due to the level of finishes, historic requirements, & MEP upgrades required to the historic property. | AF25: The time of the year can influence different trade labor rates and fees. For example, HVAC contractors may charge more during the cold winter months as they get swamped with emergency calls for furnaces failures, than in the moderate months of the Fall/Spring.
AM26: - Weather Conditions
AM27: - Code Requirements
AM28: - Safety Requirements
AM29: Availability of:
AM30: - Skilled Labor
AM31: - Building Materials
D34: Tip:
D35: If you are not comfortable estimating a particular scope of work, contact a local contractor in your area that specializes in that particular trade.
D36: For example: If your property needs a roof replaced, but you are unsure how to calculate the roof size and/or are unsure about your localized unit prices call a local roofing company in your area. If you receive a secretary, ask for a sales representative or someone in 'Estimating'. Describe the size of the property, the type of shingles you are requesting (generally 3-tab or architectural asphalt shingles) and any other pertinent information. With this limited information, the roofing contractor should be able to give you a unit price, and a rough cost range of what the roof would cost to replace. With this contractor feedback and information, you can input a realistic estimate for the roof costs in the estimator.
D40: Disclaimer
D41: House Flipping Spreadsheet.com has created the Repair Estimator database with their own personal experience, due diligence and judgmenet. However, HFS makes no express or implied warranty or guarantee of accuracy, correctness, value, sufficiency or completeness of the data. HFS shall have no liability to any customer or third party for any loss, expense, or damage, including consequential, incidental, special or punitive damage including lost profits or revene caused direcly or indircetly by any error or omission. Use common sense, caution and seek professional advice from qualified professionals when creating estimates.
B48: Location Multipliers | C48: Location Modifiers
E50: Costs provided in the Repair Estimator are based upon National Averages for installation and materials. To adjust these costs for a specific location, multiply the base cost by the location factor for your area. For areas or cities that are not listed, use the factor for a nearby city with similar economic characteristics.
C55: East Coast: | R55: Midwest/Mountain: | AG55: West Coast
C56: Urban Areas: | K56: Multiplier | R56: Urban Areas: | Z56: Multiplier | AG56: Urban Areas: | AO56: Multiplier
C57: New York, NY | K57: 1.35 | R57: Chicago, IL | Z57: 1.25 | AG57: San Francisco, CA | AO57: 1.35
C58: Boston, MA | K58: 1.25 | R58: Minneapolis, MN | Z58: 1.15 | AG58: San Jose, CA | AO58: 1.30
C59: Philadelphia, PA | K59: 1.20 | R59: Milwaukee, WI | Z59: 1.10 | AG59: Oakland, CA | AO59: 1.25
C60: Washington DC | K60: 1.20 | R60: Detroit, MI | Z60: 1.05 | AG60: Los Angeles, CA | AO60: 1.20
C61: Pittsburgh, PA | K61: 1.05 | R61: Kansas City, MO | Z61: 1.05 | AG61: Santa Rosa, CA | AO61: 1.20
C62: Charlotte, NC | K62: 1.00 | R62: St. Louis | Z62: 1.05 | AG62: Sacramento, CA | AO62: 1.15
C63: Jacksonville, FL | K63: 1.00 | R63: Denver, CO | Z63: 1.00 | AG63: San Diego, CA | AO63: 1.15
C64: Miami, FL | K64: 1.00 | R64: Houston, TX | Z64: 0.95 | AG64: Seattle, WA | AO64: 1.15
C65: Indianapolis, IN | K65: 1 | R65: Austin, TX | Z65: 0.95 | AG65: Fresno, CA | AO65: 1.10
C66: Atlanta, GA | K66: 0.95 | R66: San Antonio | Z66: 0.95 | AG66: Bakersfield, CA | AO66: 1.10
C67: Nashville, TN | K67: 0.95 | R67: Dallas | Z67: 0.95 | AG67: Las Vegas, NV | AO67: 1.05
C68: New Orleans, LA | K68: 0.95 | R68: Oklahoma City | Z68: 0.95 | AG68: Portland, OR | AO68: 1.05
D69: Average | K69: =AVERAGE(K57:O68) -> 1.08 | S69: Average | Z69: =AVERAGE(Z57:AD68) -> 1.03 | AH69: Average | AO69: =AVERAGE(AO57:AS68) -> 1.17
C71: Rural Areas: | K71: .80 to 1.00 | R71: Rural Areas: | Z71: .70 to .95 | AG71: Rural Areas (CA) | AO71: 1.00
B74: TOTAL ESTIMATE: | N74: ESTIMATE BREAKDOWN BY SCOPE OF WORK | AW74: ROOMS | AX74: TOTALS
B75: SubTotal Estimate: | J75: =AQ84 -> $53,454 | N75: =T('CATEGORY SETUP'!AD10:AZ10) -> GENERAL CONDITIONS | U75: =AQ129 -> $535 | Y75: =T('CATEGORY SETUP'!AD18:AZ18) -> EXTERIOR DOORS & WINDOWS | AF75: =AQ489 -> $4,835 | AJ75: =T('CATEGORY SETUP'!AD26:AZ26) -> HARDWOOD FLOORING | AQ75: =AQ849 -> $3,458 | AW75: Kitchen | AX75: =SUMIF($AW$87:$AW$1165,AW75,$AQ$87:$AQ$1165) -> $14,170 | BA75: DIY VS SUBBED
B76: Location Multiplier | J76: =IF(Estimator_Location_Multiplier_Cell=0,0,J75*(H76-1)) -> $0 | N76: =T('CATEGORY SETUP'!AD11:AZ11) -> DEMOLITION | U76: =AQ174 -> $1,600 | Y76: =T('CATEGORY SETUP'!AD19:AZ19) -> GARAGE DOORS | AF76: =AQ534 -> $1,363 | AJ76: =T('CATEGORY SETUP'!AD27:AZ27) -> TILING | AQ76: =AQ894 -> $3,904 | AW76: Bathrooms | AX76: $7,467 | BA76: DIYED | BB76: =BF84 -> $106,907
B77: Permit Cost: (1 to 2%) | J77: =SUM(J75:M76)*H77 -> $0 | N77: =T('CATEGORY SETUP'!AD12:AZ12) -> STRUCTURAL CONCRETE | U77: =AQ219 -> $0 | Y77: =T('CATEGORY SETUP'!AD20:AZ20) -> LANDSCAPING | AF77: =AQ579 -> $571 | AJ77: =T('CATEGORY SETUP'!AD28:AZ28) -> PAINTING | AQ77: =AQ939 -> $4,000 | AW77: Bedrooms | AX77: $0 | BA77: DIY SAVINGS | BB77: =DIY_Savings -> 0
B78: Contractor's OH & P: (10%+) | J78: =H78*SUM(J75:M77) -> $0 | N78: =T('CATEGORY SETUP'!AD13:AZ13) -> CONCRETE & FLATWORK | U78: =AQ264 -> $0 | Y78: =T('CATEGORY SETUP'!AD21:AZ21) -> MISC. EXTERIOR ITEMS | AF78: =AQ624 -> $632 | AJ78: =T('CATEGORY SETUP'!AD29:AZ29) -> APPLIANCES | AQ78: =AQ984 -> $3,210 | AW78: Living Room | AX78: $0 | BA78: SUBBED | BB78: =DIYED+BB77 -> $106,907
A79: =IFERROR(J75/Square_Feet,0) -> $36 /sf | B79: Contingency (5 to 25%) | J79: =H79*SUM(J75:M78) -> $0 | N79: =T('CATEGORY SETUP'!AD14:AZ14) -> MASONRY | U79: =AQ309 -> $0 | Y79: =T('CATEGORY SETUP'!AD22:AZ22) -> FRAMING & DRYWALL | AF79: =AQ669 -> $750 | AJ79: =T('CATEGORY SETUP'!AD30:AZ30) -> PLUMBING | AQ79: =AQ1029 -> $2,924 | AW79: Dining Room | AX79: $0
B80: Total Adders: | H80: =IFERROR(Estimator_Total_Adder_Amount/J75,0) -> 0% | J80: =SUM(J76:M79) -> $0 | N80: =T('CATEGORY SETUP'!AD15:AZ15) -> SIDING | U80: =AQ354 -> $0 | Y80: =T('CATEGORY SETUP'!AD23:AZ23) -> CABINETS & COUNTERTOPS | AF80: =AQ714 -> $11,446 | AJ80: =T('CATEGORY SETUP'!AD31:AZ31) -> HVAC | AQ80: =AQ1074 -> $484 | AW80: Basement | AX80: $0
B81: TOTAL ESTIMATE: | H81: =J75+J80 -> $53,454 | N81: =T('CATEGORY SETUP'!AD16:AZ16) -> DECKING AND PATIOS | U81: =AQ399 -> $1,071 | Y81: =T('CATEGORY SETUP'!AD24:AZ24) -> DOORS & TRIM | AF81: =AQ759 -> $2,409 | AJ81: =T('CATEGORY SETUP'!AD32:AZ32) -> ELECTRICAL | AQ81: =AQ1119 -> $2,296 | AW81: Other 1 | AX81: $0
N82: =T('CATEGORY SETUP'!AD17:AZ17) -> ROOFING | U82: =AQ444 -> $5,461 | Y82: =T('CATEGORY SETUP'!AD25:AZ25) -> CARPET & RESILIENT | AF82: =AQ804 -> $2,505 | AJ82: =T('CATEGORY SETUP'!AD33:AZ33) -> MISCELLANEOUS | AQ82: =AQ1164 -> $0 | AW82: Other 2 | AX82: $0 | BA82: LABOR, MATERIAL, SUB SORTER
B84: DIY (x) | D84: DESCRIPTION OF WORK | P84: QTY | S84: UNIT | U84: UNIT PRICES | AD84: =AD129+AD174+AD219+AD264+AD309+AD354+AD399+AD444+AD489+AD534+AD579+AD624+AD669+AD714+AD759+AD804+AD849+AD894+AD939+AD984+AD1029+AD1074+AD1119+AD1164 -> $20,973 | AG84: =AG129+AG174+AG219+AG264+AG309+AG354+AG399+AG444+AG489+AG534+AG579+AG624+AG669+AG714+AG759+AG804+AG849+AG894+AG939+AG984+AG1029+AG1074+AG1119+AG1164 -> $31,581 | AJ84: =AJ129+AJ174+AJ219+AJ264+AJ309+AJ354+AJ399+AJ444+AJ489+AJ534+AJ579+AJ624+AJ669+AJ714+AJ759+AJ804+AJ849+AJ894+AJ939+AJ984+AJ1029+AJ1074+AJ1119+AJ1164 -> $900 | AM84: =AM129+AM174+AM219+AM264+AM309+AM354+AM399+AM444+AM489+AM534+AM579+AM624+AM669+AM714+AM759+AM804+AM849+AM894+AM939+AM984+AM1029+AM1074+AM1119+AM1164 -> $0 | AQ84: =Labor_Estimate+Material_Estimate+Sub_Estimate -> $53,454 | AV84: WORK BREAKDOWN BY SCOPE OF WORK | AW84: ROOMS | AX84: STORE | AY84: SKU #s | AZ84: NOTES | BF84: =BF129+BF174+BF219+BF264+BF309+BF354+BF399+BF444+BF489+BF534+BF579+BF624+BF669+BF714+BF759+BF804+BF849+BF894+BF939+BF984+BF1029+BF1074+BF1119+BF1164 -> $106,907 | BG84: DIY SAVINGS | BI84: DIYED LABOR | BJ84: DIY SAVINGS | BK84: SUBBED LABOR
U85: LABOR/EQUIP | X85: MAT | Y85: 7.0% | AA85: SUB | AD85: LABOR/EQUIP | AG85: MAT | AJ85: SUB | AM85: DIY SAVINGS | AQ85: TOTAL | BA85: LABOR | BB85: MAT | BC85: SUB | BD85: DIY SORT | BE85: TOTAL | BF85: =AQ85 -> TOTAL | BG85: =AM85 -> DIY SAVINGS | BI85: DIYED LABOR | BJ85: DIY SAVINGS | BK85: SUBBED LABOR
A87: Visible | D87: =T(N75) -> GENERAL CONDITIONS | AD87: =AD129 -> $80 | AG87: =AG129 -> $455 | AJ87: =AJ129 -> $0 | AM87: =AM129 -> $0 | AQ87: =AQ129 -> $535 | AT87: =SUM(#REF!) ->  | AV87: =$D$87 -> GENERAL CONDITIONS | BA87: =SUM(BA88:BA127) -> 80 | BB87: =SUM(BB88:BB127) -> 454.75 | BC87: =SUM(BC88:BC127) -> 0 | BD87: =SUM(BD88:BD127) -> 0 | BE87: =SUM(BE88:BE127) -> 534.75 | BF87: =AQ87 -> 534.75 | BG87: =AM87 -> 0 | BI87: =AD87 -> $80.00 | BJ87: =AM87 -> $0.00 | BK87: =BJ87+BI87 -> $80.00
D88: Dumpster rental-40 yard | P88: 1 | S88: ea | X88: 425.00 | AD88: =((P88*U88)-AM88) -> $0 | AG88: =P88*X88*(1+$Y$85) -> $455 | AJ88: =P88*AA88 -> $0 | AM88: =IF($B88="x",$P88*$U88,0) -> $0 | AQ88: =SUM(AD88:AL88) -> $455 | AV88: GENERAL CONDITIONS | BA88: =AD88 -> 0 | BB88: =AG88 -> 454.75 | BC88: =AJ88 -> 0 | BD88: =IF(B88="x",1,0) -> 0 | BE88: =SUM(BA88:BC88) -> 454.75 | BF88: 454.75 | BG88: 0 | BI88: =AD88 -> $0.00 | BJ88: =AM88 -> $0.00 | BK88: =BJ88+BI88 -> $0.00
D89: Storage Container | S89: job | T89: job | X89: 200.00 | Z89: 200.00 | AD89: =((P89*U89)-AM89) -> $0 | AG89: =P89*X89*(1+$Y$85) -> $0 | AJ89: =P89*AA89 -> $0 | AM89: $0 | AQ89: =SUM(AD89:AL89) -> $0 | AV89: GENERAL CONDITIONS | BA89: 0 | BB89: =AG89 -> 0 | BC89: =AJ89 -> 0 | BD89: 0 | BE89: =SUM(BA89:BC89) -> 0 | BF89: 0 | BG89: 0 | BI89: =AD89 -> $0.00 | BJ89: =AM89 -> $0.00 | BK89: =BJ89+BI89 -> $0.00
D90: Chemical Toilet | S90: mo | T90: mo | X90: 85.00 | Z90: 85.00 | AD90: $0 | AG90: $0 | AJ90: $0 | AM90: $0 | AQ90: $0 | AV90: GENERAL CONDITIONS | BA90: 0 | BB90: 0 | BC90: 0 | BD90: 0 | BE90: 0 | BF90: 0 | BG90: 0 | BI90: $0.00 | BJ90: $0.00 | BK90: $0.00
D91: Misc. Tools & Materials | S91: ls | T91: mo | X91: 250.00 | Z91: 250.00 | AD91: $0 | AG91: $0 | AJ91: $0 | AM91: $0 | AQ91: $0 | AV91: GENERAL CONDITIONS | BA91: 0 | BB91: 0 | BC91: 0 | BD91: 0 | BE91: 0 | BF91: 0 | BG91: 0 | BI91: $0.00 | BJ91: $0.00 | BK91: $0.00
D92: Rekey/lock box | S92: ea | T92: mo | U92: 45.00 | X92: 50.00 | Z92: 50.00 | AD92: $0 | AG92: $0 | AJ92: $0 | AM92: $0 | AQ92: $0 | AV92: GENERAL CONDITIONS | BA92: 0 | BB92: 0 | BC92: 0 | BD92: 0 | BE92: 0 | BF92: 0 | BG92: 0 | BI92: $0.00 | BJ92: $0.00 | BK92: $0.00
D93: Turn on utilities | S93: ls | T93: mo | X93: 125.00 | Z93: 125.00 | AD93: $0 | AG93: $0 | AJ93: $0 | AM93: $0 | AQ93: $0 | AV93: GENERAL CONDITIONS | BA93: 0 | BB93: 0 | BC93: 0 | BD93: 0 | BE93: 0 | BF93: 0 | BG93: 0 | BI93: $0.00 | BJ93: $0.00 | BK93: $0.00
D94: Truck expense/car payment | S94: month | T94: mo | X94: 250.00 | Z94: 250.00 | AD94: $0 | AG94: $0 | AJ94: $0 | AM94: $0 | AQ94: $0 | AV94: GENERAL CONDITIONS | BA94: 0 | BB94: 0 | BC94: 0 | BD94: 0 | BE94: 0 | BF94: 0 | BG94: 0 | BI94: $0.00 | BJ94: $0.00 | BK94: $0.00
D95: Fuel/gas expense | S95: wk | T95: mo | X95: 50.00 | Z95: 50.00 | AD95: $0 | AG95: $0 | AJ95: $0 | AM95: $0 | AQ95: $0 | AV95: GENERAL CONDITIONS | BA95: 0 | BB95: 0 | BC95: 0 | BD95: 0 | BE95: 0 | BF95: 0 | BG95: 0 | BI95: $0.00 | BJ95: $0.00 | BK95: $0.00
D96: Project management | S96: wk | T96: mo | U96: 1250.00 | AD96: $0 | AG96: $0 | AJ96: $0 | AM96: $0 | AQ96: $0 | AV96: GENERAL CONDITIONS | BA96: 0 | BB96: 0 | BC96: 0 | BD96: 0 | BE96: 0 | BF96: 0 | BG96: 0 | BI96: $0.00 | BJ96: $0.00 | BK96: $0.00
D97: Architectural Fees | S97: hrs | T97: mo | AA97: 100.00 | AD97: $0 | AG97: $0 | AJ97: $0 | AM97: $0 | AQ97: $0 | AV97: GENERAL CONDITIONS | BA97: 0 | BB97: 0 | BC97: 0 | BD97: 0 | BE97: 0 | BF97: 0 | BG97: 0 | BI97: $0.00 | BJ97: $0.00 | BK97: $0.00
D98: Engineering Fees | S98: hrs | T98: mo | AA98: 125.00 | AD98: $0 | AG98: $0 | AJ98: $0 | AM98: $0 | AQ98: $0 | AV98: GENERAL CONDITIONS | BA98: 0 | BB98: 0 | BC98: 0 | BD98: 0 | BE98: 0 | BF98: 0 | BG98: 0 | BI98: $0.00 | BJ98: $0.00 | BK98: $0.00
D99: Professional Photography | S99: ls | T99: mo | AA99: 350.00 | AD99: $0 | AG99: $0 | AJ99: $0 | AM99: $0 | AQ99: $0 | AV99: GENERAL CONDITIONS | BA99: 0 | BB99: 0 | BC99: 0 | BD99: 0 | BE99: 0 | BF99: 0 | BG99: 0 | BI99: $0.00 | BJ99: $0.00 | BK99: $0.00
D100: Material Deliveries | S100: ea | T100: mo | X100: 75.00 | AD100: $0 | AG100: $0 | AJ100: $0 | AM100: $0 | AQ100: $0 | AV100: GENERAL CONDITIONS | BA100: 0 | BB100: 0 | BC100: 0 | BD100: 0 | BE100: 0 | BF100: 0 | BG100: 0 | BI100: $0.00 | BJ100: $0.00 | BK100: $0.00
D101: Final cleaning | P101: 4 | S101: hrs | U101: 20.00 | AD101: $80 | AG101: $0 | AJ101: $0 | AM101: $0 | AQ101: $80 | AV101: GENERAL CONDITIONS | BA101: 80 | BB101: 0 | BC101: 0 | BD101: 0 | BE101: 80 | BF101: 80 | BG101: 0 | BI101: $80.00 | BJ101: $0.00 | BK101: $80.00
AD102: $0 | AG102: $0 | AJ102: $0 | AM102: $0 | AQ102: $0 | AV102: GENERAL CONDITIONS | BA102: 0 | BB102: 0 | BC102: 0 | BD102: 0 | BE102: 0 | BF102: 0 | BG102: 0 | BI102: $0.00 | BJ102: $0.00 | BK102: $0.00
AD103: $0 | AG103: $0 | AJ103: $0 | AM103: $0 | AQ103: $0 | AV103: GENERAL CONDITIONS | BA103: 0 | BB103: 0 | BC103: 0 | BD103: 0 | BE103: 0 | BF103: 0 | BG103: 0 | BI103: $0.00 | BJ103: $0.00 | BK103: $0.00
AD104: $0 | AG104: $0 | AJ104: $0 | AM104: $0 | AQ104: $0 | AV104: GENERAL CONDITIONS | BA104: 0 | BB104: 0 | BC104: 0 | BD104: 0 | BE104: 0 | BF104: 0 | BG104: 0 | BI104: $0.00 | BJ104: $0.00 | BK104: $0.00
AD105: =((P105*U105)-AM105) -> $0 | AG105: $0 | AJ105: =P105*AA105 -> $0 | AM105: $0 | AQ105: =SUM(AD105:AL105) -> $0 | AV105: GENERAL CONDITIONS | BA105: =AD105 -> 0 | BB105: =AG105 -> 0 | BC105: =AJ105 -> 0 | BD105: =IF(B105="x",1,0) -> 0 | BE105: =SUM(BA105:BC105) -> 0 | BF105: =AQ105 -> 0 | BG105: =AM105 -> 0 | BI105: =AD105 -> $0.00 | BJ105: =AM105 -> $0.00 | BK105: =BJ105+BI105 -> $0.00
AD106: $0 | AG106: $0 | AJ106: $0 | AM106: $0 | AQ106: $0 | AV106: GENERAL CONDITIONS | BA106: 0 | BB106: 0 | BC106: 0 | BD106: 0 | BE106: 0 | BF106: 0 | BG106: 0 | BI106: $0.00 | BJ106: $0.00 | BK106: $0.00
AD107: $0 | AG107: $0 | AJ107: $0 | AM107: $0 | AQ107: $0 | AV107: GENERAL CONDITIONS | BA107: 0 | BB107: 0 | BC107: 0 | BD107: 0 | BE107: 0 | BF107: 0 | BG107: 0 | BI107: $0.00 | BJ107: $0.00 | BK107: $0.00
AD108: $0 | AG108: $0 | AJ108: $0 | AM108: $0 | AQ108: $0 | AV108: GENERAL CONDITIONS | BA108: 0 | BB108: 0 | BC108: 0 | BD108: 0 | BE108: 0 | BF108: 0 | BG108: 0 | BI108: $0.00 | BJ108: $0.00 | BK108: $0.00
AD109: $0 | AG109: $0 | AJ109: $0 | AM109: $0 | AQ109: $0 | AV109: GENERAL CONDITIONS | BA109: 0 | BB109: 0 | BC109: 0 | BD109: 0 | BE109: 0 | BF109: 0 | BG109: 0 | BI109: $0.00 | BJ109: $0.00 | BK109: $0.00
AD110: $0 | AG110: $0 | AJ110: $0 | AM110: $0 | AQ110: $0 | AV110: GENERAL CONDITIONS | BA110: 0 | BB110: 0 | BC110: 0 | BD110: 0 | BE110: 0 | BF110: 0 | BG110: 0 | BI110: $0.00 | BJ110: $0.00 | BK110: $0.00
AD111: $0 | AG111: $0 | AJ111: $0 | AM111: $0 | AQ111: $0 | AV111: GENERAL CONDITIONS | BA111: 0 | BB111: 0 | BC111: 0 | BD111: 0 | BE111: 0 | BF111: 0 | BG111: 0 | BI111: $0.00 | BJ111: $0.00 | BK111: $0.00
AD112: $0 | AG112: $0 | AJ112: $0 | AM112: $0 | AQ112: $0 | AV112: GENERAL CONDITIONS | BA112: 0 | BB112: 0 | BC112: 0 | BD112: 0 | BE112: 0 | BF112: 0 | BG112: 0 | BI112: $0.00 | BJ112: $0.00 | BK112: $0.00
AD113: $0 | AG113: $0 | AJ113: $0 | AM113: $0 | AQ113: $0 | AV113: GENERAL CONDITIONS | BA113: 0 | BB113: 0 | BC113: 0 | BD113: 0 | BE113: 0 | BF113: 0 | BG113: 0 | BI113: $0.00 | BJ113: $0.00 | BK113: $0.00
AD114: $0 | AG114: $0 | AJ114: $0 | AM114: $0 | AQ114: $0 | AV114: GENERAL CONDITIONS | BA114: 0 | BB114: 0 | BC114: 0 | BD114: 0 | BE114: 0 | BF114: 0 | BG114: 0 | BI114: $0.00 | BJ114: $0.00 | BK114: $0.00
AD115: $0 | AG115: $0 | AJ115: $0 | AM115: $0 | AQ115: $0 | AV115: GENERAL CONDITIONS | BA115: 0 | BB115: 0 | BC115: 0 | BD115: 0 | BE115: =SUM(BA115:BC115) -> 0 | BF115: 0 | BG115: 0 | BI115: $0.00 | BJ115: $0.00 | BK115: $0.00
AD116: $0 | AG116: $0 | AJ116: $0 | AM116: $0 | AQ116: $0 | AV116: GENERAL CONDITIONS | BA116: 0 | BB116: 0 | BC116: 0 | BD116: 0 | BE116: =SUM(BA116:BC116) -> 0 | BF116: 0 | BG116: 0 | BI116: $0.00 | BJ116: $0.00 | BK116: $0.00
AD117: =((P117*U117)-AM117) -> $0 | AG117: $0 | AJ117: =P117*AA117 -> $0 | AM117: $0 | AQ117: =SUM(AD117:AL117) -> $0 | AV117: GENERAL CONDITIONS | BA117: =AD117 -> 0 | BB117: =AG117 -> 0 | BC117: =AJ117 -> 0 | BD117: =IF(B117="x",1,0) -> 0 | BE117: =SUM(BA117:BC117) -> 0 | BF117: =AQ117 -> 0 | BG117: =AM117 -> 0 | BI117: =AD117 -> $0.00 | BJ117: =AM117 -> $0.00 | BK117: =BJ117+BI117 -> $0.00
AD118: =((P118*U118)-AM118) -> $0 | AG118: $0 | AJ118: =P118*AA118 -> $0 | AM118: $0 | AQ118: =SUM(AD118:AL118) -> $0 | AV118: GENERAL CONDITIONS | BA118: =AD118 -> 0 | BB118: =AG118 -> 0 | BC118: =AJ118 -> 0 | BD118: =IF(B118="x",1,0) -> 0 | BE118: =SUM(BA118:BC118) -> 0 | BF118: =AQ118 -> 0 | BG118: =AM118 -> 0 | BI118: =AD118 -> $0.00 | BJ118: =AM118 -> $0.00 | BK118: =BJ118+BI118 -> $0.00
AD119: =((P119*U119)-AM119) -> $0 | AG119: $0 | AJ119: =P119*AA119 -> $0 | AM119: $0 | AQ119: =SUM(AD119:AL119) -> $0 | AV119: GENERAL CONDITIONS | BA119: =AD119 -> 0 | BB119: =AG119 -> 0 | BC119: =AJ119 -> 0 | BD119: =IF(B119="x",1,0) -> 0 | BE119: =SUM(BA119:BC119) -> 0 | BF119: =AQ119 -> 0 | BG119: =AM119 -> 0 | BI119: =AD119 -> $0.00 | BJ119: =AM119 -> $0.00 | BK119: =BJ119+BI119 -> $0.00
AD120: $0 | AG120: $0 | AJ120: $0 | AM120: $0 | AQ120: $0 | AV120: GENERAL CONDITIONS | BA120: 0 | BB120: 0 | BC120: 0 | BD120: 0 | BE120: 0 | BF120: 0 | BG120: 0 | BI120: $0.00 | BJ120: $0.00 | BK120: $0.00
AD121: $0 | AG121: $0 | AJ121: $0 | AM121: $0 | AQ121: $0 | AV121: GENERAL CONDITIONS | BA121: 0 | BB121: 0 | BC121: 0 | BD121: 0 | BE121: =SUM(BA121:BC121) -> 0 | BF121: 0 | BG121: 0 | BI121: $0.00 | BJ121: $0.00 | BK121: $0.00
AD122: $0 | AG122: $0 | AJ122: $0 | AM122: $0 | AQ122: $0 | AV122: GENERAL CONDITIONS | BA122: 0 | BB122: 0 | BC122: 0 | BD122: 0 | BE122: 0 | BF122: 0 | BG122: 0 | BI122: $0.00 | BJ122: $0.00 | BK122: $0.00
AD123: =((P123*U123)-AM123) -> $0 | AG123: $0 | AJ123: =P123*AA123 -> $0 | AM123: $0 | AQ123: =SUM(AD123:AL123) -> $0 | AV123: GENERAL CONDITIONS | BA123: =AD123 -> 0 | BB123: =AG123 -> 0 | BC123: =AJ123 -> 0 | BD123: =IF(B123="x",1,0) -> 0 | BE123: 0 | BF123: =AQ123 -> 0 | BG123: =AM123 -> 0 | BI123: =AD123 -> $0.00 | BJ123: =AM123 -> $0.00 | BK123: =BJ123+BI123 -> $0.00
AD124: =((P124*U124)-AM124) -> $0 | AG124: $0 | AJ124: =P124*AA124 -> $0 | AM124: $0 | AQ124: =SUM(AD124:AL124) -> $0 | AV124: GENERAL CONDITIONS | BA124: =AD124 -> 0 | BB124: =AG124 -> 0 | BC124: =AJ124 -> 0 | BD124: =IF(B124="x",1,0) -> 0 | BE124: 0 | BF124: =AQ124 -> 0 | BG124: =AM124 -> 0 | BI124: =AD124 -> $0.00 | BJ124: =AM124 -> $0.00 | BK124: =BJ124+BI124 -> $0.00
AD125: =((P125*U125)-AM125) -> $0 | AG125: $0 | AJ125: =P125*AA125 -> $0 | AM125: $0 | AQ125: =SUM(AD125:AL125) -> $0 | AV125: GENERAL CONDITIONS | BA125: =AD125 -> 0 | BB125: =AG125 -> 0 | BC125: =AJ125 -> 0 | BD125: =IF(B125="x",1,0) -> 0 | BE125: 0 | BF125: =AQ125 -> 0 | BG125: =AM125 -> 0 | BI125: =AD125 -> $0.00 | BJ125: =AM125 -> $0.00 | BK125: =BJ125+BI125 -> $0.00
AD126: =((P126*U126)-AM126) -> $0 | AG126: $0 | AJ126: =P126*AA126 -> $0 | AM126: $0 | AQ126: =SUM(AD126:AL126) -> $0 | AV126: GENERAL CONDITIONS | BA126: =AD126 -> 0 | BB126: =AG126 -> 0 | BC126: =AJ126 -> 0 | BD126: =IF(B126="x",1,0) -> 0 | BE126: 0 | BF126: =AQ126 -> 0 | BG126: =AM126 -> 0 | BI126: =AD126 -> $0.00 | BJ126: =AM126 -> $0.00 | BK126: =BJ126+BI126 -> $0.00
AD127: =((P127*U127)-AM127) -> $0 | AG127: $0 | AJ127: =P127*AA127 -> $0 | AM127: $0 | AQ127: =SUM(AD127:AL127) -> $0 | AV127: GENERAL CONDITIONS | BA127: =AD127 -> 0 | BB127: =AG127 -> 0 | BC127: =AJ127 -> 0 | BD127: =IF(B127="x",1,0) -> 0 | BE127: 0 | BF127: =AQ127 -> 0 | BG127: =AM127 -> 0 | BI127: =AD127 -> $0.00 | BJ127: =AM127 -> $0.00 | BK127: =BJ127+BI127 -> $0.00
AV128: GENERAL CONDITIONS | BA128: =BA87 -> $80 | BB128: =BB87 -> $455 | BC128: =BC87 -> $0 | BD128: =BD87 -> $0 | BE128: =BE87 -> $535
AC129: =CONCATENATE(D87," ","TOTAL") -> GENERAL CONDITIONS TOTAL | AD129: =SUBTOTAL(9,AD88:AD128) -> $80 | AG129: =SUBTOTAL(9,AG88:AG128) -> $455 | AJ129: =SUBTOTAL(9,AJ88:AJ128) -> $0 | AM129: =SUBTOTAL(9,AM88:AM128) -> $0 | AQ129: =SUBTOTAL(9,AQ88:AQ128) -> $535 | AT129: =SUM(AT85:AT120) ->  | AV129: GENERAL CONDITIONS | BA129: =BA87 -> 80 | BB129: =BB87 -> 454.75 | BC129: =BC87 -> 0 | BD129: =BD87 -> 0 | BE129: =BE87 -> 534.75 | BF129: =SUM(BF87:BF128) -> 1069.5 | BG129: =SUM(BG87:BG128) -> 0 | BI129: =SUM(BI88:BI128) -> 80 | BJ129: =SUM(BJ88:BJ128) -> 0 | BK129: =SUM(BK88:BK128) -> 80
AV130: GENERAL CONDITIONS | BA130: =BA87 -> $80 | BB130: =BB87 -> $455 | BC130: =BC87 -> $0 | BD130: =BD87 -> $0 | BE130: =BE87 -> $535
BA131: =BA129 -> 80 | BB131: =BB129 -> 454.75 | BC131: =BC129 -> 0 | BD131: 0 | BE131: 534.75 | BF131: 1069.5 | BG131: 0
A132: Hidden | D132: =T(N76) -> DEMOLITION | AD132: =AD174 -> $1,600 | AG132: =AG174 -> $0 | AJ132: =AJ174 -> $0 | AM132: =AM174 -> $0 | AQ132: =AQ174 -> $1,600 | AT132: =SUM(#REF!) ->  | AV132: =$D$132 -> DEMOLITION | BA132: =SUM(BA133:BA172) -> 1600 | BB132: =SUM(BB133:BB172) -> 0 | BC132: =SUM(BC133:BC172) -> 0 | BD132: =SUM(BD133:BD172) -> 0 | BE132: =SUM(BE133:BE172) -> 1600 | BF132: =AQ132 -> 1600 | BG132: =AM132 -> 0 | BI132: =AD132 -> $1,600.00 | BJ132: =AM132 -> $0.00 | BK132: =BJ132+BI132 -> $1,600.00
D133: Demolition | S133: ls | T133: hrs | AD133: =((P133*U133)-AM133) -> $0 | AG133: =P133*X133*(1+$Y$85) -> $0 | AJ133: =P133*AA133 -> $0 | AM133: =IF($B133="x",$P133*$U133,0) -> $0 | AQ133: =SUM(AD133:AL133) -> $0 | AT133: =SUM(AD133:AL133) -> $0 | AV133: DEMOLITION | BA133: =AD133 -> 0 | BB133: =AG133 -> 0 | BC133: =AJ133 -> 0 | BD133: =IF(B133="x",1,0) -> 0 | BE133: =SUM(BA133:BC133) -> 0 | BF133: 0 | BG133: 0 | BI133: =AD133 -> $0.00 | BJ133: =AM133 -> $0.00 | BK133: =BJ133+BI133 -> $0.00
D134: Demo bid/allowance | S134: ls | T134: ls | AD134: $0 | AG134: =P134*X134*(1+$Y$85) -> $0 | AJ134: $0 | AM134: $0 | AQ134: $0 | AT134: $0 | AV134: DEMOLITION | BA134: 0 | BB134: =AG134 -> 0 | BC134: =AJ134 -> 0 | BD134: 0 | BE134: =SUM(BA134:BC134) -> 0 | BF134: 0 | BG134: 0 | BI134: =AD134 -> $0.00 | BJ134: $0.00 | BK134: =BJ134+BI134 -> $0.00
D135: Demolition work per hour | P135: 80 | S135: hrs | U135: 20.00 | AD135: $1,600 | AG135: $0 | AJ135: $0 | AM135: $0 | AQ135: $1,600 | AT135: $1,600 | AV135: DEMOLITION | BA135: 1600 | BB135: 0 | BC135: 0 | BD135: 0 | BE135: 1600 | BF135: 1600 | BG135: 0 | BI135: $1,600.00 | BJ135: $0.00 | BK135: $1,600.00
D136: Room demolition, typical room | S136: sf | U136: 0.50 | AD136: $0 | AG136: $0 | AJ136: $0 | AM136: $0 | AQ136: $0 | AT136: $0 | AV136: DEMOLITION | BA136: 0 | BB136: 0 | BC136: 0 | BD136: 0 | BE136: 0 | BF136: 0 | BG136: 0 | BI136: $0.00 | BJ136: $0.00 | BK136: $0.00
D137: Room demolition, bathroom | S137: sf | U137: 5.00 | AD137: $0 | AG137: $0 | AJ137: $0 | AM137: $0 | AQ137: $0 | AT137: $0 | AV137: DEMOLITION | BA137: 0 | BB137: 0 | BC137: 0 | BD137: 0 | BE137: 0 | BF137: 0 | BG137: 0 | BI137: $0.00 | BJ137: $0.00 | BK137: $0.00
D138: Room demolition, kitchen | S138: sf | U138: 4.00 | AD138: $0 | AG138: $0 | AJ138: $0 | AM138: $0 | AQ138: $0 | AT138: $0 | AV138: DEMOLITION | BA138: 0 | BB138: 0 | BC138: 0 | BD138: 0 | BE138: 0 | BF138: 0 | BG138: 0 | BI138: $0.00 | BJ138: $0.00 | BK138: $0.00
D139: Building demolition, 1-story wood-framed | S139: sf | U139: 4.00 | AD139: $0 | AG139: $0 | AJ139: $0 | AM139: $0 | AQ139: $0 | AT139: $0 | AV139: DEMOLITION | BA139: 0 | BB139: 0 | BC139: 0 | BD139: 0 | BE139: 0 | BF139: 0 | BG139: 0 | BI139: $0.00 | BJ139: $0.00 | BK139: $0.00
D140: Building demolition, 2-story wood framed | S140: sf | U140: 4.25 | AD140: $0 | AG140: $0 | AJ140: $0 | AM140: $0 | AQ140: $0 | AT140: $0 | AV140: DEMOLITION | BA140: 0 | BB140: 0 | BC140: 0 | BD140: 0 | BE140: 0 | BF140: 0 | BG140: 0 | BI140: $0.00 | BJ140: $0.00 | BK140: $0.00
D141: Building demolition, masonry | S141: sf | U141: 5.00 | AD141: $0 | AG141: $0 | AJ141: $0 | AM141: $0 | AQ141: $0 | AT141: $0 | AV141: DEMOLITION | BA141: 0 | BB141: 0 | BC141: 0 | BD141: 0 | BE141: 0 | BF141: 0 | BG141: 0 | BI141: $0.00 | BJ141: $0.00 | BK141: $0.00
D142: Building demolition, steel/concrete | S142: sf | U142: 6.00 | AD142: $0 | AG142: $0 | AJ142: $0 | AM142: $0 | AQ142: $0 | AT142: $0 | AV142: DEMOLITION | BA142: 0 | BB142: 0 | BC142: 0 | BD142: 0 | BE142: 0 | BF142: 0 | BG142: 0 | BI142: $0.00 | BJ142: $0.00 | BK142: $0.00
D143: Concrete slab demolition, 4"-6" | U143: 4.00 | AD143: $0 | AG143: $0 | AJ143: $0 | AM143: $0 | AQ143: $0 | AT143: $0 | AV143: DEMOLITION | BA143: 0 | BB143: 0 | BC143: 0 | BD143: 0 | BE143: 0 | BF143: 0 | BG143: 0 | BI143: $0.00 | BJ143: $0.00 | BK143: $0.00
AD144: $0 | AG144: $0 | AJ144: $0 | AM144: $0 | AQ144: $0 | AT144: $0 | AV144: DEMOLITION | BA144: 0 | BB144: 0 | BC144: 0 | BD144: 0 | BE144: 0 | BF144: 0 | BG144: 0 | BI144: $0.00 | BJ144: $0.00 | BK144: $0.00
AD145: $0 | AG145: $0 | AJ145: $0 | AM145: $0 | AQ145: $0 | AT145: $0 | AV145: DEMOLITION | BA145: 0 | BB145: 0 | BC145: 0 | BD145: 0 | BE145: 0 | BF145: 0 | BG145: 0 | BI145: $0.00 | BJ145: $0.00 | BK145: $0.00
D146: Abatement | S146: ls | AD146: $0 | AG146: $0 | AJ146: $0 | AM146: $0 | AQ146: $0 | AT146: $0 | AV146: DEMOLITION | BA146: 0 | BB146: 0 | BC146: 0 | BD146: 0 | BE146: 0 | BF146: 0 | BG146: 0 | BI146: $0.00 | BJ146: $0.00 | BK146: $0.00
D147: Asbestos bid/allowance | S147: ls | T147: ls | AD147: $0 | AG147: $0 | AJ147: $0 | AM147: $0 | AQ147: $0 | AT147: $0 | AV147: DEMOLITION | BA147: 0 | BB147: 0 | BC147: 0 | BD147: 0 | BE147: 0 | BF147: 0 | BG147: 0 | BI147: $0.00 | BJ147: $0.00 | BK147: $0.00
D148: Asbestos testing | S148: ea | AA148: 225.00 | AD148: $0 | AG148: $0 | AJ148: $0 | AM148: $0 | AQ148: $0 | AT148: $0 | AV148: DEMOLITION | BA148: 0 | BB148: 0 | BC148: 0 | BD148: 0 | BE148: 0 | BF148: 0 | BG148: 0 | BI148: $0.00 | BJ148: $0.00 | BK148: $0.00
D149: Asbestos abatement, minimum charge | S149: ea | AA149: 2500.00 | AD149: $0 | AG149: $0 | AJ149: $0 | AM149: $0 | AQ149: $0 | AT149: $0 | AV149: DEMOLITION | BA149: 0 | BB149: 0 | BC149: 0 | BD149: 0 | BE149: 0 | BF149: 0 | BG149: 0 | BI149: $0.00 | BJ149: $0.00 | BK149: $0.00
D150: Mold, minimum charge | AA150: 2500.00 | AD150: $0 | AG150: $0 | AJ150: $0 | AM150: $0 | AQ150: $0 | AT150: $0 | AV150: DEMOLITION | BA150: 0 | BB150: 0 | BC150: 0 | BD150: 0 | BE150: 0 | BF150: 0 | BG150: 0 | BI150: $0.00 | BJ150: $0.00 | BK150: $0.00
AD151: =((P151*U151)-AM151) -> $0 | AG151: $0 | AJ151: =P151*AA151 -> $0 | AM151: $0 | AQ151: =SUM(AD151:AL151) -> $0 | AT151: =SUM(AD151:AL151) -> $0 | AV151: DEMOLITION | BA151: =AD151 -> 0 | BB151: =AG151 -> 0 | BC151: =AJ151 -> 0 | BD151: =IF(B151="x",1,0) -> 0 | BE151: =SUM(BA151:BC151) -> 0 | BF151: =AQ151 -> 0 | BG151: =AM151 -> 0 | BI151: =AD151 -> $0.00 | BJ151: =AM151 -> $0.00 | BK151: =BJ151+BI151 -> $0.00
AD152: $0 | AG152: $0 | AJ152: $0 | AM152: $0 | AQ152: $0 | AT152: $0 | AV152: DEMOLITION | BA152: 0 | BB152: 0 | BC152: 0 | BD152: 0 | BE152: 0 | BF152: 0 | BG152: 0 | BI152: $0.00 | BJ152: $0.00 | BK152: $0.00
AD153: $0 | AG153: $0 | AJ153: $0 | AM153: $0 | AQ153: $0 | AT153: $0 | AV153: DEMOLITION | BA153: 0 | BB153: 0 | BC153: 0 | BD153: 0 | BE153: 0 | BF153: 0 | BG153: 0 | BI153: $0.00 | BJ153: $0.00 | BK153: $0.00
AD154: $0 | AG154: $0 | AJ154: $0 | AM154: $0 | AQ154: $0 | AT154: $0 | AV154: DEMOLITION | BA154: 0 | BB154: 0 | BC154: 0 | BD154: 0 | BE154: 0 | BF154: 0 | BG154: 0 | BI154: $0.00 | BJ154: $0.00 | BK154: $0.00
AD155: $0 | AG155: $0 | AJ155: $0 | AM155: $0 | AQ155: $0 | AT155: $0 | AV155: DEMOLITION | BA155: 0 | BB155: 0 | BC155: 0 | BD155: 0 | BE155: 0 | BF155: 0 | BG155: 0 | BI155: $0.00 | BJ155: $0.00 | BK155: $0.00
AD156: $0 | AG156: $0 | AJ156: $0 | AM156: $0 | AQ156: $0 | AT156: $0 | AV156: DEMOLITION | BA156: 0 | BB156: 0 | BC156: 0 | BD156: 0 | BE156: 0 | BF156: 0 | BG156: 0 | BI156: $0.00 | BJ156: $0.00 | BK156: $0.00
AD157: $0 | AG157: $0 | AJ157: $0 | AM157: $0 | AQ157: $0 | AT157: $0 | AV157: DEMOLITION | BA157: 0 | BB157: 0 | BC157: 0 | BD157: 0 | BE157: 0 | BF157: 0 | BG157: 0 | BI157: $0.00 | BJ157: $0.00 | BK157: $0.00
AD158: $0 | AG158: $0 | AJ158: $0 | AM158: $0 | AQ158: $0 | AT158: $0 | AV158: DEMOLITION | BA158: 0 | BB158: 0 | BC158: 0 | BD158: 0 | BE158: 0 | BF158: 0 | BG158: 0 | BI158: $0.00 | BJ158: $0.00 | BK158: $0.00
AD159: $0 | AG159: $0 | AJ159: $0 | AM159: $0 | AQ159: $0 | AT159: $0 | AV159: DEMOLITION | BA159: 0 | BB159: 0 | BC159: 0 | BD159: 0 | BE159: 0 | BF159: 0 | BG159: 0 | BI159: $0.00 | BJ159: $0.00 | BK159: $0.00
AD160: $0 | AG160: $0 | AJ160: $0 | AM160: $0 | AQ160: $0 | AT160: $0 | AV160: DEMOLITION | BA160: 0 | BB160: 0 | BC160: 0 | BD160: 0 | BE160: 0 | BF160: 0 | BG160: 0 | BI160: $0.00 | BJ160: $0.00 | BK160: $0.00
AD161: =((P161*U161)-AM161) -> $0 | AG161: $0 | AJ161: =P161*AA161 -> $0 | AM161: $0 | AQ161: =SUM(AD161:AL161) -> $0 | AT161: =SUM(AD161:AL161) -> $0 | AV161: DEMOLITION | BA161: =AD161 -> 0 | BB161: =AG161 -> 0 | BC161: =AJ161 -> 0 | BD161: =IF(B161="x",1,0) -> 0 | BE161: 0 | BF161: =AQ161 -> 0 | BG161: =AM161 -> 0 | BI161: =AD161 -> $0.00 | BJ161: =AM161 -> $0.00 | BK161: =BJ161+BI161 -> $0.00
AD162: $0 | AG162: $0 | AJ162: $0 | AM162: $0 | AQ162: $0 | AT162: $0 | AV162: DEMOLITION | BA162: 0 | BB162: 0 | BC162: 0 | BD162: 0 | BE162: 0 | BF162: 0 | BG162: 0 | BI162: $0.00 | BJ162: $0.00 | BK162: $0.00
AD163: =((P163*U163)-AM163) -> $0 | AG163: $0 | AJ163: =P163*AA163 -> $0 | AM163: $0 | AQ163: =SUM(AD163:AL163) -> $0 | AT163: =SUM(AD163:AL163) -> $0 | AV163: DEMOLITION | BA163: =AD163 -> 0 | BB163: =AG163 -> 0 | BC163: =AJ163 -> 0 | BD163: =IF(B163="x",1,0) -> 0 | BE163: 0 | BF163: =AQ163 -> 0 | BG163: =AM163 -> 0 | BI163: =AD163 -> $0.00 | BJ163: =AM163 -> $0.00 | BK163: =BJ163+BI163 -> $0.00
AD164: =((P164*U164)-AM164) -> $0 | AG164: $0 | AJ164: =P164*AA164 -> $0 | AM164: $0 | AQ164: =SUM(AD164:AL164) -> $0 | AT164: =SUM(AD164:AL164) -> $0 | AV164: DEMOLITION | BA164: =AD164 -> 0 | BB164: =AG164 -> 0 | BC164: =AJ164 -> 0 | BD164: =IF(B164="x",1,0) -> 0 | BE164: 0 | BF164: =AQ164 -> 0 | BG164: =AM164 -> 0 | BI164: =AD164 -> $0.00 | BJ164: =AM164 -> $0.00 | BK164: =BJ164+BI164 -> $0.00
AD165: $0 | AG165: $0 | AJ165: $0 | AM165: $0 | AQ165: $0 | AT165: $0 | AV165: DEMOLITION | BA165: 0 | BB165: 0 | BC165: 0 | BD165: 0 | BE165: 0 | BF165: 0 | BG165: 0 | BI165: $0.00 | BJ165: $0.00 | BK165: $0.00
AD166: $0 | AG166: $0 | AJ166: $0 | AM166: $0 | AQ166: $0 | AT166: $0 | AV166: DEMOLITION | BA166: 0 | BB166: 0 | BC166: 0 | BD166: 0 | BE166: 0 | BF166: 0 | BG166: 0 | BI166: $0.00 | BJ166: $0.00 | BK166: $0.00
AD167: $0 | AG167: $0 | AJ167: $0 | AM167: $0 | AQ167: $0 | AT167: $0 | AV167: DEMOLITION | BA167: 0 | BB167: 0 | BC167: 0 | BD167: 0 | BE167: 0 | BF167: 0 | BG167: 0 | BI167: $0.00 | BJ167: $0.00 | BK167: $0.00
AD168: $0 | AG168: $0 | AJ168: $0 | AM168: $0 | AQ168: $0 | AT168: $0 | AV168: DEMOLITION | BA168: 0 | BB168: 0 | BC168: 0 | BD168: 0 | BE168: 0 | BF168: 0 | BG168: 0 | BI168: $0.00 | BJ168: $0.00 | BK168: $0.00
AD169: =((P169*U169)-AM169) -> $0 | AG169: $0 | AJ169: =P169*AA169 -> $0 | AM169: $0 | AQ169: =SUM(AD169:AL169) -> $0 | AT169: =SUM(AD169:AL169) -> $0 | AV169: DEMOLITION | BA169: =AD169 -> 0 | BB169: =AG169 -> 0 | BC169: =AJ169 -> 0 | BD169: =IF(B169="x",1,0) -> 0 | BE169: 0 | BF169: =AQ169 -> 0 | BG169: =AM169 -> 0 | BI169: =AD169 -> $0.00 | BJ169: =AM169 -> $0.00 | BK169: =BJ169+BI169 -> $0.00
AD170: =((P170*U170)-AM170) -> $0 | AG170: $0 | AJ170: =P170*AA170 -> $0 | AM170: $0 | AQ170: =SUM(AD170:AL170) -> $0 | AT170: =SUM(AD170:AL170) -> $0 | AV170: DEMOLITION | BA170: =AD170 -> 0 | BB170: =AG170 -> 0 | BC170: =AJ170 -> 0 | BD170: =IF(B170="x",1,0) -> 0 | BE170: 0 | BF170: =AQ170 -> 0 | BG170: =AM170 -> 0 | BI170: =AD170 -> $0.00 | BJ170: =AM170 -> $0.00 | BK170: =BJ170+BI170 -> $0.00
AD171: $0 | AG171: $0 | AJ171: $0 | AM171: $0 | AQ171: $0 | AT171: $0 | AV171: DEMOLITION | BA171: 0 | BB171: 0 | BC171: 0 | BD171: 0 | BE171: 0 | BF171: 0 | BG171: 0 | BI171: $0.00 | BJ171: $0.00 | BK171: $0.00
AD172: $0 | AG172: $0 | AJ172: $0 | AM172: $0 | AQ172: $0 | AT172: $0 | AV172: DEMOLITION | BA172: 0 | BB172: 0 | BC172: 0 | BD172: 0 | BE172: 0 | BF172: 0 | BG172: 0 | BI172: $0.00 | BJ172: $0.00 | BK172: $0.00
AV173: DEMOLITION | BA173: =BA132 -> $1,600 | BB173: =BB132 -> $0 | BC173: =BC132 -> $0 | BD173: =BD132 -> $0 | BE173: =BE132 -> $1,600
AC174: =CONCATENATE(D132," ","TOTAL") -> DEMOLITION TOTAL | AD174: =SUBTOTAL(9,AD133:AD173) -> $1,600 | AG174: =SUBTOTAL(9,AG133:AG173) -> $0 | AJ174: =SUBTOTAL(9,AJ133:AJ173) -> $0 | AM174: =SUBTOTAL(9,AM133:AM173) -> $0 | AQ174: =SUBTOTAL(9,AQ133:AQ173) -> $1,600 | AT174: =SUM(AT130:AT165) ->  | AV174: DEMOLITION | BA174: =BA132 -> 1600 | BB174: =BB132 -> 0 | BC174: =BC132 -> 0 | BD174: =BD132 -> 0 | BE174: =BE132 -> 1600 | BF174: =SUM(BF132:BF173) -> 3200 | BG174: =SUM(BG132:BG173) -> 0 | BI174: =SUM(BI133:BI173) -> 1600 | BJ174: =SUM(BJ133:BJ173) -> 0 | BK174: =SUM(BK133:BK173) -> 1600
AV175: DEMOLITION | BA175: =BA132 -> $1,600 | BB175: =BB132 -> $0 | BC175: =BC132 -> $0 | BD175: =BD132 -> $0 | BE175: =BE132 -> $1,600
AV176: DEMOLITION | BA176: =BA174 -> 1600 | BB176: =BB174 -> 0 | BC176: =BC174 -> 0 | BD176: 0 | BE176: 1600 | BF176: 3200 | BG176: 0
A177: Hidden | D177: =T(N77) -> STRUCTURAL CONCRETE | AD177: =AD219 -> $0 | AG177: =AG219 -> $0 | AJ177: =AJ219 -> $0 | AM177: =AM219 -> $0 | AQ177: =AQ219 -> $0 | AT177: =SUM(#REF!) ->  | AV177: =$D$177 -> STRUCTURAL CONCRETE | BA177: =SUM(BA178:BA217) -> 0 | BB177: =SUM(BB178:BB217) -> 0 | BC177: =SUM(BC178:BC217) -> 0 | BD177: =SUM(BD178:BD217) -> 0 | BE177: =SUM(BE178:BE217) -> 0 | BF177: =AQ177 -> 0 | BG177: =AM177 -> 0 | BI177: =AD177 -> $0.00 | BJ177: =AM177 -> $0.00 | BK177: =BJ177+BI177 -> $0.00
D178: Excavation | AD178: =((P178*U178)-AM178) -> $0 | AG178: =P178*X178*(1+$Y$85) -> $0 | AJ178: =P178*AA178 -> $0 | AM178: =IF($B178="x",$P178*$U178,0) -> $0 | AQ178: =SUM(AD178:AL178) -> $0 | AT178: =SUM(AD178:AL178) -> $0 | AV178: STRUCTURAL CONCRETE | BA178: =AD178 -> 0 | BB178: =AG178 -> 0 | BC178: =AJ178 -> 0 | BD178: =IF(B178="x",1,0) -> 0 | BE178: =SUM(BA178:BC178) -> 0 | BF178: 0 | BG178: 0 | BI178: =AD178 -> $0.00 | BJ178: =AM178 -> $0.00 | BK178: =BJ178+BI178 -> $0.00
D179: Excavation bid/allowance | S179: ls | T179: ls | AD179: $0 | AG179: =P179*X179*(1+$Y$85) -> $0 | AJ179: $0 | AM179: $0 | AQ179: $0 | AT179: $0 | AV179: STRUCTURAL CONCRETE | BA179: 0 | BB179: =AG179 -> 0 | BC179: =AJ179 -> 0 | BD179: 0 | BE179: =SUM(BA179:BC179) -> 0 | BF179: 0 | BG179: 0 | BI179: =AD179 -> $0.00 | BJ179: $0.00 | BK179: =BJ179+BI179 -> $0.00
D180: Footing trenching | S180: cy | T180: lf | U180: 25.00 | AD180: $0 | AG180: $0 | AJ180: $0 | AM180: $0 | AQ180: $0 | AT180: $0 | AV180: STRUCTURAL CONCRETE | BA180: 0 | BB180: 0 | BC180: 0 | BD180: 0 | BE180: 0 | BF180: 0 | BG180: 0 | BI180: $0.00 | BJ180: $0.00 | BK180: $0.00
D181: Backfill of trenches | S181: cy | T181: lf | U181: 15.00 | AD181: $0 | AG181: $0 | AJ181: $0 | AM181: $0 | AQ181: $0 | AT181: $0 | AV181: STRUCTURAL CONCRETE | BA181: 0 | BB181: 0 | BC181: 0 | BD181: 0 | BE181: 0 | BF181: 0 | BG181: 0 | BI181: $0.00 | BJ181: $0.00 | BK181: $0.00
AD182: $0 | AG182: $0 | AJ182: $0 | AM182: $0 | AQ182: $0 | AT182: $0 | AV182: STRUCTURAL CONCRETE | BA182: 0 | BB182: 0 | BC182: 0 | BD182: 0 | BE182: 0 | BF182: 0 | BG182: 0 | BI182: $0.00 | BJ182: $0.00 | BK182: $0.00
AD183: $0 | AG183: $0 | AJ183: $0 | AM183: $0 | AQ183: $0 | AT183: $0 | AV183: STRUCTURAL CONCRETE | BA183: 0 | BB183: 0 | BC183: 0 | BD183: 0 | BE183: 0 | BF183: 0 | BG183: 0 | BI183: $0.00 | BJ183: $0.00 | BK183: $0.00
D184: Foundation | AD184: $0 | AG184: $0 | AJ184: $0 | AM184: $0 | AQ184: $0 | AT184: $0 | AV184: STRUCTURAL CONCRETE | BA184: 0 | BB184: 0 | BC184: 0 | BD184: 0 | BE184: 0 | BF184: 0 | BG184: 0 | BI184: $0.00 | BJ184: $0.00 | BK184: $0.00
D185: Foundation bid/allowance | S185: ls | T185: ls | AD185: $0 | AG185: $0 | AJ185: $0 | AM185: $0 | AQ185: $0 | AT185: $0 | AV185: STRUCTURAL CONCRETE | BA185: 0 | BB185: 0 | BC185: 0 | BD185: 0 | BE185: 0 | BF185: 0 | BG185: 0 | BI185: $0.00 | BJ185: $0.00 | BK185: $0.00
D186: Concrete slab on grade, 4" thick | S186: sf | T186: ls | U186: 3.00 | X186: 2.50 | Z186: 2.50 | AD186: $0 | AG186: $0 | AJ186: $0 | AM186: $0 | AQ186: $0 | AT186: $0 | AV186: STRUCTURAL CONCRETE | BA186: 0 | BB186: 0 | BC186: 0 | BD186: 0 | BE186: 0 | BF186: 0 | BG186: 0 | BI186: $0.00 | BJ186: $0.00 | BK186: $0.00
D187: Concrete footing, 12" wide | S187: lf | T187: lf | U187: 25.00 | X187: 15.00 | Z187: 10.00 | AD187: $0 | AG187: $0 | AJ187: $0 | AM187: $0 | AQ187: $0 | AT187: $0 | AV187: STRUCTURAL CONCRETE | BA187: 0 | BB187: 0 | BC187: 0 | BD187: 0 | BE187: 0 | BF187: 0 | BG187: 0 | BI187: $0.00 | BJ187: $0.00 | BK187: $0.00
D188: Stem wall, single story | S188: lf | T188: lf | U188: 115.00 | X188: 30.00 | Z188: 30.00 | AD188: $0 | AG188: $0 | AJ188: $0 | AM188: $0 | AQ188: $0 | AT188: $0 | AV188: STRUCTURAL CONCRETE | BA188: 0 | BB188: 0 | BC188: 0 | BD188: 0 | BE188: 0 | BF188: 0 | BG188: 0 | BI188: $0.00 | BJ188: $0.00 | BK188: $0.00
AD189: $0 | AG189: $0 | AJ189: $0 | AM189: $0 | AQ189: $0 | AT189: $0 | AV189: STRUCTURAL CONCRETE | BA189: 0 | BB189: 0 | BC189: 0 | BD189: 0 | BE189: 0 | BF189: 0 | BG189: 0 | BI189: $0.00 | BJ189: $0.00 | BK189: $0.00
AD190: $0 | AG190: $0 | AJ190: $0 | AM190: $0 | AQ190: $0 | AT190: $0 | AV190: STRUCTURAL CONCRETE | BA190: 0 | BB190: 0 | BC190: 0 | BD190: 0 | BE190: 0 | BF190: 0 | BG190: 0 | BI190: $0.00 | BJ190: $0.00 | BK190: $0.00
D191: Structural Repairs | AD191: $0 | AG191: $0 | AJ191: $0 | AM191: $0 | AQ191: $0 | AT191: $0 | AV191: STRUCTURAL CONCRETE | BA191: 0 | BB191: 0 | BC191: 0 | BD191: 0 | BE191: 0 | BF191: 0 | BG191: 0 | BI191: $0.00 | BJ191: $0.00 | BK191: $0.00
D192: Structural Repairs bid/allowance | S192: ls | T192: ls | AD192: $0 | AG192: $0 | AJ192: $0 | AM192: $0 | AQ192: $0 | AT192: $0 | AV192: STRUCTURAL CONCRETE | BA192: 0 | BB192: 0 | BC192: 0 | BD192: 0 | BE192: 0 | BF192: 0 | BG192: 0 | BI192: $0.00 | BJ192: $0.00 | BK192: $0.00
D193: Stair mud jacking, case by case | S193: ea | T193: ls | AA193: 500.00 | AC193: 500.00 | AD193: $0 | AG193: $0 | AJ193: $0 | AM193: $0 | AQ193: $0 | AT193: $0 | AV193: STRUCTURAL CONCRETE | BA193: 0 | BB193: 0 | BC193: 0 | BD193: 0 | BE193: 0 | BF193: 0 | BG193: 0 | BI193: $0.00 | BJ193: $0.00 | BK193: $0.00
D194: Bowing foundation walls, vertical I-Beams | S194: ea | T194: ea | AA194: 800.00 | AC194: 500.00 | AD194: $0 | AG194: $0 | AJ194: $0 | AM194: $0 | AQ194: $0 | AT194: $0 | AV194: STRUCTURAL CONCRETE | BA194: 0 | BB194: 0 | BC194: 0 | BD194: 0 | BE194: 0 | BF194: 0 | BG194: 0 | BI194: $0.00 | BJ194: $0.00 | BK194: $0.00
D195: Settled foundation walls, concrete piers/underpinning | S195: ea | T195: ea | AA195: 1100.00 | AC195: 850.00 | AD195: $0 | AG195: $0 | AJ195: $0 | AM195: $0 | AQ195: $0 | AT195: $0 | AV195: STRUCTURAL CONCRETE | BA195: 0 | BB195: 0 | BC195: 0 | BD195: 0 | BE195: 0 | BF195: 0 | BG195: 0 | BI195: $0.00 | BJ195: $0.00 | BK195: $0.00
D196: Foundation waterproofing & drain tile, single story | S196: lf | AA196: 145.00 | AD196: $0 | AG196: $0 | AJ196: $0 | AM196: $0 | AQ196: $0 | AT196: $0 | AV196: STRUCTURAL CONCRETE | BA196: 0 | BB196: 0 | BC196: 0 | BD196: 0 | BE196: =SUM(BA196:BC196) -> 0 | BF196: 0 | BG196: 0 | BI196: $0.00 | BJ196: $0.00 | BK196: $0.00
D197: Epoxy crack injection | S197: lf | AA197: 70.00 | AD197: $0 | AG197: $0 | AJ197: $0 | AM197: $0 | AQ197: $0 | AT197: $0 | AV197: STRUCTURAL CONCRETE | BA197: 0 | BB197: 0 | BC197: 0 | BD197: 0 | BE197: =SUM(BA197:BC197) -> 0 | BF197: 0 | BG197: 0 | BI197: $0.00 | BJ197: $0.00 | BK197: $0.00
AD198: =((P198*U198)-AM198) -> $0 | AG198: $0 | AJ198: =P198*AA198 -> $0 | AM198: $0 | AQ198: =SUM(AD198:AL198) -> $0 | AT198: =SUM(AD198:AL198) -> $0 | AV198: STRUCTURAL CONCRETE | BA198: =AD198 -> 0 | BB198: =AG198 -> 0 | BC198: =AJ198 -> 0 | BD198: =IF(B198="x",1,0) -> 0 | BE198: =SUM(BA198:BC198) -> 0 | BF198: =AQ198 -> 0 | BG198: =AM198 -> 0 | BI198: =AD198 -> $0.00 | BJ198: =AM198 -> $0.00 | BK198: =BJ198+BI198 -> $0.00
AD199: $0 | AG199: $0 | AJ199: $0 | AM199: $0 | AQ199: $0 | AT199: $0 | AV199: STRUCTURAL CONCRETE | BA199: 0 | BB199: 0 | BC199: 0 | BD199: 0 | BE199: 0 | BF199: 0 | BG199: 0 | BI199: $0.00 | BJ199: $0.00 | BK199: $0.00
AD200: $0 | AG200: $0 | AJ200: $0 | AM200: $0 | AQ200: $0 | AT200: $0 | AV200: STRUCTURAL CONCRETE | BA200: 0 | BB200: 0 | BC200: 0 | BD200: 0 | BE200: 0 | BF200: 0 | BG200: 0 | BI200: $0.00 | BJ200: $0.00 | BK200: $0.00
AD201: $0 | AG201: $0 | AJ201: $0 | AM201: $0 | AQ201: $0 | AT201: $0 | AV201: STRUCTURAL CONCRETE | BA201: 0 | BB201: 0 | BC201: 0 | BD201: 0 | BE201: 0 | BF201: 0 | BG201: 0 | BI201: $0.00 | BJ201: $0.00 | BK201: $0.00
AD202: $0 | AG202: $0 | AJ202: $0 | AM202: $0 | AQ202: $0 | AT202: $0 | AV202: STRUCTURAL CONCRETE | BA202: 0 | BB202: 0 | BC202: 0 | BD202: 0 | BE202: 0 | BF202: 0 | BG202: 0 | BI202: $0.00 | BJ202: $0.00 | BK202: $0.00
AD203: $0 | AG203: $0 | AJ203: $0 | AM203: $0 | AQ203: $0 | AT203: $0 | AV203: STRUCTURAL CONCRETE | BA203: 0 | BB203: 0 | BC203: 0 | BD203: 0 | BE203: 0 | BF203: 0 | BG203: 0 | BI203: $0.00 | BJ203: $0.00 | BK203: $0.00
AD204: $0 | AG204: $0 | AJ204: $0 | AM204: $0 | AQ204: $0 | AT204: $0 | AV204: STRUCTURAL CONCRETE | BA204: 0 | BB204: 0 | BC204: 0 | BD204: 0 | BE204: 0 | BF204: 0 | BG204: 0 | BI204: $0.00 | BJ204: $0.00 | BK204: $0.00
AD205: $0 | AG205: $0 | AJ205: $0 | AM205: $0 | AQ205: $0 | AT205: $0 | AV205: STRUCTURAL CONCRETE | BA205: 0 | BB205: 0 | BC205: 0 | BD205: 0 | BE205: 0 | BF205: 0 | BG205: 0 | BI205: $0.00 | BJ205: $0.00 | BK205: $0.00
AD206: $0 | AG206: $0 | AJ206: $0 | AM206: $0 | AQ206: $0 | AT206: $0 | AV206: STRUCTURAL CONCRETE | BA206: 0 | BB206: 0 | BC206: 0 | BD206: 0 | BE206: 0 | BF206: 0 | BG206: 0 | BI206: $0.00 | BJ206: $0.00 | BK206: $0.00
AD207: $0 | AG207: $0 | AJ207: $0 | AM207: $0 | AQ207: $0 | AT207: $0 | AV207: STRUCTURAL CONCRETE | BA207: 0 | BB207: 0 | BC207: 0 | BD207: 0 | BE207: 0 | BF207: 0 | BG207: 0 | BI207: $0.00 | BJ207: $0.00 | BK207: $0.00
AD208: $0 | AG208: $0 | AJ208: $0 | AM208: $0 | AQ208: $0 | AT208: $0 | AV208: STRUCTURAL CONCRETE | BA208: 0 | BB208: 0 | BC208: 0 | BD208: 0 | BE208: =SUM(BA208:BC208) -> 0 | BF208: 0 | BG208: 0 | BI208: $0.00 | BJ208: $0.00 | BK208: $0.00
AD209: $0 | AG209: $0 | AJ209: $0 | AM209: $0 | AQ209: $0 | AT209: $0 | AV209: STRUCTURAL CONCRETE | BA209: 0 | BB209: 0 | BC209: 0 | BD209: 0 | BE209: 0 | BF209: 0 | BG209: 0 | BI209: $0.00 | BJ209: $0.00 | BK209: $0.00
AD210: =((P210*U210)-AM210) -> $0 | AG210: $0 | AJ210: =P210*AA210 -> $0 | AM210: $0 | AQ210: =SUM(AD210:AL210) -> $0 | AT210: =SUM(AD210:AL210) -> $0 | AV210: STRUCTURAL CONCRETE | BA210: =AD210 -> 0 | BB210: =AG210 -> 0 | BC210: =AJ210 -> 0 | BD210: =IF(B210="x",1,0) -> 0 | BE210: 0 | BF210: =AQ210 -> 0 | BG210: =AM210 -> 0 | BI210: =AD210 -> $0.00 | BJ210: =AM210 -> $0.00 | BK210: =BJ210+BI210 -> $0.00
AD211: =((P211*U211)-AM211) -> $0 | AG211: $0 | AJ211: =P211*AA211 -> $0 | AM211: $0 | AQ211: =SUM(AD211:AL211) -> $0 | AT211: =SUM(AD211:AL211) -> $0 | AV211: STRUCTURAL CONCRETE | BA211: =AD211 -> 0 | BB211: =AG211 -> 0 | BC211: =AJ211 -> 0 | BD211: =IF(B211="x",1,0) -> 0 | BE211: 0 | BF211: =AQ211 -> 0 | BG211: =AM211 -> 0 | BI211: =AD211 -> $0.00 | BJ211: =AM211 -> $0.00 | BK211: =BJ211+BI211 -> $0.00
AD212: =((P212*U212)-AM212) -> $0 | AG212: $0 | AJ212: =P212*AA212 -> $0 | AM212: $0 | AQ212: =SUM(AD212:AL212) -> $0 | AT212: =SUM(AD212:AL212) -> $0 | AV212: STRUCTURAL CONCRETE | BA212: =AD212 -> 0 | BB212: =AG212 -> 0 | BC212: =AJ212 -> 0 | BD212: =IF(B212="x",1,0) -> 0 | BE212: 0 | BF212: =AQ212 -> 0 | BG212: =AM212 -> 0 | BI212: =AD212 -> $0.00 | BJ212: =AM212 -> $0.00 | BK212: =BJ212+BI212 -> $0.00
AD213: =((P213*U213)-AM213) -> $0 | AG213: $0 | AJ213: =P213*AA213 -> $0 | AM213: $0 | AQ213: =SUM(AD213:AL213) -> $0 | AT213: =SUM(AD213:AL213) -> $0 | AV213: STRUCTURAL CONCRETE | BA213: =AD213 -> 0 | BB213: =AG213 -> 0 | BC213: =AJ213 -> 0 | BD213: =IF(B213="x",1,0) -> 0 | BE213: 0 | BF213: =AQ213 -> 0 | BG213: =AM213 -> 0 | BI213: =AD213 -> $0.00 | BJ213: =AM213 -> $0.00 | BK213: =BJ213+BI213 -> $0.00
AD214: $0 | AG214: $0 | AJ214: $0 | AM214: $0 | AQ214: $0 | AT214: $0 | AV214: STRUCTURAL CONCRETE | BA214: 0 | BB214: 0 | BC214: 0 | BD214: 0 | BE214: 0 | BF214: 0 | BG214: 0 | BI214: $0.00 | BJ214: $0.00 | BK214: $0.00
AD215: $0 | AG215: $0 | AJ215: $0 | AM215: $0 | AQ215: $0 | AT215: $0 | AV215: STRUCTURAL CONCRETE | BA215: 0 | BB215: 0 | BC215: 0 | BD215: 0 | BE215: 0 | BF215: 0 | BG215: 0 | BI215: $0.00 | BJ215: $0.00 | BK215: $0.00
AD216: =((P216*U216)-AM216) -> $0 | AG216: $0 | AJ216: =P216*AA216 -> $0 | AM216: $0 | AQ216: =SUM(AD216:AL216) -> $0 | AT216: =SUM(AD216:AL216) -> $0 | AV216: STRUCTURAL CONCRETE | BA216: =AD216 -> 0 | BB216: =AG216 -> 0 | BC216: =AJ216 -> 0 | BD216: =IF(B216="x",1,0) -> 0 | BE216: 0 | BF216: =AQ216 -> 0 | BG216: =AM216 -> 0 | BI216: =AD216 -> $0.00 | BJ216: =AM216 -> $0.00 | BK216: =BJ216+BI216 -> $0.00
AD217: =((P217*U217)-AM217) -> $0 | AG217: $0 | AJ217: =P217*AA217 -> $0 | AM217: $0 | AQ217: =SUM(AD217:AL217) -> $0 | AT217: =SUM(AD217:AL217) -> $0 | AV217: STRUCTURAL CONCRETE | BA217: =AD217 -> 0 | BB217: =AG217 -> 0 | BC217: =AJ217 -> 0 | BD217: =IF(B217="x",1,0) -> 0 | BE217: 0 | BF217: =AQ217 -> 0 | BG217: =AM217 -> 0 | BI217: =AD217 -> $0.00 | BJ217: =AM217 -> $0.00 | BK217: =BJ217+BI217 -> $0.00
AV218: STRUCTURAL CONCRETE | BA218: =BA177 -> $0 | BB218: =BB177 -> $0 | BC218: =BC177 -> $0 | BD218: =BD177 -> $0 | BE218: =BE177 -> $0
AC219: =CONCATENATE(D177," ","TOTAL") -> STRUCTURAL CONCRETE TOTAL | AD219: =SUBTOTAL(9,AD178:AD218) -> $0 | AG219: =SUBTOTAL(9,AG178:AG218) -> $0 | AJ219: =SUBTOTAL(9,AJ178:AJ218) -> $0 | AM219: =SUBTOTAL(9,AM178:AM218) -> $0 | AQ219: =SUBTOTAL(9,AQ178:AQ218) -> $0 | AT219: =SUM(AT175:AT210) ->  | AV219: STRUCTURAL CONCRETE | BA219: =BA177 -> 0 | BB219: =BB177 -> 0 | BC219: =BC177 -> 0 | BD219: =BD177 -> 0 | BE219: =BE177 -> 0 | BF219: =SUM(BF177:BF218) -> 0 | BG219: =SUM(BG177:BG218) -> 0 | BI219: =SUM(BI178:BI218) -> 0 | BJ219: =SUM(BJ178:BJ218) -> 0 | BK219: =SUM(BK178:BK218) -> 0
AV220: STRUCTURAL CONCRETE | BA220: =BA177 -> $0 | BB220: =BB177 -> $0 | BC220: =BC177 -> $0 | BD220: =BD177 -> $0 | BE220: =BE177 -> $0
AV221: STRUCTURAL CONCRETE | BA221: =BA219 -> 0 | BB221: =BB219 -> 0 | BC221: =BC219 -> 0 | BD221: 0 | BE221: 0 | BF221: 0 | BG221: 0
A222: Hidden | D222: =T(N78) -> CONCRETE & FLATWORK | AD222: =AD264 -> $0 | AG222: =AG264 -> $0 | AJ222: =AJ264 -> $0 | AM222: =AM264 -> $0 | AQ222: =AQ264 -> $0 | AT222: =SUM(#REF!) ->  | AV222: =$D$222 -> CONCRETE & FLATWORK | BA222: =SUM(BA223:BA262) -> 0 | BB222: =SUM(BB223:BB262) -> 0 | BC222: =SUM(BC223:BC262) -> 0 | BD222: =SUM(BD223:BD262) -> 0 | BE222: =SUM(BE223:BE262) -> 0 | BF222: =AQ222 -> 0 | BG222: =AM222 -> 0 | BI222: =AD222 -> $0.00 | BJ222: =AM222 -> $0.00 | BK222: =BJ222+BI222 -> $0.00
D223: Concrete | T223: ls | AD223: =((P223*U223)-AM223) -> $0 | AG223: =P223*X223*(1+$Y$85) -> $0 | AJ223: =P223*AA223 -> $0 | AM223: =IF($B223="x",$P223*$U223,0) -> $0 | AQ223: =SUM(AD223:AL223) -> $0 | AV223: CONCRETE & FLATWORK | BA223: =AD223 -> 0 | BB223: =AG223 -> 0 | BC223: =AJ223 -> 0 | BD223: =IF(B223="x",1,0) -> 0 | BE223: =SUM(BA223:BC223) -> 0 | BF223: 0 | BG223: 0 | BI223: =AD223 -> $0.00 | BJ223: =AM223 -> $0.00 | BK223: =BJ223+BI223 -> $0.00
D224: Concrete bid/allowance | S224: ls | T224: sf | AD224: $0 | AG224: =P224*X224*(1+$Y$85) -> $0 | AJ224: $0 | AM224: $0 | AQ224: $0 | AV224: CONCRETE & FLATWORK | BA224: 0 | BB224: =AG224 -> 0 | BC224: =AJ224 -> 0 | BD224: 0 | BE224: =SUM(BA224:BC224) -> 0 | BF224: 0 | BG224: 0 | BI224: =AD224 -> $0.00 | BJ224: $0.00 | BK224: =BJ224+BI224 -> $0.00
D225: Concrete flatwork demo | S225: sf | T225: sf | U225: 2.00 | AD225: $0 | AG225: $0 | AJ225: $0 | AM225: $0 | AQ225: $0 | AV225: CONCRETE & FLATWORK | BA225: 0 | BB225: 0 | BC225: 0 | BD225: 0 | BE225: 0 | BF225: 0 | BG225: 0 | BI225: $0.00 | BJ225: $0.00 | BK225: $0.00
D226: Concrete driveway/patio, 6" thick | S226: sf | T226: sf | U226: 3.00 | X226: 2.00 | Z226: 1.75 | AD226: $0 | AG226: $0 | AJ226: $0 | AM226: $0 | AQ226: $0 | AV226: CONCRETE & FLATWORK | BA226: 0 | BB226: 0 | BC226: 0 | BD226: 0 | BE226: 0 | BF226: 0 | BG226: 0 | BI226: $0.00 | BJ226: $0.00 | BK226: $0.00
D227: Concrete sidewalk, 4" thick | S227: sf | U227: 3.50 | X227: 1.75 | AD227: $0 | AG227: $0 | AJ227: $0 | AM227: $0 | AQ227: $0 | AV227: CONCRETE & FLATWORK | BA227: 0 | BB227: 0 | BC227: 0 | BD227: 0 | BE227: 0 | BF227: 0 | BG227: 0 | BI227: $0.00 | BJ227: $0.00 | BK227: $0.00
D228: Add for 4" base rock below concrete pavement | S228: sf | U228: 0.25 | X228: 0.75 | AD228: $0 | AG228: $0 | AJ228: $0 | AM228: $0 | AQ228: $0 | AV228: CONCRETE & FLATWORK | BA228: 0 | BB228: 0 | BC228: 0 | BD228: 0 | BE228: 0 | BF228: 0 | BG228: 0 | BI228: $0.00 | BJ228: $0.00 | BK228: $0.00
AD229: $0 | AG229: $0 | AJ229: $0 | AM229: $0 | AQ229: $0 | AV229: CONCRETE & FLATWORK | BA229: 0 | BB229: 0 | BC229: 0 | BD229: 0 | BE229: 0 | BF229: 0 | BG229: 0 | BI229: $0.00 | BJ229: $0.00 | BK229: $0.00
D230: Asphalt | AD230: $0 | AG230: $0 | AJ230: $0 | AM230: $0 | AQ230: $0 | AV230: CONCRETE & FLATWORK | BA230: 0 | BB230: 0 | BC230: 0 | BD230: 0 | BE230: 0 | BF230: 0 | BG230: 0 | BI230: $0.00 | BJ230: $0.00 | BK230: $0.00
D231: Asphalt bid/allowance | S231: ls | AD231: $0 | AG231: $0 | AJ231: $0 | AM231: $0 | AQ231: $0 | AV231: CONCRETE & FLATWORK | BA231: 0 | BB231: 0 | BC231: 0 | BD231: 0 | BE231: 0 | BF231: 0 | BG231: 0 | BI231: $0.00 | BJ231: $0.00 | BK231: $0.00
... 981 more rows

Sheet 4 OFFERS (hidden)
I3: OFFER TRACKER
I6: Offer Tracker
S8: BASELINE OFFER | AB8: OFFER 1 | AK8: OFFER 2 | AT8: OFFER 3 | BC8: OFFER 4 | BL8: OFFER 5
S13: Maximum Purchase Price | AB13: Input Offer 1 Below: | AK13: Input Offer 2 Below: | AT13: Input Offer 3 Below: | BC13: Input Offer 4 Below: | BL13: Input Offer 5 Below:
J14: Offer Price | S14: =Purchase_Price_Result -> $61,837 | BV14: <- Input Offer Amounts
J16: After Repair Value: | S16: =AFTER_REPAIR_VALUE_ESTIMATED -> $165,000 | AB16: =AFTER_REPAIR_VALUE_ESTIMATED -> $165,000 | AK16: =AFTER_REPAIR_VALUE_ESTIMATED -> $165,000 | AT16: =AFTER_REPAIR_VALUE_ESTIMATED -> $165,000 | BC16: =AFTER_REPAIR_VALUE_ESTIMATED -> $165,000 | BL16: =AFTER_REPAIR_VALUE_ESTIMATED -> $165,000
J18: Fixed Costs
J19: Buying Costs: | S19: =Buying_Costs_Result -> $1,000 | AB19: =Buying_Costs_Result -> $1,000 | AK19: =Buying_Costs_Result -> $1,000 | AT19: =Buying_Costs_Result -> $1,000 | BC19: =Buying_Costs_Result -> $1,000 | BL19: =Buying_Costs_Result -> $1,000
J20: Holding Costs | S20: =Holding_Costs_Result -> $3,000 | AB20: =Holding_Costs_Result -> $3,000 | AK20: =Holding_Costs_Result -> $3,000 | AT20: =Holding_Costs_Result -> $3,000 | BC20: =Holding_Costs_Result -> $3,000 | BL20: =Holding_Costs_Result -> $3,000
J21: Selling Costs | S21: =Selling_Costs_Result -> $10,850 | AB21: =Selling_Costs_Result -> $10,850 | AK21: =Selling_Costs_Result -> $10,850 | AT21: =Selling_Costs_Result -> $10,850 | BC21: =Selling_Costs_Result -> $10,850 | BL21: =Selling_Costs_Result -> $10,850
J22: Total Fixed Costs | S22: =SUM(S19:AA21) -> $14,850 | AB22: =SUM(AB19:AJ21) -> $14,850 | AK22: =SUM(AK19:AS21) -> $14,850 | AT22: =SUM(AT19:BB21) -> $14,850 | BC22: =SUM(BC19:BK21) -> $14,850 | BL22: =SUM(BL19:BT21) -> $14,850
J24: Repair Costs
J25: Raw Repair Estimate | S25: =SUBTOTAL_ESTIMATE -> $49,750 | AB25: =SUBTOTAL_ESTIMATE -> $49,750 | AK25: =SUBTOTAL_ESTIMATE -> $49,750 | AT25: =SUBTOTAL_ESTIMATE -> $49,750 | BC25: =SUBTOTAL_ESTIMATE -> $49,750 | BL25: =SUBTOTAL_ESTIMATE -> $49,750
J26: Adders | S26: =Adders_Result -> $13,813 | AB26: =Adders_Result -> $13,813 | AK26: =Adders_Result -> $13,813 | AT26: =Adders_Result -> $13,813 | BC26: =Adders_Result -> $13,813 | BL26: =Adders_Result -> $13,813
J27: Total Repair Estimate | S27: =SUM(S25:AA26) -> $63,563 | AB27: =SUM(AB25:AJ26) -> $63,563 | AK27: =SUM(AK25:AS26) -> $63,563 | AT27: =SUM(AT25:BB26) -> $63,563 | BC27: =SUM(BC25:BK26) -> $63,563 | BL27: =SUM(BL25:BT26) -> $63,563
J29: Total Profit | S29: =S16-S14-S22-S27 -> $24,750 | AB29: =IF(AB14=0,"Enter Offer Above",AB16-AB14-AB22-AB27) -> Enter Offer Above | AK29: =IF(AK14=0,"Enter Offer Above",AK16-AK14-AK22-AK27) -> Enter Offer Above | AT29: =IF(AT14=0,"Enter Offer Above",AT16-AT14-AT22-AT27) -> Enter Offer Above | BC29: =IF(BC14=0,"Enter Offer Above",BC16-BC14-BC22-BC27) -> Enter Offer Above | BL29: =IF(BL14=0,"Enter Offer Above",BL16-BL14-BL22-BL27) -> Enter Offer Above
J30: Profit per Month | S30: =IFERROR(IF(S14="","",S29/Total_Schedule_Cell),"") -> $4,950 | AB30: =IFERROR(IF(AB14="","",AB29/Total_Schedule_Cell),"") ->  | AK30: =IFERROR(IF(AK14="","",AK29/Total_Schedule_Cell),"") ->  | AT30: =IFERROR(IF(AT14="","",AT29/Total_Schedule_Cell),"") ->  | BC30: =IFERROR(IF(BC14="","",BC29/Total_Schedule_Cell),"") ->  | BL30: =IFERROR(IF(BL14="","",BL29/Total_Schedule_Cell),"") -> 
J31: Cash on Cash ROI | S31: =IFERROR(IF(S14="","",S29/Total_Cash_Needed),"") -> 19% | AB31: =IFERROR(IF(AB14="","",AB29/Total_Cash_Needed),"") ->  | AK31: =IFERROR(IF(AK14="","",AK29/Total_Cash_Needed),"") ->  | AT31: =IFERROR(IF(AT14="","",AT29/Total_Cash_Needed),"") ->  | BC31: =IFERROR(IF(BC14="","",BC29/Total_Cash_Needed),"") ->  | BL31: =IFERROR(IF(BL14="","",BL29/Total_Cash_Needed),"") -> 
J32: Annualized COCR | S32: =IFERROR(IF(S14="","",S31/(Total_Schedule_Cell/12)),"") -> 46% | AB32: =IFERROR(IF(AB14="","",AB31/(Total_Schedule_Cell/12)),"") ->  | AK32: =IFERROR(IF(AK14="","",AK31/(Total_Schedule_Cell/12)),"") ->  | AT32: =IFERROR(IF(AT14="","",AT31/(Total_Schedule_Cell/12)),"") ->  | BC32: =IFERROR(IF(BC14="","",BC31/(Total_Schedule_Cell/12)),"") ->  | BL32: =IFERROR(IF(BL14="","",BL31/(Total_Schedule_Cell/12)),"") -> 

Sheet COMPS (hidden)
I2: COMPARABLES
M4: Comparables Sales
M5: Property Info | W5: Subject Property: | AJ5: Comparable 1 | AW5: Comparable 2 | BJ5: Comparable 3
M6: Street Address | W6: =T('ANALYSIS DATABASE'!C8) -> 1234 Main St | AJ6: 2345 N. Main St | AW6: 2345 N. Main St | BJ6: 2345 N. Main St
M7: City, State, Zip Code | W7: =T('ANALYSIS DATABASE'!C9) -> Kansas City, MO 64116 | AJ7: Kansas City, MO 64116 | AW7: Kansas City, MO 64116 | BJ7: Kansas City, MO 64116
M8: Neigbhorhood | W8: The Coves | AJ8: The Coves | AW8: The Coves | BJ8: The Coves
M9: School District: | W9: Park Hill School District | AJ9: Park Hill School District | AW9: Park Hill School District | BJ9: Park Hill School District
M10: List Price/Sales Price | W10: =After_Repair_Value_Result -> $165,000 | AJ10: $245,000 | AW10: $260,000 | BJ10: $240,000
M11: Current Status | AJ11: Sold | AW11: Sold | BJ11: Sold
M12: Status Date | AJ12: 2018-08-01 | AW12: 2018-07-15 | BJ12: 2018-07-02
M13: Days on Market | AJ13: 54.00 | AW13: 45.00 | BJ13: 40.00
M14: Characteristics
M15: Property Characteristic: | W15: Description: | AE15: + / - | AJ15: Description: | AR15: + / - | AW15: Description: | BE15: + / - | BJ15: Description: | BR15: + / -
M16: # of Beds | W16: ='ANALYSIS DATABASE'!C13 -> 3 beds | AJ16: 3 beds | AW16: 3 beds | BJ16: 3 beds
M17: # of Baths | W17: ='ANALYSIS DATABASE'!C14 -> 2 baths | AJ17: 2 baths | AW17: 2 baths | BJ17: 2 baths
M18: # of Garages
M19: Square Footage | W19: ='ANALYSIS DATABASE'!C18 -> 1500 sf | AJ19: 1450 sf | AR19: =50*165 -> $8,250 | AW19: 1505 sf | BJ19: 1400 sf | BR19: =100*150 -> $15,000
M20: Year Built | W20: 1982 | AJ20: 1981 | AW20: 1983 | BJ20: 1985
M21: Basement Type: | W21: Finished | AJ21: Finished | AW21: Finished | BJ21: Finished
M22: Central Heat | W22: Yes | AJ22: Yes | AW22: Yes | BJ22: Yes
M23: Air Conditioning | W23: Yes | AJ23: Yes | AW23: Yes | BJ23: Yes
M24: Property Condition | W24: Fully Renovated | AJ24: Moderate Updates | AR24: $10,000 | AW24: Fully Renovated | BJ24: Moderate Updates | BR24: $10,000
M25: Other Improvements:
M26: Notes: | AW26: Property appears to have been rehabbed and flipped by an investor. Property has similar finishes to the finishes planned for subject property.
M33: Value w/ Adjustments: | W33: =After_Repair_Value_Result+SUM(AE16:AI25) -> $165,000 | AJ33: =AJ10+SUM(AR16:AV25) -> $263,250 | AW33: =AW10+SUM(BE16:BI25) -> $260,000 | BJ33: =BJ10+SUM(BR16:BV25) -> $265,000
M34: Price per Square Foot | W34: =IFERROR(W33/W19,0) -> $110.00 | AJ34: =IFERROR(AJ33/AJ19,0) -> $181.55 | AW34: =IFERROR(AW33/AW19,0) -> $172.76 | BJ34: =IFERROR(BJ33/BJ19,0) -> $189.29
W37: Yes
W38: No
W40: Active
W41: Pending
W42: Sold
W44: No Basement
W45: Unfinished
W46: Finished
W47: Finished, Walkout
W49: As-Is, Distressed
W50: Moderate Updates
W51: Fully Renovated

Sheet WHOLESALE CALC (hidden)
E2: WHOLESALE CALCULATOR
B4: AFTER REPAIR VALUE | AI4: REPAIR ESTIMATE | BF4: QUICK BID | BN4: REHABBER PROFIT
B7: $250,000 | AI7: =T('2 REPAIR ESTIMATOR'!N75:T75) -> GENERAL CONDITIONS | AX7: =T('2 REPAIR ESTIMATOR'!Y79:AE79) -> FRAMING & DRYWALL | CJ7: 5% | CL7: 15%
AI9: =T('2 REPAIR ESTIMATOR'!N76:T76) -> DEMOLITION | AX9: =T('2 REPAIR ESTIMATOR'!Y80:AE80) -> CABINETS & COUNTERTOPS | BN9: =B6*CL6 -> 0
BN10: =AFTER_REPAIR_VALUE_WHOLESALE*Wholesale_Profit_Percentage_Cell -> $37,500
AI11: =T('2 REPAIR ESTIMATOR'!N77:T77) -> STRUCTURAL CONCRETE | AX11: =T('2 REPAIR ESTIMATOR'!Y81:AE81) -> DOORS & TRIM
AI13: =T('2 REPAIR ESTIMATOR'!N78:T78) -> CONCRETE & FLATWORK | AX13: =T('2 REPAIR ESTIMATOR'!Y82:AE82) -> CARPET & RESILIENT
B14: FIXED COSTS | W14: % OF ARV | AD14: 15%
AI15: =T('2 REPAIR ESTIMATOR'!N79:T79) -> MASONRY | AX15: =T('2 REPAIR ESTIMATOR'!AJ75:AP75) -> HARDWOOD FLOORING
B17: BUYING COSTS | AI17: =T('2 REPAIR ESTIMATOR'!N80:T80) -> SIDING | AX17: =T('2 REPAIR ESTIMATOR'!AJ76:AP76) -> TILING | BN17: PROFIT PER MONTH | BY17: CASH ROI | CJ17: ANNUALIZED ROI
B19: BROKERAGE FEE ($300 Avg.) | AI19: =T('2 REPAIR ESTIMATOR'!N81:T81) -> DECKING AND PATIOS | AX19: =T('2 REPAIR ESTIMATOR'!AJ77:AP77) -> PAINTING
BN20: =IF(Total_Schedule_Cell=0,"",BT10/Total_Schedule_Cell) -> $0 | BY20: =IFERROR(IF(Total_Cash_Needed<0,"Infinite ROI",REHAB_PROFIT_ESTIMATED/Total_Cash_Needed),0) -> 19.1% | CJ20: =IFERROR(IF(Total_Cash_Needed<0,"Infinite ROI",((REHAB_PROFIT_ESTIMATED/Total_Cash_Needed)/(Schedule/12))),0) -> 0.0%
B21: INSPECTION COSTS ($400 Avg.) | AI21: =T('2 REPAIR ESTIMATOR'!N82:T82) -> ROOFING | AX21: =T('2 REPAIR ESTIMATOR'!AJ78:AP78) -> APPLIANCES
B23: APPRAISAL FEE ($500 Avg.) | AI23: =T('2 REPAIR ESTIMATOR'!Y75:AE75) -> EXTERIOR DOORS & WINDOWS | AX23: =T('2 REPAIR ESTIMATOR'!AJ79:AP79) -> PLUMBING
CF24: 70% RULE
B25: TITLE SEARCH ($300 Avg.) | AI25: =T('2 REPAIR ESTIMATOR'!Y76:AE76) -> GARAGE DOORS | AX25: =T('2 REPAIR ESTIMATOR'!AJ80:AP80) -> HVAC
B27: TITLE INSURANCE ($150 Avg.) | AI27: =T('2 REPAIR ESTIMATOR'!Y77:AE77) -> LANDSCAPING | AX27: =T('2 REPAIR ESTIMATOR'!AJ81:AP81) -> ELECTRICAL | CF27: Purchase Price % OF ARV
B29: CLOSING COSTS &POINTS | Z29: ='REHAB FINANCING SETUP'!AZ31+'REHAB FINANCING SETUP'!AZ58 -> $0 | AI29: =T('2 REPAIR ESTIMATOR'!Y78:AE78) -> MISC. EXTERIOR ITEMS | AX29: =T('2 REPAIR ESTIMATOR'!AJ82:AP82) -> MISCELLANEOUS
B31: OTHER | AI31: RAW REPAIR ESTIMATE | CB31: FIXED COSTS | CC31: =TOTAL_FIXED_COSTS_WHOLESALE -> $37,500 | CF31: =IF(AFTER_REPAIR_VALUE_WHOLESALE=0,"",((MAXIMUM_PURCHASE_PRICE_WHOLESALE+TOTAL_REPAIR_ESTIMATE_WHOLESALE)/AFTER_REPAIR_VALUE_WHOLESALE)) -> 70%
CB32: REHAB PROFIT | CC32: =REHABBER_PROFIT_WHOLESALE -> $37,500
B33: TOTAL BUYING COSTS | Z33: =IF(Wholesale_Calculator_Fixed_Cost_Calculation_Method="% OF ARV",TOTAL_FIXED_COSTS_WHOLESALE/3,SUM(Z19:AG32)) -> $12,500 | CB33: REPAIR ESTIMATE | CC33: =TOTAL_REPAIR_ESTIMATE_WHOLESALE -> $50,000
AI34: % of ARV | AN34: $50,000 | BH34: =IF(BH36="","","$/ SF") -> $/ SF | CB34: =T(BN51) -> REHABBER MAXIMUM PURCHASE PRICE | CC34: =MAXIMUM_PURCHASE_PRICE_WHOLESALE -> $125,000
B35: HOLDING COSTS | K35: # OF MONTHS | Q35: Per Month
AI36: =IFERROR(ESTIMATE_SUBTOTAL/AFTER_REPAIR_VALUE_CELL,0) -> 30.2% | BH36: =IFERROR(ESTIMATE_SUBTOTAL/Square_Feet,"") -> $33.17
B37: LOAN PAYMENT | K37: REHAB SCHEDULE | Q37: =IFERROR(Z37/L49,0) -> $0 | Z37: ='REHAB FINANCING SETUP'!BF29+'REHAB FINANCING SETUP'!BF56 -> $0
B39: PROPERTY TAXES | L39: 2.0 | Z39: =Q39*$L$49 -> $0
B41: UTILITIES | Z41: =Q41*$L$49 -> $0 | AI41: ADDERS
K42: LISTING PERIOD
B43: INSURANCE | Z43: =Q43*$L$49 -> $0
L44: 2.0
B45: HOA DUES | Z45: =Q45*$L$49 -> $0 | BF45: Adder Amount
B47: MAINTENANCE | K47: TOTAL HOLDING | Z47: =Q47*$L$49 -> $0 | AI47: Location Multiplier: | BG47: =IF(Wholesale_Calculator_Location_Mutiplier=0,0,(BA47-1)*TOTAL_REPAIR_COSTS_WHOLESALE) -> $0
B49: OTHER | L49: =L39+L44 -> 4.0 | Z49: =Q49*$L$49 -> $0
AI50: Permit Cost: (1 to 2%): | BG50: =(TOTAL_REPAIR_COSTS_WHOLESALE+BG47)*BA50 -> $0
Q51: =SUM(Q37:U50) -> $0 | V51: TOTALS | Z51: =IF(Wholesale_Calculator_Fixed_Cost_Calculation_Method="% of ARV",TOTAL_FIXED_COSTS_WHOLESALE/3,SUM(Z37:AG50)) -> $12,500 | BN51: REHABBER MAXIMUM PURCHASE PRICE
B53: SELLING COSTS | AI53: Contractors OH & P: (10%+) | BG53: =(TOTAL_REPAIR_COSTS_WHOLESALE+BG47+BG50)*BA53 -> $0
BN54: =AFTER_REPAIR_VALUE_WHOLESALE-TOTAL_FIXED_COSTS_WHOLESALE-TOTAL_REPAIR_ESTIMATE_WHOLESALE-REHABBER_PROFIT_WHOLESALE -> $125,000
B55: COMMISSIONS | Q55: 6.0% | V55: of sale price | Z55: =Q55*B7 -> $15,000
AI56: Contingency (5 to 15%): | BG56: =(TOTAL_REPAIR_COSTS_WHOLESALE+BG47+BG50+BG53)*Wholesale_Calculator_Contingency -> $0
B57: SELLER ASSISTED CLOSING COSTS | V57: of sale price | Z57: =Q57*B7 -> $0
B59: BROKERAGE FEE ($300 Avg.) | AI59: Total Adders: | BA59: =IFERROR(BG59/ESTIMATE_SUBTOTAL,0) -> 0.0% | BG59: =SUM(BG47:BK58) -> $0
B61: HOME WARRANTY ($450 Avg.) | BN61: WHOLESALER ASSIGNMENT FEE
B63: TITLE INSURANCE ($150 Avg.)
AU64: Raw Repair Estimate: | BG64: =TOTAL_REPAIR_COSTS_WHOLESALE -> $50,000 | BN64: $0
B65: 2ND APPRAISAL ($500 Avg.)
B67: OTHER | AV67: Total Estimate: | BG67: =BG59+BG64 -> $50,000
B69: TOTAL SELLING COSTS | Z69: =IF(Wholesale_Calculator_Fixed_Cost_Calculation_Method="% of ARV",TOTAL_FIXED_COSTS_WHOLESALE/3,SUM(Z55:AG68)) -> $12,500
B71: TOTAL FIXED COSTS | AI71: TOTAL REPAIR ESTIMATE | BN71: WHOLESALER MAXIMUM ALLOWABLE OFFER
B74: =IF(W14="% OF ARV",(AD14*B7),Z33+Z51+Z69) -> $37,500 | AI74: % of ARV | AN74: =BG67 -> $50,000 | BH74: =IF(BH76="","","$/ SF") -> $/ SF | BN74: =MAXIMUM_PURCHASE_PRICE_WHOLESALE-Wholesale_Profit -> $125,000
AI76: =IFERROR(TOTAL_REMODEL_ESTIMATE/AFTER_REPAIR_VALUE_CELL,0) -> 38.5% | BH76: =IFERROR(TOTAL_REMODEL_ESTIMATE/Square_Feet,"") -> $42.38
B81: © 2016 by Houseflippingspreadsheet.com. All rights reserved
O87: Scopes of Work DIY vs Subbed Sorter | V87: LABOR | AA87: MATERIAL | AF87: SUB | AK87: TOTAL
O88: ='1 REHAB ANALYZER'!K98 -> GENERAL CONDITIONS | V88: ='1 REHAB ANALYZER'!R98 -> $80.00 | AA88: ='1 REHAB ANALYZER'!W98 -> $454.75 | AF88: ='1 REHAB ANALYZER'!AB98 -> $0.00 | AK88: =SUM(V88:AJ88) -> $534.75
O89: ='1 REHAB ANALYZER'!K99 -> DEMOLITION | V89: ='1 REHAB ANALYZER'!R99 -> $1,600.00 | AA89: ='1 REHAB ANALYZER'!W99 -> $0.00 | AF89: ='1 REHAB ANALYZER'!AB99 -> $0.00 | AK89: =SUM(V89:AJ89) -> $1,600.00
O90: ='1 REHAB ANALYZER'!K100 -> STRUCTURAL CONCRETE | V90: ='1 REHAB ANALYZER'!R100 -> $0.00 | AA90: ='1 REHAB ANALYZER'!W100 -> $0.00 | AF90: ='1 REHAB ANALYZER'!AB100 -> $0.00 | AK90: $0.00 | AQ90: DETAILED
O91: ='1 REHAB ANALYZER'!K101 -> CONCRETE & FLATWORK | V91: ='1 REHAB ANALYZER'!R101 -> $0.00 | AA91: ='1 REHAB ANALYZER'!W101 -> $0.00 | AF91: ='1 REHAB ANALYZER'!AB101 -> $0.00 | AK91: $0.00 | AQ91: % OF ARV
O92: ='1 REHAB ANALYZER'!K102 -> MASONRY | V92: ='1 REHAB ANALYZER'!R102 -> $0.00 | AA92: ='1 REHAB ANALYZER'!W102 -> $0.00 | AF92: ='1 REHAB ANALYZER'!AB102 -> $0.00 | AK92: $0.00
O93: ='1 REHAB ANALYZER'!K103 -> SIDING | V93: ='1 REHAB ANALYZER'!R103 -> $0.00 | AA93: ='1 REHAB ANALYZER'!W103 -> $0.00 | AF93: ='1 REHAB ANALYZER'!AB103 -> $0.00 | AK93: $0.00 | AQ93: DETAILED
O94: ='1 REHAB ANALYZER'!K104 -> DECKING AND PATIOS | V94: ='1 REHAB ANALYZER'!R104 -> $750.00 | AA94: ='1 REHAB ANALYZER'!W104 -> $321.00 | AF94: ='1 REHAB ANALYZER'!AB104 -> $0.00 | AK94: $1,071.00 | AQ94: QUICK BID
O95: ='1 REHAB ANALYZER'!K105 -> ROOFING | V95: ='1 REHAB ANALYZER'!R105 -> $3,000.00 | AA95: ='1 REHAB ANALYZER'!W105 -> $2,461.00 | AF95: ='1 REHAB ANALYZER'!AB105 -> $0.00 | AK95: $5,461.00 | AQ95: LUMP SUM
O96: ='1 REHAB ANALYZER'!K106 -> EXTERIOR DOORS & WINDOWS | V96: ='1 REHAB ANALYZER'!R106 -> $1,625.00 | AA96: ='1 REHAB ANALYZER'!W106 -> $3,210.00 | AF96: ='1 REHAB ANALYZER'!AB106 -> $0.00 | AK96: $4,835.00
O97: ='1 REHAB ANALYZER'!K107 -> GARAGE DOORS | V97: ='1 REHAB ANALYZER'!R107 -> $400.00 | AA97: ='1 REHAB ANALYZER'!W107 -> $963.00 | AF97: ='1 REHAB ANALYZER'!AB107 -> $0.00 | AK97: $1,363.00 | AQ97: Fixed Cost Graph
O98: ='1 REHAB ANALYZER'!K108 -> LANDSCAPING | V98: ='1 REHAB ANALYZER'!R108 -> $250.00 | AA98: ='1 REHAB ANALYZER'!W108 -> $321.00 | AF98: ='1 REHAB ANALYZER'!AB108 -> $0.00 | AK98: $571.00 | AQ98: AFTER REPAIR VALUE | AZ98: =1-AZ99 -> 85%
O99: ='1 REHAB ANALYZER'!K109 -> MISC. EXTERIOR ITEMS | V99: ='1 REHAB ANALYZER'!R109 -> $225.00 | AA99: ='1 REHAB ANALYZER'!W109 -> $406.60 | AF99: ='1 REHAB ANALYZER'!AB109 -> $0.00 | AK99: $631.60 | AQ99: FIXED COSTS | AZ99: =TOTAL_FIXED_COSTS_WHOLESALE/AFTER_REPAIR_VALUE_WHOLESALE -> 15%
O100: ='1 REHAB ANALYZER'!K110 -> FRAMING & DRYWALL | V100: ='1 REHAB ANALYZER'!R110 -> $750.00 | AA100: ='1 REHAB ANALYZER'!W110 -> $0.00 | AF100: ='1 REHAB ANALYZER'!AB110 -> $0.00 | AK100: $750.00
O101: ='1 REHAB ANALYZER'!K111 -> CABINETS & COUNTERTOPS | V101: ='1 REHAB ANALYZER'!R111 -> $1,950.00 | AA101: ='1 REHAB ANALYZER'!W111 -> $9,496.25 | AF101: ='1 REHAB ANALYZER'!AB111 -> $0.00 | AK101: $11,446.25
O102: ='1 REHAB ANALYZER'!K112 -> DOORS & TRIM | V102: ='1 REHAB ANALYZER'!R112 -> $1,125.00 | AA102: ='1 REHAB ANALYZER'!W112 -> $1,284.00 | AF102: ='1 REHAB ANALYZER'!AB112 -> $0.00 | AK102: $2,409.00
O103: ='1 REHAB ANALYZER'!K113 -> CARPET & RESILIENT | V103: ='1 REHAB ANALYZER'!R113 -> $900.00 | AA103: ='1 REHAB ANALYZER'!W113 -> $1,605.00 | AF103: ='1 REHAB ANALYZER'!AB113 -> $0.00 | AK103: $2,505.00
O104: ='1 REHAB ANALYZER'!K114 -> HARDWOOD FLOORING | V104: ='1 REHAB ANALYZER'!R114 -> $1,425.00 | AA104: ='1 REHAB ANALYZER'!W114 -> $2,033.00 | AF104: ='1 REHAB ANALYZER'!AB114 -> $0.00 | AK104: $3,458.00
O105: ='1 REHAB ANALYZER'!K115 -> TILING | V105: ='1 REHAB ANALYZER'!R115 -> $1,625.00 | AA105: ='1 REHAB ANALYZER'!W115 -> $2,279.10 | AF105: ='1 REHAB ANALYZER'!AB115 -> $0.00 | AK105: $3,904.10
O106: ='1 REHAB ANALYZER'!K116 -> PAINTING | V106: ='1 REHAB ANALYZER'!R116 -> $4,000.00 | AA106: ='1 REHAB ANALYZER'!W116 -> $0.00 | AF106: ='1 REHAB ANALYZER'!AB116 -> $0.00 | AK106: $4,000.00
O107: ='1 REHAB ANALYZER'!K117 -> APPLIANCES | V107: ='1 REHAB ANALYZER'!R117 -> $0.00 | AA107: ='1 REHAB ANALYZER'!W117 -> $3,210.00 | AF107: ='1 REHAB ANALYZER'!AB117 -> $0.00 | AK107: $3,210.00
O108: ='1 REHAB ANALYZER'!K118 -> PLUMBING | V108: ='1 REHAB ANALYZER'!R118 -> $1,105.00 | AA108: ='1 REHAB ANALYZER'!W118 -> $1,819.00 | AF108: ='1 REHAB ANALYZER'!AB118 -> $0.00 | AK108: $2,924.00
O109: ='1 REHAB ANALYZER'!K119 -> HVAC | V109: ='1 REHAB ANALYZER'!R119 -> $162.50 | AA109: ='1 REHAB ANALYZER'!W119 -> $321.00 | AF109: ='1 REHAB ANALYZER'!AB119 -> $0.00 | AK109: $483.50
O110: ='1 REHAB ANALYZER'!K120 -> ELECTRICAL | V110: ='1 REHAB ANALYZER'!R120 -> $0.00 | AA110: ='1 REHAB ANALYZER'!W120 -> $1,396.35 | AF110: ='1 REHAB ANALYZER'!AB120 -> $900.00 | AK110: $2,296.35
O111: ='1 REHAB ANALYZER'!K121 -> MISCELLANEOUS | V111: ='1 REHAB ANALYZER'!R121 -> $0.00 | AA111: ='1 REHAB ANALYZER'!W121 -> $0.00 | AF111: ='1 REHAB ANALYZER'!AB121 -> $0.00 | AK111: $0.00
O112: TOTALS | V112: =SUM(V88:Z111) -> $20,972.50 | AA112: =SUM(AA88:AE111) -> $31,581.05 | AF112: =SUM(AF88:AJ111) -> $900.00 | AK112: =SUM(AK88:AO111) -> $53,453.55
O115: =IF(W14="% of ARV",CONCATENATE("Fixed Costs are being Calculated at ",TEXT(AD14,"0%")," of the ARV"),"") -> Fixed Costs are being Calculated at 15% of the ARV

Sheet RENTAL ANALYSIS (hidden)
D2: Rental Purchase | H2: Rental Analysis | L2: Long-Term Financing
U3: Year of Sale | V3: 30 | Y3: 01 | Z3: 02 | AA3: 03 | AB3: 04 | AC3: 05 | AD3: 06 | AE3: 07 | AF3: 08 | AG3: 09 | AH3: 10 | AI3: 11 | AJ3: 12 | AK3: 13 | AL3: 14 | AM3: 15 | AN3: 16 | AO3: 17 | AP3: 18 | AQ3: 19 | AR3: 20 | AS3: 21 | AT3: 22 | AU3: 23 | AV3: 24 | AW3: 25 | AX3: 26 | AY3: 27 | AZ3: 28 | BA3: 29 | BB3: 30
D6: Project Capital
D8: After Repair Value | O8: ='RENTAL PURCHASE SETUP'!AA57 -> $250,000
D9: =T('RENTAL PURCHASE SETUP'!K58:Z58) -> - Less Purchase Costs | O9: ='RENTAL PURCHASE SETUP'!AA58 -> -$103,000
D10: =T('RENTAL PURCHASE SETUP'!K59:Z59) -> - Less Construction Costs | O10: ='RENTAL PURCHASE SETUP'!AA59 -> -$52,500
D11: =T('RENTAL PURCHASE SETUP'!K60:Z60) -> - Less Holding Costs | O11: ='RENTAL PURCHASE SETUP'!AA60 -> -$2,190
D12: =T('RENTAL PURCHASE SETUP'!K61:Z61) -> - Less Bridge Loan Financing Costs | O12: ='RENTAL PURCHASE SETUP'!AA61 -> $0
D13: =T('RENTAL PURCHASE SETUP'!K62:Z62) -> - Less Selling Costs | O13: ='RENTAL PURCHASE SETUP'!AA62 -> -$17,500
D14: =T('RENTAL PURCHASE SETUP'!K63:Z63) -> TOTAL PROFIT/EQUITY AFTER REHAB: | O14: ='RENTAL PURCHASE SETUP'!AA63 -> $74,810
U16: YEAR 01 | Y16: 01 | Z16: 02 | AA16: 03 | AB16: 04 | AC16: 05 | AD16: 06 | AE16: 07 | AF16: 08 | AG16: 09 | AH16: 10 | AI16: 11 | AJ16: 12 | AK16: 13 | AL16: 14 | AM16: 15 | AN16: 16 | AO16: 17 | AP16: 18 | AQ16: 19 | AR16: 20 | AS16: 21 | AT16: 22 | AU16: 23 | AV16: 24 | AW16: 25 | AX16: 26 | AY16: 27 | AZ16: 28 | BA16: 29 | BB16: 30
D17: Revenues | M17: % Increase per Year | Q17: 1.00% | U17: per month | V17: per year | W17: %
D18: Rental Unit 1 - ( units, square feet, beds, baths) | N18: 1250 | Q18: per month | U18: =IF(Q18="per month",N18,N18/12) -> $1,250 | V18: =U18*12 -> $15,000 | W18: =IFERROR(V18/$V$23,"") -> 100.0% | Y18: =IF($V$3>=Y$90,V18,"") -> $15,000 | Z18: =IF($V$3>=Z$90,(Y18*(1+$Q$17)),"") -> $15,150 | AA18: $15,302 | AB18: $15,455 | AC18: $15,609 | AD18: $15,765 | AE18: $15,923 | AF18: $16,082 | AG18: $16,243 | AH18: $16,405 | AI18: $16,569 | AJ18: $16,735 | AK18: $16,902 | AL18: $17,071 | AM18: $17,242 | AN18: $17,415 | AO18: $17,589 | AP18: $17,765 | AQ18: $17,942 | AR18: $18,122 | AS18: $18,303 | AT18: $18,486 | AU18: $18,671 | AV18: $18,857 | AW18: $19,046 | AX18: $19,236 | AY18: $19,429 | AZ18: $19,623 | BA18: $19,819 | BB18: $20,018
D19: Rental Unit 2 - ( units, square feet, beds, baths) | Q19: per month | U19: =IF(Q19="per month",N19,N19/12) -> $0 | V19: =U19*12 -> $0 | W19: =IFERROR(V19/$V$23,"") -> 0.0% | Y19: =IF($V$3>=Y$90,V19,"") -> $0 | Z19: =IF($V$3>=Z$90,(Y19*(1+$Q$17)),"") -> $0 | AA19: $0 | AB19: $0 | AC19: $0 | AD19: $0 | AE19: $0 | AF19: $0 | AG19: $0 | AH19: $0 | AI19: $0 | AJ19: $0 | AK19: $0 | AL19: $0 | AM19: $0 | AN19: $0 | AO19: $0 | AP19: $0 | AQ19: $0 | AR19: $0 | AS19: $0 | AT19: $0 | AU19: $0 | AV19: $0 | AW19: $0 | AX19: $0 | AY19: $0 | AZ19: $0 | BA19: $0 | BB19: $0
D20: Rental Unit 3 - ( units, square feet, beds, baths) | Q20: per month | U20: =IF(Q20="per month",N20,N20/12) -> $0 | V20: =U20*12 -> $0 | W20: =IFERROR(V20/$V$23,"") -> 0.0% | Y20: =IF($V$3>=Y$90,V20,"") -> $0 | Z20: =IF($V$3>=Z$90,(Y20*(1+$Q$17)),"") -> $0 | AA20: $0 | AB20: $0 | AC20: $0 | AD20: $0 | AE20: $0 | AF20: $0 | AG20: $0 | AH20: $0 | AI20: $0 | AJ20: $0 | AK20: $0 | AL20: $0 | AM20: $0 | AN20: $0 | AO20: $0 | AP20: $0 | AQ20: $0 | AR20: $0 | AS20: $0 | AT20: $0 | AU20: $0 | AV20: $0 | AW20: $0 | AX20: $0 | AY20: $0 | AZ20: $0 | BA20: $0 | BB20: $0
D21: Rental Unit 4 - ( units, square feet, beds, baths) | Q21: per month | U21: =IF(Q21="per month",N21,N21/12) -> $0 | V21: =U21*12 -> $0 | W21: =IFERROR(V21/$V$23,"") -> 0.0% | Y21: =IF($V$3>=Y$90,V21,"") -> $0 | Z21: =IF($V$3>=Z$90,(Y21*(1+$Q$17)),"") -> $0 | AA21: $0 | AB21: $0 | AC21: $0 | AD21: $0 | AE21: $0 | AF21: $0 | AG21: $0 | AH21: $0 | AI21: $0 | AJ21: $0 | AK21: $0 | AL21: $0 | AM21: $0 | AN21: $0 | AO21: $0 | AP21: $0 | AQ21: $0 | AR21: $0 | AS21: $0 | AT21: $0 | AU21: $0 | AV21: $0 | AW21: $0 | AX21: $0 | AY21: $0 | AZ21: $0 | BA21: $0 | BB21: $0
D22: Rental Unit 5 - ( units, square feet, beds, baths) | Q22: per month | U22: =IF(Q22="per month",N22,N22/12) -> $0 | V22: =U22*12 -> $0 | W22: =IFERROR(V22/$V$23,"") -> 0.0% | Y22: =IF($V$3>=Y$90,V22,"") -> $0 | Z22: =IF($V$3>=Z$90,(Y22*(1+$Q$17)),"") -> $0 | AA22: $0 | AB22: $0 | AC22: $0 | AD22: $0 | AE22: $0 | AF22: $0 | AG22: $0 | AH22: $0 | AI22: $0 | AJ22: $0 | AK22: $0 | AL22: $0 | AM22: $0 | AN22: $0 | AO22: $0 | AP22: $0 | AQ22: $0 | AR22: $0 | AS22: $0 | AT22: $0 | AU22: $0 | AV22: $0 | AW22: $0 | AX22: $0 | AY22: $0 | AZ22: $0 | BA22: $0 | BB22: $0
D23: GROSS SCHEDULED INCOME | U23: =SUM(U18:U22) -> $1,250 | V23: =SUM(V18:V22) -> $15,000 | Y23: =IF($V$3>=Y$90,SUM(Y18:Y22),"") -> $15,000 | Z23: =IF($V$3>=Z$90,SUM(Z18:Z22),"") -> $15,150 | AA23: $15,302 | AB23: $15,455 | AC23: $15,609 | AD23: $15,765 | AE23: $15,923 | AF23: $16,082 | AG23: $16,243 | AH23: $16,405 | AI23: $16,569 | AJ23: $16,735 | AK23: $16,902 | AL23: $17,071 | AM23: $17,242 | AN23: $17,415 | AO23: $17,589 | AP23: $17,765 | AQ23: $17,942 | AR23: $18,122 | AS23: $18,303 | AT23: $18,486 | AU23: $18,671 | AV23: $18,857 | AW23: $19,046 | AX23: $19,236 | AY23: $19,429 | AZ23: $19,623 | BA23: $19,819 | BB23: $20,018
D24: Vacancy Loss Amount | Q24: # of months | U24: =IF(Q24="# of Months",-(U23*N24)/12,(-U23*(N24/100))) -> $0 | V24: =U24*12 -> $0 | W24: =IFERROR(V24/$V$23,"") -> 0.0% | Y24: =IF(Y23="","",V24) -> $0 | Z24: =IF(Z23="","",Y24*(1+Revenue_Increase_Per_Year)) -> $0 | AA24: $0 | AB24: $0 | AC24: $0 | AD24: $0 | AE24: $0 | AF24: $0 | AG24: $0 | AH24: $0 | AI24: $0 | AJ24: $0 | AK24: $0 | AL24: $0 | AM24: $0 | AN24: $0 | AO24: $0 | AP24: $0 | AQ24: $0 | AR24: $0 | AS24: $0 | AT24: $0 | AU24: $0 | AV24: $0 | AW24: $0 | AX24: $0 | AY24: $0 | AZ24: $0 | BA24: $0 | BB24: $0
D25: Tenant Concessions | Q25: # of months | U25: =IF(Q25="# of Months",-(U23*N25)/12,(-U23*(N25/100))) -> $0 | V25: =U25*12 -> $0 | W25: =IFERROR(V25/$V$23,"") -> 0.0% | Y25: =V25 -> $0 | Z25: =IF(Z23="","",Y25*(1+Revenue_Increase_Per_Year)) -> $0 | AA25: $0 | AB25: $0 | AC25: $0 | AD25: $0 | AE25: $0 | AF25: $0 | AG25: $0 | AH25: $0 | AI25: $0 | AJ25: $0 | AK25: $0 | AL25: $0 | AM25: $0 | AN25: $0 | AO25: $0 | AP25: $0 | AQ25: $0 | AR25: $0 | AS25: $0 | AT25: $0 | AU25: $0 | AV25: $0 | AW25: $0 | AX25: $0 | AY25: $0 | AZ25: $0 | BA25: $0 | BB25: $0
D26: Other Income | Q26: per month | U26: =IF(Q26="per month",N26,N26/12) -> $0 | V26: =U26*12 -> $0 | W26: =IFERROR(V26/$V$23,"") -> 0.0% | Y26: =IF($V$3>=Y$90,$V$26,"") -> $0 | Z26: =IF($V$3>=Z$90,(Y26+(Y26*$Q$17)),"") -> $0 | AA26: $0 | AB26: $0 | AC26: $0 | AD26: $0 | AE26: $0 | AF26: $0 | AG26: $0 | AH26: $0 | AI26: $0 | AJ26: $0 | AK26: $0 | AL26: $0 | AM26: $0 | AN26: $0 | AO26: $0 | AP26: $0 | AQ26: $0 | AR26: $0 | AS26: $0 | AT26: $0 | AU26: $0 | AV26: $0 | AW26: $0 | AX26: $0 | AY26: $0 | AZ26: $0 | BA26: $0 | BB26: $0
D27: GROSS OPERATING INCOME | U27: =SUM(U23:U26) -> $1,250 | V27: =SUM(V23:V26) -> $15,000 | W27: =SUM(W23:W26) -> 0% | Y27: =IF(Y23="","",SUM(Y23:Y26)) -> $15,000 | Z27: $15,150 | AA27: $15,302 | AB27: $15,455 | AC27: $15,609 | AD27: $15,765 | AE27: $15,923 | AF27: $16,082 | AG27: $16,243 | AH27: $16,405 | AI27: $16,569 | AJ27: $16,735 | AK27: $16,902 | AL27: $17,071 | AM27: $17,242 | AN27: $17,415 | AO27: $17,589 | AP27: $17,765 | AQ27: $17,942 | AR27: $18,122 | AS27: $18,303 | AT27: $18,486 | AU27: $18,671 | AV27: $18,857 | AW27: $19,046 | AX27: $19,236 | AY27: =IF(AY23="","",SUM(AY23:AY26)) -> $19,429 | AZ27: =IF(AZ23="","",SUM(AZ23:AZ26)) -> $19,623 | BA27: =IF(BA23="","",SUM(BA23:BA26)) -> $19,819 | BB27: =IF(BB23="","",SUM(BB23:BB26)) -> $20,018
D29: Operating Expenses | M29: % Increase per Year | Q29: 1.00% | Z29: =$Q$29 -> 1.00% | AA29: 1.00% | AB29: 1.00% | AC29: 1.00% | AD29: 1.00% | AE29: 1.00% | AF29: 1.00% | AG29: 1.00% | AH29: 1.00% | AI29: 1.00% | AJ29: 1.00% | AK29: 1.00% | AL29: 1.00% | AM29: 1.00% | AN29: 1.00% | AO29: 1.00% | AP29: 1.00% | AQ29: 1.00% | AR29: 1.00% | AS29: 1.00% | AT29: 1.00% | AU29: 1.00% | AV29: 1.00% | AW29: 1.00% | AX29: 1.00% | AY29: 1.00% | AZ29: 1.00% | BA29: 1.00% | BB29: 1.00%
D30: Fixed Expenses:
D31: Property Taxes | N31: 2000 | Q31: per year | U31: =-IF(Q31="per year",N31/12,IF(Q31="% of GSI",(N31/100)*$U$23,IF(Q31="% of GOI",(N31/100)*$U$27,N31)))*1 -> -$167 | V31: =U31*12 -> -$2,000 | W31: =IFERROR(V31/$V$23,"") -> -13% | Y31: =IF($V$3>=Y$90,V31*1,"") -> -$2,000 | Z31: =IF($V$3>=Z$90,Y31*(1+$Q$29),"") -> -$2,020 | AA31: -$2,040 | AB31: -$2,061 | AC31: -$2,081 | AD31: -$2,102 | AE31: -$2,123 | AF31: -$2,144 | AG31: -$2,166 | AH31: -$2,187 | AI31: -$2,209 | AJ31: -$2,231 | AK31: -$2,254 | AL31: -$2,276 | AM31: -$2,299 | AN31: -$2,322 | AO31: -$2,345 | AP31: -$2,369 | AQ31: -$2,392 | AR31: -$2,416 | AS31: -$2,440 | AT31: -$2,465 | AU31: -$2,489 | AV31: -$2,514 | AW31: -$2,539 | AX31: -$2,565 | AY31: -$2,591 | AZ31: -$2,616 | BA31: -$2,643 | BB31: -$2,669
D32: Property Insurance | N32: 100 | Q32: per year | U32: -$8 | V32: =U32*12 -> -$100 | W32: -1% | Y32: -$100 | Z32: =IF($V$3>=Z$90,Y32*(1+$Q$29),"") -> -$101 | AA32: -$102 | AB32: -$103 | AC32: -$104 | AD32: -$105 | AE32: -$106 | AF32: -$107 | AG32: -$108 | AH32: -$109 | AI32: -$110 | AJ32: -$112 | AK32: -$113 | AL32: -$114 | AM32: -$115 | AN32: -$116 | AO32: -$117 | AP32: -$118 | AQ32: -$120 | AR32: -$121 | AS32: -$122 | AT32: -$123 | AU32: -$124 | AV32: -$126 | AW32: -$127 | AX32: -$128 | AY32: -$130 | AZ32: -$131 | BA32: -$132 | BB32: -$133
D33: Cleaning and Maintenance: | Q33: per month | U33: $0 | V33: $0 | W33: 0% | Y33: $0 | Z33: =IF($V$3>=Z$90,Y33*(1+$Q$29),"") -> $0 | AA33: $0 | AB33: $0 | AC33: $0 | AD33: $0 | AE33: $0 | AF33: $0 | AG33: $0 | AH33: $0 | AI33: $0 | AJ33: $0 | AK33: $0 | AL33: $0 | AM33: $0 | AN33: $0 | AO33: $0 | AP33: $0 | AQ33: $0 | AR33: $0 | AS33: $0 | AT33: $0 | AU33: $0 | AV33: $0 | AW33: $0 | AX33: $0 | AY33: $0 | AZ33: $0 | BA33: $0 | BB33: $0
D34: HOA Dues: | Q34: per month | U34: $0 | V34: $0 | W34: 0% | Y34: $0 | Z34: =IF($V$3>=Z$90,Y34*(1+$Q$29),"") -> $0 | AA34: $0 | AB34: $0 | AC34: $0 | AD34: $0 | AE34: $0 | AF34: $0 | AG34: $0 | AH34: $0 | AI34: $0 | AJ34: $0 | AK34: $0 | AL34: $0 | AM34: $0 | AN34: $0 | AO34: $0 | AP34: $0 | AQ34: $0 | AR34: $0 | AS34: $0 | AT34: $0 | AU34: $0 | AV34: $0 | AW34: $0 | AX34: $0 | AY34: $0 | AZ34: $0 | BA34: $0 | BB34: $0
D35: Lawn and Groundskeeping: | Q35: per month | U35: $0 | V35: $0 | W35: 0% | Y35: $0 | Z35: =IF($V$3>=Z$90,Y35*(1+$Q$29),"") -> $0 | AA35: $0 | AB35: $0 | AC35: $0 | AD35: $0 | AE35: $0 | AF35: $0 | AG35: $0 | AH35: $0 | AI35: $0 | AJ35: $0 | AK35: $0 | AL35: $0 | AM35: $0 | AN35: $0 | AO35: $0 | AP35: $0 | AQ35: $0 | AR35: $0 | AS35: $0 | AT35: $0 | AU35: $0 | AV35: $0 | AW35: $0 | AX35: $0 | AY35: $0 | AZ35: $0 | BA35: $0 | BB35: $0
D36: Auto and Travel: | Q36: per month | U36: $0 | V36: $0 | W36: 0% | Y36: $0 | Z36: =IF($V$3>=Z$90,Y36*(1+$Q$29),"") -> $0 | AA36: $0 | AB36: $0 | AC36: $0 | AD36: $0 | AE36: $0 | AF36: $0 | AG36: $0 | AH36: $0 | AI36: $0 | AJ36: $0 | AK36: $0 | AL36: $0 | AM36: $0 | AN36: $0 | AO36: $0 | AP36: $0 | AQ36: $0 | AR36: $0 | AS36: $0 | AT36: $0 | AU36: $0 | AV36: $0 | AW36: $0 | AX36: $0 | AY36: $0 | AZ36: $0 | BA36: $0 | BB36: $0
D37: Electrical Utilities: | Q37: per month | U37: $0 | V37: $0 | W37: 0% | Y37: $0 | Z37: =IF($V$3>=Z$90,Y37*(1+$Q$29),"") -> $0 | AA37: $0 | AB37: $0 | AC37: $0 | AD37: $0 | AE37: $0 | AF37: $0 | AG37: $0 | AH37: $0 | AI37: $0 | AJ37: $0 | AK37: $0 | AL37: $0 | AM37: $0 | AN37: $0 | AO37: $0 | AP37: $0 | AQ37: $0 | AR37: $0 | AS37: $0 | AT37: $0 | AU37: $0 | AV37: $0 | AW37: $0 | AX37: $0 | AY37: $0 | AZ37: $0 | BA37: $0 | BB37: $0
D38: Water Utilities: | Q38: per month | U38: $0 | V38: $0 | W38: 0% | Y38: $0 | Z38: =IF($V$3>=Z$90,Y38*(1+$Q$29),"") -> $0 | AA38: $0 | AB38: $0 | AC38: $0 | AD38: $0 | AE38: $0 | AF38: $0 | AG38: $0 | AH38: $0 | AI38: $0 | AJ38: $0 | AK38: $0 | AL38: $0 | AM38: $0 | AN38: $0 | AO38: $0 | AP38: $0 | AQ38: $0 | AR38: $0 | AS38: $0 | AT38: $0 | AU38: $0 | AV38: $0 | AW38: $0 | AX38: $0 | AY38: $0 | AZ38: $0 | BA38: $0 | BB38: $0
D39: Gas Utilities: | Q39: per month | U39: $0 | V39: $0 | W39: 0% | Y39: $0 | Z39: =IF($V$3>=Z$90,Y39*(1+$Q$29),"") -> $0 | AA39: $0 | AB39: $0 | AC39: $0 | AD39: $0 | AE39: $0 | AF39: $0 | AG39: $0 | AH39: $0 | AI39: $0 | AJ39: $0 | AK39: $0 | AL39: $0 | AM39: $0 | AN39: $0 | AO39: $0 | AP39: $0 | AQ39: $0 | AR39: $0 | AS39: $0 | AT39: $0 | AU39: $0 | AV39: $0 | AW39: $0 | AX39: $0 | AY39: $0 | AZ39: $0 | BA39: $0 | BB39: $0
D40: Garbage: | Q40: per month | U40: $0 | V40: $0 | W40: 0% | Y40: $0 | Z40: =IF($V$3>=Z$90,Y40*(1+$Q$29),"") -> $0 | AA40: $0 | AB40: $0 | AC40: $0 | AD40: $0 | AE40: $0 | AF40: $0 | AG40: $0 | AH40: $0 | AI40: $0 | AJ40: $0 | AK40: $0 | AL40: $0 | AM40: $0 | AN40: $0 | AO40: $0 | AP40: $0 | AQ40: $0 | AR40: $0 | AS40: $0 | AT40: $0 | AU40: $0 | AV40: $0 | AW40: $0 | AX40: $0 | AY40: $0 | AZ40: $0 | BA40: $0 | BB40: $0
D41: Advertising: | Q41: per year | U41: $0 | V41: $0 | W41: 0% | Y41: $0 | Z41: =IF($V$3>=Z$90,Y41*(1+$Q$29),"") -> $0 | AA41: $0 | AB41: $0 | AC41: $0 | AD41: $0 | AE41: $0 | AF41: $0 | AG41: $0 | AH41: $0 | AI41: $0 | AJ41: $0 | AK41: $0 | AL41: $0 | AM41: $0 | AN41: $0 | AO41: $0 | AP41: $0 | AQ41: $0 | AR41: $0 | AS41: $0 | AT41: $0 | AU41: $0 | AV41: $0 | AW41: $0 | AX41: $0 | AY41: $0 | AZ41: $0 | BA41: $0 | BB41: $0
D42: Accounting & Legal: | Q42: per year | U42: $0 | V42: $0 | W42: 0% | Y42: $0 | Z42: =IF($V$3>=Z$90,Y42*(1+$Q$29),"") -> $0 | AA42: $0 | AB42: $0 | AC42: $0 | AD42: $0 | AE42: $0 | AF42: $0 | AG42: $0 | AH42: $0 | AI42: $0 | AJ42: $0 | AK42: $0 | AL42: $0 | AM42: $0 | AN42: $0 | AO42: $0 | AP42: $0 | AQ42: $0 | AR42: $0 | AS42: $0 | AT42: $0 | AU42: $0 | AV42: $0 | AW42: $0 | AX42: $0 | AY42: $0 | AZ42: $0 | BA42: $0 | BB42: $0
D43: Other 1: | Q43: per year | U43: $0 | V43: $0 | W43: 0% | Y43: $0 | Z43: =IF($V$3>=Z$90,Y43*(1+$Q$29),"") -> $0 | AA43: $0 | AB43: $0 | AC43: $0 | AD43: $0 | AE43: $0 | AF43: $0 | AG43: $0 | AH43: $0 | AI43: $0 | AJ43: $0 | AK43: $0 | AL43: $0 | AM43: $0 | AN43: $0 | AO43: $0 | AP43: $0 | AQ43: $0 | AR43: $0 | AS43: $0 | AT43: $0 | AU43: $0 | AV43: $0 | AW43: $0 | AX43: $0 | AY43: $0 | AZ43: $0 | BA43: $0 | BB43: $0
D44: Other 2: | Q44: per year | U44: $0 | V44: $0 | W44: 0% | Y44: $0 | Z44: =IF($V$3>=Z$90,Y44*(1+$Q$29),"") -> $0 | AA44: $0 | AB44: $0 | AC44: $0 | AD44: $0 | AE44: $0 | AF44: $0 | AG44: $0 | AH44: $0 | AI44: $0 | AJ44: $0 | AK44: $0 | AL44: $0 | AM44: $0 | AN44: $0 | AO44: $0 | AP44: $0 | AQ44: $0 | AR44: $0 | AS44: $0 | AT44: $0 | AU44: $0 | AV44: $0 | AW44: $0 | AX44: $0 | AY44: $0 | AZ44: $0 | BA44: $0 | BB44: $0
D45: Property Management: | N45: 10 | Q45: % of GSI | U45: -$125 | V45: -$1,500 | W45: -10% | Y45: -$1,500 | Z45: =IF($V$3>=Z$90,Y45*(1+$Q$29),"") -> -$1,515 | AA45: -$1,530 | AB45: -$1,545 | AC45: -$1,561 | AD45: -$1,577 | AE45: -$1,592 | AF45: -$1,608 | AG45: -$1,624 | AH45: -$1,641 | AI45: -$1,657 | AJ45: -$1,674 | AK45: -$1,690 | AL45: -$1,707 | AM45: -$1,724 | AN45: -$1,741 | AO45: -$1,759 | AP45: -$1,776 | AQ45: -$1,794 | AR45: -$1,812 | AS45: -$1,830 | AT45: -$1,849 | AU45: -$1,867 | AV45: -$1,886 | AW45: -$1,905 | AX45: -$1,924 | AY45: -$1,943 | AZ45: -$1,962 | BA45: -$1,982 | BB45: -$2,002
D46: Repairs: | N46: 10 | Q46: % of GSI | U46: -$125 | V46: -$1,500 | W46: -10% | Y46: -$1,500 | Z46: =IF($V$3>=Z$90,Y46*(1+$Q$29),"") -> -$1,515 | AA46: -$1,530 | AB46: -$1,545 | AC46: -$1,561 | AD46: -$1,577 | AE46: -$1,592 | AF46: -$1,608 | AG46: -$1,624 | AH46: -$1,641 | AI46: -$1,657 | AJ46: -$1,674 | AK46: -$1,690 | AL46: -$1,707 | AM46: -$1,724 | AN46: -$1,741 | AO46: -$1,759 | AP46: -$1,776 | AQ46: -$1,794 | AR46: -$1,812 | AS46: -$1,830 | AT46: -$1,849 | AU46: -$1,867 | AV46: -$1,886 | AW46: -$1,905 | AX46: -$1,924 | AY46: -$1,943 | AZ46: -$1,962 | BA46: -$1,982 | BB46: -$2,002
D47: Cap Ex: | N47: 10 | Q47: % of GSI | U47: -$125 | V47: -$1,500 | W47: -10% | Y47: -$1,500 | Z47: =IF($V$3>=Z$90,Y47*(1+$Q$29),"") -> -$1,515 | AA47: -$1,530 | AB47: -$1,545 | AC47: -$1,561 | AD47: -$1,577 | AE47: -$1,592 | AF47: -$1,608 | AG47: -$1,624 | AH47: -$1,641 | AI47: -$1,657 | AJ47: -$1,674 | AK47: -$1,690 | AL47: -$1,707 | AM47: -$1,724 | AN47: -$1,741 | AO47: -$1,759 | AP47: -$1,776 | AQ47: -$1,794 | AR47: -$1,812 | AS47: -$1,830 | AT47: -$1,849 | AU47: -$1,867 | AV47: -$1,886 | AW47: -$1,905 | AX47: -$1,924 | AY47: -$1,943 | AZ47: -$1,962 | BA47: -$1,982 | BB47: -$2,002
D48: TOTAL OPERATING EXPENSES | U48: =SUM(U31:U47) -> -$550 | V48: =SUM(V31:V47) -> -$6,600 | W48: =SUM(W31:W47) -> -44% | Y48: =IF(Y27="","",SUM(Y31:Y47)) -> -$6,600 | Z48: -$6,666 | AA48: -$6,733 | AB48: -$6,800 | AC48: -$6,868 | AD48: -$6,937 | AE48: -$7,006 | AF48: -$7,076 | AG48: -$7,147 | AH48: -$7,218 | AI48: -$7,291 | AJ48: -$7,363 | AK48: -$7,437 | AL48: -$7,511 | AM48: -$7,587 | AN48: -$7,662 | AO48: -$7,739 | AP48: -$7,816 | AQ48: -$7,895 | AR48: -$7,974 | AS48: -$8,053 | AT48: -$8,134 | AU48: -$8,215 | AV48: -$8,297 | AW48: -$8,380 | AX48: -$8,464 | AY48: -$8,549 | AZ48: -$8,634 | BA48: -$8,721 | BB48: -$8,808
D50: NET OPERATING INCOME | U50: =U27+U48 -> $700 | V50: =V27+V48 -> $8,400 | W50: =W27+W48 -> -44% | Y50: =IFERROR(Y27+Y48,"") -> $8,400 | Z50: $8,484 | AA50: $8,569 | AB50: $8,655 | AC50: $8,741 | AD50: $8,828 | AE50: $8,917 | AF50: $9,006 | AG50: $9,096 | AH50: $9,187 | AI50: $9,279 | AJ50: $9,372 | AK50: $9,465 | AL50: $9,560 | AM50: $9,656 | AN50: $9,752 | AO50: $9,850 | AP50: $9,948 | AQ50: $10,048 | AR50: $10,148 | AS50: $10,250 | AT50: $10,352 | AU50: $10,456 | AV50: $10,560 | AW50: $10,666 | AX50: $10,772 | AY50: =IFERROR(AY27+AY48,"") -> $10,880 | AZ50: =IFERROR(AZ27+AZ48,"") -> $10,989 | BA50: =IFERROR(BA27+BA48,"") -> $11,099 | BB50: =IFERROR(BB27+BB48,"") -> $11,210
B52: Setup | D52: Long-Term Financing
D53: Mortgage Payment (Interest Amount) | U53: =V53/12 -> -$724 | V53: =IFERROR(CUMIPMT('RENTAL LOAN SETUP'!$V$12/12,'RENTAL LOAN SETUP'!$V$11*12,'RENTAL LOAN SETUP'!$AA$9,Y91,Y92,0),0) -> -$8,691 | W53: =IFERROR(V53/$V$23,"") -> -58% | Y53: =IFERROR(IF(Long_Term_Loan_Type="Amortized",IF($V$3>=Y90,CUMIPMT('RENTAL LOAN SETUP'!$V$12/12,'RENTAL LOAN SETUP'!$V$11*12,'RENTAL LOAN SETUP'!$AA$9,Y91,Y92,0),""),-'RENTAL LOAN SETUP'!$AA$9*'RENTAL LOAN SETUP'!$V$12),"") -> -$8,691 | Z53: =IFERROR(IF(Long_Term_Loan_Type="Amortized",IF($V$3>=Z90,CUMIPMT('RENTAL LOAN SETUP'!$V$12/12,'RENTAL LOAN SETUP'!$V$11*12,'RENTAL LOAN SETUP'!$AA$9,Z91,Z92,0),""),-'RENTAL LOAN SETUP'!$AA$9*'RENTAL LOAN SETUP'!$V$12),"") -> -$8,559 | AA53: =IFERROR(IF(Long_Term_Loan_Type="Amortized",IF($V$3>=AA90,CUMIPMT('RENTAL LOAN SETUP'!$V$12/12,'RENTAL LOAN SETUP'!$V$11*12,'RENTAL LOAN SETUP'!$AA$9,AA91,AA92,0),""),-'RENTAL LOAN SETUP'!$AA$9*'RENTAL LOAN SETUP'!$V$12),"") -> -$8,420 | AB53: =IFERROR(IF(Long_Term_Loan_Type="Amortized",IF($V$3>=AB90,CUMIPMT('RENTAL LOAN SETUP'!$V$12/12,'RENTAL LOAN SETUP'!$V$11*12,'RENTAL LOAN SETUP'!$AA$9,AB91,AB92,0),""),-'RENTAL LOAN SETUP'!$AA$9*'RENTAL LOAN SETUP'!$V$12),"") -> -$8,274 | AC53: =IFERROR(IF(Long_Term_Loan_Type="Amortized",IF($V$3>=AC90,CUMIPMT('RENTAL LOAN SETUP'!$V$12/12,'RENTAL LOAN SETUP'!$V$11*12,'RENTAL LOAN SETUP'!$AA$9,AC91,AC92,0),""),-'RENTAL LOAN SETUP'!$AA$9*'RENTAL LOAN SETUP'!$V$12),"") -> -$8,121 | AD53: =IFERROR(IF(Long_Term_Loan_Type="Amortized",IF($V$3>=AD90,CUMIPMT('RENTAL LOAN SETUP'!$V$12/12,'RENTAL LOAN SETUP'!$V$11*12,'RENTAL LOAN SETUP'!$AA$9,AD91,AD92,0),""),-'RENTAL LOAN SETUP'!$AA$9*'RENTAL LOAN SETUP'!$V$12),"") -> -$7,960 | AE53: =IFERROR(IF(Long_Term_Loan_Type="Amortized",IF($V$3>=AE90,CUMIPMT('RENTAL LOAN SETUP'!$V$12/12,'RENTAL LOAN SETUP'!$V$11*12,'RENTAL LOAN SETUP'!$AA$9,AE91,AE92,0),""),-'RENTAL LOAN SETUP'!$AA$9*'RENTAL LOAN SETUP'!$V$12),"") -> -$7,790 | AF53: =IFERROR(IF(Long_Term_Loan_Type="Amortized",IF($V$3>=AF90,CUMIPMT('RENTAL LOAN SETUP'!$V$12/12,'RENTAL LOAN SETUP'!$V$11*12,'RENTAL LOAN SETUP'!$AA$9,AF91,AF92,0),""),-'RENTAL LOAN SETUP'!$AA$9*'RENTAL LOAN SETUP'!$V$12),"") -> -$7,612 | AG53: =IFERROR(IF(Long_Term_Loan_Type="Amortized",IF($V$3>=AG90,CUMIPMT('RENTAL LOAN SETUP'!$V$12/12,'RENTAL LOAN SETUP'!$V$11*12,'RENTAL LOAN SETUP'!$AA$9,AG91,AG92,0),""),-'RENTAL LOAN SETUP'!$AA$9*'RENTAL LOAN SETUP'!$V$12),"") -> -$7,425 | AH53: =IFERROR(IF(Long_Term_Loan_Type="Amortized",IF($V$3>=AH90,CUMIPMT('RENTAL LOAN SETUP'!$V$12/12,'RENTAL LOAN SETUP'!$V$11*12,'RENTAL LOAN SETUP'!$AA$9,AH91,AH92,0),""),-'RENTAL LOAN SETUP'!$AA$9*'RENTAL LOAN SETUP'!$V$12),"") -> -$7,228 | AI53: =IFERROR(IF(Long_Term_Loan_Type="Amortized",IF($V$3>=AI90,CUMIPMT('RENTAL LOAN SETUP'!$V$12/12,'RENTAL LOAN SETUP'!$V$11*12,'RENTAL LOAN SETUP'!$AA$9,AI91,AI92,0),""),-'RENTAL LOAN SETUP'!$AA$9*'RENTAL LOAN SETUP'!$V$12),"") -> -$7,021 | AJ53: =IFERROR(IF(Long_Term_Loan_Type="Amortized",IF($V$3>=AJ90,CUMIPMT('RENTAL LOAN SETUP'!$V$12/12,'RENTAL LOAN SETUP'!$V$11*12,'RENTAL LOAN SETUP'!$AA$9,AJ91,AJ92,0),""),-'RENTAL LOAN SETUP'!$AA$9*'RENTAL LOAN SETUP'!$V$12),"") -> -$6,803 | AK53: =IFERROR(IF(Long_Term_Loan_Type="Amortized",IF($V$3>=AK90,CUMIPMT('RENTAL LOAN SETUP'!$V$12/12,'RENTAL LOAN SETUP'!$V$11*12,'RENTAL LOAN SETUP'!$AA$9,AK91,AK92,0),""),-'RENTAL LOAN SETUP'!$AA$9*'RENTAL LOAN SETUP'!$V$12),"") -> -$6,575 | AL53: =IFERROR(IF(Long_Term_Loan_Type="Amortized",IF($V$3>=AL90,CUMIPMT('RENTAL LOAN SETUP'!$V$12/12,'RENTAL LOAN SETUP'!$V$11*12,'RENTAL LOAN SETUP'!$AA$9,AL91,AL92,0),""),-'RENTAL LOAN SETUP'!$AA$9*'RENTAL LOAN SETUP'!$V$12),"") -> -$6,334 | AM53: =IFERROR(IF(Long_Term_Loan_Type="Amortized",IF($V$3>=AM90,CUMIPMT('RENTAL LOAN SETUP'!$V$12/12,'RENTAL LOAN SETUP'!$V$11*12,'RENTAL LOAN SETUP'!$AA$9,AM91,AM92,0),""),-'RENTAL LOAN SETUP'!$AA$9*'RENTAL LOAN SETUP'!$V$12),"") -> -$6,082 | AN53: =IFERROR(IF(Long_Term_Loan_Type="Amortized",IF($V$3>=AN90,CUMIPMT('RENTAL LOAN SETUP'!$V$12/12,'RENTAL LOAN SETUP'!$V$11*12,'RENTAL LOAN SETUP'!$AA$9,AN91,AN92,0),""),-'RENTAL LOAN SETUP'!$AA$9*'RENTAL LOAN SETUP'!$V$12),"") -> -$5,816 | AO53: =IFERROR(IF(Long_Term_Loan_Type="Amortized",IF($V$3>=AO90,CUMIPMT('RENTAL LOAN SETUP'!$V$12/12,'RENTAL LOAN SETUP'!$V$11*12,'RENTAL LOAN SETUP'!$AA$9,AO91,AO92,0),""),-'RENTAL LOAN SETUP'!$AA$9*'RENTAL LOAN SETUP'!$V$12),"") -> -$5,537 | AP53: =IFERROR(IF(Long_Term_Loan_Type="Amortized",IF($V$3>=AP90,CUMIPMT('RENTAL LOAN SETUP'!$V$12/12,'RENTAL LOAN SETUP'!$V$11*12,'RENTAL LOAN SETUP'!$AA$9,AP91,AP92,0),""),-'RENTAL LOAN SETUP'!$AA$9*'RENTAL LOAN SETUP'!$V$12),"") -> -$5,243 | AQ53: =IFERROR(IF(Long_Term_Loan_Type="Amortized",IF($V$3>=AQ90,CUMIPMT('RENTAL LOAN SETUP'!$V$12/12,'RENTAL LOAN SETUP'!$V$11*12,'RENTAL LOAN SETUP'!$AA$9,AQ91,AQ92,0),""),-'RENTAL LOAN SETUP'!$AA$9*'RENTAL LOAN SETUP'!$V$12),"") -> -$4,935 | AR53: =IFERROR(IF(Long_Term_Loan_Type="Amortized",IF($V$3>=AR90,CUMIPMT('RENTAL LOAN SETUP'!$V$12/12,'RENTAL LOAN SETUP'!$V$11*12,'RENTAL LOAN SETUP'!$AA$9,AR91,AR92,0),""),-'RENTAL LOAN SETUP'!$AA$9*'RENTAL LOAN SETUP'!$V$12),"") -> -$4,610 | AS53: =IFERROR(IF(Long_Term_Loan_Type="Amortized",IF($V$3>=AS90,CUMIPMT('RENTAL LOAN SETUP'!$V$12/12,'RENTAL LOAN SETUP'!$V$11*12,'RENTAL LOAN SETUP'!$AA$9,AS91,AS92,0),""),-'RENTAL LOAN SETUP'!$AA$9*'RENTAL LOAN SETUP'!$V$12),"") -> -$4,270 | AT53: =IFERROR(IF(Long_Term_Loan_Type="Amortized",IF($V$3>=AT90,CUMIPMT('RENTAL LOAN SETUP'!$V$12/12,'RENTAL LOAN SETUP'!$V$11*12,'RENTAL LOAN SETUP'!$AA$9,AT91,AT92,0),""),-'RENTAL LOAN SETUP'!$AA$9*'RENTAL LOAN SETUP'!$V$12),"") -> -$3,911 | AU53: =IFERROR(IF(Long_Term_Loan_Type="Amortized",IF($V$3>=AU90,CUMIPMT('RENTAL LOAN SETUP'!$V$12/12,'RENTAL LOAN SETUP'!$V$11*12,'RENTAL LOAN SETUP'!$AA$9,AU91,AU92,0),""),-'RENTAL LOAN SETUP'!$AA$9*'RENTAL LOAN SETUP'!$V$12),"") -> -$3,535 | AV53: =IFERROR(IF(Long_Term_Loan_Type="Amortized",IF($V$3>=AV90,CUMIPMT('RENTAL LOAN SETUP'!$V$12/12,'RENTAL LOAN SETUP'!$V$11*12,'RENTAL LOAN SETUP'!$AA$9,AV91,AV92,0),""),-'RENTAL LOAN SETUP'!$AA$9*'RENTAL LOAN SETUP'!$V$12),"") -> -$3,139 | AW53: =IFERROR(IF(Long_Term_Loan_Type="Amortized",IF($V$3>=AW90,CUMIPMT('RENTAL LOAN SETUP'!$V$12/12,'RENTAL LOAN SETUP'!$V$11*12,'RENTAL LOAN SETUP'!$AA$9,AW91,AW92,0),""),-'RENTAL LOAN SETUP'!$AA$9*'RENTAL LOAN SETUP'!$V$12),"") -> -$2,722 | AX53: =IFERROR(IF(Long_Term_Loan_Type="Amortized",IF($V$3>=AX90,CUMIPMT('RENTAL LOAN SETUP'!$V$12/12,'RENTAL LOAN SETUP'!$V$11*12,'RENTAL LOAN SETUP'!$AA$9,AX91,AX92,0),""),-'RENTAL LOAN SETUP'!$AA$9*'RENTAL LOAN SETUP'!$V$12),"") -> -$2,285 | AY53: =IFERROR(IF(Long_Term_Loan_Type="Amortized",IF($V$3>=AY90,CUMIPMT('RENTAL LOAN SETUP'!$V$12/12,'RENTAL LOAN SETUP'!$V$11*12,'RENTAL LOAN SETUP'!$AA$9,AY91,AY92,0),""),-'RENTAL LOAN SETUP'!$AA$9*'RENTAL LOAN SETUP'!$V$12),"") -> -$1,825 | AZ53: =IFERROR(IF(Long_Term_Loan_Type="Amortized",IF($V$3>=AZ90,CUMIPMT('RENTAL LOAN SETUP'!$V$12/12,'RENTAL LOAN SETUP'!$V$11*12,'RENTAL LOAN SETUP'!$AA$9,AZ91,AZ92,0),""),-'RENTAL LOAN SETUP'!$AA$9*'RENTAL LOAN SETUP'!$V$12),"") -> -$1,342 | BA53: =IFERROR(IF(Long_Term_Loan_Type="Amortized",IF($V$3>=BA90,CUMIPMT('RENTAL LOAN SETUP'!$V$12/12,'RENTAL LOAN SETUP'!$V$11*12,'RENTAL LOAN SETUP'!$AA$9,BA91,BA92,0),""),-'RENTAL LOAN SETUP'!$AA$9*'RENTAL LOAN SETUP'!$V$12),"") -> -$834 | BB53: =IFERROR(IF(Long_Term_Loan_Type="Amortized",IF($V$3>=BB90,CUMIPMT('RENTAL LOAN SETUP'!$V$12/12,'RENTAL LOAN SETUP'!$V$11*12,'RENTAL LOAN SETUP'!$AA$9,BB91,BB92,0),""),-'RENTAL LOAN SETUP'!$AA$9*'RENTAL LOAN SETUP'!$V$12),"") -> -$299
D54: Mortgage Payment (Principal Amount) | U54: =V54/12 -> -$215 | V54: =IFERROR(CUMPRINC('RENTAL LOAN SETUP'!$V$12/12,'RENTAL LOAN SETUP'!$V$11*12,'RENTAL LOAN SETUP'!$AA$9,Y91,Y92,0),0) -> -$2,582 | W54: =IFERROR(V54/$V$23,"") -> -17% | Y54: =IFERROR(IF(Long_Term_Loan_Type="Amortized",IF($V$3>=Y90,CUMPRINC('RENTAL LOAN SETUP'!$V$12/12,'RENTAL LOAN SETUP'!$V$11*12,'RENTAL LOAN SETUP'!$AA$9,Y91,Y92,0),""),0),"") -> -$2,582 | Z54: =IFERROR(IF(Long_Term_Loan_Type="Amortized",IF($V$3>=Z90,CUMPRINC('RENTAL LOAN SETUP'!$V$12/12,'RENTAL LOAN SETUP'!$V$11*12,'RENTAL LOAN SETUP'!$AA$9,Z91,Z92,0),""),0),"") -> -$2,714 | AA54: =IFERROR(IF(Long_Term_Loan_Type="Amortized",IF($V$3>=AA90,CUMPRINC('RENTAL LOAN SETUP'!$V$12/12,'RENTAL LOAN SETUP'!$V$11*12,'RENTAL LOAN SETUP'!$AA$9,AA91,AA92,0),""),0),"") -> -$2,853 | AB54: =IFERROR(IF(Long_Term_Loan_Type="Amortized",IF($V$3>=AB90,CUMPRINC('RENTAL LOAN SETUP'!$V$12/12,'RENTAL LOAN SETUP'!$V$11*12,'RENTAL LOAN SETUP'!$AA$9,AB91,AB92,0),""),0),"") -> -$2,999 | AC54: =IFERROR(IF(Long_Term_Loan_Type="Amortized",IF($V$3>=AC90,CUMPRINC('RENTAL LOAN SETUP'!$V$12/12,'RENTAL LOAN SETUP'!$V$11*12,'RENTAL LOAN SETUP'!$AA$9,AC91,AC92,0),""),0),"") -> -$3,152 | AD54: =IFERROR(IF(Long_Term_Loan_Type="Amortized",IF($V$3>=AD90,CUMPRINC('RENTAL LOAN SETUP'!$V$12/12,'RENTAL LOAN SETUP'!$V$11*12,'RENTAL LOAN SETUP'!$AA$9,AD91,AD92,0),""),0),"") -> -$3,313 | AE54: =IFERROR(IF(Long_Term_Loan_Type="Amortized",IF($V$3>=AE90,CUMPRINC('RENTAL LOAN SETUP'!$V$12/12,'RENTAL LOAN SETUP'!$V$11*12,'RENTAL LOAN SETUP'!$AA$9,AE91,AE92,0),""),0),"") -> -$3,483 | AF54: =IFERROR(IF(Long_Term_Loan_Type="Amortized",IF($V$3>=AF90,CUMPRINC('RENTAL LOAN SETUP'!$V$12/12,'RENTAL LOAN SETUP'!$V$11*12,'RENTAL LOAN SETUP'!$AA$9,AF91,AF92,0),""),0),"") -> -$3,661 | AG54: =IFERROR(IF(Long_Term_Loan_Type="Amortized",IF($V$3>=AG90,CUMPRINC('RENTAL LOAN SETUP'!$V$12/12,'RENTAL LOAN SETUP'!$V$11*12,'RENTAL LOAN SETUP'!$AA$9,AG91,AG92,0),""),0),"") -> -$3,849 | AH54: =IFERROR(IF(Long_Term_Loan_Type="Amortized",IF($V$3>=AH90,CUMPRINC('RENTAL LOAN SETUP'!$V$12/12,'RENTAL LOAN SETUP'!$V$11*12,'RENTAL LOAN SETUP'!$AA$9,AH91,AH92,0),""),0),"") -> -$4,045 | AI54: =IFERROR(IF(Long_Term_Loan_Type="Amortized",IF($V$3>=AI90,CUMPRINC('RENTAL LOAN SETUP'!$V$12/12,'RENTAL LOAN SETUP'!$V$11*12,'RENTAL LOAN SETUP'!$AA$9,AI91,AI92,0),""),0),"") -> -$4,252 | AJ54: =IFERROR(IF(Long_Term_Loan_Type="Amortized",IF($V$3>=AJ90,CUMPRINC('RENTAL LOAN SETUP'!$V$12/12,'RENTAL LOAN SETUP'!$V$11*12,'RENTAL LOAN SETUP'!$AA$9,AJ91,AJ92,0),""),0),"") -> -$4,470 | AK54: =IFERROR(IF(Long_Term_Loan_Type="Amortized",IF($V$3>=AK90,CUMPRINC('RENTAL LOAN SETUP'!$V$12/12,'RENTAL LOAN SETUP'!$V$11*12,'RENTAL LOAN SETUP'!$AA$9,AK91,AK92,0),""),0),"") -> -$4,699 | AL54: =IFERROR(IF(Long_Term_Loan_Type="Amortized",IF($V$3>=AL90,CUMPRINC('RENTAL LOAN SETUP'!$V$12/12,'RENTAL LOAN SETUP'!$V$11*12,'RENTAL LOAN SETUP'!$AA$9,AL91,AL92,0),""),0),"") -> -$4,939 | AM54: =IFERROR(IF(Long_Term_Loan_Type="Amortized",IF($V$3>=AM90,CUMPRINC('RENTAL LOAN SETUP'!$V$12/12,'RENTAL LOAN SETUP'!$V$11*12,'RENTAL LOAN SETUP'!$AA$9,AM91,AM92,0),""),0),"") -> -$5,192 | AN54: =IFERROR(IF(Long_Term_Loan_Type="Amortized",IF($V$3>=AN90,CUMPRINC('RENTAL LOAN SETUP'!$V$12/12,'RENTAL LOAN SETUP'!$V$11*12,'RENTAL LOAN SETUP'!$AA$9,AN91,AN92,0),""),0),"") -> -$5,457 | AO54: =IFERROR(IF(Long_Term_Loan_Type="Amortized",IF($V$3>=AO90,CUMPRINC('RENTAL LOAN SETUP'!$V$12/12,'RENTAL LOAN SETUP'!$V$11*12,'RENTAL LOAN SETUP'!$AA$9,AO91,AO92,0),""),0),"") -> -$5,737 | AP54: =IFERROR(IF(Long_Term_Loan_Type="Amortized",IF($V$3>=AP90,CUMPRINC('RENTAL LOAN SETUP'!$V$12/12,'RENTAL LOAN SETUP'!$V$11*12,'RENTAL LOAN SETUP'!$AA$9,AP91,AP92,0),""),0),"") -> -$6,030 | AQ54: =IFERROR(IF(Long_Term_Loan_Type="Amortized",IF($V$3>=AQ90,CUMPRINC('RENTAL LOAN SETUP'!$V$12/12,'RENTAL LOAN SETUP'!$V$11*12,'RENTAL LOAN SETUP'!$AA$9,AQ91,AQ92,0),""),0),"") -> -$6,339 | AR54: =IFERROR(IF(Long_Term_Loan_Type="Amortized",IF($V$3>=AR90,CUMPRINC('RENTAL LOAN SETUP'!$V$12/12,'RENTAL LOAN SETUP'!$V$11*12,'RENTAL LOAN SETUP'!$AA$9,AR91,AR92,0),""),0),"") -> -$6,663 | AS54: =IFERROR(IF(Long_Term_Loan_Type="Amortized",IF($V$3>=AS90,CUMPRINC('RENTAL LOAN SETUP'!$V$12/12,'RENTAL LOAN SETUP'!$V$11*12,'RENTAL LOAN SETUP'!$AA$9,AS91,AS92,0),""),0),"") -> -$7,004 | AT54: =IFERROR(IF(Long_Term_Loan_Type="Amortized",IF($V$3>=AT90,CUMPRINC('RENTAL LOAN SETUP'!$V$12/12,'RENTAL LOAN SETUP'!$V$11*12,'RENTAL LOAN SETUP'!$AA$9,AT91,AT92,0),""),0),"") -> -$7,362 | AU54: =IFERROR(IF(Long_Term_Loan_Type="Amortized",IF($V$3>=AU90,CUMPRINC('RENTAL LOAN SETUP'!$V$12/12,'RENTAL LOAN SETUP'!$V$11*12,'RENTAL LOAN SETUP'!$AA$9,AU91,AU92,0),""),0),"") -> -$7,739 | AV54: =IFERROR(IF(Long_Term_Loan_Type="Amortized",IF($V$3>=AV90,CUMPRINC('RENTAL LOAN SETUP'!$V$12/12,'RENTAL LOAN SETUP'!$V$11*12,'RENTAL LOAN SETUP'!$AA$9,AV91,AV92,0),""),0),"") -> -$8,135 | AW54: =IFERROR(IF(Long_Term_Loan_Type="Amortized",IF($V$3>=AW90,CUMPRINC('RENTAL LOAN SETUP'!$V$12/12,'RENTAL LOAN SETUP'!$V$11*12,'RENTAL LOAN SETUP'!$AA$9,AW91,AW92,0),""),0),"") -> -$8,551 | AX54: =IFERROR(IF(Long_Term_Loan_Type="Amortized",IF($V$3>=AX90,CUMPRINC('RENTAL LOAN SETUP'!$V$12/12,'RENTAL LOAN SETUP'!$V$11*12,'RENTAL LOAN SETUP'!$AA$9,AX91,AX92,0),""),0),"") -> -$8,988 | AY54: =IFERROR(IF(Long_Term_Loan_Type="Amortized",IF($V$3>=AY90,CUMPRINC('RENTAL LOAN SETUP'!$V$12/12,'RENTAL LOAN SETUP'!$V$11*12,'RENTAL LOAN SETUP'!$AA$9,AY91,AY92,0),""),0),"") -> -$9,448 | AZ54: =IFERROR(IF(Long_Term_Loan_Type="Amortized",IF($V$3>=AZ90,CUMPRINC('RENTAL LOAN SETUP'!$V$12/12,'RENTAL LOAN SETUP'!$V$11*12,'RENTAL LOAN SETUP'!$AA$9,AZ91,AZ92,0),""),0),"") -> -$9,932 | BA54: =IFERROR(IF(Long_Term_Loan_Type="Amortized",IF($V$3>=BA90,CUMPRINC('RENTAL LOAN SETUP'!$V$12/12,'RENTAL LOAN SETUP'!$V$11*12,'RENTAL LOAN SETUP'!$AA$9,BA91,BA92,0),""),0),"") -> -$10,440 | BB54: =IFERROR(IF(Long_Term_Loan_Type="Amortized",IF($V$3>=BB90,CUMPRINC('RENTAL LOAN SETUP'!$V$12/12,'RENTAL LOAN SETUP'!$V$11*12,'RENTAL LOAN SETUP'!$AA$9,BB91,BB92,0),""),0),"") -> -$10,974
D55: TOTAL FINANCING | U55: =SUM(U53:U54) -> -$939 | V55: =SUM(V53:V54) -> -$11,273 | W55: =IFERROR(V55/V23,"") -> -75% | Y55: =IF(Y27="","",SUM(Y53:Y54)) -> -$11,273 | Z55: -$11,273 | AA55: -$11,273 | AB55: -$11,273 | AC55: -$11,273 | AD55: -$11,273 | AE55: -$11,273 | AF55: -$11,273 | AG55: -$11,273 | AH55: -$11,273 | AI55: -$11,273 | AJ55: -$11,273 | AK55: -$11,273 | AL55: -$11,273 | AM55: -$11,273 | AN55: -$11,273 | AO55: -$11,273 | AP55: -$11,273 | AQ55: -$11,273 | AR55: -$11,273 | AS55: -$11,273 | AT55: -$11,273 | AU55: -$11,273 | AV55: -$11,273 | AW55: -$11,273 | AX55: -$11,273 | AY55: -$11,273 | AZ55: -$11,273 | BA55: -$11,273 | BB55: =IF(BB27="","",SUM(BB53:BB54)) -> -$11,273
D56: Loan Balance | P56: ='RENTAL LOAN SETUP'!AA9 -> $175,000 | Y56: =IFERROR(IF($V$3>=Y90,P56+Y54,""),"") -> $172,418 | Z56: =IFERROR(IF($V$3>=Z90,Y56+Z54,""),"") -> $169,704 | AA56: $166,851 | AB56: $163,852 | AC56: $160,700 | AD56: $157,387 | AE56: $153,904 | AF56: $150,243 | AG56: $146,394 | AH56: $142,349 | AI56: $138,096 | AJ56: $133,626 | AK56: $128,928 | AL56: $123,989 | AM56: $118,797 | AN56: $113,339 | AO56: $107,603 | AP56: $101,573 | AQ56: $95,234 | AR56: $88,571 | AS56: $81,568 | AT56: $74,206 | AU56: $66,467 | AV56: $58,332 | AW56: $49,781 | AX56: $40,793 | AY56: $31,345 | AZ56: $21,413 | BA56: $10,974 | BB56: -$0
D57: Debt Service Coverage Ratio (DSCR) (Lenders generally require >1.20) | Y57: =IFERROR(IF(Y50/-Y55=0,"",Y50/-Y55),"") -> 0.75 | Z57: =IFERROR(IF(Z50/-Z55=0,"",Z50/-Z55),"") -> 0.75 | AA57: 0.76 | AB57: 0.77 | AC57: 0.78 | AD57: 0.78 | AE57: 0.79 | AF57: 0.80 | AG57: 0.81 | AH57: 0.81 | AI57: 0.82 | AJ57: 0.83 | AK57: 0.84 | AL57: 0.85 | AM57: 0.86 | AN57: 0.87 | AO57: 0.87 | AP57: 0.88 | AQ57: 0.89 | AR57: 0.90 | AS57: 0.91 | AT57: 0.92 | AU57: 0.93 | AV57: 0.94 | AW57: 0.95 | AX57: 0.96 | AY57: 0.97 | AZ57: 0.97 | BA57: 0.98 | BB57: 0.99
D59: Investor Cash Remaining in Deal | V59: ='RENTAL LOAN SETUP'!AA25 -> -$17,310 | Y59: =IF($V$3>=Y$90,V59,"") -> -$17,310 | Z59: =IF($V$3>=Z$90,Y59,"") -> -$17,310 | AA59: -$17,310 | AB59: -$17,310 | AC59: -$17,310 | AD59: -$17,310 | AE59: -$17,310 | AF59: -$17,310 | AG59: -$17,310 | AH59: -$17,310 | AI59: -$17,310 | AJ59: -$17,310 | AK59: -$17,310 | AL59: -$17,310 | AM59: -$17,310 | AN59: -$17,310 | AO59: -$17,310 | AP59: -$17,310 | AQ59: -$17,310 | AR59: -$17,310 | AS59: -$17,310 | AT59: -$17,310 | AU59: -$17,310 | AV59: -$17,310 | AW59: -$17,310 | AX59: -$17,310 | AY59: -$17,310 | AZ59: -$17,310 | BA59: -$17,310 | BB59: -$17,310
D61: Returns
H62: Calculation Method
D63: Property Value | I63: Appreciation | L63: =IF(I63="Cap Rate","Input Cap Rate % - >","% Increase per Year") -> % Increase per Year | Q63: 2.50% | V63: =After_Repair_Value_Rental -> $250,000 | Y63: =IF($V$3>=Y$90,IF($I$63="Cap Rate",Y50/$Q$63,V63*(1+$Q$63)),"") -> $256,250 | Z63: =IF($V$3>=Z$90,IF($I$63="Cap Rate",Z50/$Q$63,Y63*(1+$Q$63)),"") -> $262,656 | AA63: $269,223 | AB63: $275,953 | AC63: $282,852 | AD63: $289,923 | AE63: $297,171 | AF63: $304,601 | AG63: $312,216 | AH63: $320,021 | AI63: $328,022 | AJ63: $336,222 | AK63: $344,628 | AL63: $353,243 | AM63: $362,075 | AN63: $371,126 | AO63: $380,405 | AP63: $389,915 | AQ63: $399,663 | AR63: $409,654 | AS63: $419,895 | AT63: $430,393 | AU63: $441,153 | AV63: $452,181 | AW63: $463,486 | AX63: $475,073 | AY63: $486,950 | AZ63: $499,124 | BA63: $511,602 | BB63: $524,392
D64: Purchase Capitalization Rate (NOI/Total Investment) | Y64: =IFERROR(IF(Y50/-'RENTAL PURCHASE SETUP'!#REF!=0,"",Y50/-'RENTAL PURCHASE SETUP'!#REF!),"") ->  | Z64: =IFERROR(IF(Z50/-'RENTAL PURCHASE SETUP'!#REF!=0,"",Z50/-'RENTAL PURCHASE SETUP'!#REF!),"") ->  | AA64: =IFERROR(IF(AA50/-'RENTAL PURCHASE SETUP'!#REF!=0,"",AA50/-'RENTAL PURCHASE SETUP'!#REF!),"") ->  | AB64: =IFERROR(IF(AB50/-'RENTAL PURCHASE SETUP'!#REF!=0,"",AB50/-'RENTAL PURCHASE SETUP'!#REF!),"") ->  | AC64: =IFERROR(IF(AC50/-'RENTAL PURCHASE SETUP'!#REF!=0,"",AC50/-'RENTAL PURCHASE SETUP'!#REF!),"") ->  | AD64: =IFERROR(IF(AD50/-'RENTAL PURCHASE SETUP'!#REF!=0,"",AD50/-'RENTAL PURCHASE SETUP'!#REF!),"") ->  | AE64: =IFERROR(IF(AE50/-'RENTAL PURCHASE SETUP'!#REF!=0,"",AE50/-'RENTAL PURCHASE SETUP'!#REF!),"") ->  | AF64: =IFERROR(IF(AF50/-'RENTAL PURCHASE SETUP'!#REF!=0,"",AF50/-'RENTAL PURCHASE SETUP'!#REF!),"") ->  | AG64: =IFERROR(IF(AG50/-'RENTAL PURCHASE SETUP'!#REF!=0,"",AG50/-'RENTAL PURCHASE SETUP'!#REF!),"") ->  | AH64: =IFERROR(IF(AH50/-'RENTAL PURCHASE SETUP'!#REF!=0,"",AH50/-'RENTAL PURCHASE SETUP'!#REF!),"") ->  | AI64: =IFERROR(IF(AI50/-'RENTAL PURCHASE SETUP'!#REF!=0,"",AI50/-'RENTAL PURCHASE SETUP'!#REF!),"") ->  | AJ64: =IFERROR(IF(AJ50/-'RENTAL PURCHASE SETUP'!#REF!=0,"",AJ50/-'RENTAL PURCHASE SETUP'!#REF!),"") ->  | AK64: =IFERROR(IF(AK50/-'RENTAL PURCHASE SETUP'!#REF!=0,"",AK50/-'RENTAL PURCHASE SETUP'!#REF!),"") ->  | AL64: =IFERROR(IF(AL50/-'RENTAL PURCHASE SETUP'!#REF!=0,"",AL50/-'RENTAL PURCHASE SETUP'!#REF!),"") ->  | AM64: =IFERROR(IF(AM50/-'RENTAL PURCHASE SETUP'!#REF!=0,"",AM50/-'RENTAL PURCHASE SETUP'!#REF!),"") ->  | AN64: =IFERROR(IF(AN50/-'RENTAL PURCHASE SETUP'!#REF!=0,"",AN50/-'RENTAL PURCHASE SETUP'!#REF!),"") ->  | AO64: =IFERROR(IF(AO50/-'RENTAL PURCHASE SETUP'!#REF!=0,"",AO50/-'RENTAL PURCHASE SETUP'!#REF!),"") ->  | AP64: =IFERROR(IF(AP50/-'RENTAL PURCHASE SETUP'!#REF!=0,"",AP50/-'RENTAL PURCHASE SETUP'!#REF!),"") ->  | AQ64: =IFERROR(IF(AQ50/-'RENTAL PURCHASE SETUP'!#REF!=0,"",AQ50/-'RENTAL PURCHASE SETUP'!#REF!),"") ->  | AR64: =IFERROR(IF(AR50/-'RENTAL PURCHASE SETUP'!#REF!=0,"",AR50/-'RENTAL PURCHASE SETUP'!#REF!),"") ->  | AS64: =IFERROR(IF(AS50/-'RENTAL PURCHASE SETUP'!#REF!=0,"",AS50/-'RENTAL PURCHASE SETUP'!#REF!),"") ->  | AT64: =IFERROR(IF(AT50/-'RENTAL PURCHASE SETUP'!#REF!=0,"",AT50/-'RENTAL PURCHASE SETUP'!#REF!),"") ->  | AU64: =IFERROR(IF(AU50/-'RENTAL PURCHASE SETUP'!#REF!=0,"",AU50/-'RENTAL PURCHASE SETUP'!#REF!),"") ->  | AV64: =IFERROR(IF(AV50/-'RENTAL PURCHASE SETUP'!#REF!=0,"",AV50/-'RENTAL PURCHASE SETUP'!#REF!),"") ->  | AW64: =IFERROR(IF(AW50/-'RENTAL PURCHASE SETUP'!#REF!=0,"",AW50/-'RENTAL PURCHASE SETUP'!#REF!),"") ->  | AX64: =IFERROR(IF(AX50/-'RENTAL PURCHASE SETUP'!#REF!=0,"",AX50/-'RENTAL PURCHASE SETUP'!#REF!),"") ->  | AY64: =IFERROR(IF(AY50/-'RENTAL PURCHASE SETUP'!#REF!=0,"",AY50/-'RENTAL PURCHASE SETUP'!#REF!),"") ->  | AZ64: =IFERROR(IF(AZ50/-'RENTAL PURCHASE SETUP'!#REF!=0,"",AZ50/-'RENTAL PURCHASE SETUP'!#REF!),"") ->  | BA64: =IFERROR(IF(BA50/-'RENTAL PURCHASE SETUP'!#REF!=0,"",BA50/-'RENTAL PURCHASE SETUP'!#REF!),"") ->  | BB64: =IFERROR(IF(BB50/-'RENTAL PURCHASE SETUP'!#REF!=0,"",BB50/-'RENTAL PURCHASE SETUP'!#REF!),"") -> 
D65: Resale Capitalization Rate (NOI / Property Value) | Y65: =IFERROR(IF(Y50/Y63=0,"",Y50/Y63),"") -> 3.28% | Z65: =IFERROR(IF(Z50/Z63=0,"",Z50/Z63),"") -> 3.23% | AA65: 3.18% | AB65: 3.14% | AC65: 3.09% | AD65: 3.05% | AE65: 3.00% | AF65: 2.96% | AG65: 2.91% | AH65: 2.87% | AI65: 2.83% | AJ65: 2.79% | AK65: 2.75% | AL65: 2.71% | AM65: 2.67% | AN65: 2.63% | AO65: 2.59% | AP65: 2.55% | AQ65: 2.51% | AR65: 2.48% | AS65: 2.44% | AT65: 2.41% | AU65: 2.37% | AV65: 2.34% | AW65: 2.30% | AX65: 2.27% | AY65: 2.23% | AZ65: 2.20% | BA65: 2.17% | BB65: 2.14%
D66: Gross Rent Multiplier | Y66: =IFERROR(IF(Y63/Y23=0,"",Y63/Y23),"") -> 17.08 | Z66: =IFERROR(IF(Z63/Z23=0,"",Z63/Z23),"") -> 17.34 | AA66: 17.59 | AB66: 17.86 | AC66: 18.12 | AD66: 18.39 | AE66: 18.66 | AF66: 18.94 | AG66: 19.22 | AH66: 19.51 | AI66: 19.80 | AJ66: 20.09 | AK66: 20.39 | AL66: 20.69 | AM66: 21.00 | AN66: 21.31 | AO66: 21.63 | AP66: 21.95 | AQ66: 22.27 | AR66: 22.61 | AS66: 22.94 | AT66: 23.28 | AU66: 23.63 | AV66: 23.98 | AW66: 24.34 | AX66: 24.70 | AY66: 25.06 | AZ66: 25.44 | BA66: 25.81 | BB66: 26.20
D68: Cash Flow From Operations
D69: Cash Flow Before Debt (NOI) | U69: =U50 -> $700 | V69: =V50 -> $8,400 | Y69: =Y50 -> $8,400 | Z69: $8,484 | AA69: $8,569 | AB69: $8,655 | AC69: $8,741 | AD69: $8,828 | AE69: $8,917 | AF69: $9,006 | AG69: $9,096 | AH69: $9,187 | AI69: $9,279 | AJ69: $9,372 | AK69: $9,465 | AL69: $9,560 | AM69: $9,656 | AN69: $9,752 | AO69: $9,850 | AP69: $9,948 | AQ69: $10,048 | AR69: $10,148 | AS69: $10,250 | AT69: $10,352 | AU69: $10,456 | AV69: $10,560 | AW69: $10,666 | AX69: $10,772 | AY69: $10,880 | AZ69: $10,989 | BA69: $11,099 | BB69: $11,210
D70: Cash Flow After Debt (NOI - Debt Service) | U70: =U50+U55 -> -$239 | V70: =V50+V55 -> -$2,873 | Y70: =IFERROR(Y50+Y55,"") -> -$2,873 | Z70: -$2,789 | AA70: -$2,704 | AB70: -$2,619 | AC70: -$2,532 | AD70: -$2,445 | AE70: -$2,356 | AF70: -$2,267 | AG70: -$2,177 | AH70: -$2,086 | AI70: -$1,994 | AJ70: -$1,902 | AK70: -$1,808 | AL70: -$1,713 | AM70: -$1,618 | AN70: -$1,521 | AO70: -$1,424 | AP70: -$1,325 | AQ70: -$1,226 | AR70: -$1,125 | AS70: -$1,024 | AT70: -$921 | AU70: -$818 | AV70: -$713 | AW70: -$607 | AX70: -$501 | AY70: -$393 | AZ70: -$284 | BA70: -$174 | BB70: =IFERROR(BB50+BB55,"") -> -$63
D71: Unlevered Cash-On-Cash ROI (Cash Flow Before Debt / Cash in Deal) | Y71: =IFERROR(Y69/'RENTAL PURCHASE SETUP'!$AA$66,"") -> 5.33% | Z71: =IFERROR(Z69/'RENTAL PURCHASE SETUP'!$AA$66,"") -> 5.38% | AA71: =IFERROR(AA69/'RENTAL PURCHASE SETUP'!$AA$66,"") -> 5.43% | AB71: =IFERROR(AB69/'RENTAL PURCHASE SETUP'!$AA$66,"") -> 5.49% | AC71: =IFERROR(AC69/'RENTAL PURCHASE SETUP'!$AA$66,"") -> 5.54% | AD71: =IFERROR(AD69/'RENTAL PURCHASE SETUP'!$AA$66,"") -> 5.60% | AE71: =IFERROR(AE69/'RENTAL PURCHASE SETUP'!$AA$66,"") -> 5.65% | AF71: =IFERROR(AF69/'RENTAL PURCHASE SETUP'!$AA$66,"") -> 5.71% | AG71: =IFERROR(AG69/'RENTAL PURCHASE SETUP'!$AA$66,"") -> 5.77% | AH71: =IFERROR(AH69/'RENTAL PURCHASE SETUP'!$AA$66,"") -> 5.83% | AI71: =IFERROR(AI69/'RENTAL PURCHASE SETUP'!$AA$66,"") -> 5.88% | AJ71: =IFERROR(AJ69/'RENTAL PURCHASE SETUP'!$AA$66,"") -> 5.94% | AK71: =IFERROR(AK69/'RENTAL PURCHASE SETUP'!$AA$66,"") -> 6.00% | AL71: =IFERROR(AL69/'RENTAL PURCHASE SETUP'!$AA$66,"") -> 6.06% | AM71: =IFERROR(AM69/'RENTAL PURCHASE SETUP'!$AA$66,"") -> 6.12% | AN71: =IFERROR(AN69/'RENTAL PURCHASE SETUP'!$AA$66,"") -> 6.18% | AO71: =IFERROR(AO69/'RENTAL PURCHASE SETUP'!$AA$66,"") -> 6.25% | AP71: =IFERROR(AP69/'RENTAL PURCHASE SETUP'!$AA$66,"") -> 6.31% | AQ71: =IFERROR(AQ69/'RENTAL PURCHASE SETUP'!$AA$66,"") -> 6.37% | AR71: =IFERROR(AR69/'RENTAL PURCHASE SETUP'!$AA$66,"") -> 6.44% | AS71: =IFERROR(AS69/'RENTAL PURCHASE SETUP'!$AA$66,"") -> 6.50% | AT71: =IFERROR(AT69/'RENTAL PURCHASE SETUP'!$AA$66,"") -> 6.56% | AU71: =IFERROR(AU69/'RENTAL PURCHASE SETUP'!$AA$66,"") -> 6.63% | AV71: =IFERROR(AV69/'RENTAL PURCHASE SETUP'!$AA$66,"") -> 6.70% | AW71: =IFERROR(AW69/'RENTAL PURCHASE SETUP'!$AA$66,"") -> 6.76% | AX71: =IFERROR(AX69/'RENTAL PURCHASE SETUP'!$AA$66,"") -> 6.83% | AY71: =IFERROR(AY69/'RENTAL PURCHASE SETUP'!$AA$66,"") -> 6.90% | AZ71: =IFERROR(AZ69/'RENTAL PURCHASE SETUP'!$AA$66,"") -> 6.97% | BA71: =IFERROR(BA69/'RENTAL PURCHASE SETUP'!$AA$66,"") -> 7.04% | BB71: =IFERROR(BB69/'RENTAL PURCHASE SETUP'!$AA$66,"") -> 7.11%
D72: Levered Cash On-Cash ROI (Cash Flow After Debt / Cash in Deal) | Y72: =IFERROR(IF(Y59<0,"inf %",Y70/Y59),"") -> inf % | Z72: =IFERROR(IF(Z59<0,"inf %",Z70/Z59),"") -> inf % | AA72: inf % | AB72: inf % | AC72: inf % | AD72: inf % | AE72: inf % | AF72: inf % | AG72: inf % | AH72: inf % | AI72: inf % | AJ72: inf % | AK72: inf % | AL72: inf % | AM72: inf % | AN72: inf % | AO72: inf % | AP72: inf % | AQ72: inf % | AR72: inf % | AS72: inf % | AT72: inf % | AU72: inf % | AV72: inf % | AW72: inf % | AX72: inf % | AY72: inf % | AZ72: inf % | BA72: inf % | BB72: inf %
D74: Equity
D75: Equity Earned from Purchase & Rehab | U75: =V75/12 -> $6,234 | V75: ='RENTAL PURCHASE SETUP'!$AA$63 -> $74,810 | Y75: ='RENTAL PURCHASE SETUP'!$AA$63 -> $74,810 | Z75: =IF(Z27="","",0) -> $0 | AA75: $0 | AB75: $0 | AC75: $0 | AD75: $0 | AE75: $0 | AF75: $0 | AG75: $0 | AH75: $0 | AI75: $0 | AJ75: $0 | AK75: $0 | AL75: $0 | AM75: $0 | AN75: $0 | AO75: $0 | AP75: $0 | AQ75: $0 | AR75: $0 | AS75: $0 | AT75: $0 | AU75: $0 | AV75: $0 | AW75: $0 | AX75: $0 | AY75: $0 | AZ75: $0 | BA75: $0 | BB75: =IF(BB27="","",0) -> $0
D76: Equity Earned (Principal Paydown) | U76: =-U54 -> $215 | V76: =-V54 -> $2,582 | Y76: =IFERROR(-Y54,"") -> $2,582 | Z76: $2,714 | AA76: $2,853 | AB76: $2,999 | AC76: $3,152 | AD76: $3,313 | AE76: $3,483 | AF76: $3,661 | AG76: $3,849 | AH76: $4,045 | AI76: $4,252 | AJ76: $4,470 | AK76: $4,699 | AL76: $4,939 | AM76: $5,192 | AN76: $5,457 | AO76: $5,737 | AP76: $6,030 | AQ76: $6,339 | AR76: $6,663 | AS76: $7,004 | AT76: $7,362 | AU76: $7,739 | AV76: $8,135 | AW76: $8,551 | AX76: $8,988 | AY76: $9,448 | AZ76: $9,932 | BA76: $10,440 | BB76: =IFERROR(-BB54,"") -> $10,974
D77: Equity Earned (Property Appreciation) | U77: =Z77/12 -> $534 | V77: =U77*12 -> $6,406 | Y77: =IF($V$3>=Y$90,Y63-V63,"") -> $6,250 | Z77: =IF($V$3>=Z$90,Z63-Y63,"") -> $6,406 | AA77: $6,566 | AB77: $6,731 | AC77: $6,899 | AD77: $7,071 | AE77: $7,248 | AF77: $7,429 | AG77: $7,615 | AH77: $7,805 | AI77: $8,001 | AJ77: $8,201 | AK77: $8,406 | AL77: $8,616 | AM77: $8,831 | AN77: $9,052 | AO77: $9,278 | AP77: $9,510 | AQ77: $9,748 | AR77: $9,992 | AS77: $10,241 | AT77: $10,497 | AU77: $10,760 | AV77: $11,029 | AW77: $11,305 | AX77: $11,587 | AY77: $11,877 | AZ77: $12,174 | BA77: $12,478 | BB77: $12,790
D78: Total Equity Earned (Rehab Equity + Principal Paydown + Appreciation) | U78: =SUM(U75:U77) -> $6,983 | V78: =SUM(V75:V77) -> $83,798 | Y78: =IF(Y27="","",SUM(Y75:Y77)) -> $83,642 | Z78: $9,120 | AA78: $9,419 | AB78: $9,729 | AC78: $10,051 | AD78: $10,385 | AE78: $10,731 | AF78: $11,090 | AG78: $11,464 | AH78: $11,851 | AI78: $12,253 | AJ78: $12,670 | AK78: $13,104 | AL78: $13,555 | AM78: $14,023 | AN78: $14,509 | AO78: $15,015 | AP78: $15,540 | AQ78: $16,086 | AR78: $16,654 | AS78: $17,245 | AT78: $17,859 | AU78: $18,499 | AV78: $19,163 | AW78: $19,855 | AX78: $20,575 | AY78: $21,325 | AZ78: $22,105 | BA78: $22,918 | BB78: =IF(BB27="","",SUM(BB75:BB77)) -> $23,764
D79: Equity-on-Cash ROI | Y79: =IFERROR(IF(Y59<0,"inf %",Y78/Y59),"") -> inf % | Z79: =IFERROR(IF(Z59<0,"inf %",Z78/Z59),"") -> inf % | AA79: inf % | AB79: inf % | AC79: inf % | AD79: inf % | AE79: inf % | AF79: inf % | AG79: inf % | AH79: inf % | AI79: inf % | AJ79: inf % | AK79: inf % | AL79: inf % | AM79: inf % | AN79: inf % | AO79: inf % | AP79: inf % | AQ79: inf % | AR79: inf % | AS79: inf % | AT79: inf % | AU79: inf % | AV79: inf % | AW79: inf % | AX79: inf % | AY79: inf % | AZ79: inf % | BA79: inf % | BB79: inf %
D81: Total Return
D82: Total Return (Cash Flow + Equity) | U82: =U70+U78 -> $6,744 | V82: =V70+V78 -> $80,925 | Y82: =IFERROR(Y70+Y78,"") -> $80,769 | Z82: $6,331 | AA82: $6,715 | AB82: $7,111 | AC82: $7,519 | AD82: $7,940 | AE82: $8,375 | AF82: $8,823 | AG82: $9,286 | AH82: $9,765 | AI82: $10,258 | AJ82: $10,769 | AK82: $11,296 | AL82: $11,841 | AM82: $12,405 | AN82: $12,988 | AO82: $13,591 | AP82: $14,215 | AQ82: $14,861 | AR82: $15,529 | AS82: $16,221 | AT82: $16,938 | AU82: $17,681 | AV82: $18,450 | AW82: $19,248 | AX82: $20,075 | AY82: $20,932 | AZ82: $21,821 | BA82: $22,743 | BB82: =IFERROR(BB70+BB78,"") -> $23,700
D83: Total Return Accrued | Y83: =IF($V$3>=Y$90,Y82,"") -> $80,769 | Z83: =IF($V$3>=Z$90,Y83+Z82,"") -> $87,100 | AA83: $93,814 | AB83: $100,925 | AC83: $108,444 | AD83: $116,384 | AE83: $124,759 | AF83: $133,582 | AG83: $142,868 | AH83: $152,633 | AI83: $162,891 | AJ83: $173,660 | AK83: $184,956 | AL83: $196,798 | AM83: $209,203 | AN83: $222,191 | AO83: $235,782 | AP83: $249,997 | AQ83: $264,858 | AR83: $280,387 | AS83: $296,609 | AT83: $313,547 | AU83: $331,228 | AV83: $349,678 | AW83: $368,926 | AX83: $389,001 | AY83: $409,933 | AZ83: $431,754 | BA83: $454,497 | BB83: $478,197
D84: Total Return on Cash | Y84: =IFERROR(IF(Y59<0,"inf %",Y82/Y59),"") -> inf % | Z84: =IFERROR(IF(Z59<0,"inf %",Z82/Z59),"") -> inf % | AA84: inf % | AB84: inf % | AC84: inf % | AD84: inf % | AE84: inf % | AF84: inf % | AG84: inf % | AH84: inf % | AI84: inf % | AJ84: inf % | AK84: inf % | AL84: inf % | AM84: inf % | AN84: inf % | AO84: inf % | AP84: inf % | AQ84: inf % | AR84: inf % | AS84: inf % | AT84: inf % | AU84: inf % | AV84: inf % | AW84: inf % | AX84: inf % | AY84: inf % | AZ84: inf % | BA84: inf % | BB84: inf %
D85: Total Return-on-Cash Accrued | Y85: =IFERROR(IF(Y59<0,"inf %",Y83/Y59),"") -> inf % | Z85: inf % | AA85: inf % | AB85: inf % | AC85: inf % | AD85: inf % | AE85: inf % | AF85: inf % | AG85: inf % | AH85: inf % | AI85: inf % | AJ85: inf % | AK85: inf % | AL85: inf % | AM85: inf % | AN85: inf % | AO85: inf % | AP85: inf % | AQ85: inf % | AR85: inf % | AS85: inf % | AT85: inf % | AU85: inf % | AV85: inf % | AW85: inf % | AX85: inf % | AY85: inf % | AZ85: inf % | BA85: inf % | BB85: inf %
D86: Internal Rate of Return
C89: © 2018 by HouseFlippingSpreadsheet.com. All rights reserved
U90: Year | X90: 0 | Y90: 1 | Z90: 2 | AA90: 3 | AB90: 4 | AC90: 5 | AD90: 6 | AE90: 7 | AF90: 8 | AG90: 9 | AH90: 10 | AI90: 11 | AJ90: 12 | AK90: 13 | AL90: 14 | AM90: 15 | AN90: 16 | AO90: 17 | AP90: 18 | AQ90: 19 | AR90: 20 | AS90: 21 | AT90: 22 | AU90: 23 | AV90: 24 | AW90: 25 | AX90: 26 | AY90: 27 | AZ90: 28 | BA90: 29 | BB90: 30
D91: per month | K91: # of months | U91: Month | Y91: 1 | Z91: =Y91+12 -> 13 | AA91: 25 | AB91: 37 | AC91: 49 | AD91: 61 | AE91: 73 | AF91: 85 | AG91: 97 | AH91: 109 | AI91: 121 | AJ91: 133 | AK91: 145 | AL91: 157 | AM91: 169 | AN91: 181 | AO91: 193 | AP91: 205 | AQ91: 217 | AR91: 229 | AS91: 241 | AT91: 253 | AU91: 265 | AV91: 277 | AW91: 289 | AX91: 301 | AY91: 313 | AZ91: 325 | BA91: 337 | BB91: 349
D92: per year | K92: % of rent | U92: Month | Y92: =Y91+11 -> 12 | Z92: 24 | AA92: 36 | AB92: 48 | AC92: 60 | AD92: 72 | AE92: 84 | AF92: 96 | AG92: 108 | AH92: 120 | AI92: 132 | AJ92: 144 | AK92: 156 | AL92: 168 | AM92: 180 | AN92: 192 | AO92: 204 | AP92: 216 | AQ92: 228 | AR92: 240 | AS92: 252 | AT92: 264 | AU92: 276 | AV92: 288 | AW92: 300 | AX92: 312 | AY92: 324 | AZ92: 336 | BA92: 348 | BB92: 360
U95: Property Value | X95: =After_Repair_Value ->  | Y95: =Y63 -> $256,250 | Z95: $262,656 | AA95: $269,223 | AB95: $275,953 | AC95: $282,852 | AD95: $289,923 | AE95: $297,171 | AF95: $304,601 | AG95: $312,216 | AH95: $320,021 | AI95: $328,022 | AJ95: $336,222 | AK95: $344,628 | AL95: $353,243 | AM95: $362,075 | AN95: $371,126 | AO95: $380,405 | AP95: $389,915 | AQ95: $399,663 | AR95: $409,654 | AS95: $419,895 | AT95: $430,393 | AU95: $441,153 | AV95: $452,181 | AW95: $463,486 | AX95: $475,073 | AY95: $486,950 | AZ95: $499,124 | BA95: $511,602 | BB95: $524,392 | BC95: 0
U96: -Less Selling Costs | X96: =-IF('RENTAL PURCHASE SETUP'!$R$27="Lump Sum",'RENTAL PURCHASE SETUP'!$AA$27,'RENTAL PURCHASE SETUP'!$W$27*X95) ->  | Y96: =-IF('RENTAL PURCHASE SETUP'!$R$27="Lump Sum",'RENTAL PURCHASE SETUP'!$AA$27,'RENTAL PURCHASE SETUP'!$W$27*Y95) -> -17938 | Z96: =-IF('RENTAL PURCHASE SETUP'!$R$27="Lump Sum",'RENTAL PURCHASE SETUP'!$AA$27,'RENTAL PURCHASE SETUP'!$W$27*Z95) -> -18386 | AA96: =-IF('RENTAL PURCHASE SETUP'!$R$27="Lump Sum",'RENTAL PURCHASE SETUP'!$AA$27,'RENTAL PURCHASE SETUP'!$W$27*AA95) -> -18846 | AB96: =-IF('RENTAL PURCHASE SETUP'!$R$27="Lump Sum",'RENTAL PURCHASE SETUP'!$AA$27,'RENTAL PURCHASE SETUP'!$W$27*AB95) -> -19317 | AC96: =-IF('RENTAL PURCHASE SETUP'!$R$27="Lump Sum",'RENTAL PURCHASE SETUP'!$AA$27,'RENTAL PURCHASE SETUP'!$W$27*AC95) -> -19800 | AD96: =-IF('RENTAL PURCHASE SETUP'!$R$27="Lump Sum",'RENTAL PURCHASE SETUP'!$AA$27,'RENTAL PURCHASE SETUP'!$W$27*AD95) -> -20295 | AE96: =-IF('RENTAL PURCHASE SETUP'!$R$27="Lump Sum",'RENTAL PURCHASE SETUP'!$AA$27,'RENTAL PURCHASE SETUP'!$W$27*AE95) -> -20802 | AF96: =-IF('RENTAL PURCHASE SETUP'!$R$27="Lump Sum",'RENTAL PURCHASE SETUP'!$AA$27,'RENTAL PURCHASE SETUP'!$W$27*AF95) -> -21322 | AG96: =-IF('RENTAL PURCHASE SETUP'!$R$27="Lump Sum",'RENTAL PURCHASE SETUP'!$AA$27,'RENTAL PURCHASE SETUP'!$W$27*AG95) -> -21855 | AH96: =-IF('RENTAL PURCHASE SETUP'!$R$27="Lump Sum",'RENTAL PURCHASE SETUP'!$AA$27,'RENTAL PURCHASE SETUP'!$W$27*AH95) -> -22401 | AI96: =-IF('RENTAL PURCHASE SETUP'!$R$27="Lump Sum",'RENTAL PURCHASE SETUP'!$AA$27,'RENTAL PURCHASE SETUP'!$W$27*AI95) -> -22962 | AJ96: =-IF('RENTAL PURCHASE SETUP'!$R$27="Lump Sum",'RENTAL PURCHASE SETUP'!$AA$27,'RENTAL PURCHASE SETUP'!$W$27*AJ95) -> -23536 | AK96: =-IF('RENTAL PURCHASE SETUP'!$R$27="Lump Sum",'RENTAL PURCHASE SETUP'!$AA$27,'RENTAL PURCHASE SETUP'!$W$27*AK95) -> -24124 | AL96: =-IF('RENTAL PURCHASE SETUP'!$R$27="Lump Sum",'RENTAL PURCHASE SETUP'!$AA$27,'RENTAL PURCHASE SETUP'!$W$27*AL95) -> -24727 | AM96: =-IF('RENTAL PURCHASE SETUP'!$R$27="Lump Sum",'RENTAL PURCHASE SETUP'!$AA$27,'RENTAL PURCHASE SETUP'!$W$27*AM95) -> -25345 | AN96: =-IF('RENTAL PURCHASE SETUP'!$R$27="Lump Sum",'RENTAL PURCHASE SETUP'!$AA$27,'RENTAL PURCHASE SETUP'!$W$27*AN95) -> -25979 | AO96: =-IF('RENTAL PURCHASE SETUP'!$R$27="Lump Sum",'RENTAL PURCHASE SETUP'!$AA$27,'RENTAL PURCHASE SETUP'!$W$27*AO95) -> -26628 | AP96: =-IF('RENTAL PURCHASE SETUP'!$R$27="Lump Sum",'RENTAL PURCHASE SETUP'!$AA$27,'RENTAL PURCHASE SETUP'!$W$27*AP95) -> -27294 | AQ96: =-IF('RENTAL PURCHASE SETUP'!$R$27="Lump Sum",'RENTAL PURCHASE SETUP'!$AA$27,'RENTAL PURCHASE SETUP'!$W$27*AQ95) -> -27976 | AR96: =-IF('RENTAL PURCHASE SETUP'!$R$27="Lump Sum",'RENTAL PURCHASE SETUP'!$AA$27,'RENTAL PURCHASE SETUP'!$W$27*AR95) -> -28676 | AS96: =-IF('RENTAL PURCHASE SETUP'!$R$27="Lump Sum",'RENTAL PURCHASE SETUP'!$AA$27,'RENTAL PURCHASE SETUP'!$W$27*AS95) -> -29393 | AT96: =-IF('RENTAL PURCHASE SETUP'!$R$27="Lump Sum",'RENTAL PURCHASE SETUP'!$AA$27,'RENTAL PURCHASE SETUP'!$W$27*AT95) -> -30127 | AU96: =-IF('RENTAL PURCHASE SETUP'!$R$27="Lump Sum",'RENTAL PURCHASE SETUP'!$AA$27,'RENTAL PURCHASE SETUP'!$W$27*AU95) -> -30881 | AV96: =-IF('RENTAL PURCHASE SETUP'!$R$27="Lump Sum",'RENTAL PURCHASE SETUP'!$AA$27,'RENTAL PURCHASE SETUP'!$W$27*AV95) -> -31653 | AW96: =-IF('RENTAL PURCHASE SETUP'!$R$27="Lump Sum",'RENTAL PURCHASE SETUP'!$AA$27,'RENTAL PURCHASE SETUP'!$W$27*AW95) -> -32444 | AX96: =-IF('RENTAL PURCHASE SETUP'!$R$27="Lump Sum",'RENTAL PURCHASE SETUP'!$AA$27,'RENTAL PURCHASE SETUP'!$W$27*AX95) -> -33255 | AY96: =-IF('RENTAL PURCHASE SETUP'!$R$27="Lump Sum",'RENTAL PURCHASE SETUP'!$AA$27,'RENTAL PURCHASE SETUP'!$W$27*AY95) -> -34087 | AZ96: =-IF('RENTAL PURCHASE SETUP'!$R$27="Lump Sum",'RENTAL PURCHASE SETUP'!$AA$27,'RENTAL PURCHASE SETUP'!$W$27*AZ95) -> -34939 | BA96: =-IF('RENTAL PURCHASE SETUP'!$R$27="Lump Sum",'RENTAL PURCHASE SETUP'!$AA$27,'RENTAL PURCHASE SETUP'!$W$27*BA95) -> -35812 | BB96: =-IF('RENTAL PURCHASE SETUP'!$R$27="Lump Sum",'RENTAL PURCHASE SETUP'!$AA$27,'RENTAL PURCHASE SETUP'!$W$27*BB95) -> -36707
U97: -Less Loan Payback | X97: =-P56 -> -$175,000 | Y97: =IFERROR(-Y56,"") -> -$172,418 | Z97: -$169,704 | AA97: -$166,851 | AB97: -$163,852 | AC97: -$160,700 | AD97: -$157,387 | AE97: -$153,904 | AF97: -$150,243 | AG97: -$146,394 | AH97: -$142,349 | AI97: -$138,096 | AJ97: -$133,626 | AK97: -$128,928 | AL97: -$123,989 | AM97: -$118,797 | AN97: -$113,339 | AO97: -$107,603 | AP97: -$101,573 | AQ97: -$95,234 | AR97: -$88,571 | AS97: -$81,568 | AT97: -$74,206 | AU97: -$66,467 | AV97: -$58,332 | AW97: -$49,781 | AX97: -$40,793 | AY97: -$31,345 | AZ97: -$21,413 | BA97: -$10,974 | BB97: $0
U98: -Less Investor Cash | X98: =-V59 -> $17,310 | Y98: =-Y59 -> $17,310 | Z98: $17,310 | AA98: $17,310 | AB98: $17,310 | AC98: $17,310 | AD98: $17,310 | AE98: $17,310 | AF98: $17,310 | AG98: $17,310 | AH98: $17,310 | AI98: $17,310 | AJ98: $17,310 | AK98: $17,310 | AL98: $17,310 | AM98: $17,310 | AN98: $17,310 | AO98: $17,310 | AP98: $17,310 | AQ98: $17,310 | AR98: $17,310 | AS98: $17,310 | AT98: $17,310 | AU98: $17,310 | AV98: $17,310 | AW98: $17,310 | AX98: $17,310 | AY98: $17,310 | AZ98: $17,310 | BA98: $17,310 | BB98: $17,310
U99: Cash Flow From Sale | X99: =SUM(X95:X98) ->  | Y99: =SUM(Y95:Y98) -> $83,204 | Z99: $91,876 | AA99: $100,836 | AB99: $110,094 | AC99: $119,662 | AD99: $129,552 | AE99: $139,776 | AF99: $150,346 | AG99: $161,277 | AH99: $172,581 | AI99: $184,274 | AJ99: $196,370 | AK99: $208,886 | AL99: $221,838 | AM99: $235,242 | AN99: $249,118 | AO99: $263,483 | AP99: $278,358 | AQ99: $293,762 | AR99: $309,717 | AS99: $326,245 | AT99: $343,370 | AU99: $361,115 | AV99: $379,506 | AW99: $398,571 | AX99: $418,335 | AY99: $438,829 | AZ99: $460,082 | BA99: $482,126 | BB99: $504,994
U100: Cash Flow From Operations | X100: =SUM(X96:X99) ->  | Y100: -$89,841 | Z100: -$78,904 | AA100: -$67,551 | AB100: -$55,765 | AC100: -$43,528 | AD100: -$30,819 | AE100: -$17,620 | AF100: -$3,909 | AG100: $10,337 | AH100: $25,141 | AI100: $40,526 | AJ100: $56,519 | AK100: $73,145 | AL100: $90,432 | AM100: $108,410 | AN100: $127,110 | AO100: $146,562 | AP100: $166,801 | AQ100: $187,861 | AR100: $209,780 | AS100: $232,595 | AT100: $256,347 | AU100: $281,077 | AV100: $306,831 | AW100: $333,655 | AX100: $361,597 | AY100: $390,707 | AZ100: $421,040 | BA100: $452,650 | BB100: $485,597
U102: IRR Calculations | Y102: 1 | Z102: 2 | AA102: 3 | AB102: 4 | AC102: 5 | AD102: 6 | AE102: 7 | AF102: 8 | AG102: 9 | AH102: 10 | AI102: 11 | AJ102: 12 | AK102: 13 | AL102: 14 | AM102: 15 | AN102: 16 | AO102: 17 | AP102: 18 | AQ102: 19 | AR102: 20 | AS102: 21 | AT102: 22 | AU102: 23 | AV102: 24 | AW102: 25 | AX102: 26 | AY102: 27 | AZ102: 28 | BA102: 29 | BB102: 30
Y104: =YEAR(TODAY()) -> 2019 | Z104: =Y104+1 -> 2020 | AA104: =Z104+1 -> 2021 | AB104: 2022 | AC104: 2023 | AD104: 2024 | AE104: 2025 | AF104: 2026 | AG104: 2027 | AH104: 2028 | AI104: 2029 | AJ104: 2030 | AK104: 2031 | AL104: 2032 | AM104: 2033 | AN104: 2034 | AO104: 2035 | AP104: 2036 | AQ104: 2037 | AR104: 2038 | AS104: 2039 | AT104: 2040 | AU104: 2041 | AV104: 2042 | AW104: 2043 | AX104: 2044 | AY104: 2045 | AZ104: 2046 | BA104: 2047 | BB104: 2048
U105: Investor Cash Outlay | X105: =-V59 -> $17,310
U106: Cash Flow from Operations | X106: =0 -> 0 | Y106: =Y70 -> -$2,873 | Z106: -$2,789 | AA106: -$2,704 | AB106: -$2,619 | AC106: -$2,532 | AD106: -$2,445 | AE106: -$2,356 | AF106: -$2,267 | AG106: -$2,177 | AH106: -$2,086 | AI106: -$1,994 | AJ106: -$1,902 | AK106: -$1,808 | AL106: -$1,713 | AM106: -$1,618 | AN106: -$1,521 | AO106: -$1,424 | AP106: -$1,325 | AQ106: -$1,226 | AR106: -$1,125 | AS106: -$1,024 | AT106: -$921 | AU106: -$818 | AV106: -$713 | AW106: -$607 | AX106: -$501 | AY106: -$393 | AZ106: -$284 | BA106: -$174 | BB106: -$63
U107: Profit if Sold | X107: 0 | Y107: =Y78 -> $83,642 | Z107: =Y107+Z78 -> $92,762 | AA107: $102,181 | AB107: $111,911 | AC107: $121,962 | AD107: $132,347 | AE107: $143,078 | AF107: $154,168 | AG107: $165,632 | AH107: $177,483 | AI107: $189,735 | AJ107: $202,406 | AK107: $215,510 | AL107: $229,065 | AM107: $243,088 | AN107: $257,597 | AO107: $272,612 | AP107: $288,152 | AQ107: $304,238 | AR107: $320,893 | AS107: $338,138 | AT107: $355,997 | AU107: $374,496 | AV107: $393,659 | AW107: $413,515 | AX107: $434,090 | AY107: $455,415 | AZ107: $477,520 | BA107: $500,438 | BB107: $524,202
U108: IRR

Sheet RENTAL PURCHASE SETUP (hidden)
D2: Rental Purchase | H2: Rental Analysis | L2: Long-Term Financing
B6: Rental Purchase | K6: Property Value | AA6: Amounts
K7: After Repair Value | AA7: $250,000
B8: Analyze the Profit/Equity you can build into the property upfront by buying the property at a discount & rehabbing the property.
K9: Buying Costs | AA9: Amounts
K10: Purchase Price | W10: =IF(R11="% of Purchase","% of Purch","") -> % of Purch | AA10: $100,000
K11: Buying Costs | R11: % of Purchase | W11: 3.00% | AA11: =Purchase_Price*Percent_of_Purchase_Cell -> $3,000
K12: TOTAL PURCHASE COSTS | AA12: =SUM(AA10:AE11) -> $103,000
K14: Repair Costs | AA14: Amounts
K15: Construction Costs | R15: $ per SF | W15: $35.00 | AA15: =Property_Size*Construction_Costs_Dollar_per_SF -> $52,500 | AF15: =IF(Construction_Costs_Dropdown="$ per SF","Note: Construction Costs are calculated by mutiplying $ per SF * Square Footage",IF(Construction_Costs_Dropdown="Detailed","Note: Detailed Estimate information feeds from Estimator tool","")) -> Note: Construction Costs are calculated by mutiplying $ per SF * Square Footage
K17: Holding Costs During Rehab: | W17: $ per Month | AA17: Amounts
K18: Property Taxes | R18: # of Months for Rehab | W18: $200 | AA18: =$R$20*W18 -> $600
K19: Utilities | W19: $300 | AA19: $900
K20: Insurance | R20: 3.0 mos | W20: $150 | AA20: $450
K21: HOA Dues | AA21: $0
K22: Maintenance | W22: $80 | AA22: $240
K23: Other Holding Costs | AA23: $0
K24: TOTAL HOLDING COSTS | W24: =SUM(W18:Z23) -> $730 | AA24: =SUM(AA18:AE23) -> $2,190
K26: Selling Costs | AA26: Amounts
K27: Selling Costs: | R27: % of ARV | W27: 7.00% | AA27: =Selling_Costs_Percent*After_Repair_Value_Rental -> $17,500
K28: TOTAL SELLING COSTS | AA28: =SUM(AA25:AE27) -> $17,500
K30: Funding Strategy
K31: How do you plan on Funding Your Rental Purchase?
P33: Cash Purchase | W33: Outside Funding
K35: What type of Funding will you use for your Purchase?
P37: Long-Term Conventional | W37: Bridge Loan
K40: Your Conventional Loan information will be setup on the Long Term Funding Sheet.
K46: Short Term Financing (Bridge Loan) | AA46: Amounts
B47: Note: This Loan Setup is the for the initial short-term Bridge Loan that will be used to Purchase the property and fund the repair costs. You can setup your long term conventional financing on the Rental Analysis page. | K47: Loan Amount (input value or select from dropdown) | AA47: =IF(V47="Purchase",AA12,IF(V47="Purchase + Repairs",AA12+AA15,IF(V47="After Repair Value",After_Repair_Value_Rental,V47))) -> $0
K48: LTV Ratio (generally 65 to 80%) | V48: 100.00% | AA48: =IF(V48="",0,(V48-1)*AA47) -> $0
K49: BRIDGE LOAN AMOUNT: | AA49: =SUM(AA47:AE48) -> $0
K50: Loan Term (# of Months): | V50: 6.0 mos | AA50: =IF(R50="$/SF",W50*#REF!,"") -> 
K51: Interest Rate (Annual %) | V51: 12.00% | AA51: =((V51*AA49)/12)*V50 -> $0
K52: Points/Fees (% of Loan): | V52: 2.00% | AA52: =V52*AA49 -> $0
K53: TOTAL FINANCING COSTS | AA53: =SUM(AA51:AE52) -> $0
K56: Rehab Profit Calculation
B57: Purchase Results | K57: After Repair Value | AA57: =AA7 -> $250,000
K58: - Less Purchase Costs | AA58: =-AA12 -> -$103,000
K59: - Less Construction Costs | AA59: =-Construction_Costs_Lump_Sum -> -$52,500
K60: - Less Holding Costs | AA60: =-AA24 -> -$2,190
K61: - Less Bridge Loan Financing Costs | AA61: =-AA53 -> $0
K62: - Less Selling Costs | AA62: =-AA28 -> -$17,500
K63: TOTAL PROFIT/EQUITY AFTER REHAB: | AA63: =SUM(AA57:AE62) -> $74,810
K65: Cash Outlay Calculation
K66: Total Project Costs (excl. Selling Costs): | AA66: =IF(Rental_Funding_Strategy="All Cash",AA12+AA15+AA24,AA12+AA15+AA24+AA53) -> $157,690 | AG66: Back to Rental Analysis
K67: Short Term Loan (Bridge Loan) Amount: | AA67: =-AA49 -> $0
K68: TOTAL INVESTOR CASH OUTLAY: | AA68: =SUM(AA66:AE67) -> $157,690
B71: © 2018 by HouseFlippingSpreadsheet.com. All rights reserved
M73: per month | W73: # of months
M74: per year | W74: % of rent

Sheet RENTAL LOAN SETUP (hidden)
D2: Rental Purchase | H2: Rental Analysis | L2: Long-Term Financing
B6: Long-Term Financing Setup | K6: Long-Term Financing Setup | AA6: Amounts
K7: Loan Amount (select or type in your own value) | V7: ARV | AA7: =IF(V7="Purchase",'RENTAL PURCHASE SETUP'!AA10,IF(V7="Purchase + Repairs",'RENTAL PURCHASE SETUP'!AA10+'RENTAL PURCHASE SETUP'!AA15,IF(V7="ARV",'RENTAL PURCHASE SETUP'!AA7,V7))) -> $250,000
B8: Note: This Loan Setup is the for the Long-Term amortized, conventional loan that will be used to finance or refinance the property. | K8: LTV Ratio (generally 65 to 80%) | V8: 70.00% | AA8: =IF(V8="",0,(V8-1)*AA7) -> -$75,000
K9: LONG-TERM LOAN AMOUNT: | AA9: =SUM(AA7:AE8) -> $175,000
P10: Loan Terms | AA10: Amortized
K11: Loan Term (Years): | V11: 30.0 years | AA11: =IF(R11="$/SF",W11*#REF!,"") -> 
K12: Interest Rate (Annual %): | V12: 5.00%
K13: Points/Fees (% of Loan): | AA13: =V13*AA9 -> $0
K14: TOTAL FINANCING COSTS | AA14: =AA13 -> $0
K16: Initial Cash Outlay at Purchase
K17: TOTAL PROJECT COSTS (Excl. Selling Costs) | AA17: ='RENTAL PURCHASE SETUP'!AA66 -> $157,690
K18: =IF(AND(Rental_Funding_Strategy="Financed",Rental_Funding_Type="Conventional"),"LONG-TERM FINANCING LOAN AMOUNT","TOTAL SHORT TERM FINANCING (BRIGE LOAN)") -> TOTAL SHORT TERM FINANCING (BRIGE LOAN) | AA18: =IF(Rental_Funding_Type="Conventional",-AA9,'RENTAL PURCHASE SETUP'!AA67) -> $0
K19: INITIAL INVESTOR CASH OUTLAY | AA19: =SUM(AA17:AE18) -> $157,690
K21: =IF(Rental_Funding_Type="Conventional","Cash Remaining In Deal","Cash Remaining In Deal After Refinance") -> Cash Remaining In Deal After Refinance
K22: EXISTING BRIDGE LOAN AMOUNT | AA22: =-AA18 -> $0
K23: INITIAL INVESTOR CASH OUTLAY + REFINANCING COSTS | AA23: =AA19+AA14 -> $157,690 | AF23: Go Back To: Rental Analysis
K24: LONG-TERM FINANCING AMOUNT | AA24: =-AA9 -> -$175,000
K25: CASH REMAINING IN DEAL | AA25: =IF(AA24=0,AA19,SUM(AA22:AE24)) -> -$17,310
B28: © 2018 by HouseFlippingSpreadsheet.com. All rights reserved
L30: per month | V30: # of months
L31: per year | V31: % of rent

Sheet MANAGE
CS1: Shown
P4: Management Tools | AE4: Manage your Rehab Project | BL4: To Do
BS7: Schedule | BW7: To Do
BL8: Today | BS8: =SCHEDULER!AC11 -> 0 | BW8: =TASKS!AS4 -> 0
BL11: Tomorrow | BS11: =SCHEDULER!AD11 -> 0 | BW11: =TASKS!AH4 -> 0
BL14: Next 5 Days | BW14: =TASKS!W4 -> 0
Y15: Project Scheduler | AQ15: Task Manager
P20: Project Management Reports…
P23: Pre-Construction Documents | AM23: Construction Management Documents | BI23: Post Construction Documents
P25: - Contractor Pre-Qualification | AM25: - Rehab Checklist | BI25: - For Sale Flyer
P27: - Scope of Work Report | AM27: - Project Task List | BI27: - Lien Waiver
P29: - Independent Contractor Agreement | AM29: - Material List Report
P31: - Bid Form | AM31: - Punch List Report
AM33: - Vendor Contact List
P39: Project Management Checklist
T43: Create a Rehab Budget using the Rehab Budgeter
T45: Create a Detailed Scope of Work to Solicit Proposals from your Contractors
T47: Evaluate and Track Contractor Proposals to Determine the Lowest, Qualified Bidder using Bid Tracker
T49: Award Contracts to Contractors (Get Signed Contractor Agreements, Scope of Work, & Payment Schedule)
T51: Create a Project Schedule & Schedule Contractors to Begin Construction
T53: Manage and Coordinate Material Purchases using the Material List Report
T55: Ensure Project Scope of Work & Tasks are Completed as Contracted using Project Task List
T57: Receive Signed Lien Waivers from Contractors
T59: Perform Final Project Punchlist Inspection to Ensure Property is Ready for Listing
N62: © 2018 by HouseFlippingSpreadsheet.com. All rights reserved

Sheet SCHEDULER (hidden)
E2: PROJECT SCHEDULER
B4: Start by Setting up your Planned Start Date below, & then input your project tasks. | K4: PLANNED | R4: ACTUAL/PROJECTED | AN4: SCHEDULE KEY
K5: =Y11 -> 7 | R5: =AH11 -> 1 | S5: =Z11 -> 0 | W5: =IF(Z11=0,"",S5-K5) ->  | AC5: =(TODAY()-F6)+1 -> 334.00 | AD5: =(TODAY()-F6)+2 -> 335.00 | AE5: =(TODAY()-F6)+5 -> 338.00 | AK5: Planned | AP5: Actual/Projected | AU5: Actual (beyond planned)
B6: Planned Start Date: | F6: 2018-07-25 | O6: days | W6: days
B7: *Project Schedule is Calculated in Calendar Days | K7: =IF(F6=0,"",K5+F6) -> 2018-08-01 | R7: =IF(S5=0,"",S5+F6) -> 
B9: Complete | C9: ITEM | D9: TASK NAME | K9: PLANNED | R9: ACTUAL/PROJECTED | Y9: Plan Algo | Z9: Actual Algo | AH9: =F6 -> 2018-07-25 | AI9: =AH9+1 -> 2018-07-26 | AJ9: =AI9+1 -> 2018-07-27 | AK9: 2018-07-28 | AL9: 2018-07-29 | AM9: 2018-07-30 | AN9: 2018-07-31 | AO9: 2018-08-01 | AP9: 2018-08-02 | AQ9: 2018-08-03 | AR9: 2018-08-04 | AS9: 2018-08-05 | AT9: 2018-08-06 | AU9: 2018-08-07 | AV9: 2018-08-08 | AW9: 2018-08-09 | AX9: 2018-08-10 | AY9: 2018-08-11 | AZ9: 2018-08-12 | BA9: 2018-08-13 | BB9: 2018-08-14 | BC9: 2018-08-15 | BD9: 2018-08-16 | BE9: 2018-08-17 | BF9: 2018-08-18 | BG9: 2018-08-19 | BH9: 2018-08-20 | BI9: 2018-08-21 | BJ9: 2018-08-22 | BK9: 2018-08-23 | BL9: 2018-08-24 | BM9: 2018-08-25 | BN9: 2018-08-26 | BO9: 2018-08-27 | BP9: 2018-08-28 | BQ9: 2018-08-29 | BR9: 2018-08-30 | BS9: 2018-08-31 | BT9: 2018-09-01 | BU9: 2018-09-02 | BV9: 2018-09-03 | BW9: 2018-09-04 | BX9: 2018-09-05 | BY9: 2018-09-06 | BZ9: 2018-09-07 | CA9: 2018-09-08 | CB9: 2018-09-09 | CC9: 2018-09-10 | CD9: 2018-09-11 | CE9: 2018-09-12 | CF9: 2018-09-13 | CG9: 2018-09-14 | CH9: 2018-09-15 | CI9: 2018-09-16 | CJ9: 2018-09-17 | CK9: 2018-09-18 | CL9: 2018-09-19 | CM9: 2018-09-20 | CN9: 2018-09-21 | CO9: 2018-09-22 | CP9: 2018-09-23 | CQ9: 2018-09-24 | CR9: 2018-09-25 | CS9: 2018-09-26 | CT9: 2018-09-27 | CU9: 2018-09-28 | CV9: =CU9+1 -> 2018-09-29 | CW9: 2018-09-30 | CX9: 2018-10-01 | CY9: 2018-10-02 | CZ9: 2018-10-03 | DA9: 2018-10-04 | DB9: 2018-10-05 | DC9: 2018-10-06 | DD9: 2018-10-07 | DE9: 2018-10-08 | DF9: 2018-10-09 | DG9: 2018-10-10 | DH9: 2018-10-11 | DI9: 2018-10-12 | DJ9: 2018-10-13 | DK9: 2018-10-14 | DL9: 2018-10-15 | DM9: 2018-10-16 | DN9: 2018-10-17 | DO9: 2018-10-18 | DP9: 2018-10-19 | DQ9: 2018-10-20 | DR9: 2018-10-21 | DS9: 2018-10-22 | DT9: 2018-10-23 | DU9: 2018-10-24 | DV9: 2018-10-25 | DW9: 2018-10-26 | DX9: 2018-10-27 | DY9: 2018-10-28 | DZ9: 2018-10-29 | EA9: 2018-10-30 | EB9: 2018-10-31 | EC9: 2018-11-01 | ED9: 2018-11-02 | EE9: 2018-11-03 | EF9: 2018-11-04 | EG9: 2018-11-05 | EH9: 2018-11-06 | EI9: 2018-11-07 | EJ9: 2018-11-08 | EK9: 2018-11-09 | EL9: 2018-11-10 | EM9: 2018-11-11 | EN9: 2018-11-12 | EO9: 2018-11-13 | EP9: 2018-11-14 | EQ9: 2018-11-15 | ER9: 2018-11-16 | ES9: 2018-11-17 | ET9: 2018-11-18 | EU9: 2018-11-19 | EV9: 2018-11-20 | EW9: 2018-11-21 | EX9: 2018-11-22 | EY9: 2018-11-23 | EZ9: 2018-11-24 | FA9: 2018-11-25 | FB9: 2018-11-26 | FC9: 2018-11-27 | FD9: 2018-11-28 | FE9: 2018-11-29 | FF9: 2018-11-30 | FG9: 2018-12-01 | FH9: =FG9+1 -> 2018-12-02 | FI9: 2018-12-03 | FJ9: 2018-12-04 | FK9: 2018-12-05 | FL9: 2018-12-06 | FM9: 2018-12-07 | FN9: 2018-12-08 | FO9: 2018-12-09 | FP9: 2018-12-10 | FQ9: 2018-12-11 | FR9: 2018-12-12 | FS9: 2018-12-13 | FT9: 2018-12-14 | FU9: 2018-12-15 | FV9: 2018-12-16 | FW9: 2018-12-17 | FX9: 2018-12-18 | FY9: 2018-12-19 | FZ9: 2018-12-20 | GA9: 2018-12-21 | GB9: 2018-12-22 | GC9: 2018-12-23 | GD9: 2018-12-24 | GE9: 2018-12-25 | GF9: 2018-12-26 | GG9: 2018-12-27 | GH9: 2018-12-28 | GI9: 2018-12-29 | GJ9: 2018-12-30 | GK9: 2018-12-31 | GL9: 2019-01-01 | GM9: 2019-01-02 | GN9: 2019-01-03 | GO9: 2019-01-04 | GP9: 2019-01-05 | GQ9: 2019-01-06 | GR9: 2019-01-07 | GS9: 2019-01-08 | GT9: 2019-01-09 | GU9: 2019-01-10 | GV9: 2019-01-11 | GW9: 2019-01-12 | GX9: 2019-01-13 | GY9: 2019-01-14 | GZ9: 2019-01-15 | HA9: 2019-01-16 | HB9: 2019-01-17 | HC9: 2019-01-18 | HD9: 2019-01-19 | HE9: 2019-01-20 | HF9: 2019-01-21 | HG9: 2019-01-22 | HH9: 2019-01-23 | HI9: 2019-01-24 | HJ9: 2019-01-25 | HK9: 2019-01-26 | HL9: 2019-01-27 | HM9: 2019-01-28 | HN9: 2019-01-29 | HO9: 2019-01-30 | HP9: 2019-01-31 | HQ9: 2019-02-01 | HR9: 2019-02-02 | HS9: 2019-02-03 | HT9: =HS9+1 -> 2019-02-04 | HU9: 2019-02-05 | HV9: 2019-02-06 | HW9: 2019-02-07 | HX9: 2019-02-08 | HY9: 2019-02-09 | HZ9: 2019-02-10 | IA9: 2019-02-11 | IB9: 2019-02-12 | IC9: 2019-02-13 | ID9: 2019-02-14 | IE9: 2019-02-15 | IF9: 2019-02-16 | IG9: 2019-02-17 | IH9: 2019-02-18 | II9: 2019-02-19 | IJ9: 2019-02-20 | IK9: 2019-02-21 | IL9: 2019-02-22 | IM9: 2019-02-23 | IN9: 2019-02-24 | IO9: 2019-02-25 | IP9: 2019-02-26 | IQ9: 2019-02-27 | IR9: 2019-02-28 | IS9: 2019-03-01 | IT9: 2019-03-02 | IU9: 2019-03-03 | IV9: 2019-03-04 | IW9: 2019-03-05 | IX9: 2019-03-06 | IY9: 2019-03-07 | IZ9: 2019-03-08 | JA9: 2019-03-09 | JB9: 2019-03-10 | JC9: 2019-03-11 | JD9: 2019-03-12 | JE9: 2019-03-13 | JF9: 2019-03-14 | JG9: 2019-03-15 | JH9: 2019-03-16 | JI9: 2019-03-17 | JJ9: 2019-03-18 | JK9: 2019-03-19 | JL9: 2019-03-20 | JM9: 2019-03-21 | JN9: 2019-03-22 | JO9: 2019-03-23 | JP9: 2019-03-24 | JQ9: 2019-03-25 | JR9: 2019-03-26 | JS9: 2019-03-27 | JT9: 2019-03-28 | JU9: 2019-03-29 | JV9: 2019-03-30 | JW9: 2019-03-31 | JX9: 2019-04-01 | JY9: 2019-04-02 | JZ9: 2019-04-03 | KA9: 2019-04-04 | KB9: 2019-04-05 | KC9: 2019-04-06 | KD9: 2019-04-07 | KE9: 2019-04-08 | KF9: =KE9+1 -> 2019-04-09 | KG9: 2019-04-10 | KH9: 2019-04-11 | KI9: 2019-04-12 | KJ9: 2019-04-13 | KK9: 2019-04-14 | KL9: 2019-04-15 | KM9: 2019-04-16 | KN9: 2019-04-17 | KO9: 2019-04-18 | KP9: 2019-04-19 | KQ9: 2019-04-20 | KR9: 2019-04-21 | KS9: 2019-04-22 | KT9: 2019-04-23 | KU9: 2019-04-24 | KV9: 2019-04-25 | KW9: 2019-04-26 | KX9: 2019-04-27 | KY9: 2019-04-28 | KZ9: 2019-04-29 | LA9: 2019-04-30 | LB9: 2019-05-01 | LC9: 2019-05-02 | LD9: 2019-05-03 | LE9: 2019-05-04 | LF9: 2019-05-05 | LG9: 2019-05-06 | LH9: 2019-05-07 | LI9: 2019-05-08 | LJ9: 2019-05-09 | LK9: 2019-05-10 | LL9: 2019-05-11 | LM9: 2019-05-12 | LN9: 2019-05-13 | LO9: 2019-05-14 | LP9: 2019-05-15 | LQ9: 2019-05-16 | LR9: 2019-05-17 | LS9: 2019-05-18 | LT9: 2019-05-19 | LU9: 2019-05-20 | LV9: 2019-05-21 | LW9: 2019-05-22 | LX9: 2019-05-23 | LY9: 2019-05-24 | LZ9: 2019-05-25 | MA9: 2019-05-26 | MB9: 2019-05-27 | MC9: 2019-05-28 | MD9: 2019-05-29 | ME9: 2019-05-30 | MF9: 2019-05-31 | MG9: 2019-06-01 | MH9: 2019-06-02 | MI9: 2019-06-03 | MJ9: 2019-06-04 | MK9: 2019-06-05 | ML9: 2019-06-06 | MM9: 2019-06-07 | MN9: 2019-06-08 | MO9: 2019-06-09 | MP9: 2019-06-10 | MQ9: 2019-06-11 | MR9: =MQ9+1 -> 2019-06-12 | MS9: 2019-06-13 | MT9: 2019-06-14 | MU9: 2019-06-15 | MV9: 2019-06-16 | MW9: 2019-06-17 | MX9: 2019-06-18 | MY9: 2019-06-19 | MZ9: 2019-06-20 | NA9: 2019-06-21 | NB9: 2019-06-22 | NC9: 2019-06-23 | ND9: 2019-06-24 | NE9: 2019-06-25 | NF9: 2019-06-26 | NG9: 2019-06-27 | NH9: 2019-06-28 | NI9: 2019-06-29 | NJ9: 2019-06-30 | NK9: 2019-07-01 | NL9: 2019-07-02 | NM9: 2019-07-03 | NN9: 2019-07-04 | NO9: 2019-07-05 | NP9: 2019-07-06 | NQ9: 2019-07-07 | NR9: 2019-07-08 | NS9: 2019-07-09 | NT9: 2019-07-10 | NU9: 2019-07-11 | NV9: 2019-07-12 | NW9: 2019-07-13 | NX9: 2019-07-14 | NY9: 2019-07-15 | NZ9: 2019-07-16 | OA9: 2019-07-17 | OB9: 2019-07-18 | OC9: 2019-07-19 | OD9: 2019-07-20 | OE9: 2019-07-21 | OF9: 2019-07-22 | OG9: 2019-07-23 | OH9: 2019-07-24
K10: START | N10: DURATION | R10: START | V10: DURATION | AA10: First Day | AB10: Last Day | AC10: Today | AD10: Tomorrow | AE10: 5 Days Out | AH10: =TEXT(AH9,"ddd") -> Wed | AI10: =TEXT(AI9,"ddd") -> Thu | AJ10: Fri | AK10: Sat | AL10: Sun | AM10: Mon | AN10: Tue | AO10: Wed | AP10: Thu | AQ10: Fri | AR10: Sat | AS10: Sun | AT10: Mon | AU10: Tue | AV10: Wed | AW10: Thu | AX10: Fri | AY10: Sat | AZ10: Sun | BA10: Mon | BB10: Tue | BC10: Wed | BD10: Thu | BE10: Fri | BF10: Sat | BG10: Sun | BH10: Mon | BI10: Tue | BJ10: Wed | BK10: Thu | BL10: Fri | BM10: Sat | BN10: Sun | BO10: Mon | BP10: Tue | BQ10: Wed | BR10: Thu | BS10: Fri | BT10: Sat | BU10: Sun | BV10: Mon | BW10: Tue | BX10: Wed | BY10: Thu | BZ10: Fri | CA10: Sat | CB10: Sun | CC10: Mon | CD10: Tue | CE10: Wed | CF10: Thu | CG10: Fri | CH10: Sat | CI10: Sun | CJ10: Mon | CK10: Tue | CL10: Wed | CM10: Thu | CN10: Fri | CO10: Sat | CP10: Sun | CQ10: Mon | CR10: Tue | CS10: Wed | CT10: Thu | CU10: =TEXT(CU9,"ddd") -> Fri | CV10: Sat | CW10: Sun | CX10: Mon | CY10: Tue | CZ10: Wed | DA10: Thu | DB10: Fri | DC10: Sat | DD10: Sun | DE10: Mon | DF10: Tue | DG10: Wed | DH10: Thu | DI10: Fri | DJ10: Sat | DK10: Sun | DL10: Mon | DM10: Tue | DN10: Wed | DO10: Thu | DP10: Fri | DQ10: Sat | DR10: Sun | DS10: Mon | DT10: Tue | DU10: Wed | DV10: Thu | DW10: Fri | DX10: Sat | DY10: Sun | DZ10: Mon | EA10: Tue | EB10: Wed | EC10: Thu | ED10: Fri | EE10: Sat | EF10: Sun | EG10: Mon | EH10: Tue | EI10: Wed | EJ10: Thu | EK10: Fri | EL10: Sat | EM10: Sun | EN10: Mon | EO10: Tue | EP10: Wed | EQ10: Thu | ER10: Fri | ES10: Sat | ET10: Sun | EU10: Mon | EV10: Tue | EW10: Wed | EX10: Thu | EY10: Fri | EZ10: Sat | FA10: Sun | FB10: Mon | FC10: Tue | FD10: Wed | FE10: Thu | FF10: Fri | FG10: =TEXT(FG9,"ddd") -> Sat | FH10: Sun | FI10: Mon | FJ10: Tue | FK10: Wed | FL10: Thu | FM10: Fri | FN10: Sat | FO10: Sun | FP10: Mon | FQ10: Tue | FR10: Wed | FS10: Thu | FT10: Fri | FU10: Sat | FV10: Sun | FW10: Mon | FX10: Tue | FY10: Wed | FZ10: Thu | GA10: Fri | GB10: Sat | GC10: Sun | GD10: Mon | GE10: Tue | GF10: Wed | GG10: Thu | GH10: Fri | GI10: Sat | GJ10: Sun | GK10: Mon | GL10: Tue | GM10: Wed | GN10: Thu | GO10: Fri | GP10: Sat | GQ10: Sun | GR10: Mon | GS10: Tue | GT10: Wed | GU10: Thu | GV10: Fri | GW10: Sat | GX10: Sun | GY10: Mon | GZ10: Tue | HA10: Wed | HB10: Thu | HC10: Fri | HD10: Sat | HE10: Sun | HF10: Mon | HG10: Tue | HH10: Wed | HI10: Thu | HJ10: Fri | HK10: Sat | HL10: Sun | HM10: Mon | HN10: Tue | HO10: Wed | HP10: Thu | HQ10: Fri | HR10: Sat | HS10: =TEXT(HS9,"ddd") -> Sun | HT10: Mon | HU10: Tue | HV10: Wed | HW10: Thu | HX10: Fri | HY10: Sat | HZ10: Sun | IA10: Mon | IB10: Tue | IC10: Wed | ID10: Thu | IE10: Fri | IF10: Sat | IG10: Sun | IH10: Mon | II10: Tue | IJ10: Wed | IK10: Thu | IL10: Fri | IM10: Sat | IN10: Sun | IO10: Mon | IP10: Tue | IQ10: Wed | IR10: Thu | IS10: Fri | IT10: Sat | IU10: Sun | IV10: Mon | IW10: Tue | IX10: Wed | IY10: Thu | IZ10: Fri | JA10: Sat | JB10: Sun | JC10: Mon | JD10: Tue | JE10: Wed | JF10: Thu | JG10: Fri | JH10: Sat | JI10: Sun | JJ10: Mon | JK10: Tue | JL10: Wed | JM10: Thu | JN10: Fri | JO10: Sat | JP10: Sun | JQ10: Mon | JR10: Tue | JS10: Wed | JT10: Thu | JU10: Fri | JV10: Sat | JW10: Sun | JX10: Mon | JY10: Tue | JZ10: Wed | KA10: Thu | KB10: Fri | KC10: Sat | KD10: Sun | KE10: =TEXT(KE9,"ddd") -> Mon | KF10: Tue | KG10: Wed | KH10: Thu | KI10: Fri | KJ10: Sat | KK10: Sun | KL10: Mon | KM10: Tue | KN10: Wed | KO10: Thu | KP10: Fri | KQ10: Sat | KR10: Sun | KS10: Mon | KT10: Tue | KU10: Wed | KV10: Thu | KW10: Fri | KX10: Sat | KY10: Sun | KZ10: Mon | LA10: Tue | LB10: Wed | LC10: Thu | LD10: Fri | LE10: Sat | LF10: Sun | LG10: Mon | LH10: Tue | LI10: Wed | LJ10: Thu | LK10: Fri | LL10: Sat | LM10: Sun | LN10: Mon | LO10: Tue | LP10: Wed | LQ10: Thu | LR10: Fri | LS10: Sat | LT10: Sun | LU10: Mon | LV10: Tue | LW10: Wed | LX10: Thu | LY10: Fri | LZ10: Sat | MA10: Sun | MB10: Mon | MC10: Tue | MD10: Wed | ME10: Thu | MF10: Fri | MG10: Sat | MH10: Sun | MI10: Mon | MJ10: Tue | MK10: Wed | ML10: Thu | MM10: Fri | MN10: Sat | MO10: Sun | MP10: Mon | MQ10: =TEXT(MQ9,"ddd") -> Tue | MR10: Wed | MS10: Thu | MT10: Fri | MU10: Sat | MV10: Sun | MW10: Mon | MX10: Tue | MY10: Wed | MZ10: Thu | NA10: Fri | NB10: Sat | NC10: Sun | ND10: Mon | NE10: Tue | NF10: Wed | NG10: Thu | NH10: Fri | NI10: Sat | NJ10: Sun | NK10: Mon | NL10: Tue | NM10: Wed | NN10: Thu | NO10: Fri | NP10: Sat | NQ10: Sun | NR10: Mon | NS10: Tue | NT10: Wed | NU10: Thu | NV10: Fri | NW10: Sat | NX10: Sun | NY10: Mon | NZ10: Tue | OA10: Wed | OB10: Thu | OC10: Fri | OD10: Sat | OE10: Sun | OF10: Mon | OG10: Tue | OH10: Wed
K11: DAY # | N11: # OF DAYS | R11: DAY # | V11: # OF DAYS | Y11: =IF(SUM(K12:K86)<1,0,LARGE(Y12:Y86,1)-1) -> 7 | Z11: =IF(SUM(S12:S86)<1,0,LARGE(Z12:Z86,1)-1) -> 0 | AC11: =SUM(AC12:AC111) -> 0 | AD11: =SUM(AD12:AD111) -> 0 | AH11: 1 | AI11: 2 | AJ11: 3 | AK11: 4 | AL11: 5 | AM11: 6 | AN11: 7 | AO11: 8 | AP11: 9 | AQ11: 10 | AR11: 11 | AS11: 12 | AT11: 13 | AU11: 14 | AV11: 15 | AW11: 16 | AX11: 17 | AY11: 18 | AZ11: 19 | BA11: 20 | BB11: 21 | BC11: 22 | BD11: 23 | BE11: 24 | BF11: 25 | BG11: 26 | BH11: 27 | BI11: 28 | BJ11: 29 | BK11: 30 | BL11: 31 | BM11: 32 | BN11: 33 | BO11: 34 | BP11: 35 | BQ11: 36 | BR11: 37 | BS11: 38 | BT11: 39 | BU11: 40 | BV11: 41 | BW11: 42 | BX11: 43 | BY11: 44 | BZ11: 45 | CA11: 46 | CB11: 47 | CC11: 48 | CD11: 49 | CE11: 50 | CF11: 51 | CG11: 52 | CH11: 53 | CI11: 54 | CJ11: 55 | CK11: 56 | CL11: 57 | CM11: 58 | CN11: 59 | CO11: 60 | CP11: 61 | CQ11: 62 | CR11: 63 | CS11: 64 | CT11: 65 | CU11: 66 | CV11: 67 | CW11: 68 | CX11: 69 | CY11: 70 | CZ11: 71 | DA11: 72 | DB11: 73 | DC11: 74 | DD11: 75 | DE11: 76 | DF11: 77 | DG11: 78 | DH11: 79 | DI11: 80 | DJ11: 81 | DK11: 82 | DL11: 83 | DM11: 84 | DN11: 85 | DO11: 86 | DP11: 87 | DQ11: 88 | DR11: 89 | DS11: 90 | DT11: 91 | DU11: 92 | DV11: 93 | DW11: 94 | DX11: 95 | DY11: 96 | DZ11: 97 | EA11: 98 | EB11: 99 | EC11: 100 | ED11: 101 | EE11: 102 | EF11: 103 | EG11: 104 | EH11: 105 | EI11: 106 | EJ11: 107 | EK11: 108 | EL11: 109 | EM11: 110 | EN11: 111 | EO11: 112 | EP11: 113 | EQ11: 114 | ER11: 115 | ES11: 116 | ET11: 117 | EU11: 118 | EV11: 119 | EW11: 120 | EX11: 121 | EY11: 122 | EZ11: 123 | FA11: 124 | FB11: 125 | FC11: 126 | FD11: 127 | FE11: 128 | FF11: 129 | FG11: 130 | FH11: 131 | FI11: 132 | FJ11: 133 | FK11: 134 | FL11: 135 | FM11: 136 | FN11: 137 | FO11: 138 | FP11: 139 | FQ11: 140 | FR11: 141 | FS11: 142 | FT11: 143 | FU11: 144 | FV11: 145 | FW11: 146 | FX11: 147 | FY11: 148 | FZ11: 149 | GA11: 150 | GB11: 151 | GC11: 152 | GD11: 153 | GE11: 154 | GF11: 155 | GG11: 156 | GH11: 157 | GI11: 158 | GJ11: 159 | GK11: 160 | GL11: 161 | GM11: 162 | GN11: 163 | GO11: 164 | GP11: 165 | GQ11: 166 | GR11: 167 | GS11: 168 | GT11: 169 | GU11: 170 | GV11: 171 | GW11: 172 | GX11: 173 | GY11: 174 | GZ11: 175 | HA11: 176 | HB11: 177 | HC11: 178 | HD11: 179 | HE11: 180 | HF11: 181 | HG11: 182 | HH11: 183 | HI11: 184 | HJ11: 185 | HK11: 186 | HL11: 187 | HM11: 188 | HN11: 189 | HO11: 190 | HP11: 191 | HQ11: 192 | HR11: 193 | HS11: 194 | HT11: 195 | HU11: 196 | HV11: 197 | HW11: 198 | HX11: 199 | HY11: 200 | HZ11: 201 | IA11: 202 | IB11: 203 | IC11: 204 | ID11: 205 | IE11: 206 | IF11: 207 | IG11: 208 | IH11: 209 | II11: 210 | IJ11: 211 | IK11: 212 | IL11: 213 | IM11: 214 | IN11: 215 | IO11: 216 | IP11: 217 | IQ11: 218 | IR11: 219 | IS11: 220 | IT11: 221 | IU11: 222 | IV11: 223 | IW11: 224 | IX11: 225 | IY11: 226 | IZ11: 227 | JA11: 228 | JB11: 229 | JC11: 230 | JD11: 231 | JE11: 232 | JF11: 233 | JG11: 234 | JH11: 235 | JI11: 236 | JJ11: 237 | JK11: 238 | JL11: 239 | JM11: 240 | JN11: 241 | JO11: 242 | JP11: 243 | JQ11: 244 | JR11: 245 | JS11: 246 | JT11: 247 | JU11: 248 | JV11: 249 | JW11: 250 | JX11: 251 | JY11: 252 | JZ11: 253 | KA11: 254 | KB11: 255 | KC11: 256 | KD11: 257 | KE11: 258 | KF11: 259 | KG11: 260 | KH11: 261 | KI11: 262 | KJ11: 263 | KK11: 264 | KL11: 265 | KM11: 266 | KN11: 267 | KO11: 268 | KP11: 269 | KQ11: 270 | KR11: 271 | KS11: 272 | KT11: 273 | KU11: 274 | KV11: 275 | KW11: 276 | KX11: 277 | KY11: 278 | KZ11: 279 | LA11: 280 | LB11: 281 | LC11: 282 | LD11: 283 | LE11: 284 | LF11: 285 | LG11: 286 | LH11: 287 | LI11: 288 | LJ11: 289 | LK11: 290 | LL11: 291 | LM11: 292 | LN11: 293 | LO11: 294 | LP11: 295 | LQ11: 296 | LR11: 297 | LS11: 298 | LT11: 299 | LU11: 300 | LV11: 301 | LW11: 302 | LX11: 303 | LY11: 304 | LZ11: 305 | MA11: 306 | MB11: 307 | MC11: 308 | MD11: 309 | ME11: 310 | MF11: 311 | MG11: 312 | MH11: 313 | MI11: 314 | MJ11: 315 | MK11: 316 | ML11: 317 | MM11: 318 | MN11: 319 | MO11: 320 | MP11: 321 | MQ11: 322 | MR11: 323 | MS11: 324 | MT11: 325 | MU11: 326 | MV11: 327 | MW11: 328 | MX11: 329 | MY11: 330 | MZ11: 331 | NA11: 332 | NB11: 333 | NC11: 334 | ND11: 335 | NE11: 336 | NF11: 337 | NG11: 338 | NH11: 339 | NI11: 340 | NJ11: 341 | NK11: 342 | NL11: 343 | NM11: 344 | NN11: 345 | NO11: 346 | NP11: 347 | NQ11: 348 | NR11: 349 | NS11: 350 | NT11: 351 | NU11: 352 | NV11: 353 | NW11: 354 | NX11: 355 | NY11: 356 | NZ11: 357 | OA11: 358 | OB11: 359 | OC11: 360 | OD11: 361 | OE11: 362 | OF11: 363 | OG11: 364 | OH11: 365
C12: 1 | K12: 1 | N12: 5 | Y12: =K12+N12 -> 6 | Z12: =S12+V12 -> 0 | AA12: =K12 -> 1 | AB12: =IF(K12+N12<>0,(K12+N12)-1,0) -> 5 | AC12: =IF(AND($AC$5<=AB12,$AC$5>=AA12),1,0) -> 0 | AD12: =IF(AND($AD$5<=AB12,$AD$5>=AA12),1,0) -> 0 | AE12: =IF(AB12+AA12=0,0,AA12+4) -> 5 | AF12: =IF(AE12<=AB12,1,0) -> 1
C13: 2 | K13: 4 | N13: 4 | Y13: =K13+N13 -> 8 | Z13: =S13+V13 -> 0 | AA13: =K13 -> 4 | AB13: =IF(K13+N13<>0,(K13+N13)-1,0) -> 7 | AC13: 0 | AD13: =IF(AND($AD$5<=AB13,$AD$5>=AA13),1,0) -> 0 | AE13: =IF(AB13+AA13=0,0,AA13+4) -> 8 | AF13: 0
C14: 3 | Y14: 0 | Z14: 0 | AA14: 0 | AB14: =IF(K14+N14<>0,(K14+N14)-1,0) -> 0 | AC14: 0 | AD14: 0 | AE14: =IF(AB14+AA14=0,0,AA14+4) -> 0 | AF14: 1 | OL14: Schedule Items
C15: 4 | Y15: 0 | Z15: 0 | AA15: 0 | AB15: =IF(K15+N15<>0,(K15+N15)-1,0) -> 0 | AC15: 0 | AD15: 0 | AE15: =IF(AB15+AA15=0,0,AA15+4) -> 0 | AF15: 1 | OL15: Seller Accepted Offer
C16: 5 | Y16: 0 | Z16: 0 | AA16: 0 | AB16: 0 | AC16: 0 | AD16: 0 | AE16: 0 | AF16: 1 | OL16: Property Inspections
C17: 6 | Y17: 0 | Z17: 0 | AA17: 0 | AB17: 0 | AC17: 0 | AD17: 0 | AE17: 0 | AF17: 1 | OL17: Contractor Preparation / Bidding
C18: 7 | Y18: 0 | Z18: 0 | AA18: 0 | AB18: 0 | AC18: 0 | AD18: 0 | AE18: 0 | OL18: Material Procurement
C19: 8 | Y19: 0 | Z19: 0 | AA19: 0 | AB19: 0 | AC19: 0 | AD19: 0 | AE19: 0 | OL19: Architectural/Structural Design
C20: 9 | Y20: 0 | Z20: 0 | AA20: 0 | AB20: 0 | AC20: 0 | AD20: 0 | AE20: 0 | OL20: Utility Locates
C21: 10 | Y21: 0 | Z21: 0 | AA21: 0 | AB21: 0 | AC21: 0 | AD21: 0 | AE21: 0 | OL21: Dumpster Delivery
C22: 11 | Y22: 0 | Z22: 0 | AA22: 0 | AB22: 0 | AC22: 0 | AD22: 0 | AE22: 0 | OL22: Property Purchase Closing Date
C23: 12 | Y23: 0 | Z23: 0 | AA23: 0 | AB23: 0 | AC23: 0 | AD23: 0 | AE23: 0 | OL23: Demolition
C24: 13 | Y24: 0 | Z24: 0 | AA24: 0 | AB24: 0 | AC24: 0 | AD24: 0 | AE24: 0 | OL24: Structural Repairs
C25: 14 | Y25: 0 | Z25: 0 | AA25: 0 | AB25: 0 | AC25: 0 | AD25: 0 | AE25: 0 | OL25: Driveway Repairs/Replacement
C26: 15 | Y26: 0 | Z26: 0 | AA26: 0 | AB26: 0 | AC26: 0 | AD26: 0 | AE26: 0 | OL26: Siding
C27: 16 | Y27: 0 | Z27: 0 | AA27: 0 | AB27: 0 | AC27: 0 | AD27: 0 | AE27: 0 | OL27: Deck Repair/Construction
C28: 17 | Y28: 0 | Z28: 0 | AA28: 0 | AB28: 0 | AC28: 0 | AD28: 0 | AE28: 0 | OL28: Roof repair
C29: 18 | Y29: 0 | Z29: 0 | AA29: 0 | AB29: 0 | AC29: 0 | AD29: 0 | AE29: 0 | OL29: Roof Replacement
C30: 19 | Y30: 0 | Z30: 0 | AA30: 0 | AB30: 0 | AC30: 0 | AD30: 0 | AE30: 0 | OL30: Replace windows
C31: 20 | Y31: 0 | Z31: 0 | AA31: 0 | AB31: 0 | AC31: 0 | AD31: 0 | AE31: 0 | OL31: Replace garage doors
C32: 21 | Y32: 0 | Z32: 0 | AA32: 0 | AB32: 0 | AC32: 0 | AD32: 0 | AE32: 0 | OL32: Exterior Painting
C33: 22 | Y33: 0 | Z33: 0 | AA33: 0 | AB33: 0 | AC33: 0 | AD33: 0 | AE33: 0 | OL33: Landscaping
C34: 23 | Y34: 0 | Z34: 0 | AA34: 0 | AB34: 0 | AC34: 0 | AD34: 0 | AE34: 0 | OL34: Plumbing Rough In
C35: 24 | Y35: 0 | Z35: 0 | AA35: 0 | AB35: 0 | AC35: 0 | AD35: 0 | AE35: 0 | OL35: Mechanical Rough In
C36: 25 | Y36: 0 | Z36: 0 | AA36: 0 | AB36: 0 | AC36: 0 | AD36: 0 | AE36: 0 | OL36: Install new furnace
C37: 26 | Y37: 0 | Z37: 0 | AA37: 0 | AB37: 0 | AC37: 0 | AD37: 0 | AE37: 0 | OL37: Install new A/C
C38: 27 | Y38: 0 | Z38: 0 | AA38: 0 | AB38: 0 | AC38: 0 | AD38: 0 | AE38: 0 | OL38: Electrical Rough In
C39: 28 | Y39: 0 | Z39: 0 | AA39: 0 | AB39: 0 | AC39: 0 | AD39: 0 | AE39: 0 | OL39: Electrical Panel
C40: 29 | Y40: 0 | Z40: 0 | AA40: 0 | AB40: 0 | AC40: 0 | AD40: 0 | AE40: 0 | OL40: Framing/Drywall
C41: 30 | Y41: 0 | Z41: 0 | AA41: 0 | AB41: 0 | AC41: 0 | AD41: 0 | AE41: 0 | OL41: Doors and Trim
C42: 31 | Y42: 0 | Z42: 0 | AA42: 0 | AB42: 0 | AC42: 0 | AD42: 0 | AE42: 0 | OL42: Interior Painting
C43: 32 | Y43: 0 | Z43: 0 | AA43: 0 | AB43: 0 | AC43: 0 | AD43: 0 | AE43: 0 | OL43: Light Fixtures
C44: 33 | Y44: 0 | Z44: 0 | AA44: 0 | AB44: 0 | AC44: =IF(AND($AC$5<=AB44,$AC$5>=AA44),1,0) -> 0 | AD44: 0 | AE44: 0 | OL44: Kitchen Cabinets
C45: 34 | Y45: 0 | Z45: 0 | AA45: 0 | AB45: 0 | AC45: 0 | AD45: 0 | AE45: 0 | OL45: Countertops
C46: 35 | Y46: 0 | Z46: 0 | AA46: 0 | AB46: 0 | AC46: 0 | AD46: 0 | AE46: 0 | OL46: Bathroom Finishes
C47: 36 | Y47: 0 | Z47: 0 | AA47: 0 | AB47: 0 | AC47: 0 | AD47: 0 | AE47: 0 | OL47: Bathroom Fixtures
C48: 37 | Y48: 0 | Z48: 0 | AA48: 0 | AB48: 0 | AC48: 0 | AD48: 0 | AE48: 0 | OL48: Hardwood Flooring
C49: 38 | Y49: 0 | Z49: 0 | AA49: 0 | AB49: 0 | AC49: 0 | AD49: 0 | AE49: 0 | OL49: Carpet Flooring
C50: 39 | Y50: 0 | Z50: 0 | AA50: 0 | AB50: 0 | AC50: 0 | AD50: 0 | AE50: 0 | OL50: MEP Finish Work (cover plates, grilles/registers)
C51: 40 | Y51: 0 | Z51: 0 | AA51: 0 | AB51: 0 | AC51: 0 | AD51: 0 | AE51: 0 | OL51: Appliances
C52: 41 | Y52: 0 | Z52: 0 | AA52: 0 | AB52: 0 | AC52: 0 | AD52: 0 | AE52: 0 | OL52: Punchlist /Pre-Inspection
C53: 42 | Y53: 0 | Z53: 0 | AA53: 0 | AB53: 0 | AC53: 0 | AD53: 0 | AE53: 0 | OL53: Furnishings/Stagings
C54: 43 | Y54: 0 | Z54: 0 | AA54: 0 | AB54: 0 | AC54: 0 | AD54: 0 | AE54: 0 | OL54: Listing Day
C55: 44 | Y55: 0 | Z55: 0 | AA55: 0 | AB55: 0 | AC55: 0 | AD55: 0 | AE55: 0 | OL55: Open House
C56: 45 | Y56: 0 | Z56: 0 | AA56: 0 | AB56: 0 | AC56: 0 | AD56: 0 | AE56: 0 | OL56: Days-On-Market
C57: 46 | Y57: 0 | Z57: 0 | AA57: 0 | AB57: 0 | AC57: 0 | AD57: 0 | AE57: 0 | OL57: Accepted Offer
C58: 47 | Y58: 0 | Z58: 0 | AA58: 0 | AB58: 0 | AC58: 0 | AD58: 0 | AE58: 0 | OL58: Buyer Inspections
C59: 48 | Y59: 0 | Z59: 0 | AA59: 0 | AB59: 0 | AC59: 0 | AD59: 0 | AE59: 0 | OL59: Inspection Repairs
C60: 49 | Y60: 0 | Z60: 0 | AA60: 0 | AB60: 0 | AC60: 0 | AD60: 0 | AE60: 0 | OL60: Closing Period
C61: 50 | Y61: 0 | Z61: 0 | AA61: 0 | AB61: 0 | AC61: 0 | AD61: 0 | AE61: 0 | OL61: Property Sale Closing Date
C62: 51 | Y62: 0 | Z62: 0 | AA62: 0 | AB62: 0 | AC62: 0 | AD62: 0 | AE62: 0
C63: 52 | Y63: 0 | Z63: 0 | AA63: 0 | AB63: 0 | AC63: 0 | AD63: 0 | AE63: 0
C64: 53 | Y64: 0 | Z64: 0 | AA64: 0 | AB64: 0 | AC64: 0 | AD64: 0 | AE64: 0
C65: 54 | Y65: 0 | Z65: 0 | AA65: 0 | AB65: 0 | AC65: 0 | AD65: 0 | AE65: 0
C66: 55 | Y66: 0 | Z66: 0 | AA66: 0 | AB66: 0 | AC66: 0 | AD66: 0 | AE66: 0
C67: 56 | Y67: 0 | Z67: 0 | AA67: 0 | AB67: 0 | AC67: 0 | AD67: 0 | AE67: 0
C68: 57 | Y68: 0 | Z68: 0 | AA68: 0 | AB68: 0 | AC68: 0 | AD68: 0 | AE68: 0
C69: 58 | Y69: 0 | Z69: 0 | AA69: 0 | AB69: 0 | AC69: 0 | AD69: 0 | AE69: 0
C70: 59 | Y70: 0 | Z70: 0 | AA70: 0 | AB70: 0 | AC70: 0 | AD70: 0 | AE70: 0
C71: 60 | Y71: 0 | Z71: 0 | AA71: 0 | AB71: 0 | AC71: 0 | AD71: 0 | AE71: 0
C72: 61 | Y72: 0 | Z72: 0 | AA72: 0 | AB72: 0 | AC72: 0 | AD72: 0 | AE72: 0
C73: 62 | Y73: 0 | Z73: 0 | AA73: 0 | AB73: 0 | AC73: 0 | AD73: 0 | AE73: 0
C74: 63 | Y74: 0 | Z74: 0 | AA74: 0 | AB74: 0 | AC74: 0 | AD74: 0 | AE74: 0
C75: 64 | Y75: 0 | Z75: 0 | AA75: 0 | AB75: 0 | AC75: 0 | AD75: 0 | AE75: 0
C76: 65 | Y76: 0 | Z76: 0 | AA76: 0 | AB76: 0 | AC76: =IF(AND($AC$5<=AB76,$AC$5>=AA76),1,0) -> 0 | AD76: 0 | AE76: 0
C77: 66 | Y77: =K77+N77 -> 0 | Z77: =S77+V77 -> 0 | AA77: =K77 -> 0 | AB77: 0 | AC77: 0 | AD77: =IF(AND($AD$5<=AB77,$AD$5>=AA77),1,0) -> 0 | AE77: 0
C78: 67 | Y78: 0 | Z78: 0 | AA78: 0 | AB78: 0 | AC78: 0 | AD78: 0 | AE78: 0
C79: 68 | Y79: 0 | Z79: 0 | AA79: 0 | AB79: =IF(K79+N79<>0,(K79+N79)-1,0) -> 0 | AC79: 0 | AD79: 0 | AE79: =IF(AB79+AA79=0,0,AA79+4) -> 0
C80: 69 | Y80: 0 | Z80: 0 | AA80: 0 | AB80: 0 | AC80: 0 | AD80: 0 | AE80: 0
C81: 70 | Y81: 0 | Z81: 0 | AA81: 0 | AB81: 0 | AC81: 0 | AD81: 0 | AE81: 0
C82: 71 | Y82: 0 | Z82: 0 | AA82: 0 | AB82: 0 | AC82: 0 | AD82: 0 | AE82: 0
C83: 72 | Y83: 0 | Z83: 0 | AA83: 0 | AB83: 0 | AC83: 0 | AD83: 0 | AE83: 0
C84: 73 | Y84: 0 | Z84: 0 | AA84: 0 | AB84: 0 | AC84: 0 | AD84: 0 | AE84: 0
C85: 74 | Y85: 0 | Z85: 0 | AA85: 0 | AB85: 0 | AC85: 0 | AD85: 0 | AE85: 0
C86: 75 | Y86: 0 | Z86: 0 | AA86: 0 | AB86: 0 | AC86: 0 | AD86: 0 | AE86: 0
C87: 76 | Y87: 0 | Z87: 0 | AA87: 0 | AB87: 0 | AC87: 0 | AD87: 0 | AE87: 0
C88: 77 | Y88: 0 | Z88: 0 | AA88: 0 | AB88: 0 | AC88: 0 | AD88: 0 | AE88: 0
C89: 78 | Y89: 0 | Z89: 0 | AA89: 0 | AB89: 0 | AC89: 0 | AD89: 0 | AE89: 0
C90: 79 | Y90: 0 | Z90: 0 | AA90: 0 | AB90: 0 | AC90: 0 | AD90: 0 | AE90: 0
C91: 80 | Y91: 0 | Z91: 0 | AA91: 0 | AB91: 0 | AC91: 0 | AD91: 0 | AE91: 0
C92: 81 | Y92: 0 | Z92: 0 | AA92: 0 | AB92: 0 | AC92: 0 | AD92: 0 | AE92: 0
C93: 82 | Y93: 0 | Z93: 0 | AA93: 0 | AB93: 0 | AC93: 0 | AD93: 0 | AE93: 0
C94: 83 | Y94: 0 | Z94: 0 | AA94: 0 | AB94: 0 | AC94: 0 | AD94: 0 | AE94: 0
C95: 84 | Y95: 0 | Z95: 0 | AA95: 0 | AB95: 0 | AC95: 0 | AD95: 0 | AE95: 0
C96: 85 | Y96: 0 | Z96: 0 | AA96: 0 | AB96: 0 | AC96: 0 | AD96: 0 | AE96: 0
C97: 86 | Y97: 0 | Z97: 0 | AA97: 0 | AB97: 0 | AC97: 0 | AD97: 0 | AE97: 0
C98: 87 | Y98: 0 | Z98: 0 | AA98: 0 | AB98: 0 | AC98: 0 | AD98: 0 | AE98: 0
C99: 88 | Y99: 0 | Z99: 0 | AA99: 0 | AB99: 0 | AC99: 0 | AD99: 0 | AE99: 0
C100: 89 | Y100: 0 | Z100: 0 | AA100: 0 | AB100: 0 | AC100: 0 | AD100: 0 | AE100: 0
C101: 90 | Y101: 0 | Z101: 0 | AA101: 0 | AB101: 0 | AC101: 0 | AD101: 0 | AE101: 0
C102: 91 | Y102: 0 | Z102: 0 | AA102: 0 | AB102: 0 | AC102: 0 | AD102: 0 | AE102: 0
C103: 92 | Y103: 0 | Z103: 0 | AA103: 0 | AB103: 0 | AC103: 0 | AD103: 0 | AE103: 0
C104: 93 | Y104: 0 | Z104: 0 | AA104: 0 | AB104: 0 | AC104: 0 | AD104: 0 | AE104: 0
C105: 94 | Y105: 0 | Z105: 0 | AA105: 0 | AB105: 0 | AC105: 0 | AD105: 0 | AE105: 0
C106: 95 | Y106: 0 | Z106: 0 | AA106: 0 | AB106: 0 | AC106: 0 | AD106: 0 | AE106: 0
C107: 96 | Y107: 0 | Z107: 0 | AA107: 0 | AB107: 0 | AC107: 0 | AD107: 0 | AE107: 0
C108: 97 | Y108: 0 | Z108: 0 | AA108: 0 | AB108: 0 | AC108: =IF(AND($AC$5<=AB108,$AC$5>=AA108),1,0) -> 0 | AD108: 0 | AE108: 0
C109: 98 | Y109: 0 | Z109: 0 | AA109: 0 | AB109: 0 | AC109: =IF(AND($AC$5<=AB109,$AC$5>=AA109),1,0) -> 0 | AD109: 0 | AE109: 0
C110: 99 | Y110: 0 | Z110: 0 | AA110: 0 | AB110: 0 | AC110: =IF(AND($AC$5<=AB110,$AC$5>=AA110),1,0) -> 0 | AD110: 0 | AE110: 0
C111: 100 | Y111: 0 | Z111: 0 | AA111: 0 | AB111: 0 | AC111: =IF(AND($AC$5<=AB111,$AC$5>=AA111),1,0) -> 0 | AD111: 0 | AE111: 0
B114: © 2018 by Houseflippingspreadsheet.com. All rights reserved

Sheet TASKS (hidden)
CG2: 81 | CH2: 82 | CI2: 83 | CJ2: 84 | CK2: 85 | CL2: 86 | CM2: 87 | CN2: 88 | CO2: 89 | CP2: 90 | CQ2: 91
L3: TASKS TO DO | W3: NEXT 5 DAYS | AH3: DUE TOMORROW | AS3: DUE TODAY | BD3: OVERDUE | BO3: TASKS COMPLETED | CN3: 1 | CO3: Yellow
L4: =CQ761 -> 0 | W4: =CK761 -> 0 | AH4: =CL761 -> 0 | AS4: =CM761 -> 0 | BD4: =CN761 -> 0 | BO4: =CI761 -> 0 | CN4: 2 | CO4: Orange
CN5: 3 | CO5: Red | CP5: =TODAY() -> 2019-06-23
CN6: 4 | CO6: Red
